Workbook

Sheet Übersicht
A1: Bayerisches Staatsministerium
A2: für Unterricht und Kultus
A3: Referat VI.6 | F3: SchulNr. FOS
A4: 80333 München | F4: SchulNr. BOS
D5: Name und Anschrift der Schule
A7: ! Übermittlung der Daten nur in elektronischer Form !
A11: Budgetberechnung für das Schuljahr 2023/2024
A12: (Nichtstaatliche Berufliche Oberschulen)
G13: Version 2023-01
B18: Auf Richtigkeit und Vollständigkeit überprüft
I21: TRUE | J21: =IF(I21=TRUE,0,1) -> 0
B23: Ort, Datum gez. Schulleiterin / Schulleiter | I23: FALSE | J23: =IF(I23=TRUE,0,1) -> 1
I24: FALSE | J24: =IF(I24=TRUE,0,1) -> 1
I25: FALSE | J25: =IF(I25=TRUE,0,1) -> 1
I26: FALSE | J26: =IF(I26=TRUE,0,1) -> 1
I29: FALSE | J29: =IF(I29=TRUE,0,1) -> 1
I31: FALSE | J31: =IF(I31=TRUE,0,1) -> 1
I33: FALSE | J33: =IF(I33=TRUE,0,1) -> 1
I35: FALSE | J35: =IF(I35=TRUE,0,1) -> 1
I37: FALSE | J37: =IF(I37=TRUE,0,1) -> 1

Sheet VUÜ-Budget
A1: Unterrichtsbudget an Fachoberschulen und Berufsoberschulen
A2: Budgetierung der beruflichen Oberschule für das Schuljahr | I2: =schuljahr -> 2023/24
E3: FOS | F3: BOS
A4: Standort: | E4: =Übersicht!G3 -> 0 | F4: =Übersicht!G4 -> 0
A6: Budgetrelevante Schülerzahlen (gemäß VUÜ-SK) | M6: Schüler
A7: FOS | B7: T | C7: W | D7: S | E7: G | F7: A | G7: IW | H7: GP | I7: insg | K7: DBFH | M7: T | N7: W
A8: Vorkurs | B8: =Rechenblatt!M7:S11 -> 0 | C8: 0 | D8: 0 | E8: 0 | F8: 0 | G8: 0 | H8: 0 | I8: =Rechenblatt!T7:T8 -> 0 | K8: 1. Abschnitt | M8: ='VUÜ-SK'!F36:G39 -> 0 | N8: 0
A9: Vorklasse | B9: 0 | C9: 0 | D9: 0 | E9: 0 | F9: 0 | G9: 0 | H9: 0 | I9: 0 | K9: 2. Abschnitt | M9: 0 | N9: 0
A10: FOS 11 | B10: 0 | C10: 0 | D10: 0 | E10: 0 | F10: 0 | G10: 0 | H10: 0 | I10: =SUM(B10:H10) -> 0 | K10: Abschnitt 13/1 | M10: 0 | N10: 0
A11: FOS 12 | B11: 0 | C11: 0 | D11: 0 | E11: 0 | F11: 0 | G11: 0 | H11: 0 | I11: =SUM(B11:H11) -> 0 | K11: Abschnitt 13/2 | M11: 0 | N11: 0
A12: FOS 13 | B12: 0 | C12: 0 | D12: 0 | E12: 0 | F12: 0 | G12: 0 | H12: 0 | I12: =SUM(B12:H12) -> 0
A13: zusammen | B13: =SUM(B8:B12) -> 0 | C13: 0 | D13: 0 | E13: 0 | F13: 0 | G13: 0 | H13: 0 | I13: 0
A15: BOS | B15: T | C15: W | D15: S | E15: x | F15: A | G15: IW | H15: GP | I15: insg
A16: Vorkurs | B16: =Rechenblatt!M15:S20 -> 0 | C16: 0 | D16: 0 | E16: 0 | F16: 0 | G16: 0 | H16: 0 | I16: =Rechenblatt!T15:T16 -> 0
A17: Vorklasse | B17: 0 | C17: 0 | D17: 0 | E17: 0 | F17: 0 | G17: 0 | H17: 0 | I17: 0
A18: BOS 12 | B18: 0 | C18: 0 | D18: 0 | E18: 0 | F18: 0 | G18: 0 | H18: 0 | I18: =SUM(B18:H18) -> 0
A19: BOS 12/1 | B19: 0 | C19: 0 | D19: 0 | E19: 0 | F19: 0 | G19: 0 | H19: 0 | I19: =SUM(B19:H19) -> 0
A20: BOS 12/2 | B20: 0 | C20: 0 | D20: 0 | E20: 0 | F20: 0 | G20: 0 | H20: 0 | I20: 0
A21: BOS 13 | B21: 0 | C21: 0 | D21: 0 | E21: 0 | F21: 0 | G21: 0 | H21: 0 | I21: =SUM(B21:H21) -> 0
A22: zusammen | B22: =SUM(B16:B21) -> 0 | C22: =SUM(C16:C21) -> 0 | D22: =SUM(D16:D21) -> 0 | E22: 0 | F22: =SUM(F16:F21) -> 0 | G22: =SUM(G16:G21) -> 0 | H22: =SUM(H16:H21) -> 0 | I22: =SUM(I16:I21) -> 0
H23: Schüler | I23: Klassen
A24: Integrationsvorklasse (FOS/BOS) | H24: ='VUÜ-SK'!E61 -> 0 | I24: =Rechenblatt!D86 -> 0
A26: ="Amtliche Schuldaten ("&vorjahr&")" -> Amtliche Schuldaten (2022/23)
A27: Schüler nach Geschlecht | F27: Teilnahme am Religions-/Ethikunterricht (sofern eingerichtet)
B28: männl | C28: weibl | D28: insg | G28: rk | H28: ev | I28: son** | J28: eth
A29: FOS 11 | B29: ='VUÜ-SK'!F75 -> 0 | C29: ='VUÜ-SK'!G75 -> 0 | D29: =SUM(B29:C29) -> 0 | F29: FOS 12 | G29: ='VUÜ-SK'!O75:R78 -> 0 | H29: 0 | I29: 0 | J29: 0
F30: FOS insg* | G30: 0 | H30: 0 | I30: 0 | J30: 0
F31: BOS 12 | G31: 0 | H31: 0 | I31: 0 | J31: 0
F32: BOS insg | G32: 0 | H32: 0 | I32: 0 | J32: 0
F33: ='VUÜ-SK'!J79 -> * ohne Schüler in Jahrgangsstufe 11, für die kein Religions-/Ethikunterricht vorgesehen ist
F34: ='VUÜ-SK'!J80 -> ** orthodox, islamischer Unterricht, weiterer Religionsunterricht gem. Art. 46 BayEUG
A35: Beispiel einer möglichen, aber nicht verbindlichen Klassenbildung (optimierte Mischklassenbildung)
B36: ausbildungsrichtungsreine Klassen | I36: Mischklassen
A37: FOS | B37: T | C37: W | D37: S | E37: G | F37: A | G37: IW | H37: GP | I37: MKl_1 | J37: MKl_2 | K37: o. Abr. | L37: Klassen | M37: Stdtfl | N37: Stdtfl*
A38: Vorkurs | K38: =Rechenblatt!AL26 -> 0 | L38: =SUM(B38:K38) -> 0 | M38: =Rechenblatt!AK26 -> 0 | N38: =Rechenblatt!BA26 -> 0
A39: Vorklasse | K39: =Rechenblatt!AL27 -> 0 | L39: =SUM(B39:K39) -> 0 | M39: =Rechenblatt!AK27 -> 0 | N39: =Rechenblatt!BA27 -> 0
A40: FOS 11 | B40: =Rechenblatt!AC28:AI30 -> 0 | C40: 0 | D40: 0 | E40: 0 | F40: 0 | G40: 0 | H40: 0 | I40: =VLOOKUP(Rechenblatt!L28,Stundentafel!$A$22:$J$64,10,FALSE) -> - | J40: =VLOOKUP(Rechenblatt!M28,Stundentafel!$A$22:$J$64,10,FALSE) -> - | L40: =Rechenblatt!AL28 -> 0 | M40: =Rechenblatt!AK28 -> 0 | N40: =Rechenblatt!BA28 -> 0
A41: FOS 12 | B41: 0 | C41: 0 | D41: 0 | E41: 0 | F41: 0 | G41: 0 | H41: 0 | I41: =VLOOKUP(Rechenblatt!L29,Stundentafel!$A$22:$J$64,10,FALSE) -> - | J41: =VLOOKUP(Rechenblatt!M29,Stundentafel!$A$22:$J$64,10,FALSE) -> - | L41: =Rechenblatt!AL29 -> 0 | M41: =Rechenblatt!AK29 -> 0 | N41: =Rechenblatt!BA29 -> 0
A42: FOS 13 | B42: 0 | C42: 0 | D42: 0 | E42: 0 | F42: 0 | G42: 0 | H42: 0 | I42: =VLOOKUP(Rechenblatt!L30,Stundentafel!$A$22:$J$64,10,FALSE) -> - | J42: =VLOOKUP(Rechenblatt!M30,Stundentafel!$A$22:$J$64,10,FALSE) -> - | L42: =Rechenblatt!AL30 -> 0 | M42: =Rechenblatt!AK30 -> 0 | N42: =Rechenblatt!BA30 -> 0
A43: zusammen | B43: =SUM(B38:B42) -> 0 | C43: 0 | D43: 0 | E43: 0 | F43: 0 | G43: 0 | H43: 0 | I43: =COUNTIF(Rechenblatt!L28:L30,">0") -> 0 | J43: =COUNTIF(Rechenblatt!M28:M30,">0") -> 0 | L43: =SUM(L38:L42) -> 0 | M43: =SUM(M38:M42) -> 0 | N43: (Block 1)
A44: fpT-Gruppen | B44: =Rechenblatt!C72 -> 0 | E44: =Rechenblatt!F72 -> 0 | F44: =Rechenblatt!G72 -> 0 | L44: =SUM(B44:K44) -> 0 | M44: =L44*Stundentafel!$J$2 -> 0 | N44: =Rechenblatt!J73 -> 0
B45: ausbildungsrichtungsreine Klassen | I45: Mischklassen
A46: BOS | B46: T | C46: W | D46: S | E46: G | F46: A | G46: IW | H46: GP | I46: MKl_1 | J46: MKl_2 | K46: o. Abr | L46: Klassen | M46: Stdtfl
A47: Vorkurs | E47: 0 | K47: =Rechenblatt!AL35 -> 0 | L47: =SUM(B47:K47) -> 0 | M47: =Rechenblatt!AK35 -> 0
A48: Vorklasse | E48: 0 | K48: =Rechenblatt!AL36 -> 0 | L48: =SUM(B48:K48) -> 0 | M48: =Rechenblatt!AK36 -> 0
A49: BOS 12 | B49: =Rechenblatt!AC37:AI40 -> 0 | C49: 0 | D49: 0 | E49: 0 | F49: 0 | G49: 0 | H49: 0 | I49: =VLOOKUP(Rechenblatt!L37,Stundentafel!$A$22:$J$64,10,FALSE) -> - | J49: =VLOOKUP(Rechenblatt!M37,Stundentafel!$A$22:$J$64,10,FALSE) -> - | L49: =Rechenblatt!AL37 -> 0 | M49: =Rechenblatt!AK37 -> 0
A50: BOS 12_1 | B50: 0 | C50: 0 | D50: 0 | E50: 0 | F50: 0 | G50: 0 | H50: 0 | I50: =VLOOKUP(Rechenblatt!L38,Stundentafel!$A$22:$J$64,10,FALSE) -> - | J50: =VLOOKUP(Rechenblatt!M38,Stundentafel!$A$22:$J$64,10,FALSE) -> - | L50: =Rechenblatt!AL38 -> 0 | M50: =Rechenblatt!AK38 -> 0
A51: BOS 12_2 | B51: 0 | C51: 0 | D51: 0 | E51: 0 | F51: 0 | G51: 0 | H51: 0 | I51: =VLOOKUP(Rechenblatt!L39,Stundentafel!$A$22:$J$64,10,FALSE) -> - | J51: =VLOOKUP(Rechenblatt!M39,Stundentafel!$A$22:$J$64,10,FALSE) -> - | L51: =Rechenblatt!AL39 -> 0 | M51: =Rechenblatt!AK39 -> 0
A52: BOS 13 | B52: 0 | C52: 0 | D52: 0 | E52: 0 | F52: 0 | G52: 0 | H52: 0 | I52: =VLOOKUP(Rechenblatt!L40,Stundentafel!$A$22:$J$64,10,FALSE) -> - | J52: =VLOOKUP(Rechenblatt!M40,Stundentafel!$A$22:$J$64,10,FALSE) -> - | L52: =Rechenblatt!AL40 -> 0 | M52: =Rechenblatt!AK40 -> 0
A53: zusammen | B53: =SUM(B47:B52) -> 0 | C53: 0 | D53: 0 | E53: 0 | F53: 0 | G53: 0 | H53: 0 | I53: =COUNTIF(Rechenblatt!L37:L40,">0") -> 0 | J53: =COUNTIF(Rechenblatt!M37:M40,">0") -> 0 | L53: =SUM(L47:L52) -> 0 | M53: =SUM(M47:M52) -> 0 | N53: (Block 1)
A55: ="Block 1: Pflichtunterricht/Wahlpflichtunterricht "&schuljahr -> Block 1: Pflichtunterricht/Wahlpflichtunterricht 2023/24
H56: FOS | I56: BOS | J56: insg
A57: 1.1. Stundentafel (ohne WPF, 2. FSpr, FöUnt; RU/Eth, Spo) | H57: =SUM(Rechenblatt!BA26:BA30) -> 0 | I57: =SUM(Rechenblatt!BA35:BA40) -> 0 | J57: =SUM(H57:I57) -> 0
A58: 1.2. Förderunterricht der Stundentafel (FOS 11) | H58: =Rechenblatt!EV28 -> 0 | I58: 0 | J58: =SUM(H58:I58) -> 0
A59: 1.3. Wahlpflichtfächer-Grundbedarf 12 (ohne FSpr/Abi) | H59: =Rechenblatt!AJ49 -> 0 | I59: =Rechenblatt!AK49 -> 0 | J59: 0
A60: 1.4. Wahlpflichtfächer-Grundbedarf 13 (ohne FSpr/Abi. Seminar) | H60: =Rechenblatt!AJ50 -> 0 | I60: =Rechenblatt!AK50 -> 0 | J60: 0
A61: 1.5. WPF Fremdsprache zur Hochschulreife - Grundbedarf | H61: =Rechenblatt!AL93 -> 0 | I61: =Rechenblatt!AM93 -> 0 | J61: 0
A62: 1.6. Profilfach Fremdsprache ABR IW - Grundbedarf | H62: =SUM(Rechenblatt!H61:H63) -> 0 | I62: =SUM(Rechenblatt!H64:H67) -> 0 | J62: 0
A63: 1.7. Grundbedarf Seminar gem. §17 FOBOS (Jgst. 13) | H63: =Rechenblatt!W44 -> 0 | I63: =Rechenblatt!X44 -> 0 | J63: =SUM(H63:I63) -> 0
A64: 1.8. DBFH (1.-3. Ausbildungsjahr); FOS-Stunden | H64: =Rechenblatt!K81 -> 0 | I64: 0 | J64: =SUM(H64:I64) -> 0
A65: 1.9. Integrationsvorklasse (Grundbedarf) | H65: =Rechenblatt!E86 -> 0 | I65: 0 | J65: 0
A66: 1.10. Reduktion für Splittergruppen-Profile in Jgst. 13 | J66: =SUM(H66:I66) -> 0
A67: 1.11. Einsparung durch gemeinsame Beschulung FOS13/BOS13 | J67: 0
A68: Block 1 | H68: =SUM(H57:H67) -> 0 | I68: =SUM(I57:I67) -> 0 | J68: =SUM(H68:I68) -> 0
A70: ="Block 2: Zusatzbedarf für Gruppenbildung und Teilungen "&schuljahr -> Block 2: Zusatzbedarf für Gruppenbildung und Teilungen 2023/24
H71: FOS | I71: BOS | J71: insg
A72: 2.1. Vorklasse: weitere Teilungen im Profilbereich | H72: =Rechenblatt!Z86 -> 0 | I72: =Rechenblatt!AA86 -> 0 | J72: =SUM(H72:I72) -> 0
A73: 2.2. Teilungsstunden in Profilfächern | H73: =Rechenblatt!BK50 -> 0 | I73: =Rechenblatt!BK60 -> 0 | J73: =SUM(H73:I73) -> 0
A74: 2.3. Religion/Ethik (Stdtafel+Teilung) | H74: =Rechenblatt!CU24 -> 0 | I74: =Rechenblatt!CU33 -> 0 | J74: 0
A75: 2.4. Sportklassen (Stdtafel+Teilung) | H75: =Rechenblatt!CA24 -> 0 | I75: 0 | J75: 0
A76: 2.5. Teilungen Praxisanteile WPF Informatik | H76: =Rechenblatt!L54+Rechenblatt!L56 -> 0 | I76: =Rechenblatt!L55+Rechenblatt!L57 -> 0 | J76: 0
A77: 2.6. WPF Fremdsprache allg. Hochschulreife - Zusatzbedarf | H77: =Rechenblatt!AQ93 -> 0 | I77: =Rechenblatt!AR93 -> 0 | J77: 0
A78: 2.7. Profilfach Fremdsprache ABR IW - Zusatzbedarf | H78: =SUM(Rechenblatt!I61:I63) -> 0 | I78: =SUM(Rechenblatt!I64:I67) -> 0 | J78: 0
A79: Block 2 | H79: =SUM(H72:H78) -> 0 | I79: =SUM(I72:I78) -> 0 | J79: =SUM(H79:I79) -> 0
A81: ="Block 3: individuelle Förderung, Wahlunterricht "&schuljahr -> Block 3: individuelle Förderung, Wahlunterricht 2023/24
H82: FOS | I82: BOS | J82: insg
A83: 3.1. Ergänzungsunterricht (ohne FOS11/BOS12) | H83: =Rechenblatt!DQ24 -> 0 | I83: =Rechenblatt!DQ33 -> 0 | J83: =SUM(H83:I83) -> 0
A84: 3.2. Differenzierungen, pädagog. Teilungen | H84: =Rechenblatt!EB24 -> 0 | I84: =Rechenblatt!EB33 -> 0 | J84: =SUM(H84:I84) -> 0
A85: 3.3. Teilung Förderunterricht FOS 11 (WPF) | H85: =Rechenblatt!EW28 -> 0 | I85: 0 | J85: 0
A86: 3.4. "Intensivierungsstunden" BOS 12 | H86: 0 | I86: =SUM(Rechenblatt!EV37:EV39) -> 0 | J86: 0
A87: 3.5. Wahlunterricht | H87: =Rechenblatt!ED24 -> 0 | I87: =Rechenblatt!ED33 -> 0 | J87: 0
A88: 3.6. Wahlfreiheitszuschlag in Wahlpflichtfächern (12/13) | H88: =SUM(Rechenblatt!AM49:AM50) -> 0 | I88: =SUM(Rechenblatt!AN49:AN50) -> 0 | J88: 0
A89: 3.7. freiwillige Wahl eines zusätzlichen WPF (12/13) | H89: =SUM(Rechenblatt!AP49:AP50) -> 0 | I89: =SUM(Rechenblatt!AQ49:AQ50) -> 0 | J89: 0
A90: 3.8. Zuschlag für Seminare gem. § 17 FOBOSO | H90: =Rechenblatt!Z44 -> 0 | I90: =Rechenblatt!AA44 -> 0 | J90: =SUM(H90:I90) -> 0
A91: 3.9. individuelle Förderung Integrationsvorklasse | H91: =Rechenblatt!G86 -> 0 | I91: 0 | J91: =SUM(H91:I91) -> 0
A92: Block 3 | H92: =SUM(H83:H91) -> 0 | I92: =SUM(I83:I91) -> 0 | J92: =SUM(H92:I92) -> 0
A93: Unterricht aus Block 1 bis 3 (ohne FPA) | H93: =SUM(H68,H79,H92) -> 0 | I93: =SUM(I68,I79,I92) -> 0 | J93: =SUM(H93:I93) -> 0
A95: ="4. Fachpraktische Ausbildung (FPA) "&schuljahr -> 4. Fachpraktische Ausbildung (FPA) 2023/24
A96: 4.1. fpT - fachpraktische Tätigkeit | H96: =N44 -> 0 | I96: 0 | J96: =SUM(H96:I96) -> 0
A97: 4.2. fpAn - fachpraktische Anleitung | H97: =Rechenblatt!M71 -> 0 | I97: 0 | J97: 0
A98: 4.3.1. fpV - fachpraktische Vertiefung (Grundbedarf) | H98: =Rechenblatt!N71 -> 0 | I98: 0 | J98: 0
A99: 4.3.2. fpV - fachpraktische Vertiefung (Teilungsmehrbedarf) | H99: =Rechenblatt!AB71 -> 0 | I99: 0 | J99: 0
A100: 4.4. fpB - fachpraktische Betreuung | H100: =Rechenblatt!R71 -> 0 | I100: 0 | J100: 0
A101: FPA in der 4. QE (= fpV+fpAn+fpB) | H101: =SUM(H97:H100) -> 0 | I101: =SUM(I97:I100) -> 0 | J101: 0
A102: FPA in der 3. QE (= fpT) | H102: =H96 -> 0 | I102: =I96 -> 0 | J102: 0
A103: Unterrichtsbudget (neue Stundentafeln) | H103: =SUM(H101:H102,H93) -> 0 | I103: =SUM(I101:I102,I93) -> 0 | J103: =SUM(H103:I103) -> 0
A104: ="Zusammenfassung "&schuljahr -> Zusammenfassung 2023/24
H105: FOS | I105: BOS | J105: insg
A106: nach Jgst. | B106: Vorkurse | H106: =TRANSPOSE(Rechenblatt!H150:L150) -> 0 | I106: =TRANSPOSE(Rechenblatt!P150:T150) -> 0 | J106: =SUM(H106:I106) -> 0
B107: Vorklassen | H107: 0 | I107: 0 | J107: 0
B108: Jahrgangsstufe 11 (einschl. FPA) | H108: 0 | I108: 0 | J108: =SUM(H108:I108) -> 0
B109: Jahrgangsstufe 12 | H109: 0 | I109: 0 | J109: 0
B110: Jahrgangsstufe 13 | H110: 0 | I110: 0 | J110: 0
B111: DBFH (1. - 3. Ausbildungsjahr) | H111: =Rechenblatt!M150 -> 0 | I111: =Rechenblatt!U150 -> 0 | J111: 0
A112: ="Unterrichtsbudget (einschl. FPA) "&schuljahr -> Unterrichtsbudget (einschl. FPA) 2023/24 | H112: =SUM(H106:H111) -> 0 | I112: =SUM(I106:I111) -> 0 | J112: =SUM(H112:I112) -> 0

Sheet VUÜ-SK
B1: ="Schüler- und Klassenzahlen (VUÜ-SK) im Schuljahr "&schuljahr -> Schüler- und Klassenzahlen (VUÜ-SK) im Schuljahr 2023/24
B3: Eingabefelder
B4: 1. Fachoberschule:
B5: Schulnummer | D5: =IF(Übersicht!G3="","",Übersicht!G3) ->  | E5: Vor- | F5: FOS 11 | N5: FOS 12 | V5: FOS 13 | AD5: FOS
B6: 1.1 Schülerzahlen für Klassenbildung FOS | E6: klasse | F6: T | G6: W | H6: S | I6: G | J6: A | K6: IW | L6: GP | M6: FOS11 | N6: T | O6: W | P6: S | Q6: G | R6: A | S6: IW | T6: GP | U6: FOS12 | V6: T | W6: W | X6: S | Y6: G | Z6: A | AA6: IW | AB6: GP | AC6: FOS13
B7: Z1 | C7: Gesamtzahl Neuanmeldungen (Schnitt erreicht)1) | M7: =SUM(F7:L7) -> 0 | U7: =SUM(N7:T7) -> 0 | AC7: =SUM(V7:AB7) -> 0 | AD7: =SUM(E7,M7,U7,AC7) -> 0
B8: Z2 | C8: voraussichtliche Wiederholungsschüler | M8: =SUM(F8:L8) -> 0 | U8: =SUM(N8:T8) -> 0 | AC8: =SUM(V8:AB8) -> 0 | AD8: =SUM(E8,M8,U8,AC8) -> 0
B9: Z3 | C9: voraussichtliche Aufsteiger | M9: =SUM(F9:L9) -> 0 | U9: =SUM(N9:T9) -> 0 | AC9: =SUM(V9:AB9) -> 0 | AD9: =SUM(E9,M9,U9,AC9) -> 0
B10: Z4 | C10: Summe (Z1+Z2+Z3) | E10: =SUM(E7:E9) -> 0 | F10: =SUM(F7:F9) -> 0 | G10: 0 | H10: 0 | I10: 0 | J10: 0 | K10: 0 | L10: 0 | M10: 0 | N10: 0 | O10: 0 | P10: 0 | Q10: 0 | R10: 0 | S10: 0 | T10: 0 | U10: 0 | V10: 0 | W10: 0 | X10: 0 | Y10: 0 | Z10: 0 | AA10: 0 | AB10: 0 | AC10: 0 | AD10: 0
B11: Z5 | C11: gewichtete Antrittsquote von Z4 (max. 1,00)
B12: Z6 | C12: Gesamtzahl Neuanmeldungen (Schnitt nicht erreicht)2)
B13: Z7 | C13: geschätzte Antrittsquote von Z6 (für FOS11: 0,15)
B14: Z8 | C14: voraussichtliche Schülerzahl (Z4*Z5+Z6*Z7) | E14: =ROUND(E10*E11+E12*E13,0) -> 0 | F14: =ROUND(F10*F11+F12*F13,0) -> 0 | G14: 0 | H14: 0 | I14: 0 | J14: 0 | K14: 0 | L14: 0 | M14: =SUM(F14:L14) -> 0 | N14: 0 | O14: 0 | P14: 0 | Q14: 0 | R14: 0 | S14: 0 | T14: 0 | U14: =SUM(N14:T14) -> 0 | V14: 0 | W14: 0 | X14: 0 | Y14: 0 | Z14: 0 | AA14: 0 | AB14: 0 | AC14: =SUM(V14:AB14) -> 0 | AD14: =SUM(E14,M14,U14,AC14) -> 0 | AH14: =IF(V14<8,0,V14) -> 0 | AI14: =IF(W14<8,0,W14) -> 0 | AJ14: =IF(Z14<8,0,Z14) -> 0 | AK14: =IF(AA14<8,0,AA14) -> 0 | AL14: =IF(AB14<8,0,AB14) -> 0 | AN14: =SUM(AH14:AL14) -> 0
B15: Z9 | C15: geplante Klassenfrequenz | E15: =IF(E16>0,E14/E16,0) -> 0 | F15: =IF(F16>0,F14/F16,0) -> 0 | G15: 0 | H15: 0 | I15: =IF(I16>0,I14/I16,0) -> 0 | J15: =IF(J16>0,J14/J16,0) -> 0 | K15: 0 | L15: 0 | M15: 0 | N15: =IF(N16>0,N14/N16,0) -> 0 | O15: 0 | P15: 0 | Q15: 0 | R15: 0 | S15: 0 | T15: 0 | U15: 0 | V15: =IF(V16>0,V14/V16,0) -> 0 | W15: 0 | X15: 0 | Y15: 0 | Z15: 0 | AA15: 0 | AB15: 0 | AC15: 0 | AD15: 0
B16: Z10 | C16: ="geplante Klassenzahl "&schuljahr -> geplante Klassenzahl 2023/24 | M16: =SUM(F16:L16) -> 0 | U16: =SUM(N16:T16) -> 0 | AC16: =SUM(V16:AB16) -> 0 | AD16: =SUM(E16,M16,U16,AC16) -> 0
B17: Z11 | C17: ="Klassenzahl gesamt "&vorjahr -> Klassenzahl gesamt 2022/23 | M17: =SUM(F17:L17) -> 0 | U17: =SUM(N17:T17) -> 0 | AC17: =SUM(V17:AB17) -> 0 | AD17: =SUM(E17,M17,U17,AC17) -> 0
B18: Z12 | C18: Differenz (Z10-Z11) | E18: =E16-E17 -> 0 | F18: 0 | G18: 0 | H18: 0 | I18: =I16-I17 -> 0 | J18: =J16-J17 -> 0 | K18: 0 | L18: 0 | M18: =M16-M17 -> 0 | N18: 0 | O18: 0 | P18: =P16-P17 -> 0 | Q18: =Q16-Q17 -> 0 | R18: 0 | S18: 0 | T18: 0 | U18: 0 | V18: 0 | W18: 0 | X18: =X16-X17 -> 0 | Y18: =Y16-Y17 -> 0 | Z18: 0 | AA18: 0 | AB18: 0 | AC18: 0 | AD18: 0
B20: Z13 | C20: Vorkurs FOS | D20: vorauss. Schülerzahl | H20: 1) für 11. Kl.: D, E, M <= 3,5 im Zwischenzeugnis bzw. für FOS13: Durchschnitt im Zwischenzeugnis <= 3,0
D21: geplante Klassenzahl | H21: 2) für 11. Kl.: D, E, M > 3,5 im Zwischenzeugnis bzw. für FOS13: Durchschnitt im Zwischenzeugnis > 3,0 (max. 3,2)
B23: 1.2 Fachpraktische Ausbildung (FOS 11) | F23: FOS 11 (FPA)
F24: T | G24: W | H24: S | I24: G | J24: A | K24: IW | L24: GP | M24: Ges
B25: =schuljahr -> 2023/24 | C25: Z8 Schülerzahl Jgst. 11 (eigene Schule) | F25: =F14 -> 0 | G25: 0 | H25: 0 | I25: 0 | J25: 0 | K25: 0 | L25: 0 | M25: =SUM(F25:L25) -> 0
C26: E: darunter in fpT in schulint. Ausbildungswerkstatt | M26: 0
C27: A zzgl. Schüler anderer FOS in schulint. Werkstatt | M27: 0
B28: =vorjahr -> 2022/23 | C28: ="Z8' Schülerzahl Jgst. 11 (eigene Schule) - "&vorjahr -> Z8' Schülerzahl Jgst. 11 (eigene Schule) - 2022/23 | M28: 0
C29: =" E' darunter in fpT in schulint. Werkstatt - "&vorjahr -> E' darunter in fpT in schulint. Werkstatt - 2022/23 | M29: 0
C30: =" B' Anzahl der Ausbildungsstätten - "&vorjahr -> B' Anzahl der Ausbildungsstätten - 2022/23 | M30: 0
C31: Gesamtanzahl der Ausbildungsstätten B
B34: 1.3 DBFH | F34: Schüler
B35: (Schülerzahlen nach Ausbildungsjahr) | F35: T | G35: W
B36: 1. Ausbildungsjahr | G36: 0
B37: 2. Ausbildungsjahr | G37: 0
B38: 3. Ausbildungsjahr (Abschnitt 13/1) | G38: 0
B39: 3. Ausbildungsjahr (Abschnitt 13/2); Eingabe, sofern abweichend | G39: =G38 -> 0
B41: 2. Berufsoberschule:
B42: Schulnummer | D42: =IF(Übersicht!G4="","",Übersicht!G4) ->  | E42: TZ-BOS 1.J | H42: TZ-BOS 2.J | M42: Vor- | N42: BOS 12 | V42: BOS 13 | AD42: BOS
B43: 2.1 Schülerzahlen für Klassenbildung BOS | E43: T | F43: W | H43: T | I43: W | M43: klasse | N43: T | O43: W | P43: S | R43: A | S43: IW | T43: GP | U43: BOS12 | V43: T | W43: W | X43: S | Z43: A | AA43: IW | AB43: GP | AC43: BOS13
B44: Z1 | C44: Gesamtzahl der Neuanmeldungen | U44: =SUM(N44:T44) -> 0 | AC44: =SUM(V44:AB44) -> 0 | AD44: =SUM(M44,U44,AC44) -> 0
B45: Z2 | C45: voraussichtliche Wiederholungsschüler | U45: =SUM(N45:T45) -> 0 | AC45: =SUM(V45:AB45) -> 0 | AD45: 0
B46: Z3 | C46: voraussichtliche Aufsteiger | U46: =SUM(N46:T46) -> 0 | AC46: =SUM(V46:AB46) -> 0 | AD46: 0
B47: Z4 | C47: Summe (Z1+Z2+Z3) | M47: =M44+M45 -> 0 | N47: =N44+N45+N46 -> 0 | O47: =O44+O45+O46 -> 0 | P47: =P44+P45+P46 -> 0 | S47: =S44+S45+S46 -> 0 | T47: =T44+T45+T46 -> 0 | U47: =SUM(N47:T47) -> 0 | V47: =SUM(V44:V46) -> 0 | W47: =SUM(W44:W46) -> 0 | X47: 0 | Z47: 0 | AA47: 0 | AB47: 0 | AC47: =SUM(V47:AB47) -> 0 | AD47: =SUM(M47,U47,AC47) -> 0
B48: Z5 | C48: gewichtete Antrittsquote von Z4 (max. 1,00)
B49: Z6 | C49: voraussichtliche Schülerzahl (Z4*Z5) | M49: =ROUND(M47*M48,0) -> 0 | N49: =ROUND(N47*N48,0) -> 0 | O49: 0 | P49: 0 | R49: 0 | S49: 0 | T49: 0 | U49: =SUM(N49:T49) -> 0 | V49: 0 | W49: 0 | X49: 0 | Z49: 0 | AA49: 0 | AB49: 0 | AC49: =SUM(V49:AB49) -> 0 | AD49: =SUM(E49:F49,H49:I49,M49,U49,AC49) -> 0 | AH49: =IF(V49<8,0,V49) -> 0 | AI49: =IF(W49<8,0,W49) -> 0 | AJ49: =IF(Z49<8,0,Z49) -> 0 | AK49: =IF(AA49<8,0,AA49) -> 0 | AL49: =IF(AB49<8,0,AB49) -> 0 | AN49: =SUM(AH49:AL49) -> 0
B50: Z7 | C50: geplante Klassenfrequenz | E50: =IF(E51>0,E49/E51,0) -> 0 | F50: =IF(F51>0,F49/F51,0) -> 0 | H50: =IF(H51>0,H49/H51,0) -> 0 | I50: =IF(I51>0,I49/I51,0) -> 0 | M50: =IF(M51>0,M49/M51,0) -> 0 | N50: =IF(N51>0,N49/N51,0) -> 0 | O50: =IF(O51>0,O49/O51,0) -> 0 | P50: =IF(P51>0,P49/P51,0) -> 0 | S50: =IF(S51>0,S49/S51,0) -> 0 | T50: 0 | U50: 0 | V50: 0 | W50: 0 | X50: 0 | Z50: =IF(Z51>0,Z49/Z51,0) -> 0 | AA50: =IF(AA51>0,AA49/AA51,0) -> 0 | AB50: =IF(AB51>0,AB49/AB51,0) -> 0 | AC50: =IF(AC51>0,AC49/AC51,0) -> 0 | AD50: =IF(AD51>0,AD49/AD51,0) -> 0
B51: Z8 | C51: ="geplante Klassenzahl "&schuljahr -> geplante Klassenzahl 2023/24 | U51: =SUM(N51:T51) -> 0 | AC51: =SUM(V51:AB51) -> 0 | AD51: =SUM(E51:F51,H51:I51,M51,U51,AC51) -> 0
B52: Z9 | C52: ="Klassenzahl gesamt "&vorjahr -> Klassenzahl gesamt 2022/23 | U52: =SUM(N52:T52) -> 0 | AC52: =SUM(V52:AB52) -> 0 | AD52: =SUM(E52:F52,H52:I52,M52,U52,AC52) -> 0
B53: Z10 | C53: Differenz (Z8-Z9) | E53: =E51-E52 -> 0 | F53: =F51-F52 -> 0 | H53: =H51-H52 -> 0 | I53: =I51-I52 -> 0 | M53: =M51-M52 -> 0 | N53: =N51-N52 -> 0 | O53: =O51-O52 -> 0 | P53: =P51-P52 -> 0 | S53: =S51-S52 -> 0 | T53: 0 | U53: 0 | V53: 0 | W53: 0 | X53: 0 | AA53: =AA51-AA52 -> 0 | AB53: =AB51-AB52 -> 0 | AC53: =AC51-AC52 -> 0 | AD53: 0
B55: Z11 | C55: Vorkurs BOS | D55: vorauss. Schülerzahl
D56: geplante Klassenzahl
B58: 3. Fachoberschule und Berufsoberschule
B60: 3.1 Brückenangebote für aus dem Ausland zugezogene Jugendliche und Erwachsene mit nichtdeutscher Muttersprache
B61: Z12 | C61: Integrations- Vorklasse FOS/BOS | D61: vorauss. Schülerzahl
D62: geplante Klassenzahl
B63: nachrichtlich (außerhalb des Budgets)
B64: Z13 | C64: Berufsintegrations- klassen an FOS/BOS | D64: vorauss. Schülerzahl
D65: geplante Klassenzahl
B67: 3.2 Fremdsprache zur Erlangung der allgemeinen Hochschulreife (FOS/BOS gemeinsam)
D68: Schüler (FOS/BOS) | E68: Spa | F68: Fra | G68: Ita | H68: Lat | I68: Rus | J68: Ges
B69: Jgst. 12 | D69: =U14+U49 -> 0 | J69: =SUM(E69:I69) -> 0
B70: Jgst. 13 | D70: =AC14+AC49 -> 0 | J70: =SUM(E70:I70) -> 0
B72: ="3.3 Daten für das dem Planungsjahr vorangehende Schuljahr "&vorjahr&" (Projektion)" -> 3.3 Daten für das dem Planungsjahr vorangehende Schuljahr 2022/23 (Projektion)
B73: 3.3.1 Schüler nach Geschlecht | J73: 3.3.2 Teilnahme am Religions-/Ethikunterricht (sofern eingerichtet)
B74: Sport (Geschlecht) | F74: männl | G74: weibl | H74: insg | J74: Religion/Ethik | O74: rk | P74: ev | Q74: son** | R74: eth
B75: ="FOS 11 ("&vorjahr&")" -> FOS 11 (2022/23) | H75: =SUM(F75:G75) -> 0 | J75: ="FOS 12 ("&vorjahr&")" -> FOS 12 (2022/23)
J76: ="FOS insgesamt* ("&vorjahr&")" -> FOS insgesamt* (2022/23)
J77: ="BOS 12 ("&vorjahr&")" -> BOS 12 (2022/23)
J78: ="BOS insgesamt ("&vorjahr&")" -> BOS insgesamt (2022/23)
J79: * ohne Schüler in Jahrgangsstufe 11, für die kein Religions-/Ethikunterricht vorgesehen ist
J80: ** orthodox, islamischer Unterricht, weiterer Religionsunterricht gem. Art. 46 BayEUG

Sheet VUÜ-PP (hidden)
A1: UPZ + AZK | F1: Personalplanung für das Schuljahr 2020/21 (VUÜ-PP) | R1: =IF(Übersicht!G3<>"",Übersicht!G3,"") ->  | S1: SchNr. FOS
R2: =IF(Übersicht!G4<>"",Übersicht!G4,"") ->  | S2: SchNr. BOS
P4: =IF(Übersicht!D1<>"",Übersicht!D1,"") -> 
A6: A) Bedarfsberechnung | G6: B) Personalmaßnahmen
G7: (Deckung von Bedarf, Abbau von Überhängen)
A8: a) Berechnung Gesamtbudget
A9: Unterrichtsbudget einschl. FPA | D9: ='VUÜ-Budget'!J112 -> 0 | G9: Art der Maßnahme (Ref,N,V+,V-,R,E,AV,AO,nb) | H9: Fächerverbindung | I9: Name | J9: Ref. Stellen | K9: Ref. Stunden | L9: N,V+,V-,E,R (Stellen) | M9: N,V+,V-,E,R (Std) | N9: AO Stunden | O9: AV Stellen | P9: AV Stunden | Q9: nb Stunden | R9: Bemerkungen
A10: darunter FPA 4. QE (fpV, fpAn, fpB) | D10: ='VUÜ-Budget'!J101 -> 0
A11: darunter FPA 3. QE (fpT) | D11: ='VUÜ-Budget'!J102 -> 0
A12: + Inklusion 7
A13: + Anrechnungen (schulgeb.) 1
A14: = errechnetes Gesamtbudget (GB*) | D14: =D9+D13+D12 -> 0
A15: - Kürzung (in %) | D15: 0
A16: = gekürztes Gesamtbudget (GB) | D16: =D14*(1-D15/100) -> 0
F17: Referendare
A18: b) verfügbare Stunden (Stammpersonal)
A19: dauerh. beschäftigtes Personal2
A20: + Zugänge/Abgänge seit 20.10.3
A21: + Teilzeitänderungen seit 20.10.4
A22: - Abbau von Mehrungen aus Vorjahr5 | F22: Neu., Entfr., Vers., Rückkehr
A23: - Ermäß. (Alter, Beh.)
A24: - Anrechnungen (nicht schulgeb.) 6
A25: - max. Einsatzstunden für mobile Reserve(n)
A26: = verfügb. Stunden (VSt) | D26: =D19+D20+D21-D22-D23-D24-D25 -> 0
A28: c) Bedarf ( + ) bzw. Überhang ( - )
A30: D, E, G, Sk ... | B30: M, Ph, C, B, Te … | C30: WW | D30: PP
F31: AbOrdnungen, AushVertr, nebenberufl. Lehrkräfte
A34: K, Ev, Eth | B34: Ku, Mu | C34: fpA | D34: Smw/Sonst
B39: Σ Tabelle | C39: lt. VUÜ | D39: nach Kürz.
C40: GB* - VSt | D40: GB - VSt
A41: Gesamt | B41: =SUM(A31:D32,A35:D36) -> 0 | C41: =D14-D26 -> 0 | D41: =D16-D26 -> 0
R42: Summe - Stunden
A43: 1) vgl. KM-Bek zur UPZ der Lehrer an ber.Sch. | I43: Einzelsummen | J43: =SUM(J17:J21) -> 0 | K43: =SUM(K17:K21) -> 0 | L43: =SUM(L22:L30) -> 0 | M43: =SUM(M22:M30) -> 0 | N43: =SUM(N31:N41) -> 0 | O43: =SUM(O31:O41) -> 0 | P43: =SUM(P31:P41) -> 0 | Q43: =SUM(Q31:Q41) -> 0 | R43: =K43+M43+N43+P43+Q43 -> 0
A44: 2) vgl. ASD "vorh.UPZ von ha/hb'+AU'-Lehrern"
A45: 3) vgl. VUÜ-PV 1 und 2
A46: 4) vgl. VUÜ-PV 1 und 2 | G46: C) Freiwilliges Arbeitszeitkonto (absolute Gesamtsumme seit dem Schuljahr 2007/08)
A47: 5) vgl. VUÜ-PV 3
A48: 6) nicht schulgebundene Anrechnungen sind z.B. Seminarlehrer- | H48: 1. der 4. QE (=höherer Dienst) | L48: (absolute Gesamtsumme) | S48: Wochenst.
A49: tätigkeit, Mitarbeit beim ISB, Mitglied einer Aufgabenkommission, …
A50: 7) wird ausschließlich durch das StM nach Genehmigung eingetragen | H50: 2. der 3. QE (=gehobener Dienst) | L50: (absolute Gesamtsumme) | S50: Wochenst.

Sheet VUÜ-PV (hidden)
A1: Personalveränderungen zum Schuljahr 2019/20 (VUÜ-PV) | G1: =IF(Übersicht!G3<>"",Übersicht!G3,"") ->  | H1: SchNr. FOS
A2: Stand: 09.03.2019 | G2: =IF(Übersicht!G4<>"",Übersicht!G4,"") ->  | H2: SchNr. BOS
A4: Personalveränderungen (seit 20.10.2018) | C4: Lehrkraft | D4: Fächer | E4: Stunden-änderung | F4: Grund | G4: vorauss. Dauer bis | H4: Stellungnahme d. Schulleitung
A6: 1 | B6: Abgänge
A7: 1.1 | B7: Pensionierung, Krankheit, Tod
A10: 1.2 | B10: Beurlaub., Muttersch., Elternzeit Anzugeben sind alle Lehrkräfte, deren Berulaubung fortbesteht oder neu beantragt wurde.
A16: 1.3 | B16: geänderte Teilzeit, Sabbatjahr, Ermäßigung Seit 20.10.2017 genehmigt oder neu beantragt. (nur neue Teilzeitanträge oder Änderungen im Stundenmaß)
A23: 1.4 | B23: Rückkehr nach Abordnung
A25: 2 | B25: Zugänge
A26: 2.1 | B26: Rückkehr aus Mutterschutz, Elternzeit
A29: 2.2 | B29: Planstellen zum Schulhalbjahr
A32: 2.3 | B32: geänderte Teilzeit, Wegfall Ermäßigung Seit 20.10.2018 genehmigt oder neu beantragt. (nur Änderungen im Stundenmaß)
A38: 2.4 | B38: Rückkehr nach Abordnungen Sämtliche Abordnungen enden mit Ablauf des Schuljahres. Soll eine Abordnung fortbestehen, ist dies unter Nr. 3.2 neu zu vermerken.
A44: Vorschläge für 2018/19 | C44: Lehrkraft | D44: Fächer | E44: gepl. Std | F44: Vorschläge der Schulleitung
A45: 3 | B45: Abbau von Überhängen (Abgänge)
A46: 3.1 | B46: Versetzungen Auch angeben, wenn kein Überhang besteht. Siehe Vers.antr. vom...
A49: 3.2 | B49: Abordnungen Mögl. Abordnungen an umliegende berufl. Schulen oder Gymnasien.
B51: mögl. Abordnungen an umliegende
A52: 3.3 | B52: Unterrichtsminderungen Nur, wenn Ausgleich im kommenden Jahr möglich ist.
A55: 3.4 | B55: verbleibende Überhänge, die nach Ausschöpfung o.g. Möglichkeiten nicht abbaubar erscheinen.
A59: 4 | B59: Deckung von offenem Bedarf (Zugänge)
A60: 4.1 | B60: Versetzungen Siehe Versetzungsantrag vom......
A62: 4.2 | B62: Rückkehr aus Beurlaubung
A64: 4.3 | B64: Abordnungen
A67: 4.4 | B67: Unterichtsmehrungen Nur, wenn Ausgleich im kommenden Jahr möglich ist.
A70: 4.5 | B70: Aushilfsverträge Lehrkräfte, die die Schule weiterbeschäftigen möchte (nur mit Aushilfsgrund !).
A76: 4.6 | B76: Neueinstellungen Nur bei dauerhaftem Bedarf!
A81: 4.7 | B81: Zuweisung von Referendaren (auch zum 2. Schulhalbjahr z.B. aufgrund von Pensionierung oder ATZ)
A84: 5 | B84: Mobile Reserve

Sheet Rechenblatt (hidden)
A1: Bedarfsberechnung für die Schule
E2: FOS | F2: BOS
A3: Standort: | C3: =Übersicht!#REF! ->  | E3: =Übersicht!G3 -> 0 | F3: =Übersicht!G4 -> 0
L4: Mit Mindestschülerzahlen
A5: Voraussichtliche Schülerzahlen (nach VUÜ-SK) | L5: Anwendung der Mindestschülerzahlen
A6: FOS | B6: T | C6: W | D6: S | E6: G | F6: A | G6: IW | H6: GP | I6: insg | L6: FOS | M6: T | N6: W | O6: S | P6: G | Q6: A | R6: IW | S6: GP | T6: insg | AC6: Mindestschülerzahlalgorithmus (VK-12)
A7: Vorkurs | I7: ='VUÜ-SK'!E20 -> 0 | L7: Vorkurs | T7: =IF(I7<Parameter!J39,0,I7) -> 0 | U7: =Parameter!J39 -> 0 | V7: Mindestschülerzahl 12 | AC7: Sofern (insgesamt) unter 2*8 = 16 > KEINE Budgetschüler
A8: Vorklasse | I8: ='VUÜ-SK'!E14 -> 0 | L8: Vorklasse | T8: =IF(I8<Parameter!K39,0,I8) -> 0 | U8: =Parameter!K39 -> 0 | V8: Mindestschülerzahl 15 | AC8: Solange noch eine ABR < 8
A9: FOS 11 | B9: ='VUÜ-SK'!F14 -> 0 | C9: ='VUÜ-SK'!G14 -> 0 | D9: ='VUÜ-SK'!H14 -> 0 | E9: ='VUÜ-SK'!I14 -> 0 | F9: ='VUÜ-SK'!J14 -> 0 | G9: ='VUÜ-SK'!K14 -> 0 | H9: ='VUÜ-SK'!L14 -> 0 | I9: =SUM(B9:H9) -> 0 | L9: FOS 11 | M9: =B9:H11 -> 0 | N9: 0 | O9: 0 | P9: 0 | Q9: 0 | R9: 0 | S9: 0 | T9: =SUM(M9:S9) -> 0 | U9: Mindestschülerzahlalgorithmus (je Abr 8, insgesamt mind. 2x8) | AD9: nulle die/eine kleinste ABR aus
A10: FOS 12 | B10: ='VUÜ-SK'!N14 -> 0 | C10: ='VUÜ-SK'!O14 -> 0 | D10: ='VUÜ-SK'!P14 -> 0 | E10: ='VUÜ-SK'!Q14 -> 0 | F10: ='VUÜ-SK'!R14 -> 0 | G10: ='VUÜ-SK'!S14 -> 0 | H10: ='VUÜ-SK'!T14 -> 0 | I10: =SUM(B10:H10) -> 0 | L10: FOS 12 | M10: 0 | N10: 0 | O10: 0 | P10: 0 | Q10: 0 | R10: 0 | S10: 0 | T10: =SUM(M10:S10) -> 0 | U10: Mindestschülerzahlalgorithmus (je Abr 8, insgesamt mind. 2x8) | AD10: verteile diese Schüler proportional nach SZ auf die anderen ABR
A11: FOS 13 | B11: ='VUÜ-SK'!V14 -> 0 | C11: ='VUÜ-SK'!W14 -> 0 | D11: ='VUÜ-SK'!X14 -> 0 | E11: ='VUÜ-SK'!Y14 -> 0 | F11: ='VUÜ-SK'!Z14 -> 0 | G11: ='VUÜ-SK'!AA14 -> 0 | H11: ='VUÜ-SK'!AB14 -> 0 | I11: =SUM(B11:H11) -> 0 | L11: FOS 13 | M11: 0 | N11: 0 | O11: 0 | P11: 0 | Q11: 0 | R11: 0 | S11: 0 | T11: =SUM(M11:S11) -> 0 | U11: Nullsetzen bei unter 8 Schülern in FOS13+BOS13; Shuffling unter 8 | AC11: Wend
A12: zusammen | B12: =SUM(B7:B11) -> 0 | C12: 0 | D12: 0 | E12: 0 | F12: 0 | G12: 0 | H12: 0 | I12: 0 | L12: zusammen | M12: =SUM(M7:M11) -> 0 | N12: 0 | O12: 0 | P12: 0 | Q12: 0 | R12: 0 | S12: 0 | T12: 0
A14: BOS | B14: T | C14: W | D14: S | E14: x | F14: A | G14: IW | H14: GP | I14: insg | L14: BOS | M14: T | N14: W | O14: S | P14: x | Q14: A | R14: IW | S14: GP | T14: insg
A15: Vorkurs | E15: 0 | I15: ='VUÜ-SK'!E55 -> 0 | L15: Vorkurs | P15: 0 | T15: =IF(I15<Parameter!J40,0,I15) -> 0 | V15: Mindestschülerzahl 12 | BC15: =MATCH(BC25,$C$25:$I$25,0) -> 1 | BD15: =MATCH(BD25,$C$25:$I$25,0) -> 5 | BF15: =MATCH(BF25,$C$25:$I$25,0) -> 1 | BG15: 5 | BH15: 2 | BI15: 4 | BJ15: 4 | BK15: 2 | BL15: 6 | BM15: 4
A16: Vorklasse | E16: 0 | I16: ='VUÜ-SK'!M49 -> 0 | L16: Vorklasse | P16: 0 | T16: =IF(I16<Parameter!K40,0,I16) -> 0 | V16: Mindestschülerzahl 12 | BC16: Phy/Che-Ü | BD16: Bio/Che-Pr | BF16: Technologie | BG16: Technologie | BH16: Informatik | BI16: Gest-Praxis | BJ16: Medien | BK16: Naturw | BL16: Naturw | BM16: Naturw | BN16: zusätzliche Nat-MK-Teilung
A17: BOS 12 | B17: ='VUÜ-SK'!N49 -> 0 | C17: ='VUÜ-SK'!O49 -> 0 | D17: ='VUÜ-SK'!P49 -> 0 | E17: 0 | F17: ='VUÜ-SK'!R49 -> 0 | G17: ='VUÜ-SK'!S49 -> 0 | H17: ='VUÜ-SK'!T49 -> 0 | I17: =SUM(B17:H17) -> 0 | L17: BOS 12 | M17: =B17:H20 -> 0 | N17: 0 | O17: 0 | P17: 0 | Q17: 0 | R17: 0 | S17: 0 | T17: =SUM(M17:S17) -> 0 | U17: Mindestschülerzahlalgorithmus (je Abr 8, insgesamt mind. 2x8) | BB17: 11 | BC17: 2 | BD17: 2 | BF17: 2 | BG17: 0 | BH17: 0 | BI17: 3 | BJ17: 2 | BK17: 0 | BL17: =BK17 -> 0 | BM17: 0
A18: BOS 12/1 | B18: ='VUÜ-SK'!E49 -> 0 | C18: ='VUÜ-SK'!F49 -> 0 | E18: 0 | I18: =SUM(B18:H18) -> 0 | L18: BOS 12/1 | M18: 0 | N18: 0 | O18: 0 | P18: 0 | Q18: 0 | R18: 0 | S18: 0 | T18: =SUM(M18:S18) -> 0 | U18: Mindestschülerzahlalgorithmus (je Abr 8, insgesamt mind. 2x8) | BB18: 12 | BC18: 0 | BD18: 0 | BF18: 0 | BG18: 0 | BH18: 2 | BI18: 5 | BJ18: 2 | BK18: 2 | BL18: 2 | BM18: 2
A19: BOS 12/2 | B19: ='VUÜ-SK'!H49 -> 0 | C19: ='VUÜ-SK'!I49 -> 0 | E19: 0 | I19: 0 | L19: BOS 12/2 | M19: 0 | N19: 0 | O19: 0 | P19: 0 | Q19: 0 | R19: 0 | S19: 0 | T19: 0 | U19: ohne Beschränkungen | BB19: 13 | BC19: 0 | BD19: 0 | BF19: 0 | BG19: 0 | BH19: 0 | BI19: 0 | BJ19: 3 | BK19: 2 | BL19: 2 | BM19: 2
A20: BOS 13 | B20: ='VUÜ-SK'!V49 -> 0 | C20: ='VUÜ-SK'!W49 -> 0 | D20: ='VUÜ-SK'!X49 -> 0 | E20: 0 | F20: ='VUÜ-SK'!Z49 -> 0 | G20: ='VUÜ-SK'!AA49 -> 0 | H20: ='VUÜ-SK'!AB49 -> 0 | I20: =SUM(B20:H20) -> 0 | L20: BOS 13 | M20: 0 | N20: 0 | O20: 0 | P20: 0 | Q20: 0 | R20: 0 | S20: 0 | T20: =SUM(M20:S20) -> 0 | U20: Nullsetzen bei unter 8 Schülern in FOS13+BOS13; Shuffling unter 8 | BB20: Anteil | BC20: 1 | BD20: 1 | BF20: 0.5 | BG20: 0.5 | BH20: 0.5 | BI20: 0.5 | BJ20: 0.5 | BK20: 0 | BL20: 0 | BM20: 0
A21: zusammen | B21: =SUM(B15:B20) -> 0 | C21: =SUM(C15:C20) -> 0 | D21: =SUM(D15:D20) -> 0 | E21: 0 | F21: =SUM(F15:F20) -> 0 | G21: =SUM(G15:G20) -> 0 | H21: =SUM(H15:H20) -> 0 | I21: =SUM(I15:I20) -> 0 | L21: zusammen | M21: =SUM(M15:M20) -> 0 | N21: =SUM(N15:N20) -> 0 | O21: =SUM(O15:O20) -> 0 | P21: 0 | Q21: =SUM(Q15:Q20) -> 0 | R21: =SUM(R15:R20) -> 0 | S21: =SUM(S15:S20) -> 0 | T21: =SUM(T15:T20) -> 0
BR22: Sportklassen | CC22: Religion/Ethik-Gruppenbildung | CI22: =IF(CI27:CL27>=5,1,CI27:CL27/5) -> 0 | CJ22: 0 | CK22: 0 | CL22: 0 | CM22: =SUMPRODUCT(IF(CI27:CL27>=Parameter!$J$37,1,CI27:CL27/Parameter!$J$37)*CN27:CQ27) -> 0 | CU22: =Parameter!J37 -> 5 | CX22: Block 3 | EF22: Religionsgruppen FOS13+BOS13 | EU22: Förderunterricht
A23: Klassenbildung | V23: =restschueler(C28:I28,L24:N24,K28,symmetrie) -> 0 | W23: 0 | X23: 0 | Y23: 0 | Z23: 0 | AA23: 0 | AB23: 0 | BB23: Teilungsstunden in Block 2 | BS23: Bedarf | BU23: 2 | BV23: =Parameter!J36 -> 12 | CE23: Quoten | CI23: Projektion (S) | CN23: =Parameter!J37 -> 5 | CX23: gerundete Klassendurchschnitte | DF23: Ergänzungsunterricht (Faktoren für eine Klasse) | DS23: Differenzierungen
C24: Schülerzahlen | L24: 11 | M24: 0 | N24: 0 | V24: Restschüler | AC24: Restklassen | AM24: Mischklassen mit Doppelzählung | AT24: 2-Schiene-Modell (Gruppen) | BC24: =SUM(BC27:BC30) -> 0 | BD24: =SUM(BD27:BD30) -> 0 | BF24: =SUM(BF27:BF30) -> 0 | BG24: =SUM(BG27:BG30) -> 0 | BH24: 0 | BI24: 0 | BJ24: 0 | BK24: 0 | BL24: 0 | BM24: 0 | BN24: 0 | BO24: 0 | BP24: 0 | BS24: =SUM(BS26:BS30) -> 0 | BT24: 0 | BU24: 0 | BV24: 0 | BW24: 0 | BX24: 0 | BY24: 0 | BZ24: 0 | CA24: =SUM(CA26:CA30) -> 0 | CD24: =SUM(CD26:CD30) -> 0 | CI24: =SUM(CI26:CI30) -> 0 | CJ24: =SUM(CJ26:CJ30) -> 0 | CK24: 0 | CL24: 0 | CN24: 0 | CO24: 0 | CP24: 0 | CQ24: 0 | CR24: 0 | CS24: 0 | CT24: 0 | CU24: 0 | DN24: amin | DO24: pmin | DP24: =SUM(DP26:DP30) -> 0 | DQ24: =SUM(DQ26:DQ30) -> 0 | DR24: =ROUNDUP(DQ24,0) -> 0 | EA24: =SUM(EA26:EA30) -> 0 | EB24: =SUM(EB26:EB30) -> 0 | EC24: =ROUNDUP(EB24,0) -> 0 | ED24: =SUM(ED26:ED30) -> 0 | EE24: =ROUNDUP(ED24,0) -> 0
A25: FOS | B25: Jgst | C25: T | D25: W | E25: S | F25: G | G25: A | H25: IW | I25: GP | J25: Schüler | K25: Teiler | L25: Misch1 | M25: Misch2 | N25: Misch3 | O25: Misch | P25: MK1-I | Q25: MK1-II | R25: MK2-I | S25: MK2-II | T25: MK3-I | U25: MK3-II | V25: T | W25: W | X25: S | Y25: G | Z25: A | AA25: IW | AB25: GP | AC25: T | AD25: W | AE25: S | AF25: G | AG25: A | AH25: IW | AI25: GP | AJ25: MK | AK25: Stdtfl | AL25: Klassen | AM25: T | AN25: W | AO25: S | AP25: G | AQ25: A | AR25: IW | AS25: GP | AT25: T | AU25: W | AV25: S | AW25: G | AX25: A | AY25: IW | AZ25: GP | BA25: STD* | BB25: FOS | BC25: T | BD25: A | BF25: T | BG25: A | BH25: W | BI25: G | BJ25: G | BK25: W | BL25: IW | BM25: G | BN25: W | BO25: IW | BP25: G | BR25: FOS | BS25: S | BT25: 3 | BU25: 4 | BV25: m | BW25: w | BX25: mw | BY25: SpoKla | BZ25: Klassen | CA25: Zusatz | CB25: Stdtfl | CC25: FOS | CD25: Schüler | CE25: rk | CF25: ev | CG25: sonst | CH25: Ethik | CI25: rk | CJ25: ev | CK25: sonst | CL25: Ethik | CM25: Teiler | CN25: rk | CO25: ev | CP25: sonst | CQ25: Ethik | CR25: Ethik | CS25: Gruppen | CT25: Klassen | CU25: RU/EU | CV25: Stdtfl | CX25: T | CY25: W | CZ25: S | DA25: G | DB25: A | DC25: IW | DD25: GP | DE25: MK/VK | DF25: T | DG25: W | DH25: S | DI25: G | DJ25: A | DK25: IW | DL25: GP | DM25: MK/VK | DN25: Mind. | DO25: Mind. | DP25: ErgUnt | DQ25: mit Faktor | DR25: ganzz | DS25: T | DT25: W | DU25: S | DV25: G | DW25: A | DX25: IW | DY25: GP | DZ25: MK/VK | EA25: Diff | EB25: mit Faktor | EC25: ganzz | ED25: WU | EE25: ganzz | EF25: Schüler | EG25: rk | EH25: ev | EI25: sonst | EJ25: Ethik | EK25: Teiler | EL25: rk | EM25: ev | EN25: sonst | EO25: Ethik | EP25: Ethik | EQ25: Gruppen | ER25: LWS | EV25: FöU | EW25: FöU-Teil
A26: Vorkurs | B26: VK | J26: ='VUÜ-SK'!E20 -> 0 | K26: =Parameter!K18 -> 32 | AK26: =AL26*Vorkurs_FOS -> 0 | AL26: =IF(J26<Parameter!J39,0,ROUNDUP(J26/Parameter!K18,0)) -> 0 | BA26: =MIN(J26,DN26)/DN26*AK26 -> 0 | BB26: Vorkurs | BR26: Vorkurs | CC26: Vorkurs | CW26: =B26 -> VK | DF26: =VLOOKUP(CX26,block3,2,FALSE) -> 0 | DG26: 0 | DH26: 0 | DI26: 0 | DJ26: 0 | DK26: 0 | DL26: 0 | DM26: 0 | DN26: 12 | DS26: =VLOOKUP(CX26,block3,3,FALSE) -> 0 | DT26: 0 | DU26: 0 | DV26: 0 | DW26: 0 | DX26: 0 | DY26: 0 | DZ26: 0 | EU26: =B26 -> VK
A27: Vorklasse | B27: VS | J27: ='VUÜ-SK'!E14 -> 0 | K27: =Parameter!J18 -> 30 | AJ27: =AL27 -> 0 | AK27: =AL27*Vorklasse_FOS -> 0 | AL27: =ROUNDUP(J27/Parameter!J18,0) -> 0 | BA27: =MIN(J27,DN27)/DN27*AK27 -> 0 | BB27: Vorklasse | BR27: Vorklasse | CC27: Vorklasse | CD27: =J27 -> 0 | CE27: =IF(SUM('VUÜ-Budget'!$G$30:$J$30)=0,Parameter!X7,'VUÜ-Budget'!G30/SUM('VUÜ-Budget'!$G30:$J30)) -> 0.4617958728 | CF27: =IF(SUM('VUÜ-Budget'!$G$30:$J$30)=0,Parameter!Y7,'VUÜ-Budget'!H30/SUM('VUÜ-Budget'!$G30:$J30)) -> 0.2039877301 | CG27: =IF(SUM('VUÜ-Budget'!$G$30:$J$30)=0,Parameter!Z7,'VUÜ-Budget'!I30/SUM('VUÜ-Budget'!$G30:$J30)) -> 9.295408068e-05 | CH27: =IF(SUM('VUÜ-Budget'!$G$30:$J$30)=0,Parameter!AA7,'VUÜ-Budget'!J30/SUM('VUÜ-Budget'!$G30:$J30)) -> 0.334123443 | CI27: =CD27-SUM(CJ27:CL27) -> 0 | CJ27: =ROUND($CD27*CF27,0) -> 0 | CK27: =ROUND($CD27*CG27,0) -> 0 | CL27: =ROUND($CD27*CH27,0) -> 0 | CM27: =TRANSPOSE(Parameter!O18:R18) -> 28 | CN27: =ROUNDUP(CI27/$CM27,0) -> 0 | CO27: =ROUNDUP(CJ27/$CM27,0) -> 0 | CP27: =ROUNDUP(CK27/$CM27,0) -> 0 | CQ27: =ROUNDUP(CL27/$CM27,0) -> 0 | CS27: =SUM(CN27:CQ27) -> 0 | CT27: =AL27 -> 0 | CU27: =SUMPRODUCT(IF(CI27:CL27>=Parameter!$J$37,1,CI27:CL27/Parameter!$J$37)*(CN27:CQ27))*CV27 -> 0 | CV27: =Stundentafel!V55 -> 1 | CW27: =B27 -> VS | DE27: =ROUND(IF(AL27=0,0,J27/AL27),0) -> 0 | DF27: 0 | DG27: 0 | DH27: 0 | DI27: 0 | DJ27: 0 | DK27: 0 | DL27: 0 | DM27: =IF(AND(AL27=1,DE27<DN27),0,VLOOKUP(DE27,block3,2,FALSE)) -> 0 | DN27: 15 | DP27: =SUMPRODUCT(AC27:AJ27,DF27:DM27)*IF(AJ27>1,1,MIN(DE27,DN27)/DN27) -> 0 | DQ27: =HLOOKUP(B27,Parameter!$A$70:$G$72,2,FALSE)*DP27 -> 0 | DR27: =IF(DR$24=0,0,ROUND(DQ27/DQ$24*DR$24,0)) -> 0 | DS27: 0 | DT27: 0 | DU27: 0 | DV27: 0 | DW27: 0 | DX27: 0 | DY27: 0 | DZ27: =IF(AND(AL27=1,DE27<DN27),0,VLOOKUP(DE27,block3,3,FALSE)) -> 0 | EA27: =SUMPRODUCT(AC27:AJ27,DS27:DZ27)*IF(AJ27>1,1,MIN(DE27,DN27)/DN27) -> 0 | EB27: =HLOOKUP(B27,Parameter!$A$70:$G$72,3,FALSE)*EA27 -> 0 | EC27: =IF(EC$24=0,0,ROUND(EB27/EB$24*EC$24,0)) -> 0 | ED27: =I8*Stundentafel!$S$2*Parameter!J71 -> 0 | EE27: =IF(EE$24=0,0,ROUND(ED27/ED$24*EE$24,0)) -> 0 | EU27: =B27 -> VS
A28: FOS 11 | B28: 11 | C28: =M9:S11 -> 0 | D28: 0 | E28: 0 | F28: 0 | G28: 0 | H28: 0 | I28: 0 | J28: =SUM(C28:I28) -> 0 | K28: =Parameter!L18 -> 28 | L28: =klassen(C28:I28,K28,Stundentafel!B6:AX6,tiefe,symmetrie) -> 0 | M28: 0 | N28: 0 | O28: =COUNTIF(L28:N28,">0") -> 0 | P28: =VLOOKUP(L28,mischklassen,6,FALSE) -> 0 | Q28: =VLOOKUP(L28,mischklassen,7,FALSE) -> 0 | R28: =VLOOKUP(M28,mischklassen,6,FALSE) -> 0 | S28: =VLOOKUP(M28,mischklassen,7,FALSE) -> 0 | T28: =VLOOKUP(N28,mischklassen,6,FALSE) -> 0 | U28: =VLOOKUP(N28,mischklassen,7,FALSE) -> 0 | V28: =restschueler(C28:I28,L28:N28,K28,symmetrie) -> 0 | W28: 0 | X28: 0 | Y28: 0 | Z28: 0 | AA28: 0 | AB28: 0 | AC28: =ROUNDUP(V28/$K28,0) -> 0 | AD28: =ROUNDUP(W28/$K28,0) -> 0 | AE28: 0 | AF28: 0 | AG28: 0 | AH28: 0 | AI28: 0 | AJ28: =O28 -> 0 | AK28: =gesstunden(V28:AB28,L28:N28,K28,Stundentafel!B6:AX6) -> 0 | AL28: =SUM(AC28:AI28,O28) -> 0 | AM28: =COUNTIF($P28:$U28,AM$25) -> 0 | AN28: =COUNTIF($P28:$U28,AN$25) -> 0 | AO28: 0 | AP28: 0 | AQ28: 0 | AR28: 0 | AS28: 0 | AT28: =zweischienen(C28,V28,AC28,AM28,Parameter!$J$34) -> 0 | AU28: =zweischienen(D28,W28,AD28,AN28,Parameter!$J$34) -> 0 | AV28: =zweischienen(E28,X28,AE28,AO28,Parameter!$J$34) -> 0 | AW28: =zweischienen(F28,Y28,AF28,AP28,Parameter!$J$34) -> 0 | AX28: =zweischienen(G28,Z28,AG28,AQ28,Parameter!$J$34) -> 0 | AY28: =zweischienen(H28,AA28,AH28,AR28,Parameter!$J$34) -> 0 | AZ28: =zweischienen(I28,AB28,AI28,AS28,Parameter!$J$34) -> 0 | BA28: =budget(C28:I28,L28:N28,K28,symmetrie,Stundentafel!C100:AY100,Stundentafel!C106:AY106,Stundentafel!C112:AY112,DN28,DO28) -> 0 | BB28: 11 | BC28: =(INDEX($AT28:$AZ28,BC$15)-SUM(INDEX($AC28:$AI28,BC$15),INDEX($AM28:$AS28,BC$15)))*IF($BB28="VS",0,INDEX(BC$17:BC$19,VALUE($BB28)-10)) -> 0 | BD28: =(INDEX($AT28:$AZ28,BD$15)-SUM(INDEX($AC28:$AI28,BD$15),INDEX($AM28:$AS28,BD$15)))*IF($BB28="VS",0,INDEX(BD$17:BD$19,VALUE($BB28)-10)) -> 0 | BF28: =IF(IF(INDEX($AC28:$AI28,BF$15)=0,0,INDEX($V28:$AB28,BF$15)/INDEX($AC28:$AI28,BF$15))>=Parameter!$J$35,BF$20*INDEX($AC28:$AI28,BF$15)*IF($BB28="VS",0,INDEX(BF$17:BF$19,VALUE($BB28)-10)),0) -> 0 | BG28: =IF(IF(INDEX($AC28:$AI28,BG$15)=0,0,INDEX($V28:$AB28,BG$15)/INDEX($AC28:$AI28,BG$15))>=Parameter!$J$35,BG$20*INDEX($AC28:$AI28,BG$15)*IF($BB28="VS",0,INDEX(BG$17:BG$19,VALUE($BB28)-10)),0) -> 0 | BH28: =IF(IF(INDEX($AC28:$AI28,BH$15)=0,0,INDEX($V28:$AB28,BH$15)/INDEX($AC28:$AI28,BH$15))>=Parameter!$J$35,BH$20*INDEX($AC28:$AI28,BH$15)*IF($BB28="VS",0,INDEX(BH$17:BH$19,VALUE($BB28)-10)),0) -> 0 | BI28: =IF(IF(INDEX($AC28:$AI28,BI$15)=0,0,INDEX($V28:$AB28,BI$15)/INDEX($AC28:$AI28,BI$15))>=Parameter!$J$35,BI$20*INDEX($AC28:$AI28,BI$15)*IF($BB28="VS",0,INDEX(BI$17:BI$19,VALUE($BB28)-10)),0) -> 0 | BJ28: =IF(IF(INDEX($AC28:$AI28,BJ$15)=0,0,INDEX($V28:$AB28,BJ$15)/INDEX($AC28:$AI28,BJ$15))>=Parameter!$J$35,BJ$20*INDEX($AC28:$AI28,BJ$15)*IF($BB28="VS",0,INDEX(BJ$17:BJ$19,VALUE($BB28)-10)),0) -> 0 | BK28: =IF(IF(INDEX($AC28:$AI28,BK$15)=0,0,INDEX($V28:$AB28,BK$15)/INDEX($AC28:$AI28,BK$15))>=Parameter!$J$35,BK$20*INDEX($AC28:$AI28,BK$15)*IF($BB28="VS",0,INDEX(BK$17:BK$19,VALUE($BB28)-10)),0) -> 0 | BL28: =IF(IF(INDEX($AC28:$AI28,BL$15)=0,0,INDEX($V28:$AB28,BL$15)/INDEX($AC28:$AI28,BL$15))>=Parameter!$J$35,BL$20*INDEX($AC28:$AI28,BL$15)*IF($BB28="VS",0,INDEX(BL$17:BL$19,VALUE($BB28)-10)),0) -> 0 | BM28: =IF(IF(INDEX($AC28:$AI28,BM$15)=0,0,INDEX($V28:$AB28,BM$15)/INDEX($AC28:$AI28,BM$15))>=Parameter!$J$35,BM$20*INDEX($AC28:$AI28,BM$15)*IF($BB28="VS",0,INDEX(BM$17:BM$19,VALUE($BB28)-10)),0) -> 0 | BN28: =(IF(AND(OR($P28="G",$P28="W",$P28="IW"),OR($Q28="G",$Q28="W",$Q28="IW")),IF($P28=BN$25,0.5,0)+IF($Q28=BN$25,0.5,0),0)+IF(AND(OR($R28="G",$R28="W",$R28="IW"),OR($S28="G",$S28="W",$S28="IW")),IF($R28=BN$25,0.5,0)+IF($S28=BN$25,0.5,0),0)+IF(AND(OR($T28="G",$T28="W",$T28="IW"),OR($U28="G",$U28="W",$U28="IW")),IF($T28=BN$25,0.5,0)+IF($U28=BN$25,0.5,0),0))*IF($BB28="VS",0,INDEX(BK$17:BK$19,VALUE(LEFT($BB28,2))-10))*BK$20 -> 0 | BO28: 0 | BP28: 0 | BR28: 11 | CC28: 11 | CM28: 28 | CV28: =Stundentafel!V56 -> 0 | CW28: 11 | CX28: =IF(AC28=0,0,ROUND(V28/AC28,0)) -> 0 | CY28: =IF(AD28=0,0,ROUND(W28/AD28,0)) -> 0 | CZ28: =IF(AE28=0,0,ROUND(X28/AE28,0)) -> 0 | DA28: =IF(AF28=0,0,ROUND(Y28/AF28,0)) -> 0 | DB28: =IF(AG28=0,0,ROUND(Z28/AG28,0)) -> 0 | DC28: =IF(AH28=0,0,ROUND(AA28/AH28,0)) -> 0 | DD28: =IF(AI28=0,0,ROUND(AB28/AI28,0)) -> 0 | DE28: =ROUND(IF(O28=0,0,(J28-SUM(V28:AB28))/O28),0) -> 0 | DF28: =IF(AND(AC28=1,CX28<$DN28),0,VLOOKUP(CX28,block3,2,FALSE)) -> 0 | DG28: 0 | DH28: 0 | DI28: 0 | DJ28: 0 | DK28: 0 | DL28: 0 | DM28: =IF(AND(DE28<$DN28),0,VLOOKUP(DE28,block3,2,FALSE)) -> 0 | DN28: 16 | DO28: 16 | DP28: =SUMPRODUCT((AC28:AJ28)*(DF28:DM28)*IF(OR((AC28:AJ28)>1,CX28:DE28)>=DN28,1,CX28:DE28/DN28)) -> 0 | DQ28: =HLOOKUP(B28,Parameter!$A$70:$G$72,2,FALSE)*DP28 -> 0 | DR28: =IF(DR$24=0,0,ROUND(DQ28/DQ$24*DR$24,0)) -> 0 | DS28: =IF(AND(AC28=1,CX28<$DN28),0,VLOOKUP(CX28,block3,3,FALSE)) -> 0 | DT28: 0 | DU28: 0 | DV28: 0 | DW28: 0 | DX28: 0 | DY28: 0 | DZ28: =IF(AND(DE28<$DN28),0,VLOOKUP(DE28,block3,3,FALSE)) -> 0 | EA28: =SUMPRODUCT((AC28:AJ28)*(DS28:DZ28)*IF(OR((AC28:AJ28)>1,CX28:DE28>=DN28),1,CX28:DE28/DN28)) -> 0 | EB28: =HLOOKUP(B28,Parameter!$A$70:$G$72,3,FALSE)*EA28 -> 0 | EC28: =IF(EC$24=0,0,ROUND(EB28/EB$24*EC$24,0)) -> 0 | ED28: =I9*Stundentafel!$S$2*Parameter!J72 -> 0 | EE28: =IF(EE$24=0,0,ROUND(ED28/ED$24*EE$24,0)) -> 0 | EU28: =B28 -> 11 | EV28: =budget(C28:I28,L28:N28,K28,symmetrie,Stundentafel!C104:AY104,Stundentafel!C110:AY110,Stundentafel!C116:AY116,16,16) -> 0 | EW28: =ges_privat_teilung(C28:I28,L28:N28,K28,symmetrie,Stundentafel!B10:AX10,16) -> 0
A29: FOS 12 | B29: 12 | C29: 0 | D29: 0 | E29: 0 | F29: 0 | G29: 0 | H29: 0 | I29: 0 | J29: =SUM(C29:I29) -> 0 | K29: =Parameter!M18 -> 25 | L29: =klassen(C29:I29,K29,Stundentafel!B7:AX7,tiefe,symmetrie) -> 0 | M29: 0 | N29: 0 | O29: =COUNTIF(L29:N29,">0") -> 0 | P29: =VLOOKUP(L29,mischklassen,6,FALSE) -> 0 | Q29: =VLOOKUP(L29,mischklassen,7,FALSE) -> 0 | R29: =VLOOKUP(M29,mischklassen,6,FALSE) -> 0 | S29: =VLOOKUP(M29,mischklassen,7,FALSE) -> 0 | T29: =VLOOKUP(N29,mischklassen,6,FALSE) -> 0 | U29: =VLOOKUP(N29,mischklassen,7,FALSE) -> 0 | V29: =restschueler(C29:I29,L29:N29,K29,symmetrie) -> 0 | W29: 0 | X29: 0 | Y29: 0 | Z29: 0 | AA29: 0 | AB29: 0 | AC29: =ROUNDUP(V29/$K29,0) -> 0 | AD29: 0 | AE29: 0 | AF29: 0 | AG29: 0 | AH29: 0 | AI29: 0 | AJ29: =O29 -> 0 | AK29: =gesstunden(V29:AB29,L29:N29,K29,Stundentafel!B7:AX7) -> 0 | AL29: =SUM(AC29:AI29,O29) -> 0 | AM29: =COUNTIF($P29:$U29,AM$25) -> 0 | AN29: 0 | AO29: 0 | AP29: 0 | AQ29: 0 | AR29: 0 | AS29: 0 | AT29: =zweischienen(C29,V29,AC29,AM29,Parameter!$J$34) -> 0 | AU29: =zweischienen(D29,W29,AD29,AN29,Parameter!$J$34) -> 0 | AV29: =zweischienen(E29,X29,AE29,AO29,Parameter!$J$34) -> 0 | AW29: =zweischienen(F29,Y29,AF29,AP29,Parameter!$J$34) -> 0 | AX29: =zweischienen(G29,Z29,AG29,AQ29,Parameter!$J$34) -> 0 | AY29: =zweischienen(H29,AA29,AH29,AR29,Parameter!$J$34) -> 0 | AZ29: =zweischienen(I29,AB29,AI29,AS29,Parameter!$J$34) -> 0 | BA29: =budget(C29:I29,L29:N29,K29,symmetrie,Stundentafel!C101:AY101,Stundentafel!C107:AY107,Stundentafel!C113:AY113,DN29,DO29) -> 0 | BB29: 12 | BC29: 0 | BD29: 0 | BF29: =IF(IF(INDEX($AC29:$AI29,BF$15)=0,0,INDEX($V29:$AB29,BF$15)/INDEX($AC29:$AI29,BF$15))>=Parameter!$J$35,BF$20*INDEX($AC29:$AI29,BF$15)*IF($BB29="VS",0,INDEX(BF$17:BF$19,VALUE($BB29)-10)),0) -> 0 | BG29: =IF(IF(INDEX($AC29:$AI29,BG$15)=0,0,INDEX($V29:$AB29,BG$15)/INDEX($AC29:$AI29,BG$15))>=Parameter!$J$35,BG$20*INDEX($AC29:$AI29,BG$15)*IF($BB29="VS",0,INDEX(BG$17:BG$19,VALUE($BB29)-10)),0) -> 0 | BH29: =IF(IF(INDEX($AC29:$AI29,BH$15)=0,0,INDEX($V29:$AB29,BH$15)/INDEX($AC29:$AI29,BH$15))>=Parameter!$J$35,BH$20*INDEX($AC29:$AI29,BH$15)*IF($BB29="VS",0,INDEX(BH$17:BH$19,VALUE($BB29)-10)),0) -> 0 | BI29: =IF(IF(INDEX($AC29:$AI29,BI$15)=0,0,INDEX($V29:$AB29,BI$15)/INDEX($AC29:$AI29,BI$15))>=Parameter!$J$35,BI$20*INDEX($AC29:$AI29,BI$15)*IF($BB29="VS",0,INDEX(BI$17:BI$19,VALUE($BB29)-10)),0) -> 0 | BJ29: =IF(IF(INDEX($AC29:$AI29,BJ$15)=0,0,INDEX($V29:$AB29,BJ$15)/INDEX($AC29:$AI29,BJ$15))>=Parameter!$J$35,BJ$20*INDEX($AC29:$AI29,BJ$15)*IF($BB29="VS",0,INDEX(BJ$17:BJ$19,VALUE($BB29)-10)),0) -> 0 | BK29: =IF(IF(INDEX($AC29:$AI29,BK$15)=0,0,INDEX($V29:$AB29,BK$15)/INDEX($AC29:$AI29,BK$15))>=Parameter!$J$35,BK$20*INDEX($AC29:$AI29,BK$15)*IF($BB29="VS",0,INDEX(BK$17:BK$19,VALUE($BB29)-10)),0) -> 0 | BL29: =IF(IF(INDEX($AC29:$AI29,BL$15)=0,0,INDEX($V29:$AB29,BL$15)/INDEX($AC29:$AI29,BL$15))>=Parameter!$J$35,BL$20*INDEX($AC29:$AI29,BL$15)*IF($BB29="VS",0,INDEX(BL$17:BL$19,VALUE($BB29)-10)),0) -> 0 | BM29: =IF(IF(INDEX($AC29:$AI29,BM$15)=0,0,INDEX($V29:$AB29,BM$15)/INDEX($AC29:$AI29,BM$15))>=Parameter!$J$35,BM$20*INDEX($AC29:$AI29,BM$15)*IF($BB29="VS",0,INDEX(BM$17:BM$19,VALUE($BB29)-10)),0) -> 0 | BN29: 0 | BO29: 0 | BP29: 0 | BR29: 12 | BS29: =SUM(C29:I29) -> 0 | BT29: =IF('VUÜ-Budget'!D29=0,ROUND(0.5*BS29,0),ROUND('VUÜ-Budget'!B29/'VUÜ-Budget'!D29*BS29,0)) -> 0 | BU29: =BS29-BT29 -> 0 | BV29: =ROUNDUP(BT29/Parameter!Q18,0) -> 0 | BW29: =ROUNDUP(BU29/Parameter!R18,0) -> 0 | BX29: 0 | BY29: =SUM(BV29:BX29) -> 0 | BZ29: =AL29 -> 0 | CA29: =SUMPRODUCT(IF(BT29:BU29>=Parameter!$J$36,1,BT29:BU29/Parameter!$J$36)*(BV29:BW29))*CB29 -> 0 | CB29: =Stundentafel!W57 -> 2 | CC29: 12 | CD29: =J29 -> 0 | CE29: =CE27 -> 0.4617958728 | CF29: =CF27 -> 0.2039877301 | CG29: =CG27 -> 9.295408068e-05 | CH29: =CH27 -> 0.334123443 | CI29: =CD29-SUM(CJ29:CL29) -> 0 | CJ29: =ROUND($CD29*CF29,0) -> 0 | CK29: 0 | CL29: 0 | CM29: 28 | CN29: =ROUNDUP(CI29/$CM29,0) -> 0 | CO29: 0 | CP29: 0 | CQ29: 0 | CS29: =SUM(CN29:CQ29) -> 0 | CT29: =AL29 -> 0 | CU29: =SUMPRODUCT(IF(CI29:CL29>=Parameter!$J$37,1,CI29:CL29/Parameter!$J$37)*(CN29:CQ29))*CV29 -> 0 | CV29: =Stundentafel!V57 -> 2 | CW29: 12 | CX29: 0 | CY29: 0 | CZ29: 0 | DA29: 0 | DB29: 0 | DC29: 0 | DD29: 0 | DE29: =ROUND(IF(O29=0,0,(J29-SUM(V29:AB29))/O29),0) -> 0 | DF29: 0 | DG29: 0 | DH29: 0 | DI29: 0 | DJ29: 0 | DK29: 0 | DL29: 0 | DM29: =IF(AND(DE29<$DN29),0,VLOOKUP(DE29,block3,2,FALSE)) -> 0 | DN29: 16 | DO29: =$DO$28 -> 16 | DP29: =SUMPRODUCT((AC29:AJ29)*(DF29:DM29)*IF(OR((AC29:AJ29)>1,CX29:DE29)>=DN29,1,CX29:DE29/DN29)) -> 0 | DQ29: =HLOOKUP(B29,Parameter!$A$70:$G$72,2,FALSE)*DP29 -> 0 | DR29: =IF(DR$24=0,0,ROUND(DQ29/DQ$24*DR$24,0)) -> 0 | DS29: 0 | DT29: 0 | DU29: 0 | DV29: 0 | DW29: 0 | DX29: 0 | DY29: 0 | DZ29: =IF(AND(DE29<$DN29),0,VLOOKUP(DE29,block3,3,FALSE)) -> 0 | EA29: =SUMPRODUCT((AC29:AJ29)*(DS29:DZ29)*IF(OR((AC29:AJ29)>1,CX29:DE29>=DN29),1,CX29:DE29/DN29)) -> 0 | EB29: =HLOOKUP(B29,Parameter!$A$70:$G$72,3,FALSE)*EA29 -> 0 | EC29: =IF(EC$24=0,0,ROUND(EB29/EB$24*EC$24,0)) -> 0 | ED29: =I10*Stundentafel!$S$2*Parameter!J73 -> 0 | EE29: =IF(EE$24=0,0,ROUND(ED29/ED$24*EE$24,0)) -> 0 | EU29: =B29 -> 12
A30: FOS 13 | B30: 13 | C30: 0 | D30: 0 | E30: 0 | F30: 0 | G30: 0 | H30: 0 | I30: 0 | J30: =SUM(C30:I30) -> 0 | K30: =Parameter!N18 -> 25 | L30: =klassen(C30:I30,K30,Stundentafel!B8:AX8,tiefe,symmetrie) -> 0 | M30: 0 | N30: 0 | O30: =COUNTIF(L30:N30,">0") -> 0 | P30: =VLOOKUP(L30,mischklassen,6,FALSE) -> 0 | Q30: =VLOOKUP(L30,mischklassen,7,FALSE) -> 0 | R30: =VLOOKUP(M30,mischklassen,6,FALSE) -> 0 | S30: =VLOOKUP(M30,mischklassen,7,FALSE) -> 0 | T30: =VLOOKUP(N30,mischklassen,6,FALSE) -> 0 | U30: =VLOOKUP(N30,mischklassen,7,FALSE) -> 0 | V30: =restschueler(C30:I30,L30:N30,K30,symmetrie) -> 0 | W30: 0 | X30: 0 | Y30: 0 | Z30: 0 | AA30: 0 | AB30: 0 | AC30: 0 | AD30: 0 | AE30: 0 | AF30: 0 | AG30: 0 | AH30: 0 | AI30: 0 | AJ30: =O30 -> 0 | AK30: =gesstunden(V30:AB30,L30:N30,K30,Stundentafel!B8:AX8) -> 0 | AL30: =SUM(AC30:AI30,O30) -> 0 | AM30: 0 | AN30: 0 | AO30: 0 | AP30: 0 | AQ30: 0 | AR30: 0 | AS30: 0 | AT30: =zweischienen(C30,V30,AC30,AM30,Parameter!$J$34) -> 0 | AU30: =zweischienen(D30,W30,AD30,AN30,Parameter!$J$34) -> 0 | AV30: =zweischienen(E30,X30,AE30,AO30,Parameter!$J$34) -> 0 | AW30: =zweischienen(F30,Y30,AF30,AP30,Parameter!$J$34) -> 0 | AX30: =zweischienen(G30,Z30,AG30,AQ30,Parameter!$J$34) -> 0 | AY30: =zweischienen(H30,AA30,AH30,AR30,Parameter!$J$34) -> 0 | AZ30: =zweischienen(I30,AB30,AI30,AS30,Parameter!$J$34) -> 0 | BA30: =budget(C30:I30,L30:N30,K30,symmetrie,Stundentafel!C102:AY102,Stundentafel!C108:AY108,Stundentafel!C114:AY114,DN30,DO30) -> 0 | BB30: 13 | BC30: 0 | BD30: 0 | BF30: =IF(IF(INDEX($AC30:$AI30,BF$15)=0,0,INDEX($V30:$AB30,BF$15)/INDEX($AC30:$AI30,BF$15))>=Parameter!$J$35,BF$20*INDEX($AC30:$AI30,BF$15)*IF($BB30="VS",0,INDEX(BF$17:BF$19,VALUE($BB30)-10)),0) -> 0 | BG30: =IF(IF(INDEX($AC30:$AI30,BG$15)=0,0,INDEX($V30:$AB30,BG$15)/INDEX($AC30:$AI30,BG$15))>=Parameter!$J$35,BG$20*INDEX($AC30:$AI30,BG$15)*IF($BB30="VS",0,INDEX(BG$17:BG$19,VALUE($BB30)-10)),0) -> 0 | BH30: =IF(IF(INDEX($AC30:$AI30,BH$15)=0,0,INDEX($V30:$AB30,BH$15)/INDEX($AC30:$AI30,BH$15))>=Parameter!$J$35,BH$20*INDEX($AC30:$AI30,BH$15)*IF($BB30="VS",0,INDEX(BH$17:BH$19,VALUE($BB30)-10)),0) -> 0 | BI30: =IF(IF(INDEX($AC30:$AI30,BI$15)=0,0,INDEX($V30:$AB30,BI$15)/INDEX($AC30:$AI30,BI$15))>=Parameter!$J$35,BI$20*INDEX($AC30:$AI30,BI$15)*IF($BB30="VS",0,INDEX(BI$17:BI$19,VALUE($BB30)-10)),0) -> 0 | BJ30: =IF(IF(INDEX($AC30:$AI30,BJ$15)=0,0,INDEX($V30:$AB30,BJ$15)/INDEX($AC30:$AI30,BJ$15))>=Parameter!$J$35,BJ$20*INDEX($AC30:$AI30,BJ$15)*IF($BB30="VS",0,INDEX(BJ$17:BJ$19,VALUE($BB30)-10)),0) -> 0 | BK30: =IF(IF(INDEX($AC30:$AI30,BK$15)=0,0,INDEX($V30:$AB30,BK$15)/INDEX($AC30:$AI30,BK$15))>=Parameter!$J$35,BK$20*INDEX($AC30:$AI30,BK$15)*IF($BB30="VS",0,INDEX(BK$17:BK$19,VALUE($BB30)-10)),0) -> 0 | BL30: =IF(IF(INDEX($AC30:$AI30,BL$15)=0,0,INDEX($V30:$AB30,BL$15)/INDEX($AC30:$AI30,BL$15))>=Parameter!$J$35,BL$20*INDEX($AC30:$AI30,BL$15)*IF($BB30="VS",0,INDEX(BL$17:BL$19,VALUE($BB30)-10)),0) -> 0 | BM30: =IF(IF(INDEX($AC30:$AI30,BM$15)=0,0,INDEX($V30:$AB30,BM$15)/INDEX($AC30:$AI30,BM$15))>=Parameter!$J$35,BM$20*INDEX($AC30:$AI30,BM$15)*IF($BB30="VS",0,INDEX(BM$17:BM$19,VALUE($BB30)-10)),0) -> 0 | BN30: 0 | BO30: 0 | BP30: 0 | BR30: 13 | CC30: 13 | CD30: =J30 -> 0 | CE30: =IF(SUM('VUÜ-Budget'!$G$29:$J$29)=0,CE29,'VUÜ-Budget'!G29/SUM('VUÜ-Budget'!$G29:$J29)) -> 0.4617958728 | CF30: =IF(SUM('VUÜ-Budget'!$G$29:$J$29)=0,CF29,'VUÜ-Budget'!H29/SUM('VUÜ-Budget'!$G29:$J29)) -> 0.2039877301 | CG30: =IF(SUM('VUÜ-Budget'!$G$29:$J$29)=0,CG29,'VUÜ-Budget'!I29/SUM('VUÜ-Budget'!$G29:$J29)) -> 9.295408068e-05 | CH30: =IF(SUM('VUÜ-Budget'!$G$29:$J$29)=0,CH29,'VUÜ-Budget'!J29/SUM('VUÜ-Budget'!$G29:$J29)) -> 0.334123443 | CI30: =CD30-SUM(CJ30:CL30) -> 0 | CJ30: 0 | CK30: 0 | CL30: 0 | CM30: 28 | CN30: 0 | CO30: 0 | CP30: 0 | CQ30: 0 | CS30: =SUM(CN30:CQ30) -> 0 | CT30: =AL30 -> 0 | CU30: =SUMPRODUCT(IF(CI30:CL30>=Parameter!$J$37,1,CI30:CL30/Parameter!$J$37)*(CN30:CQ30))*CV30 -> 0 | CV30: =Stundentafel!V58 -> 1 | CW30: =B30 -> 13 | CX30: 0 | CY30: 0 | CZ30: 0 | DA30: 0 | DB30: 0 | DC30: 0 | DD30: 0 | DE30: =ROUND(IF(O30=0,0,(J30-SUM(V30:AB30))/O30),0) -> 0 | DF30: 0 | DG30: 0 | DH30: 0 | DI30: 0 | DJ30: 0 | DK30: 0 | DL30: 0 | DM30: =IF(AND(DE30<$DN30),0,VLOOKUP(DE30,block3,2,FALSE)) -> 0 | DN30: 8 | DO30: =DN30 -> 8 | DP30: =SUMPRODUCT((AC30:AJ30)*(DF30:DM30)*IF(OR((AC30:AJ30)>1,CX30:DE30)>=DN30,1,CX30:DE30/DN30)) -> 0 | DQ30: =HLOOKUP(B30,Parameter!$A$70:$G$72,2,FALSE)*DP30 -> 0 | DR30: =DR24-SUM(DR27:DR29) -> 0 | DS30: 0 | DT30: 0 | DU30: 0 | DV30: 0 | DW30: 0 | DX30: 0 | DY30: 0 | DZ30: =IF(AND(DE30<$DN30),0,VLOOKUP(DE30,block3,3,FALSE)) -> 0 | EA30: =SUMPRODUCT((AC30:AJ30)*(DS30:DZ30)*IF(OR((AC30:AJ30)>1,CX30:DE30>=DN30),1,CX30:DE30/DN30)) -> 0 | EB30: =HLOOKUP(B30,Parameter!$A$70:$G$72,3,FALSE)*EA30 -> 0 | EC30: =EC24-SUM(EC27:EC29) -> 0 | ED30: =I11*Stundentafel!$S$2*Parameter!J74 -> 0 | EE30: =EE24-SUM(EE27:EE29) -> 0 | EF30: =SUM(EG30:EJ30) -> 0 | EG30: =CI30+CI40 -> 0 | EH30: =CJ30+CJ40 -> 0 | EI30: =CK30+CK40 -> 0 | EJ30: =CL30+CL40 -> 0 | EK30: =MAX(CM30,CM40) -> 28 | EL30: =IF(EG30>=Parameter!$J$37,ROUNDUP(EG30/$EK30,0),0) -> 0 | EM30: =IF(EH30>=Parameter!$J$37,ROUNDUP(EH30/$EK30,0),0) -> 0 | EN30: =IF(EI30>=Parameter!$J$37,ROUNDUP(EI30/$EK30,0),0) -> 0 | EO30: =IF(EP30>=Parameter!$J$37,ROUNDUP(EP30/$CM30,0),0) -> 0 | EP30: =SUMPRODUCT((EG30:EI30<Parameter!$J$37)*(EG30:EI30))+EJ30 -> 0 | EQ30: =SUM(EL30:EO30) -> 0 | ER30: =SUM(EL30:EO30)*VLOOKUP($B$30,Stundentafel!$X$54:$Y$59,2,FALSE) -> 0 | EU30: =B30 -> 13
C33: Schülerzahlen | V33: Restschüler | AC33: Restklassen | AM33: Mischklassen mit Doppelzählung | AT33: 2-Schiene-Modell (Gruppen) | BC33: =SUM(BC36:BC40) -> 0 | BD33: =SUM(BD36:BD40) -> 0 | BF33: =SUM(BF36:BF40) -> 0 | BG33: 0 | BH33: 0 | BI33: 0 | BJ33: 0 | BK33: 0 | BL33: 0 | BM33: 0 | BN33: 0 | BO33: 0 | BP33: 0 | BS33: =SUM(BS35:BS40) -> 0 | BT33: =SUM(BT35:BT40) -> 0 | BU33: 0 | BV33: 0 | BW33: 0 | BX33: 0 | BY33: 0 | BZ33: 0 | CA33: 0 | CD33: =SUM(CD35:CD40) -> 0 | CI33: =SUM(CI35:CI40) -> 0 | CJ33: =SUM(CJ35:CJ40) -> 0 | CK33: =SUM(CK35:CK40) -> 0 | CL33: =SUM(CL35:CL40) -> 0 | CN33: =SUM(CN35:CN40) -> 0 | CO33: 0 | CP33: 0 | CQ33: 0 | CR33: 0 | CS33: 0 | CT33: 0 | CU33: 0 | DP33: =SUM(DP35:DP40) -> 0 | DQ33: =SUM(DQ35:DQ40) -> 0 | DR33: =ROUNDUP(DQ33,0) -> 0 | EA33: =SUM(EA35:EA40) -> 0 | EB33: =SUM(EB35:EB40) -> 0 | EC33: =ROUNDUP(EB33,0) -> 0 | ED33: =SUM(ED35:ED40) -> 0 | EE33: =ROUNDUP(ED33,0) -> 0
A34: BOS | B34: Jgst | C34: T | D34: W | E34: S | F34: G | G34: A | H34: IW | I34: GP | J34: Schüler | K34: Teiler | L34: Misch1 | M34: Misch2 | N34: Misch3 | O34: Misch | P34: MK1-I | Q34: MK1-II | R34: MK2-I | S34: MK2-II | T34: MK3-I | U34: MK3-II | V34: T | W34: W | X34: S | Y34: G | Z34: A | AA34: IW | AB34: GP | AC34: T | AD34: W | AE34: S | AF34: G | AG34: A | AH34: IW | AI34: GP | AJ34: MK | AK34: Stdtfl | AL34: Klassen | AM34: T | AN34: W | AO34: S | AP34: G | AQ34: A | AR34: IW | AS34: GP | AT34: T | AU34: W | AV34: S | AW34: G | AX34: A | AY34: IW | AZ34: GP | BA34: STD* | BB34: BOS | BC34: T | BD34: A | BF34: T | BG34: A | BH34: W | BI34: G | BJ34: G | BK34: W | BL34: IW | BM34: G | BN34: W | BO34: IW | BP34: G | BR34: BOS | BS34: S | BT34: 3 | BU34: 4 | BV34: m | BW34: w | BX34: mw | BY34: SpoKla | BZ34: Klassen | CA34: Zusatz | CC34: BOS | CD34: Schüler | CE34: rk | CF34: ev | CG34: sonst | CH34: Ethik | CI34: rk | CJ34: ev | CK34: sonst | CL34: Ethik | CM34: Teiler | CN34: rk | CO34: ev | CP34: sonst | CQ34: Ethik | CR34: Ethik | CS34: Gruppen | CT34: Klassen | CU34: Zuschlag | CX34: T | CY34: W | CZ34: S | DA34: G | DB34: A | DC34: IW | DD34: GP | DE34: MK/VK | DF34: T | DG34: W | DH34: S | DI34: G | DJ34: A | DK34: IW | DL34: GP | DM34: MK/VK | DN34: Mind. | DO34: Mind. | DP34: ErgUnt | DQ34: mit Faktor | DR34: ganzz | DS34: T | DT34: W | DU34: S | DV34: G | DW34: A | DX34: IW | DY34: GP | DZ34: MK/VK | EA34: Diff | EB34: mit Faktor | EC34: ganzz | ED34: WU | EE34: ganzz
A35: Vorkurs | B35: VK | J35: ='VUÜ-SK'!E55 -> 0 | K35: =Parameter!K19 -> 32 | AK35: =Vorkurs_BOS*AL35 -> 0 | AL35: =IF(J35<Parameter!J40,0,ROUNDUP(J35/Parameter!K19,0)) -> 0 | BA35: =MIN(J35,DN35)/DN35*AK35 -> 0 | BB35: =A35 -> Vorkurs | BR35: Vorkurs | CC35: =BR35 -> Vorkurs | CW35: =B35 -> VK | DF35: =VLOOKUP(CX35,block3,2,FALSE) -> 0 | DG35: 0 | DH35: 0 | DI35: 0 | DJ35: 0 | DK35: 0 | DL35: 0 | DM35: 0 | DN35: 12 | DS35: =VLOOKUP(CX35,block3,3,FALSE) -> 0 | DT35: 0 | DU35: 0 | DV35: 0 | DW35: 0 | DX35: 0 | DY35: 0 | DZ35: 0 | EU35: =B35 -> VK
A36: Vorklasse | B36: VS | J36: ='VUÜ-SK'!M49 -> 0 | K36: =Parameter!J19 -> 30 | AJ36: =AL36 -> 0 | AK36: =Vorklasse_BOS*AL36 -> 0 | AL36: =IF(J36<Parameter!K40,0,ROUNDUP(J36/Parameter!J19,0)) -> 0 | BA36: =MIN(J36,DN36)/DN36*AK36 -> 0 | BB36: =A36 -> Vorklasse | BR36: Vorklasse | CC36: =BR36 -> Vorklasse | CD36: =J36 -> 0 | CE36: =IF(SUM('VUÜ-Budget'!$G$32:$J$32)=0,Parameter!X12,'VUÜ-Budget'!G32/SUM('VUÜ-Budget'!$G32:$J32)) -> 0.5556100552 | CF36: =IF(SUM('VUÜ-Budget'!$G$32:$J$32)=0,Parameter!Y12,'VUÜ-Budget'!H32/SUM('VUÜ-Budget'!$G32:$J32)) -> 0.1706928265 | CG36: =IF(SUM('VUÜ-Budget'!$G$32:$J$32)=0,Parameter!Z12,'VUÜ-Budget'!I32/SUM('VUÜ-Budget'!$G32:$J32)) -> 0 | CH36: =IF(SUM('VUÜ-Budget'!$G$32:$J$32)=0,Parameter!AA12,'VUÜ-Budget'!J32/SUM('VUÜ-Budget'!$G32:$J32)) -> 0.2736971183 | CI36: =CD36-SUM(CJ36:CL36) -> 0 | CJ36: =ROUND($CD36*CF36,0) -> 0 | CK36: 0 | CL36: 0 | CM36: =Parameter!O19 -> 28 | CN36: =ROUNDUP(CI36/$CM36,0) -> 0 | CO36: 0 | CP36: 0 | CQ36: 0 | CS36: =SUM(CN36:CQ36) -> 0 | CT36: =AL36 -> 0 | CU36: =SUMPRODUCT(IF(CI36:CL36>=Parameter!$J$37,1,CI36:CL36/Parameter!$J$37)*(CN36:CQ36))*CV36 -> 0 | CV36: =Stundentafel!Y55 -> 1 | CW36: =B36 -> VS | DE36: =ROUND(IF(AL36=0,0,J36/AL36),0) -> 0 | DF36: 0 | DG36: 0 | DH36: 0 | DI36: 0 | DJ36: 0 | DK36: 0 | DL36: 0 | DM36: =IF(AND(AL36=1,DE36<DN36),0,VLOOKUP(DE36,block3,2,FALSE)) -> 0 | DN36: 12 | DP36: =SUMPRODUCT(AC36:AJ36,DF36:DM36)*IF(AJ36>1,1,MIN(DE27,DN36)/DN36) -> 0 | DQ36: =HLOOKUP(B36,Parameter!$A$74:$G$76,2,FALSE)*DP36 -> 0 | DR36: =IF(DR$33=0,0,ROUND(DQ36/DQ$33*DR$33,0)) -> 0 | DS36: 0 | DT36: 0 | DU36: 0 | DV36: 0 | DW36: 0 | DX36: 0 | DY36: 0 | DZ36: =IF(AND(AL36=1,DE36<DN36),0,VLOOKUP(DE36,block3,3,FALSE)) -> 0 | EA36: =SUMPRODUCT(AC36:AJ36,DS36:DZ36)*IF(AJ36>1,1,MIN(DE27,DN36)/DN36) -> 0 | EB36: =HLOOKUP(B36,Parameter!$A$74:$G$76,3,FALSE)*EA36 -> 0 | EC36: =IF(EC$33=0,0,ROUND(EB36/EB$33*EC$33,0)) -> 0 | ED36: =I16*Stundentafel!$S$2*Parameter!L71 -> 0 | EE36: =IF(EE$33=0,0,ROUND(ED36/ED$33*EE$33,0)) -> 0 | EU36: VS
A37: BOS 12 | B37: 12 | C37: =M17:S20 -> 0 | D37: 0 | E37: 0 | F37: 0 | G37: 0 | H37: 0 | I37: 0 | J37: =SUM(C37:I37) -> 0 | K37: =Parameter!M19 -> 25 | L37: =klassen(C37:I37,K37,Stundentafel!B13:AX13,tiefe,symmetrie) -> 0 | M37: 0 | N37: 0 | O37: =COUNTIF(L37:N37,">0") -> 0 | P37: =VLOOKUP(L37,mischklassen,6,FALSE) -> 0 | Q37: =VLOOKUP(L37,mischklassen,7,FALSE) -> 0 | R37: =VLOOKUP(M37,mischklassen,6,FALSE) -> 0 | S37: =VLOOKUP(M37,mischklassen,7,FALSE) -> 0 | T37: =VLOOKUP(N37,mischklassen,6,FALSE) -> 0 | U37: =VLOOKUP(N37,mischklassen,7,FALSE) -> 0 | V37: =restschueler(C37:I37,L37:N37,K37,symmetrie) -> 0 | W37: 0 | X37: 0 | Y37: 0 | Z37: 0 | AA37: 0 | AB37: 0 | AC37: =ROUNDUP(V37/$K37,0) -> 0 | AD37: =ROUNDUP(W37/$K37,0) -> 0 | AE37: =ROUNDUP(X37/$K37,0) -> 0 | AF37: =ROUNDUP(Y37/$K37,0) -> 0 | AG37: =ROUNDUP(Z37/$K37,0) -> 0 | AH37: =ROUNDUP(AA37/$K37,0) -> 0 | AI37: =ROUNDUP(AB37/$K37,0) -> 0 | AJ37: =O37 -> 0 | AK37: =gesstunden(V37:AB37,L37:N37,K37,Stundentafel!B13:AX13) -> 0 | AL37: =SUM(AC37:AI37,O37) -> 0 | AM37: =COUNTIF($P37:$U37,AM$25) -> 0 | AN37: =COUNTIF($P37:$U37,AN$25) -> 0 | AO37: 0 | AP37: 0 | AQ37: 0 | AR37: 0 | AS37: 0 | AT37: =zweischienen(C37,V37,AC37,AM37,Parameter!$J$34) -> 0 | AU37: =zweischienen(D37,W37,AD37,AN37,Parameter!$J$34) -> 0 | AV37: =zweischienen(E37,X37,AE37,AO37,Parameter!$J$34) -> 0 | AW37: =zweischienen(F37,Y37,AF37,AP37,Parameter!$J$34) -> 0 | AX37: =zweischienen(G37,Z37,AG37,AQ37,Parameter!$J$34) -> 0 | AY37: =zweischienen(H37,AA37,AH37,AR37,Parameter!$J$34) -> 0 | AZ37: =zweischienen(I37,AB37,AI37,AS37,Parameter!$J$34) -> 0 | BA37: =budget(C37:I37,L37:N37,K37,symmetrie,Stundentafel!C126:AY126,Stundentafel!C132:AY132,Stundentafel!C138:AY138,DN37,DO37) -> 0 | BB37: 12 | BC37: =(INDEX($AT37:$AZ37,BC$15)-SUM(INDEX($AC37:$AI37,BC$15),INDEX($AM37:$AS37,BC$15)))*IF($BB37="VS",0,INDEX(BC$17:BC$19,VALUE(MID($A37,5,2))-10)) -> 0 | BD37: 0 | BF37: =IF(IF(INDEX($AC37:$AI37,BF$15)=0,0,INDEX($V37:$AB37,BF$15)/INDEX($AC37:$AI37,BF$15))>=Parameter!$J$35,BF$20*INDEX($AC37:$AI37,BF$15)*IF($BB37="VS",0,INDEX(BF$17:BF$19,VALUE(MID($A37,5,2))-10)),0)*IF(MID($BB37,3,1)="_",0.5,1) -> 0 | BG37: =IF(IF(INDEX($AC37:$AI37,BG$15)=0,0,INDEX($V37:$AB37,BG$15)/INDEX($AC37:$AI37,BG$15))>=Parameter!$J$35,BG$20*INDEX($AC37:$AI37,BG$15)*IF($BB37="VS",0,INDEX(BG$17:BG$19,VALUE(MID($A37,5,2))-10)),0)*IF(MID($BB37,3,1)="_",0.5,1) -> 0 | BH37: =IF(IF(INDEX($AC37:$AI37,BH$15)=0,0,INDEX($V37:$AB37,BH$15)/INDEX($AC37:$AI37,BH$15))>=Parameter!$J$35,BH$20*INDEX($AC37:$AI37,BH$15)*IF($BB37="VS",0,INDEX(BH$17:BH$19,VALUE(MID($A37,5,2))-10)),0)*IF(MID($BB37,3,1)="_",0.5,1) -> 0 | BI37: =IF(IF(INDEX($AC37:$AI37,BI$15)=0,0,INDEX($V37:$AB37,BI$15)/INDEX($AC37:$AI37,BI$15))>=Parameter!$J$35,BI$20*INDEX($AC37:$AI37,BI$15)*IF($BB37="VS",0,INDEX(BI$17:BI$19,VALUE(MID($A37,5,2))-10)),0)*IF(MID($BB37,3,1)="_",0.5,1) -> 0 | BJ37: =IF(IF(INDEX($AC37:$AI37,BJ$15)=0,0,INDEX($V37:$AB37,BJ$15)/INDEX($AC37:$AI37,BJ$15))>=Parameter!$J$35,BJ$20*INDEX($AC37:$AI37,BJ$15)*IF($BB37="VS",0,INDEX(BJ$17:BJ$19,VALUE(MID($A37,5,2))-10)),0)*IF(MID($BB37,3,1)="_",0.5,1) -> 0 | BK37: =IF(IF(INDEX($AC37:$AI37,BK$15)=0,0,INDEX($V37:$AB37,BK$15)/INDEX($AC37:$AI37,BK$15))>=Parameter!$J$35,BK$20*INDEX($AC37:$AI37,BK$15)*IF($BB37="VS",0,INDEX(BK$17:BK$19,VALUE(MID($A37,5,2))-10)),0)*IF(MID($BB37,3,1)="_",0.5,1) -> 0 | BL37: =IF(IF(INDEX($AC37:$AI37,BL$15)=0,0,INDEX($V37:$AB37,BL$15)/INDEX($AC37:$AI37,BL$15))>=Parameter!$J$35,BL$20*INDEX($AC37:$AI37,BL$15)*IF($BB37="VS",0,INDEX(BL$17:BL$19,VALUE(MID($A37,5,2))-10)),0)*IF(MID($BB37,3,1)="_",0.5,1) -> 0 | BM37: =IF(IF(INDEX($AC37:$AI37,BM$15)=0,0,INDEX($V37:$AB37,BM$15)/INDEX($AC37:$AI37,BM$15))>=Parameter!$J$35,BM$20*INDEX($AC37:$AI37,BM$15)*IF($BB37="VS",0,INDEX(BM$17:BM$19,VALUE(MID($A37,5,2))-10)),0)*IF(MID($BB37,3,1)="_",0.5,1) -> 0 | BN37: =(IF(AND(OR($P37="G",$P37="W",$P37="IW"),OR($Q37="G",$Q37="W",$Q37="IW")),IF($P37=BN$25,0.5,0)+IF($Q37=BN$25,0.5,0),0)+IF(AND(OR($R37="G",$R37="W",$R37="IW"),OR($S37="G",$S37="W",$S37="IW")),IF($R37=BN$25,0.5,0)+IF($S37=BN$25,0.5,0),0)+IF(AND(OR($T37="G",$T37="W",$T37="IW"),OR($U37="G",$U37="W",$U37="IW")),IF($T37=BN$25,0.5,0)+IF($U37=BN$25,0.5,0),0))*IF($BB37="VS",0,INDEX(BK$17:BK$19,VALUE(LEFT($BB37,2))-10))*BK$20*IF(MID($BB37,3,1)="_",0.5,1) -> 0 | BO37: =(IF(AND(OR($P37="G",$P37="W",$P37="IW"),OR($Q37="G",$Q37="W",$Q37="IW")),IF($P37=BO$25,0.5,0)+IF($Q37=BO$25,0.5,0),0)+IF(AND(OR($R37="G",$R37="W",$R37="IW"),OR($S37="G",$S37="W",$S37="IW")),IF($R37=BO$25,0.5,0)+IF($S37=BO$25,0.5,0),0)+IF(AND(OR($T37="G",$T37="W",$T37="IW"),OR($U37="G",$U37="W",$U37="IW")),IF($T37=BO$25,0.5,0)+IF($U37=BO$25,0.5,0),0))*IF($BB37="VS",0,INDEX(BL$17:BL$19,VALUE(LEFT($BB37,2))-10))*BL$20*IF(MID($BB37,3,1)="_",0.5,1) -> 0 | BP37: =(IF(AND(OR($P37="G",$P37="W",$P37="IW"),OR($Q37="G",$Q37="W",$Q37="IW")),IF($P37=BP$25,0.5,0)+IF($Q37=BP$25,0.5,0),0)+IF(AND(OR($R37="G",$R37="W",$R37="IW"),OR($S37="G",$S37="W",$S37="IW")),IF($R37=BP$25,0.5,0)+IF($S37=BP$25,0.5,0),0)+IF(AND(OR($T37="G",$T37="W",$T37="IW"),OR($U37="G",$U37="W",$U37="IW")),IF($T37=BP$25,0.5,0)+IF($U37=BP$25,0.5,0),0))*IF($BB37="VS",0,INDEX(BM$17:BM$19,VALUE(LEFT($BB37,2))-10))*BM$20*IF(MID($BB37,3,1)="_",0.5,1) -> 0 | BR37: =BB37 -> 12 | CB37: zus. | CC37: =B37 -> 12 | CD37: =J37 -> 0 | CE37: =CE36 -> 0.5556100552 | CF37: =CF36 -> 0.1706928265 | CG37: =CG36 -> 0 | CH37: =CH36 -> 0.2736971183 | CI37: =CD37-SUM(CJ37:CL37) -> 0 | CJ37: 0 | CK37: 0 | CL37: 0 | CM37: =Parameter!Q19 -> 28 | CN37: 0 | CO37: 0 | CP37: 0 | CQ37: 0 | CS37: =SUM(CN37:CQ37) -> 0 | CT37: =AL37 -> 0 | CU37: =SUMPRODUCT(IF(CI37:CL37>=Parameter!$J$37,1,CI37:CL37/Parameter!$J$37)*(CN37:CQ37))*CV37 -> 0 | CV37: =Stundentafel!Y56 -> 1 | CW37: 12 | CX37: =IF(AC37=0,0,ROUND(V37/AC37,0)) -> 0 | CY37: =IF(AD37=0,0,ROUND(W37/AD37,0)) -> 0 | CZ37: =IF(AE37=0,0,ROUND(X37/AE37,0)) -> 0 | DA37: =IF(AF37=0,0,ROUND(Y37/AF37,0)) -> 0 | DB37: =IF(AG37=0,0,ROUND(Z37/AG37,0)) -> 0 | DC37: =IF(AH37=0,0,ROUND(AA37/AH37,0)) -> 0 | DD37: =IF(AI37=0,0,ROUND(AB37/AI37,0)) -> 0 | DE37: =ROUND(IF(O37=0,0,(J37-SUM(V37:AB37))/O37),0) -> 0 | DF37: =IF(AND(AC37=1,CX37<$DN37),0,VLOOKUP(CX37,block3,2,FALSE)) -> 0 | DG37: 0 | DH37: 0 | DI37: 0 | DJ37: 0 | DK37: 0 | DL37: 0 | DM37: =IF(AND(DE37<$DN37),0,VLOOKUP(DE37,block3,2,FALSE)) -> 0 | DN37: 16 | DO37: =$DO$28 -> 16 | DP37: =SUMPRODUCT((AC37:AJ37)*(DF37:DM37)*IF(OR((AC37:AJ37)>1,CX37:DE37)>=DN37,1,CX37:DE37/DN37)) -> 0 | DQ37: =HLOOKUP(B37,Parameter!$A$74:$G$76,2,FALSE)*DP37 -> 0 | DR37: =IF(DR$33=0,0,ROUND(SUM(DQ37:DQ39)/DQ$33*DR$33,0)) -> 0 | DS37: =IF(AND(AC37=1,CX37<$DN37),0,VLOOKUP(CX37,block3,3,FALSE)) -> 0 | DT37: 0 | DU37: 0 | DV37: 0 | DW37: 0 | DX37: 0 | DY37: 0 | DZ37: =IF(AND(DE37<$DN37),0,VLOOKUP(DE37,block3,3,FALSE)) -> 0 | EA37: =SUMPRODUCT((AC37:AJ37)*(DS37:DZ37)*IF(OR((AC37:AJ37)>1,CX37:DE37>=DN37),1,CX37:DE37/DN37)) -> 0 | EB37: =HLOOKUP(B37,Parameter!$A$74:$G$76,3,FALSE)*EA37 -> 0 | EC37: =IF(EC$33=0,0,ROUND(SUM(EB37:EB39)/EB$33*EC$33,0)) -> 0 | ED37: =I17*Stundentafel!$S$2*Parameter!L72 -> 0 | EE37: =IF(EE$33=0,0,ROUND(SUM(ED37:ED39)/ED$33*EE$33,0)) -> 0 | EU37: 12 | EV37: =budget(C37:I37,L37:N37,K37,symmetrie,Stundentafel!$C$130:$AY$130,Stundentafel!$C$136:$AY$136,Stundentafel!$C$142:$AY$142,16,16) -> 0
A38: BOS 12_1 | B38: 12_1 | C38: 0 | D38: 0 | E38: 0 | F38: 0 | G38: 0 | H38: 0 | I38: 0 | J38: =SUM(C38:I38) -> 0 | K38: =K37 -> 25 | L38: =klassen(C38:I38,K38,Stundentafel!B14:AX14,tiefe,symmetrie) -> 0 | M38: 0 | N38: 0 | O38: =COUNTIF(L38:N38,">0") -> 0 | P38: =VLOOKUP(L38,mischklassen,6,FALSE) -> 0 | Q38: =VLOOKUP(L38,mischklassen,7,FALSE) -> 0 | R38: =VLOOKUP(M38,mischklassen,6,FALSE) -> 0 | S38: =VLOOKUP(M38,mischklassen,7,FALSE) -> 0 | T38: =VLOOKUP(N38,mischklassen,6,FALSE) -> 0 | U38: =VLOOKUP(N38,mischklassen,7,FALSE) -> 0 | V38: =restschueler(C38:I38,L38:N38,K38,symmetrie) -> 0 | W38: 0 | X38: 0 | Y38: 0 | Z38: 0 | AA38: 0 | AB38: 0 | AC38: =ROUNDUP(V38/$K38,0) -> 0 | AD38: =ROUNDUP(W38/$K38,0) -> 0 | AE38: =ROUNDUP(X38/$K38,0) -> 0 | AF38: =ROUNDUP(Y38/$K38,0) -> 0 | AG38: =ROUNDUP(Z38/$K38,0) -> 0 | AH38: =ROUNDUP(AA38/$K38,0) -> 0 | AI38: =ROUNDUP(AB38/$K38,0) -> 0 | AJ38: =O38 -> 0 | AK38: =gesstunden(V38:AB38,L38:N38,K38,Stundentafel!B14:AX14) -> 0 | AL38: =SUM(AC38:AI38,O38) -> 0 | AM38: =COUNTIF($P38:$U38,AM$25) -> 0 | AN38: 0 | AO38: 0 | AP38: 0 | AQ38: 0 | AR38: 0 | AS38: 0 | AT38: =zweischienen(C38,V38,AC38,AM38,Parameter!$J$34) -> 0 | AU38: =zweischienen(D38,W38,AD38,AN38,Parameter!$J$34) -> 0 | AV38: =zweischienen(E38,X38,AE38,AO38,Parameter!$J$34) -> 0 | AW38: =zweischienen(F38,Y38,AF38,AP38,Parameter!$J$34) -> 0 | AX38: =zweischienen(G38,Z38,AG38,AQ38,Parameter!$J$34) -> 0 | AY38: =zweischienen(H38,AA38,AH38,AR38,Parameter!$J$34) -> 0 | AZ38: =zweischienen(I38,AB38,AI38,AS38,Parameter!$J$34) -> 0 | BA38: =budget(C38:I38,L38:N38,K38,symmetrie,Stundentafel!C127:AY127,Stundentafel!C133:AY133,Stundentafel!C139:AY139,DN38,DO38) -> 0 | BB38: 12_1 | BC38: 0 | BD38: 0 | BF38: =IF(IF(INDEX($AC38:$AI38,BF$15)=0,0,INDEX($V38:$AB38,BF$15)/INDEX($AC38:$AI38,BF$15))>=Parameter!$J$35,BF$20*INDEX($AC38:$AI38,BF$15)*IF($BB38="VS",0,INDEX(BF$17:BF$19,VALUE(MID($A38,5,2))-10)),0)*IF(MID($BB38,3,1)="_",0.5,1) -> 0 | BG38: =IF(IF(INDEX($AC38:$AI38,BG$15)=0,0,INDEX($V38:$AB38,BG$15)/INDEX($AC38:$AI38,BG$15))>=Parameter!$J$35,BG$20*INDEX($AC38:$AI38,BG$15)*IF($BB38="VS",0,INDEX(BG$17:BG$19,VALUE(MID($A38,5,2))-10)),0)*IF(MID($BB38,3,1)="_",0.5,1) -> 0 | BH38: =IF(IF(INDEX($AC38:$AI38,BH$15)=0,0,INDEX($V38:$AB38,BH$15)/INDEX($AC38:$AI38,BH$15))>=Parameter!$J$35,BH$20*INDEX($AC38:$AI38,BH$15)*IF($BB38="VS",0,INDEX(BH$17:BH$19,VALUE(MID($A38,5,2))-10)),0)*IF(MID($BB38,3,1)="_",0.5,1) -> 0 | BI38: =IF(IF(INDEX($AC38:$AI38,BI$15)=0,0,INDEX($V38:$AB38,BI$15)/INDEX($AC38:$AI38,BI$15))>=Parameter!$J$35,BI$20*INDEX($AC38:$AI38,BI$15)*IF($BB38="VS",0,INDEX(BI$17:BI$19,VALUE(MID($A38,5,2))-10)),0)*IF(MID($BB38,3,1)="_",0.5,1) -> 0 | BJ38: =IF(IF(INDEX($AC38:$AI38,BJ$15)=0,0,INDEX($V38:$AB38,BJ$15)/INDEX($AC38:$AI38,BJ$15))>=Parameter!$J$35,BJ$20*INDEX($AC38:$AI38,BJ$15)*IF($BB38="VS",0,INDEX(BJ$17:BJ$19,VALUE(MID($A38,5,2))-10)),0)*IF(MID($BB38,3,1)="_",0.5,1) -> 0 | BK38: =IF(IF(INDEX($AC38:$AI38,BK$15)=0,0,INDEX($V38:$AB38,BK$15)/INDEX($AC38:$AI38,BK$15))>=Parameter!$J$35,BK$20*INDEX($AC38:$AI38,BK$15)*IF($BB38="VS",0,INDEX(BK$17:BK$19,VALUE(MID($A38,5,2))-10)),0)*IF(MID($BB38,3,1)="_",0.5,1) -> 0 | BL38: =IF(IF(INDEX($AC38:$AI38,BL$15)=0,0,INDEX($V38:$AB38,BL$15)/INDEX($AC38:$AI38,BL$15))>=Parameter!$J$35,BL$20*INDEX($AC38:$AI38,BL$15)*IF($BB38="VS",0,INDEX(BL$17:BL$19,VALUE(MID($A38,5,2))-10)),0)*IF(MID($BB38,3,1)="_",0.5,1) -> 0 | BM38: =IF(IF(INDEX($AC38:$AI38,BM$15)=0,0,INDEX($V38:$AB38,BM$15)/INDEX($AC38:$AI38,BM$15))>=Parameter!$J$35,BM$20*INDEX($AC38:$AI38,BM$15)*IF($BB38="VS",0,INDEX(BM$17:BM$19,VALUE(MID($A38,5,2))-10)),0)*IF(MID($BB38,3,1)="_",0.5,1) -> 0 | BN38: =(IF(AND(OR($P38="G",$P38="W",$P38="IW"),OR($Q38="G",$Q38="W",$Q38="IW")),IF($P38=BN$25,0.5,0)+IF($Q38=BN$25,0.5,0),0)+IF(AND(OR($R38="G",$R38="W",$R38="IW"),OR($S38="G",$S38="W",$S38="IW")),IF($R38=BN$25,0.5,0)+IF($S38=BN$25,0.5,0),0)+IF(AND(OR($T38="G",$T38="W",$T38="IW"),OR($U38="G",$U38="W",$U38="IW")),IF($T38=BN$25,0.5,0)+IF($U38=BN$25,0.5,0),0))*IF($BB38="VS",0,INDEX(BK$17:BK$19,VALUE(LEFT($BB38,2))-10))*BK$20*IF(MID($BB38,3,1)="_",0.5,1) -> 0 | BO38: =(IF(AND(OR($P38="G",$P38="W",$P38="IW"),OR($Q38="G",$Q38="W",$Q38="IW")),IF($P38=BO$25,0.5,0)+IF($Q38=BO$25,0.5,0),0)+IF(AND(OR($R38="G",$R38="W",$R38="IW"),OR($S38="G",$S38="W",$S38="IW")),IF($R38=BO$25,0.5,0)+IF($S38=BO$25,0.5,0),0)+IF(AND(OR($T38="G",$T38="W",$T38="IW"),OR($U38="G",$U38="W",$U38="IW")),IF($T38=BO$25,0.5,0)+IF($U38=BO$25,0.5,0),0))*IF($BB38="VS",0,INDEX(BL$17:BL$19,VALUE(LEFT($BB38,2))-10))*BL$20*IF(MID($BB38,3,1)="_",0.5,1) -> 0 | BP38: =(IF(AND(OR($P38="G",$P38="W",$P38="IW"),OR($Q38="G",$Q38="W",$Q38="IW")),IF($P38=BP$25,0.5,0)+IF($Q38=BP$25,0.5,0),0)+IF(AND(OR($R38="G",$R38="W",$R38="IW"),OR($S38="G",$S38="W",$S38="IW")),IF($R38=BP$25,0.5,0)+IF($S38=BP$25,0.5,0),0)+IF(AND(OR($T38="G",$T38="W",$T38="IW"),OR($U38="G",$U38="W",$U38="IW")),IF($T38=BP$25,0.5,0)+IF($U38=BP$25,0.5,0),0))*IF($BB38="VS",0,INDEX(BM$17:BM$19,VALUE(LEFT($BB38,2))-10))*BM$20*IF(MID($BB38,3,1)="_",0.5,1) -> 0 | BR38: =BB38 -> 12_1 | CC38: =B38 -> 12_1 | CD38: =J38 -> 0 | CE38: =CE37 -> 0.5556100552 | CF38: =CF37 -> 0.1706928265 | CG38: =CG37 -> 0 | CH38: =CH37 -> 0.2736971183 | CI38: =CD38-SUM(CJ38:CL38) -> 0 | CJ38: =ROUND($CD38*CF38,0) -> 0 | CK38: =ROUND($CD38*CG38,0) -> 0 | CL38: =ROUND($CD38*CH38,0) -> 0 | CM38: =CM37 -> 28 | CN38: 0 | CO38: 0 | CP38: 0 | CQ38: 0 | CS38: =SUM(CN38:CQ38) -> 0 | CT38: =AL38 -> 0 | CU38: =SUMPRODUCT(IF(CI38:CL38>=Parameter!$J$37,1,CI38:CL38/Parameter!$J$37)*(CN38:CQ38))*CV38 -> 0 | CV38: =Stundentafel!Y57 -> 0.5 | CW38: 12_1 | CX38: 0 | CY38: 0 | CZ38: 0 | DA38: 0 | DB38: 0 | DC38: 0 | DD38: 0 | DE38: =ROUND(IF(O38=0,0,(J38-SUM(V38:AB38))/O38),0) -> 0 | DF38: 0 | DG38: 0 | DH38: 0 | DI38: 0 | DJ38: 0 | DK38: 0 | DL38: 0 | DM38: =IF(AND(DE38<$DN38),0,VLOOKUP(DE38,block3,2,FALSE)) -> 0 | DN38: 16 | DO38: =$DO$28 -> 16 | DP38: =SUMPRODUCT((AC38:AJ38)*(DF38:DM38)*IF(OR((AC38:AJ38)>1,CX38:DE38)>=DN38,1,CX38:DE38/DN38)) -> 0 | DQ38: =HLOOKUP(B38,Parameter!$A$74:$G$76,2,FALSE)*DP38 -> 0 | DS38: 0 | DT38: 0 | DU38: 0 | DV38: 0 | DW38: 0 | DX38: 0 | DY38: 0 | DZ38: =IF(AND(DE38<$DN38),0,VLOOKUP(DE38,block3,3,FALSE)) -> 0 | EA38: =SUMPRODUCT((AC38:AJ38)*(DS38:DZ38)*IF(OR((AC38:AJ38)>1,CX38:DE38>=DN38),1,CX38:DE38/DN38)) -> 0 | EB38: =HLOOKUP(B38,Parameter!$A$74:$G$76,3,FALSE)*EA38 -> 0 | ED38: =I18*Stundentafel!$S$2*Parameter!L73 -> 0 | EU38: 12_1 | EV38: =budget(C38:I38,L38:N38,K38,symmetrie,Stundentafel!$C$130:$AY$130,Stundentafel!$C$136:$AY$136,Stundentafel!$C$142:$AY$142,16,16)/2 -> 0
A39: BOS 12_2 | B39: 12_2 | C39: 0 | D39: 0 | E39: 0 | F39: 0 | G39: 0 | H39: 0 | I39: 0 | J39: =SUM(C39:I39) -> 0 | K39: =K38 -> 25 | L39: =klassen(C39:I39,K39,Stundentafel!B15:AX15,tiefe,symmetrie) -> 0 | M39: 0 | N39: 0 | O39: =COUNTIF(L39:N39,">0") -> 0 | P39: =VLOOKUP(L39,mischklassen,6,FALSE) -> 0 | Q39: =VLOOKUP(L39,mischklassen,7,FALSE) -> 0 | R39: =VLOOKUP(M39,mischklassen,6,FALSE) -> 0 | S39: =VLOOKUP(M39,mischklassen,7,FALSE) -> 0 | T39: =VLOOKUP(N39,mischklassen,6,FALSE) -> 0 | U39: =VLOOKUP(N39,mischklassen,7,FALSE) -> 0 | V39: =restschueler(C39:I39,L39:N39,K39,symmetrie) -> 0 | W39: 0 | X39: 0 | Y39: 0 | Z39: 0 | AA39: 0 | AB39: 0 | AC39: =ROUNDUP(V39/$K39,0) -> 0 | AD39: 0 | AE39: 0 | AF39: 0 | AG39: 0 | AH39: 0 | AI39: 0 | AJ39: =O39 -> 0 | AK39: =gesstunden(V39:AB39,L39:N39,K39,Stundentafel!B15:AX15) -> 0 | AL39: =SUM(AC39:AI39,O39) -> 0 | AM39: 0 | AN39: 0 | AO39: 0 | AP39: 0 | AQ39: 0 | AR39: 0 | AS39: 0 | AT39: =zweischienen(C39,V39,AC39,AM39,Parameter!$J$34) -> 0 | AU39: =zweischienen(D39,W39,AD39,AN39,Parameter!$J$34) -> 0 | AV39: =zweischienen(E39,X39,AE39,AO39,Parameter!$J$34) -> 0 | AW39: =zweischienen(F39,Y39,AF39,AP39,Parameter!$J$34) -> 0 | AX39: =zweischienen(G39,Z39,AG39,AQ39,Parameter!$J$34) -> 0 | AY39: =zweischienen(H39,AA39,AH39,AR39,Parameter!$J$34) -> 0 | AZ39: =zweischienen(I39,AB39,AI39,AS39,Parameter!$J$34) -> 0 | BA39: =budget(C39:I39,L39:N39,K39,symmetrie,Stundentafel!C128:AY128,Stundentafel!C134:AY134,Stundentafel!C140:AY140,DN39,DO39) -> 0 | BB39: 12_2 | BC39: 0 | BD39: 0 | BF39: =IF(IF(INDEX($AC39:$AI39,BF$15)=0,0,INDEX($V39:$AB39,BF$15)/INDEX($AC39:$AI39,BF$15))>=Parameter!$J$35,BF$20*INDEX($AC39:$AI39,BF$15)*IF($BB39="VS",0,INDEX(BF$17:BF$19,VALUE(MID($A39,5,2))-10)),0)*IF(MID($BB39,3,1)="_",0.5,1) -> 0 | BG39: =IF(IF(INDEX($AC39:$AI39,BG$15)=0,0,INDEX($V39:$AB39,BG$15)/INDEX($AC39:$AI39,BG$15))>=Parameter!$J$35,BG$20*INDEX($AC39:$AI39,BG$15)*IF($BB39="VS",0,INDEX(BG$17:BG$19,VALUE(MID($A39,5,2))-10)),0)*IF(MID($BB39,3,1)="_",0.5,1) -> 0 | BH39: =IF(IF(INDEX($AC39:$AI39,BH$15)=0,0,INDEX($V39:$AB39,BH$15)/INDEX($AC39:$AI39,BH$15))>=Parameter!$J$35,BH$20*INDEX($AC39:$AI39,BH$15)*IF($BB39="VS",0,INDEX(BH$17:BH$19,VALUE(MID($A39,5,2))-10)),0)*IF(MID($BB39,3,1)="_",0.5,1) -> 0 | BI39: =IF(IF(INDEX($AC39:$AI39,BI$15)=0,0,INDEX($V39:$AB39,BI$15)/INDEX($AC39:$AI39,BI$15))>=Parameter!$J$35,BI$20*INDEX($AC39:$AI39,BI$15)*IF($BB39="VS",0,INDEX(BI$17:BI$19,VALUE(MID($A39,5,2))-10)),0)*IF(MID($BB39,3,1)="_",0.5,1) -> 0 | BJ39: =IF(IF(INDEX($AC39:$AI39,BJ$15)=0,0,INDEX($V39:$AB39,BJ$15)/INDEX($AC39:$AI39,BJ$15))>=Parameter!$J$35,BJ$20*INDEX($AC39:$AI39,BJ$15)*IF($BB39="VS",0,INDEX(BJ$17:BJ$19,VALUE(MID($A39,5,2))-10)),0)*IF(MID($BB39,3,1)="_",0.5,1) -> 0 | BK39: =IF(IF(INDEX($AC39:$AI39,BK$15)=0,0,INDEX($V39:$AB39,BK$15)/INDEX($AC39:$AI39,BK$15))>=Parameter!$J$35,BK$20*INDEX($AC39:$AI39,BK$15)*IF($BB39="VS",0,INDEX(BK$17:BK$19,VALUE(MID($A39,5,2))-10)),0)*IF(MID($BB39,3,1)="_",0.5,1) -> 0 | BL39: =IF(IF(INDEX($AC39:$AI39,BL$15)=0,0,INDEX($V39:$AB39,BL$15)/INDEX($AC39:$AI39,BL$15))>=Parameter!$J$35,BL$20*INDEX($AC39:$AI39,BL$15)*IF($BB39="VS",0,INDEX(BL$17:BL$19,VALUE(MID($A39,5,2))-10)),0)*IF(MID($BB39,3,1)="_",0.5,1) -> 0 | BM39: =IF(IF(INDEX($AC39:$AI39,BM$15)=0,0,INDEX($V39:$AB39,BM$15)/INDEX($AC39:$AI39,BM$15))>=Parameter!$J$35,BM$20*INDEX($AC39:$AI39,BM$15)*IF($BB39="VS",0,INDEX(BM$17:BM$19,VALUE(MID($A39,5,2))-10)),0)*IF(MID($BB39,3,1)="_",0.5,1) -> 0 | BN39: 0 | BO39: 0 | BP39: 0 | BR39: =BB39 -> 12_2 | CC39: =B39 -> 12_2 | CD39: 0 | CE39: 0.5556100552 | CF39: 0.1706928265 | CG39: 0 | CH39: 0.2736971183 | CI39: 0 | CJ39: 0 | CK39: 0 | CL39: 0 | CM39: =CM38 -> 28 | CN39: 0 | CO39: 0 | CP39: 0 | CQ39: 0 | CS39: =SUM(CN39:CQ39) -> 0 | CT39: 0 | CU39: =SUMPRODUCT(IF(CI39:CL39>=Parameter!$J$37,1,CI39:CL39/Parameter!$J$37)*(CN39:CQ39))*CV39 -> 0 | CV39: =Stundentafel!Y58 -> 0.5 | CW39: 12_2 | CX39: 0 | CY39: 0 | CZ39: 0 | DA39: 0 | DB39: 0 | DC39: 0 | DD39: 0 | DE39: =ROUND(IF(O39=0,0,(J39-SUM(V39:AB39))/O39),0) -> 0 | DF39: 0 | DG39: 0 | DH39: 0 | DI39: 0 | DJ39: 0 | DK39: 0 | DL39: 0 | DM39: =IF(AND(DE39<$DN39),0,VLOOKUP(DE39,block3,2,FALSE)) -> 0 | DN39: 16 | DO39: =$DO$28 -> 16 | DP39: =SUMPRODUCT((AC39:AJ39)*(DF39:DM39)*IF(OR((AC39:AJ39)>1,CX39:DE39)>=DN39,1,CX39:DE39/DN39)) -> 0 | DQ39: =HLOOKUP(B39,Parameter!$A$74:$G$76,2,FALSE)*DP39 -> 0 | DS39: 0 | DT39: 0 | DU39: 0 | DV39: 0 | DW39: 0 | DX39: 0 | DY39: 0 | DZ39: =IF(AND(DE39<$DN39),0,VLOOKUP(DE39,block3,3,FALSE)) -> 0 | EA39: =SUMPRODUCT((AC39:AJ39)*(DS39:DZ39)*IF(OR((AC39:AJ39)>1,CX39:DE39>=DN39),1,CX39:DE39/DN39)) -> 0 | EB39: =HLOOKUP(B39,Parameter!$A$74:$G$76,3,FALSE)*EA39 -> 0 | ED39: =I19*Stundentafel!$S$2*Parameter!L74 -> 0 | EU39: 12_2 | EV39: =budget(C39:I39,L39:N39,K39,symmetrie,Stundentafel!$C$130:$AY$130,Stundentafel!$C$136:$AY$136,Stundentafel!$C$142:$AY$142,16,16)/2 -> 0
A40: BOS 13 | B40: 13 | C40: 0 | D40: 0 | E40: 0 | F40: 0 | G40: 0 | H40: 0 | I40: 0 | J40: =SUM(C40:I40) -> 0 | K40: =Parameter!N19 -> 25 | L40: =klassen(C40:I40,K40,Stundentafel!B16:AX16,tiefe,symmetrie) -> 0 | M40: 0 | N40: 0 | O40: =COUNTIF(L40:N40,">0") -> 0 | P40: =VLOOKUP(L40,mischklassen,6,FALSE) -> 0 | Q40: =VLOOKUP(L40,mischklassen,7,FALSE) -> 0 | R40: =VLOOKUP(M40,mischklassen,6,FALSE) -> 0 | S40: =VLOOKUP(M40,mischklassen,7,FALSE) -> 0 | T40: =VLOOKUP(N40,mischklassen,6,FALSE) -> 0 | U40: =VLOOKUP(N40,mischklassen,7,FALSE) -> 0 | V40: =restschueler(C40:I40,L40:N40,K40,symmetrie) -> 0 | W40: 0 | X40: 0 | Y40: 0 | Z40: 0 | AA40: 0 | AB40: 0 | AC40: =ROUNDUP(V40/$K40,0) -> 0 | AD40: =ROUNDUP(W40/$K40,0) -> 0 | AE40: =ROUNDUP(X40/$K40,0) -> 0 | AF40: =ROUNDUP(Y40/$K40,0) -> 0 | AG40: =ROUNDUP(Z40/$K40,0) -> 0 | AH40: =ROUNDUP(AA40/$K40,0) -> 0 | AI40: =ROUNDUP(AB40/$K40,0) -> 0 | AJ40: =O40 -> 0 | AK40: =gesstunden(V40:AB40,L40:N40,K40,Stundentafel!B16:AX16) -> 0 | AL40: =SUM(AC40:AI40,O40) -> 0 | AM40: 0 | AN40: 0 | AO40: 0 | AP40: 0 | AQ40: 0 | AR40: 0 | AS40: 0 | AT40: =zweischienen(C40,V40,AC40,AM40,Parameter!$J$34) -> 0 | AU40: =zweischienen(D40,W40,AD40,AN40,Parameter!$J$34) -> 0 | AV40: =zweischienen(E40,X40,AE40,AO40,Parameter!$J$34) -> 0 | AW40: =zweischienen(F40,Y40,AF40,AP40,Parameter!$J$34) -> 0 | AX40: =zweischienen(G40,Z40,AG40,AQ40,Parameter!$J$34) -> 0 | AY40: =zweischienen(H40,AA40,AH40,AR40,Parameter!$J$34) -> 0 | AZ40: =zweischienen(I40,AB40,AI40,AS40,Parameter!$J$34) -> 0 | BA40: =budget(C40:I40,L40:N40,K40,symmetrie,Stundentafel!C129:AY129,Stundentafel!C135:AY135,Stundentafel!C141:AY141,DN40,DO40) -> 0 | BB40: 13 | BC40: 0 | BD40: 0 | BF40: =IF(IF(INDEX($AC40:$AI40,BF$15)=0,0,INDEX($V40:$AB40,BF$15)/INDEX($AC40:$AI40,BF$15))>=Parameter!$J$35,BF$20*INDEX($AC40:$AI40,BF$15)*IF($BB40="VS",0,INDEX(BF$17:BF$19,VALUE(MID($A40,5,2))-10)),0)*IF(MID($BB40,3,1)="_",0.5,1) -> 0 | BG40: =IF(IF(INDEX($AC40:$AI40,BG$15)=0,0,INDEX($V40:$AB40,BG$15)/INDEX($AC40:$AI40,BG$15))>=Parameter!$J$35,BG$20*INDEX($AC40:$AI40,BG$15)*IF($BB40="VS",0,INDEX(BG$17:BG$19,VALUE(MID($A40,5,2))-10)),0)*IF(MID($BB40,3,1)="_",0.5,1) -> 0 | BH40: =IF(IF(INDEX($AC40:$AI40,BH$15)=0,0,INDEX($V40:$AB40,BH$15)/INDEX($AC40:$AI40,BH$15))>=Parameter!$J$35,BH$20*INDEX($AC40:$AI40,BH$15)*IF($BB40="VS",0,INDEX(BH$17:BH$19,VALUE(MID($A40,5,2))-10)),0)*IF(MID($BB40,3,1)="_",0.5,1) -> 0 | BI40: =IF(IF(INDEX($AC40:$AI40,BI$15)=0,0,INDEX($V40:$AB40,BI$15)/INDEX($AC40:$AI40,BI$15))>=Parameter!$J$35,BI$20*INDEX($AC40:$AI40,BI$15)*IF($BB40="VS",0,INDEX(BI$17:BI$19,VALUE(MID($A40,5,2))-10)),0)*IF(MID($BB40,3,1)="_",0.5,1) -> 0 | BJ40: =IF(IF(INDEX($AC40:$AI40,BJ$15)=0,0,INDEX($V40:$AB40,BJ$15)/INDEX($AC40:$AI40,BJ$15))>=Parameter!$J$35,BJ$20*INDEX($AC40:$AI40,BJ$15)*IF($BB40="VS",0,INDEX(BJ$17:BJ$19,VALUE(MID($A40,5,2))-10)),0)*IF(MID($BB40,3,1)="_",0.5,1) -> 0 | BK40: =IF(IF(INDEX($AC40:$AI40,BK$15)=0,0,INDEX($V40:$AB40,BK$15)/INDEX($AC40:$AI40,BK$15))>=Parameter!$J$35,BK$20*INDEX($AC40:$AI40,BK$15)*IF($BB40="VS",0,INDEX(BK$17:BK$19,VALUE(MID($A40,5,2))-10)),0)*IF(MID($BB40,3,1)="_",0.5,1) -> 0 | BL40: =IF(IF(INDEX($AC40:$AI40,BL$15)=0,0,INDEX($V40:$AB40,BL$15)/INDEX($AC40:$AI40,BL$15))>=Parameter!$J$35,BL$20*INDEX($AC40:$AI40,BL$15)*IF($BB40="VS",0,INDEX(BL$17:BL$19,VALUE(MID($A40,5,2))-10)),0)*IF(MID($BB40,3,1)="_",0.5,1) -> 0 | BM40: =IF(IF(INDEX($AC40:$AI40,BM$15)=0,0,INDEX($V40:$AB40,BM$15)/INDEX($AC40:$AI40,BM$15))>=Parameter!$J$35,BM$20*INDEX($AC40:$AI40,BM$15)*IF($BB40="VS",0,INDEX(BM$17:BM$19,VALUE(MID($A40,5,2))-10)),0)*IF(MID($BB40,3,1)="_",0.5,1) -> 0 | BN40: 0 | BO40: 0 | BP40: 0 | BR40: =BB40 -> 13 | CC40: 13 | CD40: =J40 -> 0 | CE40: =IF(SUM('VUÜ-Budget'!$G$31:$J$31)=0,Parameter!X12,'VUÜ-Budget'!G31/SUM('VUÜ-Budget'!$G31:$J31)) -> 0.5556100552 | CF40: =IF(SUM('VUÜ-Budget'!$G$31:$J$31)=0,Parameter!Y12,'VUÜ-Budget'!H31/SUM('VUÜ-Budget'!$G31:$J31)) -> 0.1706928265 | CG40: =IF(SUM('VUÜ-Budget'!$G$31:$J$31)=0,Parameter!Z12,'VUÜ-Budget'!I31/SUM('VUÜ-Budget'!$G31:$J31)) -> 0 | CH40: =IF(SUM('VUÜ-Budget'!$G$31:$J$31)=0,Parameter!AA12,'VUÜ-Budget'!J31/SUM('VUÜ-Budget'!$G31:$J31)) -> 0.2736971183 | CI40: =CD40-SUM(CJ40:CL40) -> 0 | CJ40: =ROUND($CD40*CF40,0) -> 0 | CK40: =ROUND($CD40*CG40,0) -> 0 | CL40: =ROUND($CD40*CH40,0) -> 0 | CM40: =Parameter!R19 -> 28 | CN40: 0 | CO40: 0 | CP40: 0 | CQ40: 0 | CS40: =SUM(CN40:CQ40) -> 0 | CT40: =AL40 -> 0 | CU40: =SUMPRODUCT(IF(CI40:CL40>=Parameter!$J$37,1,CI40:CL40/Parameter!$J$37)*(CN40:CQ40))*CV40 -> 0 | CV40: =Stundentafel!Y59 -> 1 | CW40: 13 | CX40: =IF(AC40=0,0,ROUND(V40/AC40,0)) -> 0 | CY40: =IF(AD40=0,0,ROUND(W40/AD40,0)) -> 0 | CZ40: =IF(AE40=0,0,ROUND(X40/AE40,0)) -> 0 | DA40: =IF(AF40=0,0,ROUND(Y40/AF40,0)) -> 0 | DB40: =IF(AG40=0,0,ROUND(Z40/AG40,0)) -> 0 | DC40: =IF(AH40=0,0,ROUND(AA40/AH40,0)) -> 0 | DD40: =IF(AI40=0,0,ROUND(AB40/AI40,0)) -> 0 | DE40: =ROUND(IF(O40=0,0,(J40-SUM(V40:AB40))/O40),0) -> 0 | DF40: 0 | DG40: 0 | DH40: 0 | DI40: 0 | DJ40: 0 | DK40: 0 | DL40: 0 | DM40: =IF(AND(DE40<$DN40),0,VLOOKUP(DE40,block3,2,FALSE)) -> 0 | DN40: 8 | DO40: =DN40 -> 8 | DP40: =SUMPRODUCT((AC40:AJ40)*(DF40:DM40)*IF(OR((AC40:AJ40)>1,CX40:DE40)>=DN40,1,CX40:DE40/DN40)) -> 0 | DQ40: =HLOOKUP(B40,Parameter!$A$74:$G$76,2,FALSE)*DP40 -> 0 | DR40: =DR33-SUM(DR36:DR37) -> 0 | DS40: 0 | DT40: 0 | DU40: 0 | DV40: 0 | DW40: 0 | DX40: 0 | DY40: 0 | DZ40: =IF(AND(DE40<$DN40),0,VLOOKUP(DE40,block3,3,FALSE)) -> 0 | EA40: =SUMPRODUCT((AC40:AJ40)*(DS40:DZ40)*IF(OR((AC40:AJ40)>1,CX40:DE40>=DN40),1,CX40:DE40/DN40)) -> 0 | EB40: =HLOOKUP(B40,Parameter!$A$74:$G$76,3,FALSE)*EA40 -> 0 | EC40: =EC33-SUM(EC36:EC37) -> 0 | ED40: =I20*Stundentafel!$S$2*Parameter!L75 -> 0 | EE40: =EE33-SUM(EE36:EE37) -> 0 | EU40: 13
A41: Seminare | BB41: Seminare | BR41: =BB41 -> Seminare | CC41: Seminare
A42: =Stundentafel!E2 -> 2 | E42: =Parameter!J66 -> 8 | M42: Basisbedarf | P42: Zuschlag | S42: Gesamt (LWS) | W42: Basisbedarf | Z42: Zuschlag | AC42: Gesamt (LWS) | BB42: ungerundet | BM42: Verteilung des gerundeten Werts
A43: Seminare | C43: FOS | D43: BOS | E43: S | F43: Basis | G43: Æ | H43: Zuschlag1 | I43: Zuschlag2 | J43: Seminare | K43: Æ | L43: % | M43: FOS | N43: BOS | O43: insg | P43: FOS | Q43: BOS | R43: insg | S43: FOS | T43: BOS | U43: insg | W43: FOS | X43: BOS | Y43: insg | Z43: FOS | AA43: BOS | AB43: insg | AC43: FOS | AD43: BOS | AE43: insg | BB43: FOS | BC43: =AT34 -> T | BD43: W | BE43: S | BF43: G | BG43: A | BH43: IW | BI43: GP | BJ43: S | BK43: aufger. | BM43: =BC43 -> T | BN43: =BD43 -> W | BO43: S | BP43: G | BQ43: A | BR43: IW | BS43: GP | BT43: S
A44: Jgst 13 | C44: =J30 -> 0 | D44: =J40 -> 0 | E44: =SUM(C44:D44) -> 0 | F44: =ROUNDUP(E44/Parameter!$S$20,0) -> 0 | G44: =IF(F44=0,0,E44/F44) -> 0 | H44: =IF(E44<E42,0,VLOOKUP(G44,Parameter!I43:J45,2,TRUE)) -> 0 | I44: =IF(E44<E42,0,IF(AND(F44+H44>0,F44+H44<Parameter!M43),1,0)) -> 0 | J44: =SUM(F44,H44:I44) -> 0 | K44: =IF(J44=0,0,E44/J44) -> 0 | L44: =MIN(E44,E42)/E42 -> 0 | M44: =IF(E44=0,0,O44*C44/E44) -> 0 | N44: =O44-M44 -> 0 | O44: =F44*$A$42 -> 0 | P44: =S44-M44 -> 0 | Q44: =T44-N44 -> 0 | R44: 0 | S44: =IF(E44=0,0,U44*C44/E44) -> 0 | T44: =U44-S44 -> 0 | U44: =J44*A42 -> 0 | W44: =L44*M44:U44 -> 0 | X44: 0 | Y44: 0 | Z44: 0 | AA44: 0 | AB44: 0 | AC44: 0 | AD44: 0 | AE44: 0 | BB44: =BB26 -> Vorkurs | BJ44: =SUM(BC44:BI44) -> 0
A45: Wahlpflichtfächer | BB45: =BB27 -> Vorklasse | BJ45: =SUM(BC45:BI45) -> 0
B46: Jgst. 12 | C46: 2 | D46: 1 | E46: 0 | F46: -1
A47: =Stundentafel!F2 -> 2 | B47: Jgst 13 | C47: 1 | D47: 1 | E47: 0 | F47: -1 | K47: ohne Überbelegung | O47: =Parameter!$I$53 -> 0.2 | W47: Basisbedarf | Z47: Zuschlag 1 (Wahlfr) | AC47: Zuschlag 2 (Überbel) | AF47: Gesamt (LWS) | AJ47: Basisbedarf | AM47: Zuschlag 1 (Wahlfr) | AP47: Zuschlag 2 (Überbel) | AS47: Gesamt (LWS) | BB47: =BB28 -> 11 | BC47: =SUMIF($BC$25:$BP$25,BC$43,$BC28:$BP28) -> 0 | BD47: 0 | BE47: 0 | BF47: 0 | BG47: 0 | BH47: 0 | BI47: 0 | BJ47: 0 | BK47: =ROUNDUP(BJ47,0) -> 0 | BL47: =BB47 -> 11 | BM47: =spezialaufrunden(BC47:BI47,0) -> 0 | BN47: 0 | BO47: 0 | BP47: 0 | BQ47: 0 | BR47: 0 | BS47: 0 | BT47: =SUM(BM47:BS47) -> 0
A48: WPF | C48: FOS | D48: BOS | E48: S | F48: 2. FSpr | G48: TNR | H48: 1. Basis | I48: Æ | K48: Zuschlag1 | L48: Zuschlag2 | M48: Wert2 | O48: Überbel | P48: TNR* | Q48: Basis* | R48: Æ | S48: Zuschlag1 | T48: Zuschlag2 | U48: Wert3 | V48: Mindest | W48: FOS | X48: BOS | Y48: insg | Z48: FOS | AA48: BOS | AB48: insg | AC48: FOS | AD48: BOS | AE48: insg | AF48: FOS | AG48: BOS | AH48: insg | AI48: =Parameter!J66*2 -> 16 | AJ48: FOS | AK48: BOS | AL48: insg | AM48: FOS | AN48: BOS | AO48: insg | AP48: FOS | AQ48: BOS | AR48: insg | AS48: FOS | AT48: BOS | AU48: insg | BB48: =BB29 -> 12 | BC48: 0 | BD48: 0 | BE48: 0 | BF48: 0 | BG48: 0 | BH48: 0 | BI48: 0 | BJ48: 0 | BK48: =ROUNDUP(BJ48,0) -> 0 | BL48: =BB48 -> 12 | BM48: =spezialaufrunden(BC48:BI48,0) -> 0 | BN48: 0 | BO48: 0 | BP48: 0 | BQ48: 0 | BR48: 0 | BS48: 0 | BT48: =SUM(BM48:BS48) -> 0
A49: Jgst 12 | C49: =J29 -> 0 | D49: =J37+SUM(J38:J39)/2 -> 0 | E49: =SUM(C49:D49) -> 0 | F49: ='VUÜ-SK'!J69 -> 0 | G49: =SUMPRODUCT(C46:F46,C49:F49) -> 0 | H49: =ROUNDUP(G49/Parameter!$Q$20,0)+IF(ROUNDUP(G49/Parameter!$Q$20,0)=1,1,0) -> 0 | I49: =IF(H49=0,0,G49/H49) -> 0 | K49: =VLOOKUP(I49,Parameter!$I$49:$J$51,2,TRUE) -> 0 | L49: =IF(AND(H49+K49>0,H49+K49<Parameter!$M49),1,0) -> 0 | M49: =SUM(H49,K49:L49) -> 0 | O49: =ROUND(Parameter!$I$53*E49,0) -> 0 | P49: =O49+G49 -> 0 | Q49: =ROUNDUP(P49/Parameter!$Q$20,0)+IF(ROUNDUP(P49/Parameter!$Q$20,0)=1,1,0) -> 0 | R49: =IF(Q49=0,0,P49/Q49) -> 0 | S49: =VLOOKUP(R49,Parameter!$I$49:$J$51,2,TRUE) -> 0 | T49: =IF(AND(Q49+S49>0,Q49+S49<Parameter!$M49),1,0) -> 0 | U49: =SUM(Q49,S49:T49) -> 0 | V49: =2*Parameter!J66 -> 16 | W49: =IF($E49=0,0,$C49/$E49*Y49) -> 0 | X49: =Y49-W49 -> 0 | Y49: =H49*$A$47 -> 0 | Z49: =IF($E49=0,0,$C49/$E49*AB49) -> 0 | AA49: =AB49-Z49 -> 0 | AB49: =IF(E49<V49,0,(M49-H49)*$A$47) -> 0 | AC49: =IF($E49=0,0,$C49/$E49*AE49) -> 0 | AD49: =AE49-AC49 -> 0 | AE49: =IF(E49<V49,0,(U49-M49)*$A$47) -> 0 | AF49: =SUM(W49,Z49,AC49) -> 0 | AG49: =SUM(X49,AA49,AD49) -> 0 | AH49: =SUM(AF49:AG49) -> 0 | AI49: =MIN(E49,Parameter!J66*2)/(Parameter!J66*2) -> 0 | AJ49: =W49:AH49*AI49 -> 0 | AK49: 0 | AL49: 0 | AM49: 0 | AN49: 0 | AO49: 0 | AP49: 0 | AQ49: 0 | AR49: 0 | AS49: 0 | AT49: 0 | AU49: 0 | BB49: =BB30 -> 13 | BC49: 0 | BD49: 0 | BE49: 0 | BF49: 0 | BG49: 0 | BH49: 0 | BI49: 0 | BJ49: 0 | BK49: =ROUNDUP(BJ49,0) -> 0 | BL49: =BB49 -> 13 | BM49: =spezialaufrunden(BC49:BI49,0) -> 0 | BN49: 0 | BO49: 0 | BP49: 0 | BQ49: 0 | BR49: 0 | BS49: 0 | BT49: =SUM(BM49:BS49) -> 0
A50: Jgst 13 | C50: =J30 -> 0 | D50: =J40 -> 0 | E50: =SUM(C50:D50) -> 0 | F50: ='VUÜ-SK'!J70 -> 0 | G50: =SUMPRODUCT(C47:F47,C50:F50) -> 0 | H50: =ROUNDUP(G50/Parameter!$R$20,0) -> 0 | I50: =IF(H50=0,0,G50/H50) -> 0 | K50: =VLOOKUP(I50,Parameter!$I$49:$J$51,2,TRUE) -> 0 | L50: =IF(AND(H50+K50>0,H50+K50<Parameter!$M50),1,0) -> 0 | M50: =SUM(H50,K50:L50) -> 0 | O50: =ROUND(Parameter!$I$53*E50,0) -> 0 | P50: =O50+G50 -> 0 | Q50: =ROUNDUP(P50/Parameter!$R$20,0) -> 0 | R50: =IF(Q50=0,0,P50/Q50) -> 0 | S50: =VLOOKUP(R50,Parameter!$I$49:$J$51,2,TRUE) -> 0 | T50: =IF(AND(Q50+S50>0,Q50+S50<Parameter!$M50),1,0) -> 0 | U50: =SUM(Q50,S50:T50) -> 0 | V50: =Parameter!J66 -> 8 | W50: =IF(E50=0,0,C50/E50*Y50) -> 0 | X50: =Y50-W50 -> 0 | Y50: =H50*$A$47 -> 0 | Z50: =IF($E50=0,0,$C50/$E50*AB50) -> 0 | AA50: =AB50-Z50 -> 0 | AB50: =IF(E50<V50,0,(M50-H50)*$A$47) -> 0 | AC50: =IF($E50=0,0,$C50/$E50*AE50) -> 0 | AD50: =AE50-AC50 -> 0 | AE50: =IF(E50<V50,0,(U50-M50)*$A$47) -> 0 | AF50: =SUM(W50,Z50,AC50) -> 0 | AG50: =SUM(X50,AA50,AD50) -> 0 | AH50: =SUM(AF50:AG50) -> 0 | AI50: =MIN(E50,Parameter!J66)/Parameter!J66 -> 0 | AJ50: =AI50*W50:AH50 -> 0 | AK50: 0 | AL50: 0 | AM50: 0 | AN50: 0 | AO50: 0 | AP50: 0 | AQ50: 0 | AR50: 0 | AS50: 0 | AT50: 0 | AU50: 0 | BB50: Summe | BC50: =SUM(BC44:BC49) -> 0 | BD50: =SUM(BD44:BD49) -> 0 | BE50: 0 | BF50: 0 | BG50: 0 | BH50: 0 | BI50: 0 | BJ50: =SUM(BJ47:BJ49) -> 0 | BK50: =SUM(BK47:BK49) -> 0 | BM50: =SUM(BM44:BM49) -> 0 | BN50: =SUM(BN44:BN49) -> 0 | BO50: 0 | BP50: 0 | BQ50: 0 | BR50: 0 | BS50: 0 | BT50: =SUM(BM50:BS50) -> 0
W51: BOS 12 | X51: =IF(D49=0,0,ROUND(J37/D49*X49,0)) -> 0 | Z51: BOS 12 | AA51: =IF(D49=0,0,ROUND(J37/D49*AA49,0)) -> 0 | AC51: BOS 12 | AD51: =IF(D49=0,0,ROUND(J37/D49*AD49,0)) -> 0
A52: Informatik | K52: 1 | L52: Teilungsstunde pro Inf-Kurs | W52: BOS 12/1 | X52: =IF(D49=0,0,ROUND((J38/2)/D49*X49,0)) -> 0 | Z52: BOS 12/1 | AA52: =IF(D49=0,0,ROUND((J38/2)/D49*AA49,0)) -> 0 | AC52: BOS 12/1 | AD52: =IF(D49=0,0,ROUND((J38/2)/D49*AD49,0)) -> 0
A53: Informatik | C53: Grund | D53: mit FSpr. | E53: o. FSpr. | F53: mit FSpr. | G53: o. FSpr. | H53: TNR | I53: Schüler | J53: Kurse | K53: LWS | L53: LWS | M53: % | W53: BOS 12/2 | X53: =X49-SUM(X51:X52) -> 0 | Z53: BOS 12/2 | AA53: =AA49-SUM(AA51:AA52) -> 0 | AC53: BOS 12/2 | AD53: =AD49-SUM(AD51:AD52) -> 0 | BB53: ungerundet | BM53: Verteilung des gerundeten Werts
A54: FOS12 | C54: =SUMPRODUCT(C29:I29,Parameter!$I$56:$O$56) -> 0 | D54: =IF('VUÜ-SK'!$D$69=0,0,'VUÜ-SK'!$J$69/'VUÜ-SK'!$D$69*C54) -> 0 | E54: =C54-D54 -> 0 | F54: 1 | G54: 1 | H54: =SUMPRODUCT(F54:G54,D54:E54) -> 0 | L54: =IF(SUM(H54:H55)=0,0,H54/SUM(H54:H55)*K55) -> 0 | BB54: BOS | BC54: =BC43 -> T | BD54: =BD43 -> W | BE54: S | BF54: G | BG54: A | BH54: IW | BI54: GP | BJ54: S | BK54: aufger. | BM54: =BC54 -> T | BN54: =BD54 -> W | BO54: =BE54 -> S | BP54: =BF54 -> G | BQ54: =BG54 -> A | BR54: =BH54 -> IW | BS54: =BI54 -> GP | BT54: S
A55: BOS12 | C55: =SUMPRODUCT(C37:I37,Parameter!$I$56:$O$56)+0.5*(SUMPRODUCT(C38:I38,Parameter!$I$56:$O$56)+SUMPRODUCT(C39:I39,Parameter!$I$56:$O$56)) -> 0 | D55: =IF('VUÜ-SK'!$D$69=0,0,'VUÜ-SK'!$J$69/'VUÜ-SK'!$D$69*C55) -> 0 | E55: =C55-D55 -> 0 | F55: =Parameter!$I$53 -> 0.2 | G55: 1 | H55: =SUMPRODUCT(F55:G55,D55:E55) -> 0 | I55: =ROUND(SUM(H54:H55),0) -> 0 | J55: =ROUNDUP(I55/Parameter!Q20,0) -> 0 | K55: =J55*$K$52*M55 -> 0 | L55: =K55-L54 -> 0 | M55: =MIN(I55,Parameter!$J$66*2)/(Parameter!$J$66*2) -> 0 | BB55: =BB36 -> Vorklasse | BC55: =SUMIF($BC$25:$BP$25,BC$43,$BC36:$BP36) -> 0 | BD55: =SUMIF($BC$25:$BP$25,BD$43,$BC36:$BP36) -> 0 | BE55: 0 | BF55: 0 | BG55: 0 | BH55: 0 | BI55: 0 | BJ55: =SUM(BC55:BI55) -> 0 | BK55: =ROUNDUP(BJ55,0) -> 0 | BM55: =spezialaufrunden(BC55:BI55,0) -> 0 | BN55: 0 | BO55: 0 | BP55: 0 | BQ55: 0 | BR55: 0 | BS55: 0
A56: FOS13 | C56: =SUMPRODUCT(C30:I30,Parameter!$I$57:$O$57) -> 0 | D56: =IF('VUÜ-SK'!$D$70=0,0,'VUÜ-SK'!$J$70/'VUÜ-SK'!$D$70*C56) -> 0 | E56: =C56-D56 -> 0 | F56: =Parameter!$I$53 -> 0.2 | G56: 1 | H56: 0 | L56: =IF(SUM(H56:H57)=0,0,H56/SUM(H56:H57)*K57) -> 0 | BB56: =BB37 -> 12 | BC56: =SUMIF($BC$25:$BP$25,BC$43,$BC37:$BP37) -> 0 | BD56: 0 | BE56: 0 | BF56: 0 | BG56: 0 | BH56: 0 | BI56: 0 | BJ56: =SUM(BC56:BI56) -> 0 | BK56: =ROUNDUP(BJ56,0) -> 0 | BL56: =BB56 -> 12 | BM56: =spezialaufrunden(BC56:BI56,0) -> 0 | BN56: 0 | BO56: 0 | BP56: 0 | BQ56: 0 | BR56: 0 | BS56: 0 | BT56: =SUM(BM56:BS56) -> 0
A57: BOS13 | C57: =SUMPRODUCT(C40:I40,Parameter!$I$57:$O$57) -> 0 | D57: =IF('VUÜ-SK'!$D$70=0,0,'VUÜ-SK'!$J$70/'VUÜ-SK'!$D$70*C57) -> 0 | E57: 0 | F57: =Parameter!$I$53 -> 0.2 | G57: 1 | H57: 0 | I57: =ROUND(SUM(H56:H57),0) -> 0 | J57: =ROUNDUP(I57/Parameter!R20,0) -> 0 | K57: =J57*$K$52*M57 -> 0 | L57: =K57-L56 -> 0 | M57: =MIN(I57,Parameter!$J$66)/(Parameter!$J$66) -> 0 | BB57: =BB38 -> 12_1 | BC57: =SUMIF($BC$25:$BP$25,BC$43,$BC38:$BP38) -> 0 | BD57: 0 | BE57: 0 | BF57: 0 | BG57: 0 | BH57: 0 | BI57: 0 | BJ57: 0 | BK57: =ROUNDUP(BJ57,0) -> 0 | BL57: =BB57 -> 12_1 | BM57: =spezialaufrunden(BC57:BI57,0) -> 0 | BN57: 0 | BO57: 0 | BP57: 0 | BQ57: 0 | BR57: 0 | BS57: 0 | BT57: =SUM(BM57:BS57) -> 0
BB58: =BB39 -> 12_2 | BC58: =SUMIF($BC$25:$BP$25,BC$43,$BC39:$BP39) -> 0 | BD58: 0 | BE58: 0 | BF58: 0 | BG58: 0 | BH58: 0 | BI58: 0 | BJ58: 0 | BK58: =ROUNDUP(BJ58,0) -> 0 | BL58: =BB58 -> 12_2 | BM58: =spezialaufrunden(BC58:BI58,0) -> 0 | BN58: 0 | BO58: 0 | BP58: 0 | BQ58: 0 | BR58: 0 | BS58: 0 | BT58: =SUM(BM58:BS58) -> 0
A59: Fsprache IW | D59: =SUM(D61:D67) -> 0 | E59: =SUM(E61:E67) -> 0 | F59: =SUM(F61:F67) -> 0 | G59: =Parameter!J66 -> 8 | BB59: =BB40 -> 13 | BC59: =SUMIF($BC$25:$BP$25,BC$43,$BC40:$BP40) -> 0 | BD59: 0 | BE59: 0 | BF59: 0 | BG59: 0 | BH59: 0 | BI59: 0 | BJ59: 0 | BK59: =ROUNDUP(BJ59,0) -> 0 | BL59: =BB59 -> 13 | BM59: =spezialaufrunden(BC59:BI59,0) -> 0 | BN59: 0 | BO59: 0 | BP59: 0 | BQ59: 0 | BR59: 0 | BS59: 0 | BT59: =SUM(BM59:BS59) -> 0
A60: Profil-IW | C60: Jgst | D60: IW-Klassen | E60: Grundbed | F60: Zusatz | G60: % | H60: Grundbed | I60: Zusatz | BB60: Summe | BC60: =SUM(BC55:BC59) -> 0 | BD60: =SUM(BD55:BD59) -> 0 | BE60: 0 | BF60: 0 | BG60: 0 | BH60: 0 | BI60: 0 | BJ60: =SUM(BJ55:BJ59) -> 0 | BK60: =SUM(BK55:BK59) -> 0 | BM60: =SUM(BM55:BM59) -> 0 | BN60: =SUM(BN55:BN59) -> 0 | BO60: 0 | BP60: 0 | BQ60: 0 | BR60: 0 | BS60: 0 | BT60: =SUM(BM60:BS60) -> 0
A61: FOS | C61: 11 | D61: =AH28+AR28 -> 0 | E61: =VLOOKUP(C61,Stundentafel!$P$54:$R$60,2,FALSE)*D61 -> 0 | F61: =IF(AND(D61>=1,D61<=Parameter!$J$58),1,0)*VLOOKUP(C61,Stundentafel!$P$54:$R$60,2,FALSE) -> 0 | G61: =MIN(H28,Parameter!$J$66)/Parameter!$J$66 -> 0 | H61: =E61:E67*G61:G67 -> 0 | I61: =F61:F67*G61:G67 -> 0
A62: FOS | C62: 12 | D62: =AH29+AR29 -> 0 | E62: =VLOOKUP(C62,Stundentafel!$P$54:$R$60,2,FALSE)*D62 -> 0 | F62: =IF(AND(D62>=1,D62<=Parameter!$J$58),1,0)*VLOOKUP(C62,Stundentafel!$P$54:$R$60,2,FALSE) -> 0 | G62: =MIN(H29,Parameter!$J$66)/Parameter!$J$66 -> 0 | H62: 0 | I62: 0 | BL62: Zusammenfassung Jahrgangsstufe 12 (BOS)
A63: FOS | C63: 13 | D63: =AH30+AR30 -> 0 | E63: =VLOOKUP(C63,Stundentafel!$P$54:$R$60,2,FALSE)*D63 -> 0 | F63: =IF(AND(D63>=1,D63<=Parameter!$J$58),1,0)*VLOOKUP(C63,Stundentafel!$P$54:$R$60,2,FALSE) -> 0 | G63: =MIN(H30,Parameter!$J$66)/Parameter!$J$66 -> 0 | H63: 0 | I63: 0 | BL63: 12 | BM63: =SUM(BM56:BM58) -> 0 | BN63: =SUM(BN56:BN58) -> 0 | BO63: 0 | BP63: 0 | BQ63: 0 | BR63: 0 | BS63: 0
A64: BOS | C64: 12 | D64: =AH37+AR37 -> 0 | E64: =ROUNDUP(D64/2,0)*VLOOKUP(C64,Stundentafel!$P$54:$R$60,3,FALSE)+(D64-ROUNDUP(D64/2,0))*VLOOKUP(C64,Stundentafel!$P$54:$R$60,2,FALSE) -> 0 | F64: =IF(AND(D64>=1,D64<=Parameter!$J$58),1,0)*IF(MOD(D64,2)=0,VLOOKUP(C64,Stundentafel!$P$54:$R$60,3,FALSE),VLOOKUP(C64,Stundentafel!$P$54:$R$60,2,FALSE)) -> 0 | G64: =MIN(H37,Parameter!$J$66)/Parameter!$J$66 -> 0 | H64: 0 | I64: 0 | BL64: 13 | BM64: =BM59 -> 0 | BN64: =BN59 -> 0 | BO64: 0 | BP64: 0 | BQ64: 0 | BR64: 0 | BS64: 0
A65: BOS | C65: 12_1 | D65: =AH38+AR38 -> 0 | E65: =ROUNDUP(D65/2,0)*VLOOKUP(C65,Stundentafel!$P$54:$R$60,3,FALSE)+(D65-ROUNDUP(D65/2,0))*VLOOKUP(C65,Stundentafel!$P$54:$R$60,2,FALSE) -> 0 | F65: =IF(AND(D65>=1,D65<=Parameter!$J$58),1,0)*IF(MOD(D65,2)=0,VLOOKUP(C65,Stundentafel!$P$54:$R$60,3,FALSE),VLOOKUP(C65,Stundentafel!$P$54:$R$60,2,FALSE)) -> 0 | G65: =MIN(H38,Parameter!$J$66)/Parameter!$J$66 -> 0 | H65: 0 | I65: 0
A66: BOS | C66: 12_2 | D66: =AH39+AR39 -> 0 | E66: =ROUNDUP(D66/2,0)*VLOOKUP(C66,Stundentafel!$P$54:$R$60,3,FALSE)+(D66-ROUNDUP(D66/2,0))*VLOOKUP(C66,Stundentafel!$P$54:$R$60,2,FALSE) -> 0 | F66: =IF(AND(D66>=1,D66<=Parameter!$J$58),1,0)*IF(MOD(D66,2)=0,VLOOKUP(C66,Stundentafel!$P$54:$R$60,3,FALSE),VLOOKUP(C66,Stundentafel!$P$54:$R$60,2,FALSE)) -> 0 | G66: =MIN(H39,Parameter!$J$66)/Parameter!$J$66 -> 0 | H66: 0 | I66: 0
A67: BOS | C67: 13 | D67: =AH40+AR40 -> 0 | E67: =VLOOKUP(C67,Stundentafel!$P$54:$R$60,2,FALSE)*D67 -> 0 | F67: =IF(AND(D67>=1,D67<=Parameter!$J$58),1,0)*VLOOKUP(C67,Stundentafel!$P$54:$R$60,2,FALSE) -> 0 | G67: =MIN(H40,Parameter!$J$66)/Parameter!$J$66 -> 0 | H67: 0 | I67: 0
T68: fpV-Teilungen
A69: fachpraktische Ausbildung | P69: S = Z-E | T69: Umfang | U69: 0.5 | V69: =Parameter!J35 -> 20
A70: =Parameter!M39 -> 8 | C70: T | D70: W | E70: S | F70: A | G70: G | H70: IW | I70: GP | J70: insg | K70: reine K | L70: MischKl | M70: fpAnl | N70: fpV | P70: Schüler | Q70: Betriebe | R70: fpB | T70: T | U70: W | V70: S | W70: G | X70: A | Y70: IW | Z70: GP | AA70: S | AB70: fpV-Teil
A71: Schüler: E + A | C71: =SUM('VUÜ-SK'!F26,'VUÜ-SK'!F27) -> 0 | F71: =SUM('VUÜ-SK'!I26,'VUÜ-SK'!I27) -> 0 | G71: =SUM('VUÜ-SK'!J26,'VUÜ-SK'!J27) -> 0 | J71: =SUM(C71:I71) -> 0 | K71: =SUM(AC28:AI28) -> 0 | L71: =O28 -> 0 | M71: =budget(C28:I28,L28:N28,K28,symmetrie,Stundentafel!C103:AY103,Stundentafel!C109:AY109,Stundentafel!C115:AY115,16,16) -> 0 | N71: =M71 -> 0 | P71: ='VUÜ-SK'!M25-'VUÜ-SK'!M26 -> 0 | Q71: ='VUÜ-SK'!M31 -> 0 | R71: =SUMPRODUCT(P71:Q71,Stundentafel!O2:P2) -> 0 | T71: =IF(AC28=0,0,IF(V28/AC28>=Parameter!$J$35,Stundentafel!$M$2*$U$69*AC28,0)) -> 0 | U71: =IF(AD28=0,0,IF(W28/AD28>=Parameter!$J$35,Stundentafel!$M$2*$U$69*AD28,0)) -> 0 | V71: =IF(AE28=0,0,IF(X28/AE28>=Parameter!$J$35,Stundentafel!$M$2*$U$69*AE28,0)) -> 0 | W71: =IF(AF28=0,0,IF(Y28/AF28>=Parameter!$J$35,Stundentafel!$M$2*$U$69*AF28,0)) -> 0 | X71: =IF(AG28=0,0,IF(Z28/AG28>=Parameter!$J$35,Stundentafel!$M$2*$U$69*AG28,0)) -> 0 | Y71: =IF(AH28=0,0,IF(AA28/AH28>=Parameter!$J$35,Stundentafel!$M$2*$U$69*AH28,0)) -> 0 | Z71: =IF(AI28=0,0,IF(AB28/AI28>=Parameter!$J$35,Stundentafel!$M$2*$U$69*AI28,0)) -> 0 | AA71: =SUM(T71:Z71) -> 0 | AB71: =AA71 -> 0
A72: Gruppen | C72: =fpa(C71,Parameter!$L$18,Parameter!$T$18) -> 0 | F72: =fpa(F71,Parameter!$L$18,Parameter!$T$18) -> 0 | G72: =fpa(G71,Parameter!$L$18,Parameter!$T$18) -> 0 | J72: =fpa(J71,Parameter!$M$18,Parameter!$T$18) -> 0
A73: LWS | C73: =C72*Stundentafel!$J$2*MIN(C71,$A$70)/$A$70 -> 0 | F73: =F72*Stundentafel!$J$2*MIN(F71,$A$70)/$A$70 -> 0 | G73: =G72*Stundentafel!$J$2*MIN(G71,$A$70)/$A$70 -> 0 | J73: =SUM(C73:I73) -> 0
A75: Duale Berufsausbildung und Fachhochschulreife
C76: Absch 1 | E76: Absch 2 | G76: Absch 3/1 | I76: Absch 3/2
C77: T | D77: W | E77: T | F77: W | G77: T | H77: W | I77: T | J77: W
A78: Schüler | C78: ='VUÜ-SK'!F36 -> 0 | D78: ='VUÜ-SK'!G36 -> 0 | E78: ='VUÜ-SK'!F37 -> 0 | F78: ='VUÜ-SK'!G37 -> 0 | G78: ='VUÜ-SK'!F38 -> 0 | H78: ='VUÜ-SK'!G38 -> 0 | I78: ='VUÜ-SK'!F39 -> 0 | J78: ='VUÜ-SK'!G39 -> 0 | K78: =SUM(C78:J78) -> 0
A79: Gruppen | C79: =ROUNDUP(C78/Parameter!$L$18,0) -> 0 | D79: =ROUNDUP(D78/Parameter!$L$18,0) -> 0 | E79: =ROUNDUP(E78/Parameter!$L$18,0) -> 0 | F79: =ROUNDUP(F78/Parameter!$L$18,0) -> 0 | G79: =ROUNDUP(G78/Parameter!$L$18,0) -> 0 | H79: =ROUNDUP(H78/Parameter!$L$18,0) -> 0 | I79: =ROUNDUP(I78/Parameter!$L$18,0) -> 0 | J79: =ROUNDUP(J78/Parameter!$L$18,0) -> 0 | K79: =SUM(C79:J79) -> 0
A80: Stdtafel | C80: =DBFH!H24 -> 5 | D80: =DBFH!B24 -> 5.5 | E80: =DBFH!I24 -> 8 | F80: =DBFH!C24 -> 7 | G80: =DBFH!J24 -> 4.5 | H80: =DBFH!D24 -> 6.25 | I80: =DBFH!K24 -> 17 | J80: =DBFH!E24 -> 17
A81: LWS | C81: =C80*C79 -> 0 | D81: =D80*D79 -> 0 | E81: 0 | F81: 0 | G81: 0 | H81: 0 | I81: 0 | J81: 0 | K81: =SUM(C81:J81) -> 0 | L81: =ROUNDUP(K81,0) -> 0
A84: Integrationsvorklasse | E84: =Parameter!L39 -> 8 | J84: Vorklassen-Profilzuschläge | U84: Schüler | X84: voll
C85: S | D85: K | E85: Basis | F85: Schnitt | G85: Zusatz | J85: FOS 11 | K85: BOS 12 | L85: T | M85: W | N85: S | O85: G | P85: A | Q85: IW | R85: GP | S85: Abr | T85: Klassen | U85: FOS | V85: BOS | W85: Zuschlag | X85: FOS | Y85: BOS | Z85: FOS | AA85: BOS
C86: ='VUÜ-Budget'!H24 -> 0 | D86: =ROUNDUP(C86/Parameter!U18,0) -> 0 | E86: =D86*Stundentafel!Q2*MIN(C86,E84)/E84 -> 0 | F86: =IF(D86=0,0,C86/D86) -> 0 | G86: =IF(D86=0,0,HLOOKUP(F86,Parameter!$I$61:$K$62,2,TRUE))*D86*MIN(C86,E84)/E84 -> 0 | J86: =J28 -> 0 | K86: =SUM(J37:J39) -> 0 | L86: =SUM(C28,C37:C39) -> 0 | M86: =SUM(D28,D37:D39) -> 0 | N86: 0 | O86: 0 | P86: 0 | Q86: 0 | R86: 0 | S86: =COUNTIF(L86:R86,">0") -> 0 | T86: =AL27+AL36 -> 0 | U86: =J27 -> 0 | V86: =J36 -> 0 | W86: =IF(T86=0,0,MAX(0,(S86-T86)*Stundentafel!$T$2)) -> 0 | X86: =IF(U86+V86=0,0,U86/(U86+V86)*W86) -> 0 | Y86: =(W86-X86) -> 0 | Z86: =X86*Z87 -> 0 | AA86: =Y86*AA87 -> 0
G87: =MIN(C86,E84)/E84 -> 0 | H87: =IF(D86=0,0,HLOOKUP(F86,Parameter!$I$61:$K$62,2,TRUE))*D86 -> 0 | Z87: =MIN(U86,Parameter!Q39)/Parameter!Q39 -> 0 | AA87: =MIN(V86,Parameter!Q40)/Parameter!Q40 -> 0
A88: Fremdsprache (Abitur) | AD88: =Parameter!J64 -> 12
N89: Anteilige Zählung | P89: =Parameter!J64 -> 12 | V89: Gruppen (ohne Shuffling) | AC89: insgesamt | AI89: Basis | AO89: Aufschlag
C90: L | D90: F | E90: It | F90: Sp | G90: Ru | H90: Ges | I90: Max | J90: Anzahl | K90: shuffle | L90: 1. Max | N90: L | O90: F | P90: It | Q90: Sp | R90: Ru | S90: Ges | V90: L | W90: F | X90: It | Y90: Sp | Z90: Ru | AA90: Ges | AC90: Teiler | AD90: Gruppen | AE90: LWS | AF90: FOS | AG90: BOS | AI90: Schüler | AJ90: Gruppen | AK90: LWS | AL90: FOS | AM90: BOS | AO90: Gruppen | AP90: LWS | AQ90: FOS | AR90: BOS
A91: 12 | C91: ='VUÜ-SK'!E69 -> 0 | D91: ='VUÜ-SK'!F69 -> 0 | E91: ='VUÜ-SK'!G69 -> 0 | F91: ='VUÜ-SK'!H69 -> 0 | G91: ='VUÜ-SK'!I69 -> 0 | H91: =SUM(C91:G91) -> 0 | I91: =MAX(C91:G91) -> 0 | J91: =COUNTIF(C91:G91,I91) -> 5 | K91: =SUMPRODUCT((C91:G91<Parameter!$J$64)*(C91:G91)) -> 0 | L91: =INDEX(C90:G90,MATCH(I91,C91:G91,0)) -> L | N91: =MIN($P$89,C91)/$P$89 -> 0 | O91: =MIN($P$89,D91)/$P$89 -> 0 | P91: 0 | Q91: 0 | R91: 0 | S91: =SUM(N91:R91) -> 0 | V91: =ROUNDUP(C91/$AC91,0) -> 0 | W91: =ROUNDUP(D91/$AC91,0) -> 0 | X91: 0 | Y91: 0 | Z91: 0 | AA91: =SUM(V91:Z91) -> 0 | AC91: =Parameter!M20 -> 25 | AD91: =AA91 -> 0 | AE91: =Stundentafel!$R$2*SUMPRODUCT(N91:R91,V91:Z91) -> 0 | AF91: =IF(SUM(J37,J29)=0,0,J29/SUM(J37,J29)*AE91) -> 0 | AG91: =AE91-AF91 -> 0 | AI91: =H91 -> 0 | AJ91: =ROUNDUP(AI91/AC91,0)*MIN(AI91,$AD$88)/$AD$88 -> 0 | AK91: =AJ91*Stundentafel!$R$2 -> 0 | AL91: =IF(SUM(J37,J29)=0,0,J29/SUM(J37,J29)*AK91) -> 0 | AM91: =AK91-AL91 -> 0 | AO91: =AD91-AJ91 -> 0 | AP91: 0 | AQ91: 0 | AR91: 0
A92: 13 | C92: ='VUÜ-SK'!E70 -> 0 | D92: ='VUÜ-SK'!F70 -> 0 | E92: ='VUÜ-SK'!G70 -> 0 | F92: ='VUÜ-SK'!H70 -> 0 | G92: ='VUÜ-SK'!I70 -> 0 | H92: =SUM(C92:G92) -> 0 | I92: =MAX(C92:G92) -> 0 | J92: =COUNTIF(C92:G92,I92) -> 5 | K92: =SUMPRODUCT((C92:G92<Parameter!$J$64)*(C92:G92)) -> 0 | L92: =INDEX(C90:G90,MATCH(I92,C92:G92,0)) -> L | N92: =MIN($P$89,C92)/$P$89 -> 0 | O92: 0 | P92: 0 | Q92: 0 | R92: 0 | S92: =SUM(N92:R92) -> 0 | V92: =ROUNDUP(C92/$AC92,0) -> 0 | W92: 0 | X92: 0 | Y92: 0 | Z92: 0 | AA92: =SUM(V92:Z92) -> 0 | AC92: =Parameter!N20 -> 25 | AD92: =AA92 -> 0 | AE92: =Stundentafel!$R$2*SUMPRODUCT(N92:R92,V92:Z92) -> 0 | AF92: =IF(SUM(J38,J30)=0,0,J30/SUM(J38,J30)*AE92) -> 0 | AG92: =AE92-AF92 -> 0 | AI92: =H92 -> 0 | AJ92: =ROUNDUP(AI92/AC92,0)*MIN(AI92,$AD$88)/$AD$88 -> 0 | AK92: =AJ92*Stundentafel!$R$2 -> 0 | AL92: =IF(SUM(J38,J30)=0,0,J30/SUM(J38,J30)*AK92) -> 0 | AM92: =AK92-AL92 -> 0 | AO92: 0 | AP92: 0 | AQ92: 0 | AR92: 0
A93: Summe | C93: =SUM(C91:C92) -> 0 | D93: =SUM(D91:D92) -> 0 | E93: 0 | F93: 0 | G93: 0 | H93: 0 | I93: 0 | K93: 0 | N93: 0 | O93: 0 | P93: 0 | Q93: 0 | R93: 0 | S93: 0 | V93: 0 | W93: 0 | X93: 0 | Y93: 0 | Z93: 0 | AA93: 0 | AC93: 50 | AD93: 0 | AE93: 0 | AF93: =SUM(AF91:AF92) -> 0 | AG93: =SUM(AG91:AG92) -> 0 | AI93: =SUM(AI91:AI92) -> 0 | AJ93: =SUM(AJ91:AJ92) -> 0 | AK93: =SUM(AK91:AK92) -> 0 | AL93: =SUM(AL91:AL92) -> 0 | AM93: =SUM(AM91:AM92) -> 0 | AO93: =SUM(AO91:AO92) -> 0 | AP93: =SUM(AP91:AP92) -> 0 | AQ93: =SUM(AQ91:AQ92) -> 0 | AR93: =SUM(AR91:AR92) -> 0
A96: gemeinsame Beschulung FOS13/BOS13 | AE96: Vergleichswert bei gemeinsamer Beschulung FOS/BOS13 | AN96: allgbild Fächer | AR96: Reli | AT96: Profilfächer (getrennt, Einrichtung erst ab 8 Schülern) - ohne Nat (W, IW, G) oder FSpr-IW | BI96: zzgl. Nat | BL96: zzgl. IW | BN96: FOS/BOS13 | BQ96: Profilbereich (Einsparpotenzial durch Auflösung Splittergruppen - rein Profil), alle Schulen | CB96: Trennung der Einsparpotenziale | CF96: =SUM(U99:V99)>0 -> FALSE | CJ96: =BZ99=1 -> FALSE
B97: Schüler (FOS) | K97: Schüler (BOS) | U97: Splittergruppen | X97: Stundentafel | Z97: zzgl. Religion | AB97: IW | AC97: bish. Budget | AE97: Schüler zusammen | AO97: =Stundentafel!U2 -> 12 | AP97: =Stundentafel!V2 -> 5 | AQ97: =Stundentafel!W2 -> 5 | AT97: =Stundentafel!X2 -> 10 | AU97: =Stundentafel!Y2 -> 8 | AV97: =Stundentafel!Z2 -> 10 | AW97: =Stundentafel!AA2 -> 8 | AX97: =Stundentafel!AB2 -> 10 | AY97: =Stundentafel!AC2 -> 5 | AZ97: =Stundentafel!AD2 -> 10 | BA97: =AT97 -> 10 | BB97: =AU97 -> 8 | BC97: 10 | BD97: 8 | BE97: 10 | BF97: 5 | BG97: 10 | BI97: =Stundentafel!AE2 -> 2 | BJ97: =BI97 -> 2 | BL97: =Stundentafel!Q60 -> 3 | BM97: =Parameter!J58 -> 2 | BR97: (Profil ohne IW) | CF97: Splittergruppenabbau | CJ97: gemeinsame Beschulung
B98: T | C98: W | D98: S | E98: G | F98: A | G98: IW | H98: GP | I98: FOS 13 | J98: Klassen | K98: T | L98: W | M98: S | N98: G | O98: A | P98: IW | Q98: GP | R98: BOS 13 | S98: Klassen | U98: Splitter_FOS | V98: Splitter_BOS | X98: Stdfl_FOS | Y98: Stdfl_BOS | Z98: Reli_FOS | AA98: Reli_BOS | AB98: IW-insg | AC98: Referenz | AE98: T | AF98: W | AG98: S | AH98: G | AI98: A | AJ98: IW | AK98: GP | AL98: FOBOS13 | AN98: Gruppen | AO98: D/E/G+Sk | AP98: M(T) | AQ98: M(NT) | AR98: Reli | AT98: T | AU98: W | AV98: S | AW98: G | AX98: A | AY98: IW | AZ98: GP | BA98: =AT98 -> T | BB98: =AU98 -> W | BC98: S | BD98: G | BE98: A | BF98: IW | BG98: GP | BI98: Nat-FOS | BJ98: Nat-BOS | BL98: FSpr-IW | BM98: IW-Zusatz | BN98: gemeinsam | BO98: Einspar1 | BQ98: Referenz | BR98: P13-FOS | BS98: P13-BOS | BT98: gekappt | BU98: FOS | BV98: BOS | BW98: Splitter | BX98: Einspar2 | BY98: zus. Einsp | BZ98: klein | CB98: Einsparung | CC98: FOS | CD98: BOS | CF98: Splitter | CG98: FOS | CH98: BOS | CJ98: Besch | CK98: FOS | CL98: BOS
A99: 13 | B99: =C30 -> 0 | C99: =D30 -> 0 | D99: 0 | E99: 0 | F99: 0 | G99: 0 | H99: 0 | I99: =SUM(B99:H99) -> 0 | J99: =AL30 -> 0 | K99: =C40 -> 0 | L99: =D40 -> 0 | M99: 0 | N99: 0 | O99: 0 | P99: 0 | Q99: 0 | R99: =SUM(K99:Q99) -> 0 | S99: =AL40 -> 0 | U99: =SUMPRODUCT(($B99:$H99>0)*($B99:$H99<Parameter!$J$66)*1) -> 0 | V99: =SUMPRODUCT(($K99:$Q99>0)*($K99:$Q99<Parameter!$J$66)*1) -> 0 | X99: =AK30 -> 0 | Y99: =AK40 -> 0 | Z99: =CU30 -> 0 | AA99: =CU40 -> 0 | AB99: =SUM(E63:F63,E67:F67) -> 0 | AC99: =SUM(X99:AB99) -> 0 | AE99: =B99+K99 -> 0 | AF99: =C99+L99 -> 0 | AG99: 0 | AH99: 0 | AI99: 0 | AJ99: 0 | AK99: 0 | AL99: 0 | AN99: =ROUNDUP(AL99/Parameter!$N$20,0) -> 0 | AO99: =AN99*AO97 -> 0 | AP99: =ROUNDUP(SUM(AE99:AE99)/Parameter!$N$20,0)*AP97 -> 0 | AQ99: =ROUNDUP(SUM(AF99:AK99)/Parameter!$N$20,0)*AQ97 -> 0 | AR99: =ER30 -> 0 | AT99: =IF(B99>=Parameter!$J$66,ROUNDUP(B99/Parameter!$N$20,0),0)*AT$97 -> 0 | AU99: =IF(C99>=Parameter!$J$66,ROUNDUP(C99/Parameter!$N$20,0),0)*AU$97 -> 0 | AV99: =IF(D99>=Parameter!$J$66,ROUNDUP(D99/Parameter!$N$20,0),0)*AV$97 -> 0 | AW99: =IF(E99>=Parameter!$J$66,ROUNDUP(E99/Parameter!$N$20,0),0)*AW$97 -> 0 | AX99: =IF(F99>=Parameter!$J$66,ROUNDUP(F99/Parameter!$N$20,0),0)*AX$97 -> 0 | AY99: =IF(G99>=Parameter!$J$66,ROUNDUP(G99/Parameter!$N$20,0),0)*AY$97 -> 0 | AZ99: =IF(H99>=Parameter!$J$66,ROUNDUP(H99/Parameter!$N$20,0),0)*AZ$97 -> 0 | BA99: =IF(K99>=Parameter!$J$66,ROUNDUP(K99/Parameter!$N$20,0),0)*BA$97 -> 0 | BB99: =IF(L99>=Parameter!$J$66,ROUNDUP(L99/Parameter!$N$20,0),0)*BB$97 -> 0 | BC99: =IF(M99>=Parameter!$J$66,ROUNDUP(M99/Parameter!$N$20,0),0)*BC$97 -> 0 | BD99: =IF(N99>=Parameter!$J$66,ROUNDUP(N99/Parameter!$N$20,0),0)*BD$97 -> 0 | BE99: =IF(O99>=Parameter!$J$66,ROUNDUP(O99/Parameter!$N$20,0),0)*BE$97 -> 0 | BF99: =IF(P99>=Parameter!$J$66,ROUNDUP(P99/Parameter!$N$20,0),0)*BF$97 -> 0 | BG99: =IF(Q99>=Parameter!$J$66,ROUNDUP(Q99/Parameter!$N$20,0),0)*BG$97 -> 0 | BI99: =ROUNDUP(SUM(IF(C99>=Parameter!$J$66,C99,0),IF(G99>=Parameter!$J$66,G99,0),IF(E99>=Parameter!$J$66,E99,0))/Parameter!$N$20,0)*BI$97 -> 0 | BJ99: =ROUNDUP(SUM(IF(L99>=Parameter!$J$66,L99,0),IF(P99>=Parameter!$J$66,P99,0),IF(N99>=Parameter!$J$66,N99,0))/Parameter!$N$20,0)*BJ$97 -> 0 | BL99: =ROUNDUP(SUM(IF(G99>=Parameter!$J$66,G99,0),IF(P99>=Parameter!$J$66,P99,0))/Parameter!$N$20,0)*BL$97 -> 0 | BM99: =IF(AND(BL99/BL97>0,BL99/BL97<=BM97),1*BL97,0) -> 0 | BN99: =IF(AL99<Parameter!J66,0,SUM(AO99,AP99,AQ99,AR99,AT99:BG99,BI99:BJ99,BL99:BM99)) -> 0 | BO99: =BN99-AC99 -> 0 | BQ99: =SUM(AB99,BR99:BS99) -> 0 | BR99: =SUMPRODUCT(AC30:AI30,Stundentafel!$B$17:$H$17)+IF(L30=0,0,INDEX(Stundentafel!$I$17:$AX$17,L30))+IF(M30=0,0,INDEX(Stundentafel!$I$17:$AX$17,M30))+IF(N30=0,0,INDEX(Stundentafel!$I$17:$AX$17,N30)) -> 0 | BS99: =SUMPRODUCT(AC40:AI40,Stundentafel!$B$17:$H$17)+IF(L40=0,0,INDEX(Stundentafel!$I$17:$AX$17,L40))+IF(M40=0,0,INDEX(Stundentafel!$I$17:$AX$17,M40))+IF(N40=0,0,INDEX(Stundentafel!$I$17:$AX$17,N40)) -> 0 | BT99: =SUM(BU99:BV99) -> 0 | BU99: =BT100 -> 0 | BV99: =BT101 -> 0 | BW99: =IF(SUM(U99:V99)>0,"x","") ->  | BX99: =BT99-BQ99 -> 0 | BY99: =AND(BQ99<>BT99,BW99="") -> FALSE | BZ99: =IF(OR(AND(I99>0,I99<Parameter!$J$67),AND(R99>0,R99<Parameter!$J$67)),1,0) -> 0 | CB99: =CF99:CH99+CJ99:CL99 -> 0 | CC99: 0 | CD99: 0 | CF99: =SUM(CG99:CH99) -> 0 | CG99: =BX100*$CF$96 -> 0 | CH99: =BX101*$CF$96 -> 0 | CJ99: =(BO99-CF99)*$CJ$96 -> 0 | CK99: =ROUND(IF(SUM(I99,R99)=0,0,I99/SUM(I99,R99)*CJ99),0) -> 0 | CL99: =CJ99-CK99 -> 0
AA100: FOS | AB100: =SUM(E63:F63) -> 0 | BP100: FOS | BQ100: =AB100+BR99 -> 0 | BS100: FOS | BT100: =SUM(AT99:AZ99,BI99,BL103) -> 0 | BW100: FOS | BX100: =BT100-BQ100 -> 0 | CF100: (nach Sart trennbar) | CJ100: nach Schülerzahl getrennt)
AA101: BOS | AB101: =SUM(E67:F67) -> 0 | BL101: getrennt (IW) mit Kappung! | BP101: BOS | BQ101: =AB101+BS99 -> 0 | BS101: BOS | BT101: =SUM(BA99:BG99,BJ99,BM103) -> 0 | BW101: BOS | BX101: 0
BL102: FOS | BM102: BOS
BL103: =IF(G99>=Parameter!$J$66,SUM(E63:F63),0) -> 0 | BM103: =IF(P99>=Parameter!$J$66,SUM(E67:F67),0) -> 0
A108: Ausdifferenzierung nach Jahrgangsstufen
H109: FOS | P109: BOS
H110: Vorkurs | I110: Vorklasse | J110: 11 | K110: 12 | L110: 13 | M110: DBFH | N110: S | P110: =H110 -> Vorkurs | Q110: =I110 -> Vorklasse | R110: 11 | S110: 12 | T110: 13 | U110: DBFH | V110: S
A111: ='VUÜ-Budget'!A57 -> 1.1. Stundentafel (ohne WPF, 2. FSpr, FöUnt; RU/Eth, Spo) | H111: =TRANSPOSE(BA26:BAM30) -> 0 | I111: 0 | J111: 0 | K111: 0 | L111: 0 | M111: 0 | N111: =SUM(H111:M111) -> 0 | O111: =N111='VUÜ-Budget'!H57 -> TRUE | P111: =BA35 -> 0 | Q111: =BA36 -> 0 | S111: =SUM(BA37:BA39) -> 0 | T111: =BA40 -> 0 | U111: 0 | V111: =SUM(P111:U111) -> 0 | W111: =V111='VUÜ-Budget'!I57 -> TRUE
A112: ='VUÜ-Budget'!A58 -> 1.2. Förderunterricht der Stundentafel (FOS 11) | J112: =EV28 -> 0 | N112: =SUM(I112:M112) -> 0 | O112: =N112='VUÜ-Budget'!H58 -> TRUE | V112: =SUM(P112:U112) -> 0 | W112: =V112='VUÜ-Budget'!I58 -> TRUE
A113: ='VUÜ-Budget'!A59 -> 1.3. Wahlpflichtfächer-Grundbedarf 12 (ohne FSpr/Abi) | K113: =AJ49 -> 0 | N113: =SUM(H113:M113) -> 0 | O113: =N113='VUÜ-Budget'!H59 -> TRUE | S113: =AK49 -> 0 | V113: 0 | W113: =V113='VUÜ-Budget'!I59 -> TRUE
A114: ='VUÜ-Budget'!A60 -> 1.4. Wahlpflichtfächer-Grundbedarf 13 (ohne FSpr/Abi. Seminar) | L114: =AJ50 -> 0 | N114: 0 | O114: =N114='VUÜ-Budget'!H60 -> TRUE | T114: =AK50 -> 0 | V114: 0 | W114: =V114='VUÜ-Budget'!I60 -> TRUE
A115: ='VUÜ-Budget'!A61 -> 1.5. WPF Fremdsprache zur Hochschulreife - Grundbedarf | K115: =AL91 -> 0 | L115: =AL92 -> 0 | N115: 0 | O115: =N115='VUÜ-Budget'!H61 -> TRUE | S115: =AM91 -> 0 | T115: =AM92 -> 0 | V115: 0 | W115: =V115='VUÜ-Budget'!I61 -> TRUE
A116: ='VUÜ-Budget'!A62 -> 1.6. Profilfach Fremdsprache ABR IW - Grundbedarf | J116: =TRANSPOSE(H61:H63) -> 0 | K116: 0 | L116: 0 | N116: 0 | O116: =N116='VUÜ-Budget'!H62 -> TRUE | S116: =SUM(H64:H66) -> 0 | T116: =H67 -> 0 | V116: 0 | W116: =V116='VUÜ-Budget'!I62 -> TRUE
A117: ='VUÜ-Budget'!A63 -> 1.7. Grundbedarf Seminar gem. §17 FOBOS (Jgst. 13) | L117: =W44 -> 0 | N117: 0 | O117: =N117='VUÜ-Budget'!H63 -> TRUE | T117: =X44 -> 0 | V117: 0 | W117: =V117='VUÜ-Budget'!I63 -> TRUE
A118: ='VUÜ-Budget'!A64 -> 1.8. DBFH (1.-3. Ausbildungsjahr); FOS-Stunden | M118: =L81 -> 0 | N118: 0 | O118: =N118='VUÜ-Budget'!H64 -> TRUE | V118: 0 | W118: =V118='VUÜ-Budget'!I64 -> TRUE
A119: ='VUÜ-Budget'!A65 -> 1.9. Integrationsvorklasse (Grundbedarf) | I119: =E86 -> 0 | N119: 0 | O119: =N119='VUÜ-Budget'!H65 -> TRUE | V119: 0 | W119: =V119='VUÜ-Budget'!I65 -> TRUE
A120: ='VUÜ-Budget'!A66 -> 1.10. Reduktion für Splittergruppen-Profile in Jgst. 13 | N120: 0 | O120: =N120='VUÜ-Budget'!H66 -> TRUE | V120: 0 | W120: =V120='VUÜ-Budget'!I66 -> TRUE
A121: ='VUÜ-Budget'!A67 -> 1.11. Einsparung durch gemeinsame Beschulung FOS13/BOS13 | N121: 0 | O121: =N121='VUÜ-Budget'!H67 -> TRUE | V121: 0 | W121: =V121='VUÜ-Budget'!I67 -> TRUE
A122: 2.1. Vorklasse: weitere Teilungen im Profilbereich | I122: =Z86 -> 0 | N122: =SUM(H122:M122) -> 0 | O122: =N122='VUÜ-Budget'!H72 -> TRUE | Q122: =AA86 -> 0 | V122: 0 | W122: =V122='VUÜ-Budget'!I72 -> TRUE
A123: 2.2. Teilungsstunden in Profilfächern | N123: 0 | O123: =SUM(N124:N130)='VUÜ-Budget'!H73 -> TRUE | V123: 0 | W123: =SUM(V124:V130)='VUÜ-Budget'!I73 -> TRUE
A124: =TRANSPOSE(K98:Q98) -> T | B124: ABR Technik | J124: =TRANSPOSE(BM47:BS49) -> 0 | K124: 0 | L124: 0 | N124: 0 | S124: =TRANSPOSE(BM63:BS64) -> 0 | T124: 0 | V124: 0
A125: W | B125: ABR Wirtschaft und Verwaltung | J125: 0 | K125: 0 | L125: 0 | N125: 0 | S125: 0 | T125: 0 | V125: 0
A126: S | B126: ABR Sozialwesen | J126: 0 | K126: 0 | L126: 0 | N126: 0 | S126: 0 | T126: 0 | V126: 0
A127: G | B127: ABR Gestaltung | J127: 0 | K127: 0 | L127: 0 | N127: 0 | S127: 0 | T127: 0 | V127: 0
A128: A | B128: ABR Agrarwirtschaft, Bio- und Umwellttechnologie | J128: 0 | K128: 0 | L128: 0 | N128: 0 | S128: 0 | T128: 0 | V128: 0
A129: IW | B129: ABR Internationale Wirtschaft | J129: 0 | K129: 0 | L129: 0 | N129: 0 | S129: 0 | T129: 0 | V129: 0
A130: GP | B130: ABR Gesundheit | J130: 0 | K130: 0 | L130: 0 | N130: 0 | S130: 0 | T130: 0 | V130: 0
A131: 2.3. Gruppenbildung Religion/Ethik | I131: =TRANSPOSE(CU27:CU30) -> 0 | J131: 0 | K131: 0 | L131: 0 | N131: 0 | O131: =N131='VUÜ-Budget'!H74 -> TRUE | Q131: =CU36 -> 0 | S131: =SUM(CU37:CU39) -> 0 | T131: =CU40 -> 0 | V131: 0 | W131: =V131='VUÜ-Budget'!I74 -> TRUE
A132: 2.4. Sportklassenbildung | K132: =CA29 -> 0 | N132: 0 | O132: =N132='VUÜ-Budget'!H75 -> TRUE | V132: 0 | W132: =V132='VUÜ-Budget'!I75 -> TRUE
A133: 2.5. Teilungen Praxisanteile WPF Informatik | K133: =L54 -> 0 | L133: =L56 -> 0 | N133: 0 | O133: =N133='VUÜ-Budget'!H76 -> TRUE | S133: =L55 -> 0 | T133: =L57 -> 0 | V133: 0 | W133: =V133='VUÜ-Budget'!I76 -> TRUE
A134: 2.6. WPF Fremdsprache allg. Hochschulreife - Zusatzbedarf | K134: =AQ91 -> 0 | L134: =AQ92 -> 0 | N134: 0 | O134: =N134='VUÜ-Budget'!H77 -> TRUE | S134: =AR91 -> 0 | T134: =AR92 -> 0 | V134: 0 | W134: =V134='VUÜ-Budget'!I77 -> TRUE
A135: 2.7. Profilfach Fremdsprache ABR IW - Zusatzbedarf | J135: =TRANSPOSE(I61:I63) -> 0 | K135: 0 | L135: 0 | N135: 0 | O135: =N135='VUÜ-Budget'!H78 -> TRUE | S135: =SUM(I64:I66) -> 0 | T135: 0 | V135: 0 | W135: =V135='VUÜ-Budget'!I78 -> TRUE
A136: 3.1. Ergänzungsunterricht (ohne FOS11/BOS12) | I136: =TRANSPOSE(DQ27:DQ30) -> 0 | J136: 0 | K136: 0 | L136: 0 | N136: 0 | O136: =N136='VUÜ-Budget'!H83 -> TRUE | Q136: =DQ36 -> 0 | S136: =SUM(DQ37:DQ39) -> 0 | T136: =DQ40 -> 0 | V136: 0 | W136: =V136='VUÜ-Budget'!I83 -> TRUE
A137: 3.2. Differenzierungen, pädagog. Teilungen | I137: =TRANSPOSE(EB27:EB30) -> 0 | J137: 0 | K137: 0 | L137: 0 | N137: 0 | O137: =N137='VUÜ-Budget'!H84 -> TRUE | Q137: =EB36 -> 0 | S137: =SUM(EB37:EB39) -> 0 | T137: =EB40 -> 0 | V137: 0 | W137: =V137='VUÜ-Budget'!I84 -> TRUE
A138: 3.3. Teilung Förderunterricht FOS 11 (WPF) | J138: =J112 -> 0 | N138: 0 | O138: =N138='VUÜ-Budget'!H85 -> TRUE | V138: 0 | W138: =V138='VUÜ-Budget'!I85 -> TRUE
A139: 3.4. "Intensivierungsstunden" BOS 12 | N139: 0 | O139: =N139='VUÜ-Budget'!H86 -> TRUE | S139: =SUM(EV37:EV39) -> 0 | V139: 0 | W139: =V139='VUÜ-Budget'!I86 -> TRUE
A140: 3.5. Wahlunterricht | I140: =TRANSPOSE(ED27:ED30) -> 0 | J140: 0 | K140: 0 | L140: 0 | N140: 0 | O140: =N140='VUÜ-Budget'!H87 -> TRUE | Q140: =ED36 -> 0 | S140: =SUM(ED37:ED39) -> 0 | T140: =ED40 -> 0 | V140: 0 | W140: =V140='VUÜ-Budget'!I87 -> TRUE
A141: 3.6. Wahlfreiheitszuschlag in Wahlpflichtfächern (12/13) | K141: =AM49 -> 0 | L141: =AM50 -> 0 | N141: 0 | O141: =N141='VUÜ-Budget'!H88 -> TRUE | S141: =AN49 -> 0 | T141: =AN50 -> 0 | V141: 0 | W141: =V141='VUÜ-Budget'!I88 -> TRUE
A142: 3.7. freiwillige Wahl eines zusätzlichen WPF (12/13) | K142: =AP49 -> 0 | L142: =AP50 -> 0 | N142: 0 | O142: =N142='VUÜ-Budget'!H89 -> TRUE | S142: =AQ49 -> 0 | T142: =AQ50 -> 0 | V142: 0 | W142: =V142='VUÜ-Budget'!I89 -> TRUE
A143: 3.8. Zuschlag für Seminare gem. § 17 FOBOSO | L143: =Z44 -> 0 | N143: 0 | O143: =N143='VUÜ-Budget'!H90 -> TRUE | T143: =AA44 -> 0 | V143: 0 | W143: =V143='VUÜ-Budget'!I90 -> TRUE
A144: 3.9. individuelle Förderung Integrationsvorklasse | I144: =G86 -> 0 | N144: 0 | O144: =N144='VUÜ-Budget'!H91 -> TRUE | V144: 0 | W144: =V144='VUÜ-Budget'!I91 -> TRUE
A145: 4.1. fachpraktische Tätigkeit | J145: =J73 -> 0 | N145: 0 | O145: =N145='VUÜ-Budget'!H96 -> TRUE | V145: 0 | W145: =V145='VUÜ-Budget'!I96 -> TRUE
A146: 4.2. fachpraktische Anleitung | J146: =M71 -> 0 | N146: 0 | O146: =N146='VUÜ-Budget'!H97 -> TRUE | V146: 0 | W146: =V146='VUÜ-Budget'!I97 -> TRUE
A147: 4.3.1. fachpraktische Vertiefung (Grundbedarf) | J147: =N71 -> 0 | N147: 0 | O147: =N147='VUÜ-Budget'!H98 -> TRUE | V147: 0 | W147: =V147='VUÜ-Budget'!I98 -> TRUE
A148: 4.3.2. fachpraktische Vertiefung (Teilungsmehrbedarf) | J148: =AB71 -> 0 | N148: 0 | O148: =N148='VUÜ-Budget'!H99 -> TRUE | V148: 0 | W148: =V148='VUÜ-Budget'!I99 -> TRUE
A149: 4.4. fachpraktische Betreuung | J149: =R71 -> 0 | N149: 0 | O149: =N149='VUÜ-Budget'!H100 -> TRUE | V149: 0 | W149: =V149='VUÜ-Budget'!I100 -> TRUE
H150: =SUM(H111:H149) -> 0 | I150: =SUM(I111:I149) -> 0 | J150: 0 | K150: 0 | L150: =SUM(L111:L149) -> 0 | M150: 0 | N150: 0 | P150: 0 | Q150: 0 | R150: 0 | S150: 0 | T150: 0 | U150: 0 | V150: 0 | X150: =V150+N150 -> 0
A151: Für Schuljahr 2018/19: Faktorenbudget in Jahrgangsstufe 13 | L151: =(VLOOKUP(I11,faktorenbudget,2,TRUE)+VLOOKUP(I11,faktorenbudget,3,TRUE)*(I11-VLOOKUP(I11,faktorenbudget,4,TRUE)))*(MIN(8,I11)/8) -> 0 | T151: =(VLOOKUP(I20,faktorenbudget,2,TRUE)+VLOOKUP(I20,faktorenbudget,3,TRUE)*(I20-VLOOKUP(I20,faktorenbudget,4,TRUE)))*(MIN(8,I20)/8) -> 0

Sheet Parameter (hidden)
A1: Zentrale Parametersetzungen | G1: Modell | I1: Schulart | J1: Vorklasse | K1: Vorkurs | L1: 11 | M1: 12 | N1: 13 | W1: Standardquote für Religionsunterricht
G2: Schuljahr | H2: 2023/24 | I2: Vorjahr | J2: =LEFT(schuljahr,4)-1&"/"&TEXT(RIGHT(schuljahr,2)-1,"00") -> 2022/23 | W2: als Ersatzwerte, falls keine schulbezogenen Werte ermittelbar
G3: Auswahl des Modells | I3: Klassenteiler
A4: tiefe | B4: 2 | G4: Modell 1 | O4: Reli/Ethik, Sport, Ku/Mu | W4: Auswertung ASD 2016/17 (Bayern) - Jgst VS-12-13
A5: symmetrie | B5: 8 | G5: Modell | I5: Schulart | J5: Vorklasse | K5: Vorkurs | L5: 11 | M5: 12 | N5: 13 | O5: NF_VS | P5: NF_11 | Q5: NF_12 | R5: NF_13 | S5: Seminar | W5: FOS | X5: rk | Y5: ev | Z5: sonst | AA5: Ethik
G6: Mod 1 | H6: Standardmodell | I6: FOS | J6: 30 | K6: 32 | L6: 28 | M6: 25 | N6: 25 | O6: 28 | P6: =$O$6 -> 28 | Q6: 28 | R6: 28 | S6: 15 | W6: absolut | X6: 9936 | Y6: 4389 | Z6: 2 | AA6: 7189 | AB6: =SUM(X6:AA6) -> 21516
I7: BOS | J7: 30 | K7: 32 | L7: x | M7: 25 | N7: 25 | O7: =$O$6 -> 28 | P7: 28 | Q7: 28 | R7: 28 | S7: 15 | W7: relativ | X7: =X6/$AB$6 -> 0.4617958728 | Y7: =Y6/$AB$6 -> 0.2039877301 | Z7: =Z6/$AB$6 -> 9.295408068e-05 | AA7: =AA6/$AB$6 -> 0.334123443 | AB7: =AB6/$AB$6 -> 1
G8: Mod 2 | H8: Ungünstiger-Modell | I8: FOS | J8: 32 | K8: 32 | L8: 28 | M8: 28 | N8: 25 | O8: 28 | P8: =$O$8 -> 28 | Q8: 28 | R8: 28 | S8: 15
I9: BOS | J9: 32 | K9: 32 | L9: x | M9: 28 | N9: 25 | O9: =$O$8 -> 28 | P9: 28 | Q9: 28 | R9: 28 | S9: 15 | W9: Auswertung ASD 2016/17 (Bayern) - Jgst VS-12-13
A10: Faktorenmodell | G10: Mod 3 | H10: Faktorenmodell | I10: FOS | J10: 25 | K10: 30 | L10: 30 | M10: 27 | N10: 24 | O10: =J10 -> 25 | P10: =L10 -> 30 | Q10: 27 | R10: 24 | S10: 15 | W10: BOS | X10: rk | Y10: ev | Z10: sonst | AA10: Ethik
A11: S | B11: ErgUnt | C11: Diff | I11: BOS | J11: 30 | K11: 30 | L11: x | M11: 30 | N11: 24 | O11: =J11 -> 30 | P11: x | Q11: 30 | R11: 24 | S11: 15 | W11: absolut | X11: 4531 | Y11: 1392 | Z11: 0 | AA11: 2232 | AB11: =SUM(X11:AA11) -> 8155
A12: 0 | B12: 0 | C12: 0 | G12: Mod 4 | H12: Teiler 28 in allen Jahrgangsstufen | I12: FOS | J12: 28 | K12: 28 | L12: 28 | M12: 28 | N12: 28 | O12: 28 | P12: 28 | Q12: 28 | R12: 28 | S12: 15 | W12: relativ | X12: =X11/$AB$11 -> 0.5556100552 | Y12: =Y11/$AB$11 -> 0.1706928265 | Z12: 0 | AA12: 0.2736971183 | AB12: =SUM(X12:AA12) -> 1
A13: 1 | B13: =B20 -> 0.25 | C13: =C20 -> 0.25 | I13: BOS | J13: 28 | K13: 28 | L13: x | M13: 28 | N13: 28 | O13: 28 | P13: 28 | Q13: 28 | R13: 28 | S13: 15
A14: =A13+1 -> 2 | B14: =B13 -> 0.25 | C14: =C13 -> 0.25 | G14: Mod 5 | H14: Teiler 25 in allen Jahrgangsstufen | I14: FOS | J14: 25 | K14: 25 | L14: 25 | M14: 25 | N14: 25 | O14: 25 | P14: =$O$14 -> 25 | Q14: 25 | R14: 25 | S14: 15
A15: =A14+1 -> 3 | B15: =B14 -> 0.25 | C15: 0.25 | I15: BOS | J15: 25 | K15: 25 | L15: x | M15: 25 | N15: 25 | O15: =$O$14 -> 25 | P15: 25 | Q15: 25 | R15: 25 | S15: 15
A16: 4 | B16: 0.25 | C16: 0.25 | O16: VS | P16: 11 | Q16: 12 | R16: 13
A17: 5 | B17: 0.25 | C17: 0.25 | J17: =J5 -> Vorklasse | K17: =K5 -> Vorkurs | L17: =L5 -> 11 | M17: =M5 -> 12 | N17: =N5 -> 13 | O17: =O5 -> NF_VS | P17: NF_11 | Q17: NF_12 | R17: NF_13 | S17: =S5 -> Seminar | T17: fpA | U17: Int-VK
A18: 6 | B18: 0.25 | C18: 0.25 | G18: Auswahl | I18: FOS | J18: =CHOOSE(VALUE(RIGHT($G$4,1)),J6,J8,J10,J12,J14) -> 30 | K18: =CHOOSE(VALUE(RIGHT($G$4,1)),K6,K8,K10,K12,K14) -> 32 | L18: 28 | M18: 25 | N18: 25 | O18: 28 | P18: 28 | Q18: 28 | R18: 28 | S18: =CHOOSE(VALUE(RIGHT($G$4,1)),S6,S8,S10,S12,S14) -> 15 | T18: 19 | U18: 25
A19: 7 | B19: 0.25 | C19: 0.25 | I19: BOS | J19: =CHOOSE(VALUE(RIGHT($G$4,1)),J7,J9,J11,J13,J15) -> 30 | K19: 32 | L19: x | M19: 25 | N19: 25 | O19: 28 | P19: 28 | Q19: 28 | R19: 28 | S19: =CHOOSE(VALUE(RIGHT($G$4,1)),S7,S9,S11,S13,S15) -> 15
A20: 8 | B20: 0.25 | C20: 0.25 | I20: für gemeinsame Beschulung | M20: =MAX(M18:M19) -> 25 | N20: 25 | O20: 28 | P20: 28 | Q20: 28 | R20: 28 | S20: 15
A21: 9 | B21: 0.25 | C21: 0.25
A22: 10 | B22: 0.25 | C22: 0.25
A23: 11 | B23: 0.25 | C23: 0.25 | I23: Schulart | J23: Vorklasse | K23: Vorkurs | L23: 11 | M23: 12 | N23: 13 | O23: FSpr. | P23: Sem.
A24: 12 | B24: 0.25 | C24: 0.25 | H24: implizite Teiler nach Faktoren-Budget | I24: FOS | J24: =J10:N11 -> 25 | K24: 30 | L24: 30 | M24: 27 | N24: 24 | O24: 30 | P24: 15
A25: 13 | B25: 0.25 | C25: 0.25 | I25: BOS | J25: 30 | K25: 30 | L25: x | M25: 30 | N25: 24 | O25: 30 | P25: 15
A26: 14 | B26: 0.25 | C26: 0.25
A27: 15 | B27: 0.25 | C27: 0.25 | I27: Schulart | J27: Vorklasse | K27: Vorkurs | L27: 11 | M27: 12 | N27: 13 | O27: FSpr. | P27: Sem.
A28: 16 | B28: 0.25 | C28: 0.25 | H28: Mindestschülerzahlen für die Budgetzumessung | I28: FOS | J28: 15 | K28: 12 | L28: 15 | M28: 14 | N28: 8/16 | O28: 8 | P28: x
A29: 17 | B29: 0.25 | C29: 0.25 | I29: BOS | J29: 13 | K29: 12 | L29: x | M29: 13 | N29: 8/16 | O29: 8 | P29: x
A30: 18 | B30: 0.25 | C30: 0.25
A31: 19 | B31: =B30 -> 0.25 | C31: 0.25
A32: 20 | B32: 0.25 | C32: 0.5 | G32: Mindestschülerzahl für 2 Vorklassen (FOS) | J32: 400
A33: 21 | B33: =B32 -> 0.25 | C33: 0.5
A34: 22 | B34: 0.25 | C34: 0.5 | G34: Gruppengröße (2-Schienen-Modell) | J34: 19
A35: 23 | B35: 0.25 | C35: 0.5 | G35: Mindestgröße für Teilung | J35: 20
A36: 24 | B36: 0.25 | C36: 0.5 | G36: Mindestgröße Sport | J36: 12
A37: 25 | B37: 0.5 | C37: 0.75 | G37: Mindestgröße Religion/Ethik | J37: 5 | O37: V3-Vorgabewerte
A38: 26 | B38: =B37 -> 0.5 | C38: =C37 -> 0.75 | G38: Mindestgrößen | J38: Vkurs | K38: Vklasse | L38: IVK | M38: fpU | P38: Vkurs | Q38: Vklasse | R38: IVK | S38: fpU
A39: 27 | B39: =B38 -> 0.5 | C39: =C38 -> 0.75 | I39: FOS | J39: 0 | K39: 0 | L39: 8 | M39: 8 | O39: FOS | P39: 12 | Q39: 15 | R39: 8 | S39: 8
A40: 28 | B40: 0.5 | C40: 1 | I40: BOS | J40: 0 | K40: 0 | O40: BOS | P40: 12 | Q40: 12
A41: 29 | B41: =B40 -> 0.5 | C41: =C40 -> 1
A42: 30 | B42: =B41 -> 0.5 | C42: 1 | G42: Seminarzuschlag | I42: Größenzuschlag | L42: Zuschlag kleine Schulen
A43: 31 | B43: 0.5 | C43: 1 | I43: 0 | J43: 0 | L43: unter | M43: 5
A44: 32 | B44: 0.5 | C44: 1 | I44: 14 | J44: 0
A45: 33 | B45: 0.5 | C45: 1 | I45: 14.5 | J45: 1
A46: 34 | B46: 0.5 | C46: 1
A47: 35 | B47: 0.5 | C47: 1
A48: 36 | B48: 0.5 | C48: 1 | G48: Wahlpflichtfächer | I48: Größenzuschlag | L48: Zuschlag für kleine Schulen
A49: 37 | B49: 0.5 | C49: 1 | I49: 0 | J49: 0 | L49: unter | M49: 10 | N49: Jgst. 12
A50: 38 | B50: 0.5 | C50: 1 | I50: =Q20-1 -> 27 | J50: 1 | L50: unter | M50: 5 | N50: Jgst. 13
A51: 39 | B51: 0.5 | C51: 1 | I51: =Q20-0.5 -> 27.5 | J51: 2
A52: 40 | B52: 0.5 | C52: 1
A53: 41 | B53: 0.5 | C53: 1 | G53: Überbelegungsquote (WPF) | I53: 0.2
A54: 42 | B54: 0.5 | C54: 1
A55: 43 | B55: 0.5 | C55: 1 | G55: Informatik-WPF-Quoten | I55: T | J55: W | K55: S | L55: A | M55: G | N55: IW | O55: GP
A56: 44 | B56: 0.5 | C56: 1 | G56: Belegungsquote | H56: Jgst. 12 | I56: 0.75 | J56: 0 | K56: 0.25 | L56: 0.25 | M56: 0.25 | N56: 0.5 | O56: 0.25
A57: 45 | B57: 0.5 | C57: 1 | H57: Jgst. 13 | I57: 0.75 | J57: 0.5 | K57: 0.25 | L57: 0.25 | M57: 0.25 | N57: 0.5 | O57: 0.25
A58: 46 | B58: =B57 -> 0.5 | C58: 1 | G58: Zuschlag-IW nach Zügigkeit | I58: bis | J58: 2
A59: 47 | B59: 0.5 | C59: 1
A60: 48 | B60: 0.5 | C60: 1 | G60: Teilungsbedarfe in IV nach Klassendurchschnitt
A61: 49 | B61: 0.5 | C61: 1 | H61: Schnitt (ab) | I61: 0 | J61: 20 | K61: 22.5
A62: 50 | B62: 0.5 | C62: 1 | H62: Zuschlag | I62: 6 | J62: 7 | K62: 8
A64: ab Æ | B64: 0 | C64: 18.5 | D64: 23.5 | E64: 26.5 | G64: Fremdsprachenminimum (Shuffling) | J64: 12
A65: ErgUnt | B65: 0.25 | C65: 0.25 | D65: 0.5 | E65: =D65 -> 0.5
A66: Differenz. | B66: 0.25 | C66: =B66+0.25 -> 0.5 | D66: =C66+0.25 -> 0.75 | E66: =D66+0.25 -> 1 | G66: Splittergruppengrenze (für Einrichtung) | J66: 8
G67: Einsparungsgrenze | J67: 20
A69: Vergabe von Ergänzungsunterricht und Differenzierung | I69: Wahlunterricht für
A70: FOS | B70: VS | C70: 11 | D70: 12 | E70: 12_1 | F70: 12_2 | G70: 13 | I70: FOS | K70: BOS
A71: ErgUnt | B71: 1 | C71: 0 | D71: 1 | E71: 1 | F71: 1 | G71: 1 | I71: VS | J71: 1 | K71: VS | L71: 1
A72: Diff | B72: 1 | C72: 1 | D72: 1 | E72: 1 | F72: 1 | G72: 1 | I72: 11 | J72: 1 | K72: 12 | L72: 1
I73: 12 | J73: 0 | K73: 12_1 | L73: 1
A74: BOS | B74: VS | C74: 11 | D74: 12 | E74: 12_1 | F74: 12_2 | G74: 13 | I74: 13 | J74: 0 | K74: 12_2 | L74: 1
A75: ErgUnt | B75: 1 | C75: 0 | D75: 0 | E75: 0 | F75: 0 | G75: 1 | K75: 13 | L75: 0
A76: Diff | B76: 1 | C76: 0 | D76: 1 | E76: 1 | F76: 1 | G76: 1
A80: Budgetparameter FOS13/BOS13
A81: Schüler | B81: LWS
A82: 17 | B82: =VLOOKUP(A82,faktorenbudget,2,TRUE)+VLOOKUP(A82,faktorenbudget,3,TRUE)*(A82-VLOOKUP(A82,faktorenbudget,4,TRUE)) -> 34.15
A84: bis | B84: Sockel | C84: Faktor | D84: Basisschüler
A85: 0 | B85: =B86 -> 23 | C85: 0 | D85: =A85 -> 0
A86: 8 | B86: 23 | C86: 0 | D86: =A86 -> 8
A87: 16 | B87: 34 | C87: 0.15 | D87: =A87 -> 16
A88: 25 | B88: 59 | C88: 1.27 | D88: 24
A89: 73 | B89: 120 | C89: 1.56 | D89: 72

Sheet Stundentafel (hidden)
A1: FOS/BOS | C1: FOS | D1: BOS | E1: Sem | F1: WPF | G1: FöU-FOS11 | H1: Teilung | I1: BOS12 | J1: fpU | K1: fpA-r | L1: fpA-M | M1: fpV-r | N1: fpV-M | O1: fpB-S | P1: fpB-B | Q1: IV-Gru | R1: FSpAbi | S1: WU | T1: Vkl-Zu | U1: D/E/G+Sk | V1: M(T) | W1: M(NT) | X1: T | Y1: W | Z1: S | AA1: G | AB1: A | AC1: IW | AD1: GP | AE1: Nat13
A2: Vorklasse | C2: =33-V55 -> 32 | D2: =33-Y55 -> 32 | E2: 2 | F2: 2 | G2: 1 | H2: 1 | I2: 2 | J2: 17 | K2: 1 | L2: 2 | M2: 1 | N2: 2 | O2: =3/40 -> 0.075 | P2: =3/40 -> 0.075 | Q2: 36 | R2: 4 | S2: 0.04 | T2: 3 | U2: 12 | V2: 5 | W2: 5 | X2: 10 | Y2: 8 | Z2: 10 | AA2: 8 | AB2: 10 | AC2: 5 | AD2: 10 | AE2: 2
A3: Vorkurs | C3: 3 | D3: 6 | I3: =INT((I5-1)/($C$20-1))+1 -> 1 | J3: =INT((J5-1)/($C$20-1))+1 -> 1 | K3: 1 | L3: 1 | M3: 1 | N3: 1 | O3: 2 | P3: 2 | Q3: 2 | R3: 2 | S3: 2 | T3: 2 | U3: 3 | V3: 3 | W3: 3 | X3: 3 | Y3: 3 | Z3: 3 | AA3: 4 | AB3: 4 | AC3: 4 | AD3: 4 | AE3: 4 | AF3: 4 | AG3: 5 | AH3: 5 | AI3: 5 | AJ3: 5 | AK3: 5 | AL3: 5 | AM3: 6 | AN3: 6 | AO3: 6 | AP3: 6 | AQ3: 6 | AR3: 6 | AS3: 7 | AT3: 7 | AU3: 7 | AV3: 7 | AW3: 7 | AX3: 7
I4: =MOD(I5-1,$C$20-1)+1+IF(MOD(I5-1,$C$20-1)+1>=I3,1,0) -> 2 | J4: =MOD(J5-1,$C$20-1)+1+IF(MOD(J5-1,$C$20-1)+1>=J3,1,0) -> 3 | K4: 4 | L4: 5 | M4: 6 | N4: 7 | O4: 1 | P4: 3 | Q4: 4 | R4: 5 | S4: 6 | T4: 7 | U4: 1 | V4: 2 | W4: 4 | X4: 5 | Y4: 6 | Z4: 7 | AA4: 1 | AB4: 2 | AC4: 3 | AD4: 5 | AE4: 6 | AF4: 7 | AG4: 1 | AH4: 2 | AI4: 3 | AJ4: 4 | AK4: 6 | AL4: 7 | AM4: 1 | AN4: 2 | AO4: 3 | AP4: 4 | AQ4: 5 | AR4: 7 | AS4: 1 | AT4: 2 | AU4: 3 | AV4: 4 | AW4: 5 | AX4: 6
A5: FOS | B5: T | C5: W | D5: S | E5: G | F5: A | G5: IW | H5: GP | I5: =TRANSPOSE(A22:A63) -> 1 | J5: 2 | K5: 3 | L5: 4 | M5: 5 | N5: 6 | O5: 7 | P5: 8 | Q5: 9 | R5: 10 | S5: 11 | T5: 12 | U5: 13 | V5: 14 | W5: 15 | X5: 16 | Y5: 17 | Z5: 18 | AA5: 19 | AB5: 20 | AC5: 21 | AD5: 22 | AE5: 23 | AF5: 24 | AG5: 25 | AH5: 26 | AI5: 27 | AJ5: 28 | AK5: 29 | AL5: 30 | AM5: 31 | AN5: 32 | AO5: 33 | AP5: 34 | AQ5: 35 | AR5: 36 | AS5: 37 | AT5: 38 | AU5: 39 | AV5: 40 | AW5: 41 | AX5: 42
A6: 11 | B6: =OFFSET($L$22,I$5+($A6-11)*10,I$5) -> 16 | C6: 16 | D6: 16 | E6: 16 | F6: 16 | G6: 14 | H6: 16 | I6: =OFFSET($L$22,I$3+($A6-11)*10,I$4) -> 26 | J6: 26 | K6: 26 | L6: 26 | M6: 24 | N6: 26 | O6: 26 | P6: 23 | Q6: 23 | R6: 23 | S6: =OFFSET($L$22,S$3+($A6-11)*10,S$4) -> 19 | T6: 23 | U6: 26 | V6: 23 | W6: 23 | X6: 23 | Y6: 21 | Z6: 23 | AA6: 26 | AB6: 23 | AC6: =OFFSET($L$22,AC$3+($A6-11)*10,AC$4) -> 23 | AD6: 23 | AE6: 21 | AF6: 23 | AG6: 26 | AH6: 23 | AI6: 23 | AJ6: 23 | AK6: 21 | AL6: 23 | AM6: =OFFSET($L$22,AM$3+($A6-11)*10,AM$4) -> 24 | AN6: 19 | AO6: 21 | AP6: 21 | AQ6: 21 | AR6: 21 | AS6: 26 | AT6: 23 | AU6: 23 | AV6: 23 | AW6: 23 | AX6: 21
A7: 12 | B7: 26 | C7: 26 | D7: 26 | E7: 26 | F7: 26 | G7: 23 | H7: 26 | I7: 42 | J7: 42 | K7: 42 | L7: 42 | M7: 39 | N7: 42 | O7: 42 | P7: 38 | Q7: 36 | R7: 38 | S7: 33 | T7: 38 | U7: 42 | V7: 38 | W7: 38 | X7: 38 | Y7: 35 | Z7: 38 | AA7: 42 | AB7: 36 | AC7: 38 | AD7: 38 | AE7: 33 | AF7: 38 | AG7: 42 | AH7: 38 | AI7: 38 | AJ7: 38 | AK7: 35 | AL7: 38 | AM7: 39 | AN7: 33 | AO7: 35 | AP7: 33 | AQ7: 35 | AR7: 35 | AS7: 42 | AT7: 38 | AU7: 38 | AV7: 38 | AW7: 38 | AX7: 35
A8: 13 | B8: 27 | C8: 27 | D8: 27 | E8: 27 | F8: 27 | G8: 24 | H8: 27 | I8: 42 | J8: 42 | K8: 42 | L8: 42 | M8: 39 | N8: 42 | O8: 42 | P8: 37 | Q8: 35 | R8: 37 | S8: 32 | T8: 37 | U8: 42 | V8: 37 | W8: 37 | X8: 37 | Y8: 34 | Z8: 37 | AA8: 42 | AB8: 35 | AC8: 37 | AD8: 37 | AE8: 32 | AF8: 37 | AG8: 42 | AH8: 37 | AI8: 37 | AJ8: 37 | AK8: 34 | AL8: 37 | AM8: 39 | AN8: 32 | AO8: 34 | AP8: 32 | AQ8: 34 | AR8: 34 | AS8: 42 | AT8: 37 | AU8: 37 | AV8: 37 | AW8: 37 | AX8: 34
A9: fpA | B9: 1 | C9: 1 | D9: 1 | E9: 1 | F9: 1 | G9: 1 | H9: 1 | I9: 2 | J9: =I9 -> 2 | K9: =J9 -> 2 | L9: 2 | M9: 2 | N9: 2 | O9: 2 | P9: 2 | Q9: 2 | R9: 2 | S9: 2 | T9: 2 | U9: 2 | V9: 2 | W9: 2 | X9: 2 | Y9: 2 | Z9: 2 | AA9: 2 | AB9: 2 | AC9: 2 | AD9: 2 | AE9: 2 | AF9: 2 | AG9: 2 | AH9: 2 | AI9: 2 | AJ9: 2 | AK9: 2 | AL9: 2 | AM9: 2 | AN9: 2 | AO9: 2 | AP9: 2 | AQ9: 2 | AR9: 2 | AS9: 2 | AT9: 2 | AU9: 2 | AV9: 2 | AW9: 2 | AX9: 2
A10: FöU-FO | B10: 1 | C10: =B10 -> 1 | D10: 1 | E10: 1 | F10: 1 | G10: 1 | H10: 1 | I10: 1 | J10: =I10 -> 1 | K10: =J10 -> 1 | L10: =K10 -> 1 | M10: =L10 -> 1 | N10: =M10 -> 1 | O10: =N10 -> 1 | P10: =O10 -> 1 | Q10: =P10 -> 1 | R10: =Q10 -> 1 | S10: =R10 -> 1 | T10: =S10 -> 1 | U10: =T10 -> 1 | V10: =U10 -> 1 | W10: =V10 -> 1 | X10: =W10 -> 1 | Y10: =X10 -> 1 | Z10: =Y10 -> 1 | AA10: =Z10 -> 1 | AB10: =AA10 -> 1 | AC10: =AB10 -> 1 | AD10: =AC10 -> 1 | AE10: =AD10 -> 1 | AF10: =AE10 -> 1 | AG10: =AF10 -> 1 | AH10: =AG10 -> 1 | AI10: =AH10 -> 1 | AJ10: =AI10 -> 1 | AK10: =AJ10 -> 1 | AL10: =AK10 -> 1 | AM10: =AL10 -> 1 | AN10: =AM10 -> 1 | AO10: =AN10 -> 1 | AP10: =AO10 -> 1 | AQ10: =AP10 -> 1 | AR10: =AQ10 -> 1 | AS10: =AR10 -> 1 | AT10: =AS10 -> 1 | AU10: =AT10 -> 1 | AV10: =AU10 -> 1 | AW10: =AV10 -> 1 | AX10: =AW10 -> 1
A11: FöU-BO | B11: 2 | C11: 2 | D11: 2 | E11: 2 | F11: 2 | G11: 2 | H11: 2 | I11: 2 | J11: =I11 -> 2 | K11: =J11 -> 2 | L11: =K11 -> 2 | M11: =L11 -> 2 | N11: =M11 -> 2 | O11: =N11 -> 2 | P11: =O11 -> 2 | Q11: =P11 -> 2 | R11: =Q11 -> 2 | S11: =R11 -> 2 | T11: =S11 -> 2 | U11: =T11 -> 2 | V11: =U11 -> 2 | W11: =V11 -> 2 | X11: =W11 -> 2 | Y11: =X11 -> 2 | Z11: =Y11 -> 2 | AA11: =Z11 -> 2 | AB11: =AA11 -> 2 | AC11: =AB11 -> 2 | AD11: =AC11 -> 2 | AE11: =AD11 -> 2 | AF11: =AE11 -> 2 | AG11: =AF11 -> 2 | AH11: =AG11 -> 2 | AI11: =AH11 -> 2 | AJ11: =AI11 -> 2 | AK11: =AJ11 -> 2 | AL11: =AK11 -> 2 | AM11: =AL11 -> 2 | AN11: =AM11 -> 2 | AO11: =AN11 -> 2 | AP11: =AO11 -> 2 | AQ11: =AP11 -> 2 | AR11: =AQ11 -> 2 | AS11: =AR11 -> 2 | AT11: =AS11 -> 2 | AU11: =AT11 -> 2 | AV11: =AU11 -> 2 | AW11: =AV11 -> 2 | AX11: =AW11 -> 2
A12: BOS | I12: =TRANSPOSE(J22:J63) -> T_W | J12: T_S | K12: T_G | L12: T_A | M12: T_IW | N12: T_GP | O12: W_T | P12: W_S | Q12: W_G | R12: W_A | S12: W_IW | T12: W_GP | U12: S_T | V12: S_W | W12: S_G | X12: S_A | Y12: S_IW | Z12: S_GP | AA12: G_T | AB12: G_W | AC12: G_S | AD12: G_A | AE12: G_IW | AF12: G_GP | AG12: A_T | AH12: A_W | AI12: A_S | AJ12: A_G | AK12: A_IW | AL12: A_GP | AM12: IW_T | AN12: IW_W | AO12: IW_S | AP12: IW_G | AQ12: IW_A | AR12: IW_GP | AS12: GP_T | AT12: GP_W | AU12: GP_S | AV12: GP_G | AW12: GP_A | AX12: GP_IW
A13: 12 | B13: =OFFSET($AC$22,I$5+(ROW()-ROW($A$13))*10,I$5) -> 31 | C13: 31 | D13: 31 | E13: 31 | F13: 31 | G13: 28 | H13: 31 | I13: =OFFSET($AC$22,I$3+(ROW()-ROW($A$13))*10,I$4) -> 49 | J13: 49 | K13: 49 | L13: 49 | M13: 46 | N13: 49 | O13: 49 | P13: 44 | Q13: 42 | R13: 44 | S13: =OFFSET($AC$22,S$3+(ROW()-ROW($A$13))*10,S$4) -> 39 | T13: 44 | U13: 49 | V13: 44 | W13: 44 | X13: 44 | Y13: 41 | Z13: 44 | AA13: 49 | AB13: 42 | AC13: =OFFSET($AC$22,AC$3+(ROW()-ROW($A$13))*10,AC$4) -> 44 | AD13: 44 | AE13: 39 | AF13: 44 | AG13: 49 | AH13: 44 | AI13: 44 | AJ13: 44 | AK13: 41 | AL13: 44 | AM13: =OFFSET($AC$22,AM$3+(ROW()-ROW($A$13))*10,AM$4) -> 46 | AN13: 39 | AO13: 41 | AP13: 39 | AQ13: 41 | AR13: 41 | AS13: 49 | AT13: 44 | AU13: 44 | AV13: 44 | AW13: 44 | AX13: 41
A14: 12_1 | B14: 15.5 | C14: 15.5 | D14: 15.5 | E14: 15.5 | F14: 15.5 | G14: 14 | H14: 15.5 | I14: 24.5 | J14: 24.5 | K14: 24.5 | L14: 24.5 | M14: 23 | N14: 24.5 | O14: 24.5 | P14: 22 | Q14: 21 | R14: 22 | S14: 19.5 | T14: 22 | U14: 24.5 | V14: 22 | W14: 22 | X14: 22 | Y14: 20.5 | Z14: 22 | AA14: 24.5 | AB14: 21 | AC14: 22 | AD14: 22 | AE14: 19.5 | AF14: 22 | AG14: 24.5 | AH14: 22 | AI14: 22 | AJ14: 22 | AK14: 20.5 | AL14: 22 | AM14: 23 | AN14: 19.5 | AO14: 20.5 | AP14: 19.5 | AQ14: 20.5 | AR14: 20.5 | AS14: 24.5 | AT14: 22 | AU14: 22 | AV14: 22 | AW14: 22 | AX14: 20.5
A15: 12_2 | B15: 15.5 | C15: 15.5 | D15: 15.5 | E15: 15.5 | F15: 15.5 | G15: 14 | H15: 15.5 | I15: 24.5 | J15: 24.5 | K15: 24.5 | L15: 24.5 | M15: 23 | N15: 24.5 | O15: 24.5 | P15: 22 | Q15: 21 | R15: 22 | S15: 19.5 | T15: 22 | U15: 24.5 | V15: 22 | W15: 22 | X15: 22 | Y15: 20.5 | Z15: 22 | AA15: 24.5 | AB15: 21 | AC15: 22 | AD15: 22 | AE15: 19.5 | AF15: 22 | AG15: 24.5 | AH15: 22 | AI15: 22 | AJ15: 22 | AK15: 20.5 | AL15: 22 | AM15: 23 | AN15: 19.5 | AO15: 20.5 | AP15: 19.5 | AQ15: 20.5 | AR15: 20.5 | AS15: 24.5 | AT15: 22 | AU15: 22 | AV15: 22 | AW15: 22 | AX15: 20.5
A16: 13 | B16: 27 | C16: 27 | D16: 27 | E16: 27 | F16: 27 | G16: 24 | H16: 27 | I16: 42 | J16: 42 | K16: 42 | L16: 42 | M16: 39 | N16: 42 | O16: 42 | P16: 37 | Q16: 35 | R16: 37 | S16: 32 | T16: 37 | U16: 42 | V16: 37 | W16: 37 | X16: 37 | Y16: 34 | Z16: 37 | AA16: 42 | AB16: 35 | AC16: 37 | AD16: 37 | AE16: 32 | AF16: 37 | AG16: 42 | AH16: 37 | AI16: 37 | AJ16: 37 | AK16: 34 | AL16: 37 | AM16: 39 | AN16: 32 | AO16: 34 | AP16: 32 | AQ16: 34 | AR16: 34 | AS16: 42 | AT16: 37 | AU16: 37 | AV16: 37 | AW16: 37 | AX16: 34
A17: P13 | B17: =OFFSET($AC$22,I$5+(ROW()-ROW($A$13))*10,I$5) -> 10 | C17: =OFFSET($AC$22,J$5+(ROW()-ROW($A$13))*10,J$5) -> 10 | D17: 10 | E17: 10 | F17: 10 | G17: 7 | H17: 10 | I17: =OFFSET($AC$22,I$3+(ROW()-ROW($A$13))*10,I$4) -> 20 | J17: =OFFSET($AC$22,J$3+(ROW()-ROW($A$13))*10,J$4) -> 20 | K17: 20 | L17: 20 | M17: 17 | N17: 20 | O17: 20 | P17: 20 | Q17: 18 | R17: 20 | S17: 15 | T17: 20 | U17: 20 | V17: 20 | W17: 20 | X17: 20 | Y17: 17 | Z17: 20 | AA17: 20 | AB17: 18 | AC17: 20 | AD17: 20 | AE17: 15 | AF17: 20 | AG17: 20 | AH17: 20 | AI17: 20 | AJ17: 20 | AK17: 17 | AL17: 20 | AM17: 17 | AN17: 15 | AO17: 17 | AP17: 15 | AQ17: 17 | AR17: 17 | AS17: 20 | AT17: 20 | AU17: 20 | AV17: 20 | AW17: 20 | AX17: 17
L19: Stundentafeln ohne Wahlpflchtbereich, ohne Fremdsprache im Profilbereich IW, OHNE SPORT und OHNE Religion/Ethik
A20: Zweigzahl | C20: 7 | L20: ohne FöU 11/WPF | O20: Ma T/NT getrennt | R20: FSpr in IW herausgelöst | V20: =IF(AND(OR($L24="W",$L24="IW"),OR(R$22="W",R$22="IW")),$Y$23,0) -> 2
A21: art | B21: e1 | C21: e2 | D21: e1* | E21: e2* | F21: Teil1 | G21: Teil2 | M21: 1 | N21: 2 | O21: 3 | P21: 4 | Q21: 5 | R21: 6 | S21: 7 | Y21: W/IW | AP21: W/IW/G
A22: 1 | B22: =INT((A22-1)/6)+1 -> 1 | C22: =MOD((A22-1),6)+1 -> 1 | D22: =INT((A22-1)/6)+1 -> 1 | E22: =IF(C22>=B22,C22+1,C22) -> 2 | F22: =INDEX($B$5:$H$5,D22) -> T | G22: =INDEX($B$5:$H$5,E22) -> W | H22: =INT((A22-1)/($C$20-1))+1 -> 1 | I22: =MOD(I5-1,$C$20-1)+1+IF(MOD(I5-1,$C$20-1)+1>=I3,1,0) -> 2 | J22: =F22&"_"&G22 -> T_W | L22: FOS 11 | M22: =B5:H5 -> T | N22: W | O22: S | P22: G | Q22: A | R22: IW | S22: GP | U22: allg | V22: Profil | W22: FSpr | X22: Ma | Y22: RL | Z22: SpRe | AC22: BOS 12 | AD22: =M22:S22 -> T | AE22: W | AF22: S | AG22: G | AH22: A | AI22: IW | AJ22: GP | AL22: allg | AM22: Profil | AN22: FSpr | AO22: Ma | AP22: Nat | AQ22: SpRe
A23: =A22+1 -> 2 | B23: =INT((A23-1)/6)+1 -> 1 | C23: =MOD((A23-1),6)+1 -> 2 | D23: =INT((A23-1)/6)+1 -> 1 | E23: =IF(C23>=B23,C23+1,C23) -> 3 | F23: =INDEX($B$5:$H$5,D23) -> T | G23: =INDEX($B$5:$H$5,E23) -> S | H23: =INT((A23-1)/($C$20-1))+1 -> 1 | I23: =MOD(A23-1,$C$20-1)+1+IF(MOD(A23-1,$C$20-1)+1>=H23,1,0) -> 3 | J23: =F23&"_"&G23 -> T_S | K23: 1 | L23: =TRANSPOSE(B5:H5) -> T | M23: =$U$23+$V$23-IF($L23="IW",$W$23) -> 16 | N23: =$U$23+2*$V$23+IF(OR($L23="T",N$22="T"),$X$23,0)-IF(OR($L23="IW",N$22="IW"),$W$23,0)-IF(AND(OR($L23="W",$L23="IW"),OR(N$22="W",N$22="IW")),$Y$23,0) -> 26 | O23: 26 | P23: 26 | Q23: 26 | R23: 24 | S23: 26 | U23: =9-Z23 -> 9 | V23: 7 | W23: 2 | X23: 3 | Y23: 2 | Z23: 0 | AB23: 1 | AC23: =L23:L29 -> T | AD23: =$AL$23+$AM$23-IF($AC23="IW",$AN$23) -> 31 | AE23: =$AL$23+2*$AM$23+IF(OR($AC23="T",AE$22="T"),$AO$23,0)-IF(OR($AC23="IW",AE$22="IW"),$AN$23,0)-IF(AND(OR($AC23="W",$AC23="IW",$AC23="G"),OR(AE$22="W",AE$22="IW",AE$22="G")),$AP$23,0) -> 49 | AF23: 49 | AG23: 49 | AH23: 49 | AI23: 46 | AJ23: 49 | AL23: =19-AQ23 -> 18 | AM23: 13 | AN23: 3 | AO23: 5 | AP23: 2 | AQ23: =$Y$56 -> 1
A24: =A23+1 -> 3 | B24: 1 | C24: 3 | D24: 1 | E24: 4 | F24: T | G24: G | H24: 1 | I24: 4 | J24: T_G | K24: 2 | L24: W | M24: =TRANSPOSE(N23:S23) -> 26 | N24: =$U$23+$V$23-IF($L24="IW",$W$23) -> 16 | O24: =$U$23+2*$V$23+IF(OR($L24="T",O$22="T"),$X$23,0)-IF(OR($L24="IW",O$22="IW"),$W$23,0)-IF(AND(OR($L24="W",$L24="IW"),OR(O$22="W",O$22="IW")),$Y$23,0) -> 23 | P24: =$U$23+2*$V$23+IF(OR($L24="T",P$22="T"),$X$23,0)-IF(OR($L24="IW",P$22="IW"),$W$23,0)-IF(AND(OR($L24="W",$L24="IW"),OR(P$22="W",P$22="IW")),$Y$23,0) -> 23 | Q24: =$U$23+2*$V$23+IF(OR($L24="T",Q$22="T"),$X$23,0)-IF(OR($L24="IW",Q$22="IW"),$W$23,0)-IF(AND(OR($L24="W",$L24="IW"),OR(Q$22="W",Q$22="IW")),$Y$23,0) -> 23 | R24: =$U$23+2*$V$23+IF(OR($L24="T",R$22="T"),$X$23,0)-IF(OR($L24="IW",R$22="IW"),$W$23,0)-IF(AND(OR($L24="W",$L24="IW"),OR(R$22="W",R$22="IW")),$Y$23,0) -> 19 | S24: =$U$23+2*$V$23+IF(OR($L24="T",S$22="T"),$X$23,0)-IF(OR($L24="IW",S$22="IW"),$W$23,0)-IF(AND(OR($L24="W",$L24="IW"),OR(S$22="W",S$22="IW")),$Y$23,0) -> 23 | AB24: 2 | AC24: W | AD24: =TRANSPOSE(AE23:AJ23) -> 49 | AE24: =$AL$23+$AM$23-IF($AC24="IW",$AN$23) -> 31 | AF24: =$AL$23+2*$AM$23+IF(OR($AC24="T",AF$22="T"),$AO$23,0)-IF(OR($AC24="IW",AF$22="IW"),$AN$23,0)-IF(AND(OR($AC24="W",$AC24="IW",$AC24="G"),OR(AF$22="W",AF$22="IW",AF$22="G")),$AP$23,0) -> 44 | AG24: =$AL$23+2*$AM$23+IF(OR($AC24="T",AG$22="T"),$AO$23,0)-IF(OR($AC24="IW",AG$22="IW"),$AN$23,0)-IF(AND(OR($AC24="W",$AC24="IW",$AC24="G"),OR(AG$22="W",AG$22="IW",AG$22="G")),$AP$23,0) -> 42 | AH24: =$AL$23+2*$AM$23+IF(OR($AC24="T",AH$22="T"),$AO$23,0)-IF(OR($AC24="IW",AH$22="IW"),$AN$23,0)-IF(AND(OR($AC24="W",$AC24="IW",$AC24="G"),OR(AH$22="W",AH$22="IW",AH$22="G")),$AP$23,0) -> 44 | AI24: =$AL$23+2*$AM$23+IF(OR($AC24="T",AI$22="T"),$AO$23,0)-IF(OR($AC24="IW",AI$22="IW"),$AN$23,0)-IF(AND(OR($AC24="W",$AC24="IW",$AC24="G"),OR(AI$22="W",AI$22="IW",AI$22="G")),$AP$23,0) -> 39 | AJ24: =$AL$23+2*$AM$23+IF(OR($AC24="T",AJ$22="T"),$AO$23,0)-IF(OR($AC24="IW",AJ$22="IW"),$AN$23,0)-IF(AND(OR($AC24="W",$AC24="IW",$AC24="G"),OR(AJ$22="W",AJ$22="IW",AJ$22="G")),$AP$23,0) -> 44
A25: 4 | B25: 1 | C25: 4 | D25: 1 | E25: 5 | F25: T | G25: A | H25: 1 | I25: 5 | J25: T_A | K25: 3 | L25: S | M25: 26 | N25: =TRANSPOSE(O24:S24) -> 23 | O25: =$U$23+$V$23-IF($L25="IW",$W$23) -> 16 | P25: =$U$23+2*$V$23+IF(OR($L25="T",P$22="T"),$X$23,0)-IF(OR($L25="IW",P$22="IW"),$W$23,0)-IF(AND(OR($L25="W",$L25="IW"),OR(P$22="W",P$22="IW")),$Y$23,0) -> 23 | Q25: =$U$23+2*$V$23+IF(OR($L25="T",Q$22="T"),$X$23,0)-IF(OR($L25="IW",Q$22="IW"),$W$23,0)-IF(AND(OR($L25="W",$L25="IW"),OR(Q$22="W",Q$22="IW")),$Y$23,0) -> 23 | R25: =$U$23+2*$V$23+IF(OR($L25="T",R$22="T"),$X$23,0)-IF(OR($L25="IW",R$22="IW"),$W$23,0)-IF(AND(OR($L25="W",$L25="IW"),OR(R$22="W",R$22="IW")),$Y$23,0) -> 21 | S25: =$U$23+2*$V$23+IF(OR($L25="T",S$22="T"),$X$23,0)-IF(OR($L25="IW",S$22="IW"),$W$23,0)-IF(AND(OR($L25="W",$L25="IW"),OR(S$22="W",S$22="IW")),$Y$23,0) -> 23 | AB25: 3 | AC25: S | AD25: 49 | AE25: =TRANSPOSE(AF24:AJ24) -> 44 | AF25: =$AL$23+$AM$23-IF($AC25="IW",$AN$23) -> 31 | AG25: =$AL$23+2*$AM$23+IF(OR($AC25="T",AG$22="T"),$AO$23,0)-IF(OR($AC25="IW",AG$22="IW"),$AN$23,0)-IF(AND(OR($AC25="W",$AC25="IW",$AC25="G"),OR(AG$22="W",AG$22="IW",AG$22="G")),$AP$23,0) -> 44 | AH25: =$AL$23+2*$AM$23+IF(OR($AC25="T",AH$22="T"),$AO$23,0)-IF(OR($AC25="IW",AH$22="IW"),$AN$23,0)-IF(AND(OR($AC25="W",$AC25="IW",$AC25="G"),OR(AH$22="W",AH$22="IW",AH$22="G")),$AP$23,0) -> 44 | AI25: =$AL$23+2*$AM$23+IF(OR($AC25="T",AI$22="T"),$AO$23,0)-IF(OR($AC25="IW",AI$22="IW"),$AN$23,0)-IF(AND(OR($AC25="W",$AC25="IW",$AC25="G"),OR(AI$22="W",AI$22="IW",AI$22="G")),$AP$23,0) -> 41 | AJ25: =$AL$23+2*$AM$23+IF(OR($AC25="T",AJ$22="T"),$AO$23,0)-IF(OR($AC25="IW",AJ$22="IW"),$AN$23,0)-IF(AND(OR($AC25="W",$AC25="IW",$AC25="G"),OR(AJ$22="W",AJ$22="IW",AJ$22="G")),$AP$23,0) -> 44
A26: 5 | B26: 1 | C26: 5 | D26: 1 | E26: 6 | F26: T | G26: IW | H26: 1 | I26: 6 | J26: T_IW | K26: 4 | L26: G | M26: 26 | N26: 23 | O26: =TRANSPOSE(P25:S25) -> 23 | P26: =$U$23+$V$23-IF($L26="IW",$W$23) -> 16 | Q26: =$U$23+2*$V$23+IF(OR($L26="T",Q$22="T"),$X$23,0)-IF(OR($L26="IW",Q$22="IW"),$W$23,0)-IF(AND(OR($L26="W",$L26="IW"),OR(Q$22="W",Q$22="IW")),$Y$23,0) -> 23 | R26: =$U$23+2*$V$23+IF(OR($L26="T",R$22="T"),$X$23,0)-IF(OR($L26="IW",R$22="IW"),$W$23,0)-IF(AND(OR($L26="W",$L26="IW"),OR(R$22="W",R$22="IW")),$Y$23,0) -> 21 | S26: =$U$23+2*$V$23+IF(OR($L26="T",S$22="T"),$X$23,0)-IF(OR($L26="IW",S$22="IW"),$W$23,0)-IF(AND(OR($L26="W",$L26="IW"),OR(S$22="W",S$22="IW")),$Y$23,0) -> 23 | AB26: 4 | AC26: G | AD26: 49 | AE26: 42 | AF26: =TRANSPOSE(AG25:AJ25) -> 44 | AG26: =$AL$23+$AM$23-IF($AC26="IW",$AN$23) -> 31 | AH26: =$AL$23+2*$AM$23+IF(OR($AC26="T",AH$22="T"),$AO$23,0)-IF(OR($AC26="IW",AH$22="IW"),$AN$23,0)-IF(AND(OR($AC26="W",$AC26="IW",$AC26="G"),OR(AH$22="W",AH$22="IW",AH$22="G")),$AP$23,0) -> 44 | AI26: =$AL$23+2*$AM$23+IF(OR($AC26="T",AI$22="T"),$AO$23,0)-IF(OR($AC26="IW",AI$22="IW"),$AN$23,0)-IF(AND(OR($AC26="W",$AC26="IW",$AC26="G"),OR(AI$22="W",AI$22="IW",AI$22="G")),$AP$23,0) -> 39 | AJ26: =$AL$23+2*$AM$23+IF(OR($AC26="T",AJ$22="T"),$AO$23,0)-IF(OR($AC26="IW",AJ$22="IW"),$AN$23,0)-IF(AND(OR($AC26="W",$AC26="IW",$AC26="G"),OR(AJ$22="W",AJ$22="IW",AJ$22="G")),$AP$23,0) -> 44
A27: 6 | B27: 1 | C27: 6 | D27: 1 | E27: 7 | F27: T | G27: GP | H27: 1 | I27: 7 | J27: T_GP | K27: 5 | L27: A | M27: 26 | N27: 23 | O27: 23 | P27: =TRANSPOSE(Q26:S26) -> 23 | Q27: =$U$23+$V$23-IF($L27="IW",$W$23) -> 16 | R27: =$U$23+2*$V$23+IF(OR($L27="T",R$22="T"),$X$23,0)-IF(OR($L27="IW",R$22="IW"),$W$23,0)-IF(AND(OR($L27="W",$L27="IW"),OR(R$22="W",R$22="IW")),$Y$23,0) -> 21 | S27: =$U$23+2*$V$23+IF(OR($L27="T",S$22="T"),$X$23,0)-IF(OR($L27="IW",S$22="IW"),$W$23,0)-IF(AND(OR($L27="W",$L27="IW"),OR(S$22="W",S$22="IW")),$Y$23,0) -> 23 | AB27: 5 | AC27: A | AD27: 49 | AE27: 44 | AF27: 44 | AG27: =TRANSPOSE(AH26:AJ26) -> 44 | AH27: =$AL$23+$AM$23-IF($AC27="IW",$AN$23) -> 31 | AI27: =$AL$23+2*$AM$23+IF(OR($AC27="T",AI$22="T"),$AO$23,0)-IF(OR($AC27="IW",AI$22="IW"),$AN$23,0)-IF(AND(OR($AC27="W",$AC27="IW",$AC27="G"),OR(AI$22="W",AI$22="IW",AI$22="G")),$AP$23,0) -> 41 | AJ27: =$AL$23+2*$AM$23+IF(OR($AC27="T",AJ$22="T"),$AO$23,0)-IF(OR($AC27="IW",AJ$22="IW"),$AN$23,0)-IF(AND(OR($AC27="W",$AC27="IW",$AC27="G"),OR(AJ$22="W",AJ$22="IW",AJ$22="G")),$AP$23,0) -> 44
A28: 7 | B28: 2 | C28: 1 | D28: 2 | E28: 1 | F28: W | G28: T | H28: 2 | I28: 1 | J28: W_T | K28: 6 | L28: IW | M28: 24 | N28: 19 | O28: 21 | P28: 21 | Q28: =TRANSPOSE(R27:S27) -> 21 | R28: =$U$23+$V$23-IF($L28="IW",$W$23) -> 14 | S28: =$U$23+2*$V$23+IF(OR($L28="T",S$22="T"),$X$23,0)-IF(OR($L28="IW",S$22="IW"),$W$23,0)-IF(AND(OR($L28="W",$L28="IW"),OR(S$22="W",S$22="IW")),$Y$23,0) -> 21 | AB28: 6 | AC28: IW | AD28: 46 | AE28: 39 | AF28: 41 | AG28: 39 | AH28: =TRANSPOSE(AI27:AJ27) -> 41 | AI28: =$AL$23+$AM$23-IF($AC28="IW",$AN$23) -> 28 | AJ28: =$AL$23+2*$AM$23+IF(OR($AC28="T",AJ$22="T"),$AO$23,0)-IF(OR($AC28="IW",AJ$22="IW"),$AN$23,0)-IF(AND(OR($AC28="W",$AC28="IW",$AC28="G"),OR(AJ$22="W",AJ$22="IW",AJ$22="G")),$AP$23,0) -> 41
A29: 8 | B29: 2 | C29: 2 | D29: 2 | E29: 3 | F29: W | G29: S | H29: 2 | I29: 3 | J29: W_S | K29: 7 | L29: GP | M29: 26 | N29: 23 | O29: 23 | P29: 23 | Q29: 23 | R29: =TRANSPOSE(S28) -> 21 | S29: =$U$23+$V$23-IF($L29="IW",$W$23) -> 16 | AB29: 7 | AC29: GP | AD29: 49 | AE29: 44 | AF29: 44 | AG29: 44 | AH29: 44 | AI29: =TRANSPOSE(AJ28) -> 41 | AJ29: =$AL$23+$AM$23-IF($AC29="IW",$AN$23) -> 31
A30: 9 | B30: 2 | C30: 3 | D30: 2 | E30: 4 | F30: W | G30: G | H30: 2 | I30: 4 | J30: W_G
A31: 10 | B31: 2 | C31: 4 | D31: 2 | E31: 5 | F31: W | G31: A | H31: 2 | I31: 5 | J31: W_A | M31: 1 | N31: 2 | O31: 3 | P31: 4 | Q31: 5 | R31: 6 | S31: 7 | Y31: W/IW/G | AD31: 1 | AE31: 2 | AF31: 3 | AG31: 4 | AH31: 5 | AI31: 6 | AJ31: 7
A32: 11 | B32: 2 | C32: 5 | D32: 2 | E32: 6 | F32: W | G32: IW | H32: 2 | I32: 6 | J32: W_IW | L32: FOS 12 | M32: =M22:S22 -> T | N32: W | O32: S | P32: G | Q32: A | R32: IW | S32: GP | U32: allg | V32: Profil | W32: FSpr | X32: Ma | Y32: Nat | Z32: SpRe | AC32: BOS 12_1 | AD32: =AD22:AJ22 -> T | AE32: W | AF32: S | AG32: G | AH32: A | AI32: IW | AJ32: GP | AL32: allg | AM32: Profil | AN32: FSpr | AO32: Ma | AP32: Nat
A33: 12 | B33: 2 | C33: 6 | D33: 2 | E33: 7 | F33: W | G33: GP | H33: 2 | I33: 7 | J33: W_GP | K33: 1 | L33: =$L$23:$L$29 -> T | M33: =$U$33+$V$33-IF($L33="IW",$W$33) -> 26 | N33: =$U$33+2*$V$33+IF(OR($L33="T",N$22="T"),$X$33,0)-IF(OR($L33="IW",N$22="IW"),$W$33,0)-IF(AND(OR($L33="W",$L33="IW",$L33="G"),OR(N$32="W",N$32="IW",N$32="G")),$Y$33,0) -> 42 | O33: 42 | P33: 42 | Q33: 42 | R33: 39 | S33: 42 | U33: =18-Z33 -> 14 | V33: 12 | W33: 3 | X33: 4 | Y33: 2 | Z33: =SUM($V$57:$W$57) -> 4 | AB33: 1 | AC33: =$L$23:$L$29 -> T | AD33: =AD23:AJ29/2 -> 15.5 | AE33: 24.5 | AF33: 24.5 | AG33: 24.5 | AH33: 24.5 | AI33: 23 | AJ33: 24.5
A34: 13 | B34: 3 | C34: 1 | D34: 3 | E34: 1 | F34: S | G34: T | H34: 3 | I34: 1 | J34: S_T | K34: 2 | L34: W | M34: =TRANSPOSE(N33:S33) -> 42 | N34: =$U$33+$V$33-IF($L34="IW",$W$33) -> 26 | O34: =$U$33+2*$V$33+IF(OR($L34="T",O$22="T"),$X$33,0)-IF(OR($L34="IW",O$22="IW"),$W$33,0)-IF(AND(OR($L34="W",$L34="IW",$L34="G"),OR(O$32="W",O$32="IW",O$32="G")),$Y$33,0) -> 38 | P34: =$U$33+2*$V$33+IF(OR($L34="T",P$22="T"),$X$33,0)-IF(OR($L34="IW",P$22="IW"),$W$33,0)-IF(AND(OR($L34="W",$L34="IW",$L34="G"),OR(P$32="W",P$32="IW",P$32="G")),$Y$33,0) -> 36 | Q34: =$U$33+2*$V$33+IF(OR($L34="T",Q$22="T"),$X$33,0)-IF(OR($L34="IW",Q$22="IW"),$W$33,0)-IF(AND(OR($L34="W",$L34="IW",$L34="G"),OR(Q$32="W",Q$32="IW",Q$32="G")),$Y$33,0) -> 38 | R34: =$U$33+2*$V$33+IF(OR($L34="T",R$22="T"),$X$33,0)-IF(OR($L34="IW",R$22="IW"),$W$33,0)-IF(AND(OR($L34="W",$L34="IW",$L34="G"),OR(R$32="W",R$32="IW",R$32="G")),$Y$33,0) -> 33 | S34: =$U$33+2*$V$33+IF(OR($L34="T",S$22="T"),$X$33,0)-IF(OR($L34="IW",S$22="IW"),$W$33,0)-IF(AND(OR($L34="W",$L34="IW",$L34="G"),OR(S$32="W",S$32="IW",S$32="G")),$Y$33,0) -> 38 | AB34: 2 | AC34: W | AD34: 24.5 | AE34: 15.5 | AF34: 22 | AG34: 21 | AH34: 22 | AI34: 19.5 | AJ34: 22
A35: 14 | B35: 3 | C35: 2 | D35: 3 | E35: 2 | F35: S | G35: W | H35: 3 | I35: 2 | J35: S_W | K35: 3 | L35: S | M35: 42 | N35: =TRANSPOSE(O34:S34) -> 38 | O35: =$U$33+$V$33-IF($L35="IW",$W$33) -> 26 | P35: =$U$33+2*$V$33+IF(OR($L35="T",P$22="T"),$X$33,0)-IF(OR($L35="IW",P$22="IW"),$W$33,0)-IF(AND(OR($L35="W",$L35="IW",$L35="G"),OR(P$32="W",P$32="IW",P$32="G")),$Y$33,0) -> 38 | Q35: =$U$33+2*$V$33+IF(OR($L35="T",Q$22="T"),$X$33,0)-IF(OR($L35="IW",Q$22="IW"),$W$33,0)-IF(AND(OR($L35="W",$L35="IW",$L35="G"),OR(Q$32="W",Q$32="IW",Q$32="G")),$Y$33,0) -> 38 | R35: =$U$33+2*$V$33+IF(OR($L35="T",R$22="T"),$X$33,0)-IF(OR($L35="IW",R$22="IW"),$W$33,0)-IF(AND(OR($L35="W",$L35="IW",$L35="G"),OR(R$32="W",R$32="IW",R$32="G")),$Y$33,0) -> 35 | S35: =$U$33+2*$V$33+IF(OR($L35="T",S$22="T"),$X$33,0)-IF(OR($L35="IW",S$22="IW"),$W$33,0)-IF(AND(OR($L35="W",$L35="IW",$L35="G"),OR(S$32="W",S$32="IW",S$32="G")),$Y$33,0) -> 38 | AB35: 3 | AC35: S | AD35: 24.5 | AE35: 22 | AF35: 15.5 | AG35: 22 | AH35: 22 | AI35: 20.5 | AJ35: 22
A36: 15 | B36: 3 | C36: 3 | D36: 3 | E36: 4 | F36: S | G36: G | H36: 3 | I36: 4 | J36: S_G | K36: 4 | L36: G | M36: 42 | N36: 36 | O36: =TRANSPOSE(P35:S35) -> 38 | P36: =$U$33+$V$33-IF($L36="IW",$W$33) -> 26 | Q36: =$U$33+2*$V$33+IF(OR($L36="T",Q$22="T"),$X$33,0)-IF(OR($L36="IW",Q$22="IW"),$W$33,0)-IF(AND(OR($L36="W",$L36="IW",$L36="G"),OR(Q$32="W",Q$32="IW",Q$32="G")),$Y$33,0) -> 38 | R36: =$U$33+2*$V$33+IF(OR($L36="T",R$22="T"),$X$33,0)-IF(OR($L36="IW",R$22="IW"),$W$33,0)-IF(AND(OR($L36="W",$L36="IW",$L36="G"),OR(R$32="W",R$32="IW",R$32="G")),$Y$33,0) -> 33 | S36: =$U$33+2*$V$33+IF(OR($L36="T",S$22="T"),$X$33,0)-IF(OR($L36="IW",S$22="IW"),$W$33,0)-IF(AND(OR($L36="W",$L36="IW",$L36="G"),OR(S$32="W",S$32="IW",S$32="G")),$Y$33,0) -> 38 | AB36: 4 | AC36: G | AD36: 24.5 | AE36: 21 | AF36: 22 | AG36: 15.5 | AH36: 22 | AI36: 19.5 | AJ36: 22
A37: 16 | B37: 3 | C37: 4 | D37: 3 | E37: 5 | F37: S | G37: A | H37: 3 | I37: 5 | J37: S_A | K37: 5 | L37: A | M37: 42 | N37: 38 | O37: 38 | P37: =TRANSPOSE(Q36:S36) -> 38 | Q37: =$U$33+$V$33-IF($L37="IW",$W$33) -> 26 | R37: =$U$33+2*$V$33+IF(OR($L37="T",R$22="T"),$X$33,0)-IF(OR($L37="IW",R$22="IW"),$W$33,0)-IF(AND(OR($L37="W",$L37="IW",$L37="G"),OR(R$32="W",R$32="IW",R$32="G")),$Y$33,0) -> 35 | S37: =$U$33+2*$V$33+IF(OR($L37="T",S$22="T"),$X$33,0)-IF(OR($L37="IW",S$22="IW"),$W$33,0)-IF(AND(OR($L37="W",$L37="IW",$L37="G"),OR(S$32="W",S$32="IW",S$32="G")),$Y$33,0) -> 38 | AB37: 5 | AC37: A | AD37: 24.5 | AE37: 22 | AF37: 22 | AG37: 22 | AH37: 15.5 | AI37: 20.5 | AJ37: 22
A38: 17 | B38: 3 | C38: 5 | D38: 3 | E38: 6 | F38: S | G38: IW | H38: 3 | I38: 6 | J38: S_IW | K38: 6 | L38: IW | M38: 39 | N38: 33 | O38: 35 | P38: 33 | Q38: =TRANSPOSE(R37:S37) -> 35 | R38: =$U$33+$V$33-IF($L38="IW",$W$33) -> 23 | S38: =$U$33+2*$V$33+IF(OR($L38="T",S$22="T"),$X$33,0)-IF(OR($L38="IW",S$22="IW"),$W$33,0)-IF(AND(OR($L38="W",$L38="IW",$L38="G"),OR(S$32="W",S$32="IW",S$32="G")),$Y$33,0) -> 35 | AB38: 6 | AC38: IW | AD38: 23 | AE38: 19.5 | AF38: 20.5 | AG38: 19.5 | AH38: 20.5 | AI38: 14 | AJ38: 20.5
A39: 18 | B39: 3 | C39: 6 | D39: 3 | E39: 7 | F39: S | G39: GP | H39: 3 | I39: 7 | J39: S_GP | K39: 7 | L39: GP | M39: 42 | N39: 38 | O39: 38 | P39: 38 | Q39: 38 | R39: =TRANSPOSE(S38) -> 35 | S39: =$U$33+$V$33-IF($L39="IW",$W$33) -> 26 | AB39: 7 | AC39: GP | AD39: 24.5 | AE39: 22 | AF39: 22 | AG39: 22 | AH39: 22 | AI39: 20.5 | AJ39: 15.5
A40: 19 | B40: 4 | C40: 1 | D40: 4 | E40: 1 | F40: G | G40: T | H40: 4 | I40: 1 | J40: G_T
A41: 20 | B41: 4 | C41: 2 | D41: 4 | E41: 2 | F41: G | G41: W | H41: 4 | I41: 2 | J41: G_W | M41: 1 | N41: 2 | O41: 3 | P41: 4 | Q41: 5 | R41: 6 | S41: 7 | Y41: W/IW/G | AD41: 1 | AE41: 2 | AF41: 3 | AG41: 4 | AH41: 5 | AI41: 6 | AJ41: 7
A42: 21 | B42: 4 | C42: 3 | D42: 4 | E42: 3 | F42: G | G42: S | H42: 4 | I42: 3 | J42: G_S | L42: FOS 13 | M42: =M22:S22 -> T | N42: W | O42: S | P42: G | Q42: A | R42: IW | S42: GP | U42: allg | V42: Profil | W42: FSpr | X42: Ma | Y42: Nat | Z42: SpRe | AC42: BOS 12_2 | AD42: =AD22:AJ22 -> T | AE42: W | AF42: S | AG42: G | AH42: A | AI42: IW | AJ42: GP | AL42: allg | AM42: Profil | AN42: FSpr | AO42: Ma | AP42: Nat
A43: 22 | B43: 4 | C43: 4 | D43: 4 | E43: 5 | F43: G | G43: A | H43: 4 | I43: 5 | J43: G_A | K43: 1 | L43: =$L$23:$L$29 -> T | M43: =$U$43+$V$43-IF($L43="IW",$W$43) -> 27 | N43: =$U$43+2*$V$43+IF(OR($L43="T",N$22="T"),$X$43,0)-IF(OR($L43="IW",N$22="IW"),$W$43,0)-IF(AND(OR($L43="W",$L43="IW",$L43="G"),OR(N$32="W",N$32="IW",N$32="G")),$Y$43,0) -> 42 | O43: 42 | P43: 42 | Q43: 42 | R43: 39 | S43: 42 | U43: =18-Z43 -> 17 | V43: 10 | W43: 3 | X43: 5 | Y43: 2 | Z43: =SUM($V$58:$W$58) -> 1 | AB43: 1 | AC43: =$L$23:$L$29 -> T | AD43: =AD23:AJ29/2 -> 15.5 | AE43: 24.5 | AF43: 24.5 | AG43: 24.5 | AH43: 24.5 | AI43: 23 | AJ43: 24.5
A44: 23 | B44: 4 | C44: 5 | D44: 4 | E44: 6 | F44: G | G44: IW | H44: 4 | I44: 6 | J44: G_IW | K44: 2 | L44: W | M44: =TRANSPOSE(N43:S43) -> 42 | N44: =$U$43+$V$43-IF($L44="IW",$W$43) -> 27 | O44: =$U$43+2*$V$43+IF(OR($L44="T",O$22="T"),$X$43,0)-IF(OR($L44="IW",O$22="IW"),$W$43,0)-IF(AND(OR($L44="W",$L44="IW",$L44="G"),OR(O$32="W",O$32="IW",O$32="G")),$Y$43,0) -> 37 | P44: =$U$43+2*$V$43+IF(OR($L44="T",P$22="T"),$X$43,0)-IF(OR($L44="IW",P$22="IW"),$W$43,0)-IF(AND(OR($L44="W",$L44="IW",$L44="G"),OR(P$32="W",P$32="IW",P$32="G")),$Y$43,0) -> 35 | Q44: =$U$43+2*$V$43+IF(OR($L44="T",Q$22="T"),$X$43,0)-IF(OR($L44="IW",Q$22="IW"),$W$43,0)-IF(AND(OR($L44="W",$L44="IW",$L44="G"),OR(Q$32="W",Q$32="IW",Q$32="G")),$Y$43,0) -> 37 | R44: =$U$43+2*$V$43+IF(OR($L44="T",R$22="T"),$X$43,0)-IF(OR($L44="IW",R$22="IW"),$W$43,0)-IF(AND(OR($L44="W",$L44="IW",$L44="G"),OR(R$32="W",R$32="IW",R$32="G")),$Y$43,0) -> 32 | S44: =$U$43+2*$V$43+IF(OR($L44="T",S$22="T"),$X$43,0)-IF(OR($L44="IW",S$22="IW"),$W$43,0)-IF(AND(OR($L44="W",$L44="IW",$L44="G"),OR(S$32="W",S$32="IW",S$32="G")),$Y$43,0) -> 37 | AB44: 2 | AC44: W | AD44: 24.5 | AE44: 15.5 | AF44: 22 | AG44: 21 | AH44: 22 | AI44: 19.5 | AJ44: 22
A45: 24 | B45: 4 | C45: 6 | D45: 4 | E45: 7 | F45: G | G45: GP | H45: 4 | I45: 7 | J45: G_GP | K45: 3 | L45: S | M45: 42 | N45: =TRANSPOSE(O44:S44) -> 37 | O45: =$U$43+$V$43-IF($L45="IW",$W$43) -> 27 | P45: =$U$43+2*$V$43+IF(OR($L45="T",P$22="T"),$X$43,0)-IF(OR($L45="IW",P$22="IW"),$W$43,0)-IF(AND(OR($L45="W",$L45="IW",$L45="G"),OR(P$32="W",P$32="IW",P$32="G")),$Y$43,0) -> 37 | Q45: =$U$43+2*$V$43+IF(OR($L45="T",Q$22="T"),$X$43,0)-IF(OR($L45="IW",Q$22="IW"),$W$43,0)-IF(AND(OR($L45="W",$L45="IW",$L45="G"),OR(Q$32="W",Q$32="IW",Q$32="G")),$Y$43,0) -> 37 | R45: =$U$43+2*$V$43+IF(OR($L45="T",R$22="T"),$X$43,0)-IF(OR($L45="IW",R$22="IW"),$W$43,0)-IF(AND(OR($L45="W",$L45="IW",$L45="G"),OR(R$32="W",R$32="IW",R$32="G")),$Y$43,0) -> 34 | S45: =$U$43+2*$V$43+IF(OR($L45="T",S$22="T"),$X$43,0)-IF(OR($L45="IW",S$22="IW"),$W$43,0)-IF(AND(OR($L45="W",$L45="IW",$L45="G"),OR(S$32="W",S$32="IW",S$32="G")),$Y$43,0) -> 37 | AB45: 3 | AC45: S | AD45: 24.5 | AE45: 22 | AF45: 15.5 | AG45: 22 | AH45: 22 | AI45: 20.5 | AJ45: 22
A46: 25 | B46: 5 | C46: 1 | D46: 5 | E46: 1 | F46: A | G46: T | H46: 5 | I46: 1 | J46: A_T | K46: 4 | L46: G | M46: 42 | N46: 35 | O46: =TRANSPOSE(P45:S45) -> 37 | P46: =$U$43+$V$43-IF($L46="IW",$W$43) -> 27 | Q46: =$U$43+2*$V$43+IF(OR($L46="T",Q$22="T"),$X$43,0)-IF(OR($L46="IW",Q$22="IW"),$W$43,0)-IF(AND(OR($L46="W",$L46="IW",$L46="G"),OR(Q$32="W",Q$32="IW",Q$32="G")),$Y$43,0) -> 37 | R46: =$U$43+2*$V$43+IF(OR($L46="T",R$22="T"),$X$43,0)-IF(OR($L46="IW",R$22="IW"),$W$43,0)-IF(AND(OR($L46="W",$L46="IW",$L46="G"),OR(R$32="W",R$32="IW",R$32="G")),$Y$43,0) -> 32 | S46: =$U$43+2*$V$43+IF(OR($L46="T",S$22="T"),$X$43,0)-IF(OR($L46="IW",S$22="IW"),$W$43,0)-IF(AND(OR($L46="W",$L46="IW",$L46="G"),OR(S$32="W",S$32="IW",S$32="G")),$Y$43,0) -> 37 | AB46: 4 | AC46: G | AD46: 24.5 | AE46: 21 | AF46: 22 | AG46: 15.5 | AH46: 22 | AI46: 19.5 | AJ46: 22
A47: 26 | B47: 5 | C47: 2 | D47: 5 | E47: 2 | F47: A | G47: W | H47: 5 | I47: 2 | J47: A_W | K47: 5 | L47: A | M47: 42 | N47: 37 | O47: 37 | P47: =TRANSPOSE(Q46:S46) -> 37 | Q47: =$U$43+$V$43-IF($L47="IW",$W$43) -> 27 | R47: =$U$43+2*$V$43+IF(OR($L47="T",R$22="T"),$X$43,0)-IF(OR($L47="IW",R$22="IW"),$W$43,0)-IF(AND(OR($L47="W",$L47="IW",$L47="G"),OR(R$32="W",R$32="IW",R$32="G")),$Y$43,0) -> 34 | S47: =$U$43+2*$V$43+IF(OR($L47="T",S$22="T"),$X$43,0)-IF(OR($L47="IW",S$22="IW"),$W$43,0)-IF(AND(OR($L47="W",$L47="IW",$L47="G"),OR(S$32="W",S$32="IW",S$32="G")),$Y$43,0) -> 37 | AB47: 5 | AC47: A | AD47: 24.5 | AE47: 22 | AF47: 22 | AG47: 22 | AH47: 15.5 | AI47: 20.5 | AJ47: 22
A48: 27 | B48: 5 | C48: 3 | D48: 5 | E48: 3 | F48: A | G48: S | H48: 5 | I48: 3 | J48: A_S | K48: 6 | L48: IW | M48: 39 | N48: 32 | O48: 34 | P48: 32 | Q48: =TRANSPOSE(R47:S47) -> 34 | R48: =$U$43+$V$43-IF($L48="IW",$W$43) -> 24 | S48: =$U$43+2*$V$43+IF(OR($L48="T",S$22="T"),$X$43,0)-IF(OR($L48="IW",S$22="IW"),$W$43,0)-IF(AND(OR($L48="W",$L48="IW",$L48="G"),OR(S$32="W",S$32="IW",S$32="G")),$Y$43,0) -> 34 | AB48: 6 | AC48: IW | AD48: 23 | AE48: 19.5 | AF48: 20.5 | AG48: 19.5 | AH48: 20.5 | AI48: 14 | AJ48: 20.5
A49: 28 | B49: 5 | C49: 4 | D49: 5 | E49: 4 | F49: A | G49: G | H49: 5 | I49: 4 | J49: A_G | K49: 7 | L49: GP | M49: 42 | N49: 37 | O49: 37 | P49: 37 | Q49: 37 | R49: =TRANSPOSE(S48) -> 34 | S49: =$U$43+$V$43-IF($L49="IW",$W$43) -> 27 | AB49: 7 | AC49: GP | AD49: 24.5 | AE49: 22 | AF49: 22 | AG49: 22 | AH49: 22 | AI49: 20.5 | AJ49: 15.5
A50: 29 | B50: 5 | C50: 5 | D50: 5 | E50: 6 | F50: A | G50: IW | H50: 5 | I50: 6 | J50: A_IW
A51: 30 | B51: 5 | C51: 6 | D51: 5 | E51: 7 | F51: A | G51: GP | H51: 5 | I51: 7 | J51: A_GP | AP51: W/IW/G
A52: 31 | B52: 6 | C52: 1 | D52: 6 | E52: 1 | F52: IW | G52: T | H52: 6 | I52: 1 | J52: IW_T | P52: IW-Profilfach (Fremdsprache!) | U52: Religion-Stundentafel | AC52: BOS 13 | AD52: =AD42:AJ42 -> T | AE52: W | AF52: S | AG52: G | AH52: A | AI52: IW | AJ52: GP | AL52: allg | AM52: Profil | AN52: FSpr | AO52: Ma | AP52: Nat | AQ52: SpRe
A53: 32 | B53: 6 | C53: 2 | D53: 6 | E53: 2 | F53: IW | G53: W | H53: 6 | I53: 2 | J53: IW_W | P53: FOS/BOS | R53: BOS12 | U53: FOS | V53: Re | W53: Spo | X53: BOS | Y53: Re | Z53: Zeile | AB53: 1 | AC53: =$L$23:$L$29 -> T | AD53: =AL$53+AM$53 -> 27 | AE53: =$AL$53+2*$AM$53+IF(OR($AC53="T",AE$22="T"),$AO$53,0)-IF(OR($AC53="IW",AE$22="IW"),$AN$53,0)-IF(AND(OR($AC53="W",$AC53="IW",$AC53="G"),OR(AE$22="W",AE$22="IW",AE$22="G")),$AP$53,0) -> 42 | AF53: 42 | AG53: 42 | AH53: 42 | AI53: 39 | AJ53: 42 | AL53: =18-AQ53 -> 17 | AM53: 10 | AN53: 3 | AO53: 5 | AP53: 2 | AQ53: =$Y$59 -> 1
A54: 33 | B54: 6 | C54: 3 | D54: 6 | E54: 3 | F54: IW | G54: S | H54: 6 | I54: 3 | J54: IW_S | P54: VK | Q54: 0 | R54: 0 | T54: Vorkurs | U54: VK | V54: 0 | W54: 0 | X54: VK | Y54: 0 | Z54: 0 | AB54: 2 | AC54: W | AD54: =TRANSPOSE(AE53:AJ53) -> 42 | AE54: =$AD$53-IF($AC54="IW",$AN$53) -> 27 | AF54: =$AL$53+2*$AM$53+IF(OR($AC54="T",AF$22="T"),$AO$53,0)-IF(OR($AC54="IW",AF$22="IW"),$AN$53,0)-IF(AND(OR($AC54="W",$AC54="IW",$AC54="G"),OR(AF$22="W",AF$22="IW",AF$22="G")),$AP$53,0) -> 37 | AG54: =$AL$53+2*$AM$53+IF(OR($AC54="T",AG$22="T"),$AO$53,0)-IF(OR($AC54="IW",AG$22="IW"),$AN$53,0)-IF(AND(OR($AC54="W",$AC54="IW",$AC54="G"),OR(AG$22="W",AG$22="IW",AG$22="G")),$AP$53,0) -> 35 | AH54: =$AL$53+2*$AM$53+IF(OR($AC54="T",AH$22="T"),$AO$53,0)-IF(OR($AC54="IW",AH$22="IW"),$AN$53,0)-IF(AND(OR($AC54="W",$AC54="IW",$AC54="G"),OR(AH$22="W",AH$22="IW",AH$22="G")),$AP$53,0) -> 37 | AI54: =$AL$53+2*$AM$53+IF(OR($AC54="T",AI$22="T"),$AO$53,0)-IF(OR($AC54="IW",AI$22="IW"),$AN$53,0)-IF(AND(OR($AC54="W",$AC54="IW",$AC54="G"),OR(AI$22="W",AI$22="IW",AI$22="G")),$AP$53,0) -> 32 | AJ54: =$AL$53+2*$AM$53+IF(OR($AC54="T",AJ$22="T"),$AO$53,0)-IF(OR($AC54="IW",AJ$22="IW"),$AN$53,0)-IF(AND(OR($AC54="W",$AC54="IW",$AC54="G"),OR(AJ$22="W",AJ$22="IW",AJ$22="G")),$AP$53,0) -> 37
A55: 34 | B55: 6 | C55: 4 | D55: 6 | E55: 4 | F55: IW | G55: G | H55: 6 | I55: 4 | J55: IW_G | P55: VS | Q55: 0 | R55: 0 | T55: Vorklasse | U55: VS | V55: 1 | W55: 0 | X55: VS | Y55: 1 | Z55: 0 | AB55: 3 | AC55: S | AD55: 42 | AE55: =TRANSPOSE(AF54:AJ54) -> 37 | AF55: =$AD$53-IF($AC55="IW",$AN$53) -> 27 | AG55: =$AL$53+2*$AM$53+IF(OR($AC55="T",AG$22="T"),$AO$53,0)-IF(OR($AC55="IW",AG$22="IW"),$AN$53,0)-IF(AND(OR($AC55="W",$AC55="IW",$AC55="G"),OR(AG$22="W",AG$22="IW",AG$22="G")),$AP$53,0) -> 37 | AH55: =$AL$53+2*$AM$53+IF(OR($AC55="T",AH$22="T"),$AO$53,0)-IF(OR($AC55="IW",AH$22="IW"),$AN$53,0)-IF(AND(OR($AC55="W",$AC55="IW",$AC55="G"),OR(AH$22="W",AH$22="IW",AH$22="G")),$AP$53,0) -> 37 | AI55: =$AL$53+2*$AM$53+IF(OR($AC55="T",AI$22="T"),$AO$53,0)-IF(OR($AC55="IW",AI$22="IW"),$AN$53,0)-IF(AND(OR($AC55="W",$AC55="IW",$AC55="G"),OR(AI$22="W",AI$22="IW",AI$22="G")),$AP$53,0) -> 34 | AJ55: =$AL$53+2*$AM$53+IF(OR($AC55="T",AJ$22="T"),$AO$53,0)-IF(OR($AC55="IW",AJ$22="IW"),$AN$53,0)-IF(AND(OR($AC55="W",$AC55="IW",$AC55="G"),OR(AJ$22="W",AJ$22="IW",AJ$22="G")),$AP$53,0) -> 37
A56: 35 | B56: 6 | C56: 5 | D56: 6 | E56: 5 | F56: IW | G56: A | H56: 6 | I56: 5 | J56: IW_A | P56: 11 | Q56: 2 | R56: 2 | U56: 11 | V56: 0 | W56: 0 | X56: 12 | Y56: 1 | Z56: 0 | AB56: 4 | AC56: G | AD56: 42 | AE56: 35 | AF56: =TRANSPOSE(AG55:AJ55) -> 37 | AG56: =$AD$53-IF($AC56="IW",$AN$53) -> 27 | AH56: =$AL$53+2*$AM$53+IF(OR($AC56="T",AH$22="T"),$AO$53,0)-IF(OR($AC56="IW",AH$22="IW"),$AN$53,0)-IF(AND(OR($AC56="W",$AC56="IW",$AC56="G"),OR(AH$22="W",AH$22="IW",AH$22="G")),$AP$53,0) -> 37 | AI56: =$AL$53+2*$AM$53+IF(OR($AC56="T",AI$22="T"),$AO$53,0)-IF(OR($AC56="IW",AI$22="IW"),$AN$53,0)-IF(AND(OR($AC56="W",$AC56="IW",$AC56="G"),OR(AI$22="W",AI$22="IW",AI$22="G")),$AP$53,0) -> 32 | AJ56: =$AL$53+2*$AM$53+IF(OR($AC56="T",AJ$22="T"),$AO$53,0)-IF(OR($AC56="IW",AJ$22="IW"),$AN$53,0)-IF(AND(OR($AC56="W",$AC56="IW",$AC56="G"),OR(AJ$22="W",AJ$22="IW",AJ$22="G")),$AP$53,0) -> 37
A57: 36 | B57: 6 | C57: 6 | D57: 6 | E57: 7 | F57: IW | G57: GP | H57: 6 | I57: 7 | J57: IW_GP | P57: 12 | Q57: 3 | R57: 5 | U57: 12 | V57: 2 | W57: 2 | X57: 12_1 | Y57: 0.5 | Z57: 1 | AB57: 5 | AC57: A | AD57: 42 | AE57: 37 | AF57: 37 | AG57: =TRANSPOSE(AH56:AJ56) -> 37 | AH57: =$AD$53-IF($AC57="IW",$AN$53) -> 27 | AI57: =$AL$53+2*$AM$53+IF(OR($AC57="T",AI$22="T"),$AO$53,0)-IF(OR($AC57="IW",AI$22="IW"),$AN$53,0)-IF(AND(OR($AC57="W",$AC57="IW",$AC57="G"),OR(AI$22="W",AI$22="IW",AI$22="G")),$AP$53,0) -> 34 | AJ57: =$AL$53+2*$AM$53+IF(OR($AC57="T",AJ$22="T"),$AO$53,0)-IF(OR($AC57="IW",AJ$22="IW"),$AN$53,0)-IF(AND(OR($AC57="W",$AC57="IW",$AC57="G"),OR(AJ$22="W",AJ$22="IW",AJ$22="G")),$AP$53,0) -> 37
A58: 37 | B58: 7 | C58: 1 | D58: 7 | E58: 1 | F58: GP | G58: T | H58: 7 | I58: 1 | J58: GP_T | P58: 12_1 | Q58: =Q57/2 -> 1.5 | R58: =R57/2 -> 2.5 | U58: 13 | V58: 1 | W58: 0 | X58: 12_2 | Y58: 0.5 | Z58: 2 | AB58: 6 | AC58: IW | AD58: 39 | AE58: 32 | AF58: 34 | AG58: 32 | AH58: =TRANSPOSE(AI57:AJ57) -> 34 | AI58: =$AD$53-IF($AC58="IW",$AN$53) -> 24 | AJ58: =$AL$53+2*$AM$53+IF(OR($AC58="T",AJ$22="T"),$AO$53,0)-IF(OR($AC58="IW",AJ$22="IW"),$AN$53,0)-IF(AND(OR($AC58="W",$AC58="IW",$AC58="G"),OR(AJ$22="W",AJ$22="IW",AJ$22="G")),$AP$53,0) -> 34
A59: 38 | B59: 7 | C59: 2 | D59: 7 | E59: 2 | F59: GP | G59: W | H59: 7 | I59: 2 | J59: GP_W | P59: 12_2 | Q59: =Q57/2 -> 1.5 | R59: =R57/2 -> 2.5 | X59: 13 | Y59: 1 | Z59: 3 | AB59: 7 | AC59: GP | AD59: 42 | AE59: 37 | AF59: 37 | AG59: 37 | AH59: 37 | AI59: =TRANSPOSE(AJ58) -> 34 | AJ59: =$AD$53-IF($AC59="IW",$AN$53) -> 27
A60: 39 | B60: 7 | C60: 3 | D60: 7 | E60: 3 | F60: GP | G60: S | H60: 7 | I60: 3 | J60: GP_S | P60: 13 | Q60: 3 | R60: 3
A61: 40 | B61: 7 | C61: 4 | D61: 7 | E61: 4 | F61: GP | G61: G | H61: 7 | I61: 4 | J61: GP_G | AC61: ohne IW-Fremdsprache; gemeinsam Nat
A62: 41 | B62: 7 | C62: 5 | D62: 7 | E62: 5 | F62: GP | G62: A | H62: 7 | I62: 5 | J62: GP_A | AB62: Profil | AC62: BOS 13 | AD62: =AD52:AJ52 -> T | AE62: W | AF62: S | AG62: G | AH62: A | AI62: IW | AJ62: GP
A63: 42 | B63: 7 | C63: 6 | D63: 7 | E63: 6 | F63: GP | G63: IW | H63: 7 | I63: 6 | J63: GP_IW | AB63: 1 | AC63: =$L$23:$L$29 -> T | AD63: 10 | AE63: =2*$AM$53-IF(OR($AC63="IW",AE$22="IW"),$AN$53,0)-IF(AND(OR($AC63="W",$AC63="IW",$AC63="G"),OR(AE$22="W",AE$22="IW",AE$22="G")),$AP$53,0) -> 20 | AF63: 20 | AG63: 20 | AH63: 20 | AI63: 17 | AJ63: 20
A64: 0 | B64: 0 | C64: 0 | D64: 0 | E64: 0 | J64: - | AB64: 2 | AC64: W | AD64: =TRANSPOSE(AE63:AJ63) -> 20 | AE64: =$AD$63 -> 10 | AF64: =2*$AM$53-IF(OR($AC64="IW",AF$22="IW"),$AN$53,0)-IF(AND(OR($AC64="W",$AC64="IW",$AC64="G"),OR(AF$22="W",AF$22="IW",AF$22="G")),$AP$53,0) -> 20 | AG64: =2*$AM$53-IF(OR($AC64="IW",AG$22="IW"),$AN$53,0)-IF(AND(OR($AC64="W",$AC64="IW",$AC64="G"),OR(AG$22="W",AG$22="IW",AG$22="G")),$AP$53,0) -> 18 | AH64: =2*$AM$53-IF(OR($AC64="IW",AH$22="IW"),$AN$53,0)-IF(AND(OR($AC64="W",$AC64="IW",$AC64="G"),OR(AH$22="W",AH$22="IW",AH$22="G")),$AP$53,0) -> 20 | AI64: =2*$AM$53-IF(OR($AC64="IW",AI$22="IW"),$AN$53,0)-IF(AND(OR($AC64="W",$AC64="IW",$AC64="G"),OR(AI$22="W",AI$22="IW",AI$22="G")),$AP$53,0) -> 15 | AJ64: =2*$AM$53-IF(OR($AC64="IW",AJ$22="IW"),$AN$53,0)-IF(AND(OR($AC64="W",$AC64="IW",$AC64="G"),OR(AJ$22="W",AJ$22="IW",AJ$22="G")),$AP$53,0) -> 20
AB65: 3 | AC65: S | AD65: 20 | AE65: =TRANSPOSE(AF64:AJ64) -> 20 | AF65: =$AD$63 -> 10 | AG65: =2*$AM$53-IF(OR($AC65="IW",AG$22="IW"),$AN$53,0)-IF(AND(OR($AC65="W",$AC65="IW",$AC65="G"),OR(AG$22="W",AG$22="IW",AG$22="G")),$AP$53,0) -> 20 | AH65: =2*$AM$53-IF(OR($AC65="IW",AH$22="IW"),$AN$53,0)-IF(AND(OR($AC65="W",$AC65="IW",$AC65="G"),OR(AH$22="W",AH$22="IW",AH$22="G")),$AP$53,0) -> 20 | AI65: =2*$AM$53-IF(OR($AC65="IW",AI$22="IW"),$AN$53,0)-IF(AND(OR($AC65="W",$AC65="IW",$AC65="G"),OR(AI$22="W",AI$22="IW",AI$22="G")),$AP$53,0) -> 17 | AJ65: =2*$AM$53-IF(OR($AC65="IW",AJ$22="IW"),$AN$53,0)-IF(AND(OR($AC65="W",$AC65="IW",$AC65="G"),OR(AJ$22="W",AJ$22="IW",AJ$22="G")),$AP$53,0) -> 20
AB66: 4 | AC66: G | AD66: 20 | AE66: 18 | AF66: =TRANSPOSE(AG65:AJ65) -> 20 | AG66: =$AD$63 -> 10 | AH66: =2*$AM$53-IF(OR($AC66="IW",AH$22="IW"),$AN$53,0)-IF(AND(OR($AC66="W",$AC66="IW",$AC66="G"),OR(AH$22="W",AH$22="IW",AH$22="G")),$AP$53,0) -> 20 | AI66: =2*$AM$53-IF(OR($AC66="IW",AI$22="IW"),$AN$53,0)-IF(AND(OR($AC66="W",$AC66="IW",$AC66="G"),OR(AI$22="W",AI$22="IW",AI$22="G")),$AP$53,0) -> 15 | AJ66: =2*$AM$53-IF(OR($AC66="IW",AJ$22="IW"),$AN$53,0)-IF(AND(OR($AC66="W",$AC66="IW",$AC66="G"),OR(AJ$22="W",AJ$22="IW",AJ$22="G")),$AP$53,0) -> 20
N67: T | O67: W | P67: S | Q67: G | R67: A | S67: IW | T67: GP | AB67: 5 | AC67: A | AD67: 20 | AE67: 20 | AF67: 20 | AG67: =TRANSPOSE(AH66:AJ66) -> 20 | AH67: =$AD$63 -> 10 | AI67: =2*$AM$53-IF(OR($AC67="IW",AI$22="IW"),$AN$53,0)-IF(AND(OR($AC67="W",$AC67="IW",$AC67="G"),OR(AI$22="W",AI$22="IW",AI$22="G")),$AP$53,0) -> 17 | AJ67: =2*$AM$53-IF(OR($AC67="IW",AJ$22="IW"),$AN$53,0)-IF(AND(OR($AC67="W",$AC67="IW",$AC67="G"),OR(AJ$22="W",AJ$22="IW",AJ$22="G")),$AP$53,0) -> 20
K68: RDESkSp | N68: 14 | AB68: 6 | AC68: IW | AD68: 17 | AE68: 15 | AF68: 17 | AG68: 15 | AH68: =TRANSPOSE(AI67:AJ67) -> 17 | AI68: =$AD$63-AN53 -> 7 | AJ68: =2*$AM$53-IF(OR($AC68="IW",AJ$22="IW"),$AN$53,0)-IF(AND(OR($AC68="W",$AC68="IW",$AC68="G"),OR(AJ$22="W",AJ$22="IW",AJ$22="G")),$AP$53,0) -> 17
K69: M | N69: 4 | O69: 4 | AB69: 7 | AC69: GP | AD69: 20 | AE69: 20 | AF69: 20 | AG69: 20 | AH69: 20 | AI69: =TRANSPOSE(AJ68) -> 17 | AJ69: =$AD$63 -> 10
K70: Profil (o FSpr) | N70: 12 | O70: 10 | P70: 12 | Q70: 10 | R70: 12 | S70: 7 | T70: 12
K71: Nat | O71: 2 | Q71: 2 | S71: 2
A75: Überprüfung
C76: Profilstunden | J76: Hybrid einfach als allgbild + Profil 1 + Profil 2
A77: Abweichung wg. Ma-Nat! | I77: Teil 1 | J77: =I3 -> 1 | K77: 1 | L77: 1 | M77: 1 | N77: 1 | O77: 1 | P77: 2 | Q77: 2 | R77: 2 | S77: 2 | T77: 2 | U77: 2 | V77: 3 | W77: 3 | X77: 3 | Y77: 3 | Z77: 3 | AA77: 3 | AB77: 4 | AC77: 4 | AD77: 4 | AE77: 4 | AF77: 4 | AG77: 4 | AH77: 5 | AI77: 5 | AJ77: 5 | AK77: 5 | AL77: 5 | AM77: 5 | AN77: 6 | AO77: 6 | AP77: 6 | AQ77: 6 | AR77: 6 | AS77: 6 | AT77: 7 | AU77: 7 | AV77: 7 | AW77: 7 | AX77: 7 | AY77: 7
I78: Teil 2 | J78: =I4 -> 2 | K78: 3 | L78: 4 | M78: 5 | N78: 6 | O78: 7 | P78: 1 | Q78: 3 | R78: 4 | S78: 5 | T78: 6 | U78: 7 | V78: 1 | W78: 2 | X78: 4 | Y78: 5 | Z78: 6 | AA78: 7 | AB78: 1 | AC78: 2 | AD78: 3 | AE78: 5 | AF78: 6 | AG78: 7 | AH78: 1 | AI78: 2 | AJ78: 3 | AK78: 4 | AL78: 6 | AM78: 7 | AN78: 1 | AO78: 2 | AP78: 3 | AQ78: 4 | AR78: 5 | AS78: 7 | AT78: 1 | AU78: 2 | AV78: 3 | AW78: 4 | AX78: 5 | AY78: 6
A79: FOS | B79: allg | C79: =B5 -> T | D79: W | E79: S | F79: G | G79: A | H79: IW | I79: GP | J79: =I5 -> 1 | K79: 2 | L79: 3 | M79: 4 | N79: 5 | O79: 6 | P79: 7 | Q79: 8 | R79: 9 | S79: 10 | T79: 11 | U79: 12 | V79: 13 | W79: 14 | X79: 15 | Y79: 16 | Z79: 17 | AA79: 18 | AB79: 19 | AC79: 20 | AD79: 21 | AE79: 22 | AF79: 23 | AG79: 24 | AH79: 25 | AI79: 26 | AJ79: 27 | AK79: 28 | AL79: 29 | AM79: 30 | AN79: 31 | AO79: 32 | AP79: 33 | AQ79: 34 | AR79: 35 | AS79: 36 | AT79: 37 | AU79: 38 | AV79: 39 | AW79: 40 | AX79: 41 | AY79: 42
A80: 11 | B80: =2*INDEX($B6:$AX6,2)-INDEX($B6:$AX6,15) -> 9 | C80: =B6-$B80 -> 7 | D80: =C6-$B80 -> 7 | E80: 7 | F80: 7 | G80: 7 | H80: 5 | I80: 7 | J80: =$B80+INDEX($C80:$I80,J$77)+INDEX($C80:$I80,J$78) -> 23 | K80: =$B80+INDEX($C80:$I80,K$77)+INDEX($C80:$I80,K$78) -> 23 | L80: 23 | M80: 23 | N80: 21 | O80: 23 | P80: 23 | Q80: 23 | R80: 23 | S80: 23 | T80: 21 | U80: 23 | V80: 23 | W80: 23 | X80: 23 | Y80: 23 | Z80: 21 | AA80: 23 | AB80: 23 | AC80: 23 | AD80: 23 | AE80: 23 | AF80: 21 | AG80: 23 | AH80: 23 | AI80: 23 | AJ80: 23 | AK80: 23 | AL80: 21 | AM80: 23 | AN80: 21 | AO80: 21 | AP80: 21 | AQ80: 21 | AR80: 21 | AS80: 21 | AT80: 23 | AU80: 23 | AV80: 23 | AW80: 23 | AX80: 23 | AY80: 21
A81: 12 | B81: =2*INDEX($B7:$AX7,2)-INDEX($B7:$AX7,15) -> 14 | C81: =B7-$B81 -> 12 | D81: 12 | E81: 12 | F81: 12 | G81: 12 | H81: 9 | I81: 12 | J81: =$B81+INDEX($C81:$I81,J$77)+INDEX($C81:$I81,J$78) -> 38 | K81: 38 | L81: 38 | M81: 38 | N81: 35 | O81: 38 | P81: 38 | Q81: 38 | R81: 38 | S81: 38 | T81: 35 | U81: 38 | V81: 38 | W81: 38 | X81: 38 | Y81: 38 | Z81: 35 | AA81: 38 | AB81: 38 | AC81: 38 | AD81: 38 | AE81: 38 | AF81: 35 | AG81: 38 | AH81: 38 | AI81: 38 | AJ81: 38 | AK81: 38 | AL81: 35 | AM81: 38 | AN81: 35 | AO81: 35 | AP81: 35 | AQ81: 35 | AR81: 35 | AS81: 35 | AT81: 38 | AU81: 38 | AV81: 38 | AW81: 38 | AX81: 38 | AY81: 35
A82: 13 | B82: =2*INDEX($B8:$AX8,2)-INDEX($B8:$AX8,15) -> 17 | C82: =B8-$B82 -> 10 | D82: 10 | E82: 10 | F82: 10 | G82: 10 | H82: 7 | I82: 10 | J82: 37 | K82: 37 | L82: 37 | M82: 37 | N82: 34 | O82: 37 | P82: 37 | Q82: 37 | R82: 37 | S82: 37 | T82: 34 | U82: 37 | V82: 37 | W82: 37 | X82: 37 | Y82: 37 | Z82: 34 | AA82: 37 | AB82: 37 | AC82: 37 | AD82: 37 | AE82: 37 | AF82: 34 | AG82: 37 | AH82: 37 | AI82: 37 | AJ82: 37 | AK82: 37 | AL82: 34 | AM82: 37 | AN82: 34 | AO82: 34 | AP82: 34 | AQ82: 34 | AR82: 34 | AS82: 34 | AT82: 37 | AU82: 37 | AV82: 37 | AW82: 37 | AX82: 37 | AY82: 34
A83: fpA
A84: FöU-FO
A85: FöU-BO
A86: BOS
A87: 12 | B87: =2*INDEX($B13:$AX13,2)-INDEX($B13:$AX13,15) -> 18 | C87: =B13-$B87 -> 13 | D87: =C13-$B87 -> 13 | E87: 13 | F87: 13 | G87: 13 | H87: 10 | I87: 13 | J87: =$B87+INDEX($C87:$I87,J$77)+INDEX($C87:$I87,J$78) -> 44 | K87: =$B87+INDEX($C87:$I87,K$77)+INDEX($C87:$I87,K$78) -> 44 | L87: 44 | M87: 44 | N87: 41 | O87: 44 | P87: 44 | Q87: 44 | R87: 44 | S87: 44 | T87: 41 | U87: 44 | V87: 44 | W87: 44 | X87: 44 | Y87: 44 | Z87: 41 | AA87: 44 | AB87: 44 | AC87: 44 | AD87: 44 | AE87: 44 | AF87: 41 | AG87: 44 | AH87: 44 | AI87: 44 | AJ87: 44 | AK87: 44 | AL87: 41 | AM87: 44 | AN87: 41 | AO87: 41 | AP87: 41 | AQ87: 41 | AR87: 41 | AS87: 41 | AT87: 44 | AU87: 44 | AV87: 44 | AW87: 44 | AX87: 44 | AY87: 41
A88: 12_1 | B88: =2*INDEX($B14:$AX14,2)-INDEX($B14:$AX14,15) -> 9 | C88: =B14-$B88 -> 6.5 | D88: 6.5 | E88: 6.5 | F88: 6.5 | G88: 6.5 | H88: 5 | I88: 6.5 | J88: =$B88+INDEX($C88:$I88,J$77)+INDEX($C88:$I88,J$78) -> 22 | K88: 22 | L88: 22 | M88: 22 | N88: 20.5 | O88: 22 | P88: 22 | Q88: 22 | R88: 22 | S88: 22 | T88: 20.5 | U88: 22 | V88: 22 | W88: 22 | X88: 22 | Y88: 22 | Z88: 20.5 | AA88: 22 | AB88: 22 | AC88: 22 | AD88: 22 | AE88: 22 | AF88: 20.5 | AG88: 22 | AH88: 22 | AI88: 22 | AJ88: 22 | AK88: 22 | AL88: 20.5 | AM88: 22 | AN88: 20.5 | AO88: 20.5 | AP88: 20.5 | AQ88: 20.5 | AR88: 20.5 | AS88: 20.5 | AT88: 22 | AU88: 22 | AV88: 22 | AW88: 22 | AX88: 22 | AY88: 20.5
A89: 12_2 | B89: =2*INDEX($B15:$AX15,2)-INDEX($B15:$AX15,15) -> 9 | C89: =B15-$B89 -> 6.5 | D89: 6.5 | E89: 6.5 | F89: 6.5 | G89: 6.5 | H89: 5 | I89: 6.5 | J89: 22 | K89: 22 | L89: 22 | M89: 22 | N89: 20.5 | O89: 22 | P89: 22 | Q89: 22 | R89: 22 | S89: 22 | T89: 20.5 | U89: 22 | V89: 22 | W89: 22 | X89: 22 | Y89: 22 | Z89: 20.5 | AA89: 22 | AB89: 22 | AC89: 22 | AD89: 22 | AE89: 22 | AF89: 20.5 | AG89: 22 | AH89: 22 | AI89: 22 | AJ89: 22 | AK89: 22 | AL89: 20.5 | AM89: 22 | AN89: 20.5 | AO89: 20.5 | AP89: 20.5 | AQ89: 20.5 | AR89: 20.5 | AS89: 20.5 | AT89: 22 | AU89: 22 | AV89: 22 | AW89: 22 | AX89: 22 | AY89: 20.5
A90: 13 | B90: =2*INDEX($B16:$AX16,2)-INDEX($B16:$AX16,15) -> 17 | C90: 10 | D90: 10 | E90: 10 | F90: 10 | G90: 10 | H90: 7 | I90: 10 | J90: 37 | K90: 37 | L90: 37 | M90: 37 | N90: 34 | O90: 37 | P90: 37 | Q90: 37 | R90: 37 | S90: 37 | T90: 34 | U90: 37 | V90: 37 | W90: 37 | X90: 37 | Y90: 37 | Z90: 34 | AA90: 37 | AB90: 37 | AC90: 37 | AD90: 37 | AE90: 37 | AF90: 34 | AG90: 37 | AH90: 37 | AI90: 37 | AJ90: 37 | AK90: 37 | AL90: 34 | AM90: 37 | AN90: 34 | AO90: 34 | AP90: 34 | AQ90: 34 | AR90: 34 | AS90: 34 | AT90: 37 | AU90: 37 | AV90: 37 | AW90: 37 | AX90: 37 | AY90: 34
A91: P13
A93: Trennung in gemeinsam unterrichtete Stunden und ausbildungsrichtungsbezogene Stunden
I95: =I77 -> Teil 1 | J95: =J77 -> 1 | K95: 1 | L95: 1 | M95: 1 | N95: 1 | O95: 1 | P95: 2 | Q95: 2 | R95: 2 | S95: 2 | T95: 2 | U95: 2 | V95: 3 | W95: 3 | X95: 3 | Y95: 3 | Z95: 3 | AA95: 3 | AB95: 4 | AC95: 4 | AD95: 4 | AE95: 4 | AF95: 4 | AG95: 4 | AH95: 5 | AI95: 5 | AJ95: 5 | AK95: 5 | AL95: 5 | AM95: 5 | AN95: 6 | AO95: 6 | AP95: 6 | AQ95: 6 | AR95: 6 | AS95: 6 | AT95: 7 | AU95: 7 | AV95: 7 | AW95: 7 | AX95: 7 | AY95: 7
I96: =I78 -> Teil 2 | J96: 2 | K96: 3 | L96: 4 | M96: 5 | N96: 6 | O96: 7 | P96: 1 | Q96: 3 | R96: 4 | S96: 5 | T96: 6 | U96: 7 | V96: 1 | W96: 2 | X96: 4 | Y96: 5 | Z96: 6 | AA96: 7 | AB96: 1 | AC96: 2 | AD96: 3 | AE96: 5 | AF96: 6 | AG96: 7 | AH96: 1 | AI96: 2 | AJ96: 3 | AK96: 4 | AL96: 6 | AM96: 7 | AN96: 1 | AO96: 2 | AP96: 3 | AQ96: 4 | AR96: 5 | AS96: 7 | AT96: 1 | AU96: 2 | AV96: 3 | AW96: 4 | AX96: 5 | AY96: 6
J97: =INDEX($C$79:$I$79,J95) -> T | K97: =INDEX($C$79:$I$79,K95) -> T | L97: T | M97: T | N97: T | O97: T | P97: W | Q97: W | R97: W | S97: W | T97: W | U97: W | V97: S | W97: S | X97: S | Y97: S | Z97: S | AA97: S | AB97: G | AC97: G | AD97: G | AE97: G | AF97: G | AG97: G | AH97: A | AI97: A | AJ97: A | AK97: A | AL97: A | AM97: A | AN97: IW | AO97: IW | AP97: IW | AQ97: IW | AR97: IW | AS97: IW | AT97: GP | AU97: GP | AV97: GP | AW97: GP | AX97: GP | AY97: GP
A98: FOS | C98: T | D98: W | E98: S | F98: G | G98: A | H98: IW | I98: GP | J98: =INDEX($C$79:$I$79,J96) -> W | K98: S | L98: G | M98: A | N98: IW | O98: GP | P98: T | Q98: S | R98: G | S98: A | T98: IW | U98: GP | V98: T | W98: W | X98: G | Y98: A | Z98: IW | AA98: GP | AB98: T | AC98: W | AD98: S | AE98: A | AF98: IW | AG98: GP | AH98: T | AI98: W | AJ98: S | AK98: G | AL98: IW | AM98: GP | AN98: T | AO98: W | AP98: S | AQ98: G | AR98: A | AS98: GP | AT98: T | AU98: W | AV98: S | AW98: G | AX98: A | AY98: IW
A99: gemeinsam | I99: T-Anteil | J99: =OR(J95=1,J96=1) -> TRUE | K99: =OR(K95=1,K96=1) -> TRUE | L99: TRUE | M99: TRUE | N99: TRUE | O99: TRUE | P99: TRUE | Q99: FALSE | R99: FALSE | S99: FALSE | T99: FALSE | U99: FALSE | V99: TRUE | W99: FALSE | X99: FALSE | Y99: FALSE | Z99: FALSE | AA99: FALSE | AB99: TRUE | AC99: FALSE | AD99: FALSE | AE99: FALSE | AF99: FALSE | AG99: FALSE | AH99: TRUE | AI99: FALSE | AJ99: FALSE | AK99: FALSE | AL99: FALSE | AM99: FALSE | AN99: TRUE | AO99: FALSE | AP99: FALSE | AQ99: FALSE | AR99: FALSE | AS99: FALSE | AT99: TRUE | AU99: FALSE | AV99: FALSE | AW99: FALSE | AX99: FALSE | AY99: FALSE
A100: =A80 -> 11 | C100: =$U$23 -> 9 | D100: =$U$23 -> 9 | E100: 9 | F100: 9 | G100: 9 | H100: 9 | I100: 9 | J100: =$U$23-IF(J$99,$X$23,0)+IF(AND(OR(J$95=2,J$95=6),OR(J$96=2,J$96=6)),$Y$23,0) -> 6 | K100: =$U$23-IF(K$99,$X$23,0)+IF(AND(OR(K$95=2,K$95=6),OR(K$96=2,K$96=6)),$Y$23,0) -> 6 | L100: 6 | M100: 6 | N100: 6 | O100: 6 | P100: 6 | Q100: 9 | R100: 9 | S100: 9 | T100: 11 | U100: 9 | V100: 6 | W100: 9 | X100: 9 | Y100: 9 | Z100: 9 | AA100: 9 | AB100: 6 | AC100: 9 | AD100: 9 | AE100: 9 | AF100: 9 | AG100: 9 | AH100: 6 | AI100: 9 | AJ100: 9 | AK100: 9 | AL100: 9 | AM100: 9 | AN100: 6 | AO100: 11 | AP100: 9 | AQ100: 9 | AR100: 9 | AS100: 9 | AT100: 6 | AU100: 9 | AV100: 9 | AW100: 9 | AX100: 9 | AY100: 9
A101: =A81 -> 12 | C101: =$U$33 -> 14 | D101: =$U$33 -> 14 | E101: 14 | F101: 14 | G101: 14 | H101: 14 | I101: 14 | J101: =$U$33-IF(J$99,$X$33,0)+IF(AND(OR(J$95=2,J$95=4,J$95=6),OR(J$96=2,J$96=4,J$96=6)),$Y$33,0) -> 10 | K101: =$U$33-IF(K$99,$X$33,0)+IF(AND(OR(K$95=2,K$95=4,K$95=6),OR(K$96=2,K$96=4,K$96=6)),$Y$33,0) -> 10 | L101: 10 | M101: 10 | N101: 10 | O101: 10 | P101: 10 | Q101: 14 | R101: 16 | S101: 14 | T101: 16 | U101: 14 | V101: 10 | W101: 14 | X101: 14 | Y101: 14 | Z101: 14 | AA101: 14 | AB101: 10 | AC101: 16 | AD101: 14 | AE101: 14 | AF101: 16 | AG101: 14 | AH101: 10 | AI101: 14 | AJ101: 14 | AK101: 14 | AL101: 14 | AM101: 14 | AN101: 10 | AO101: 16 | AP101: 14 | AQ101: 16 | AR101: 14 | AS101: 14 | AT101: 10 | AU101: 14 | AV101: 14 | AW101: 14 | AX101: 14 | AY101: 14
A102: =A82 -> 13 | C102: =$U$43 -> 17 | D102: =$U$43 -> 17 | E102: 17 | F102: 17 | G102: 17 | H102: 17 | I102: 17 | J102: =$U$43-IF(J$99,$X$43,0)+IF(AND(OR(J$95=2,J$95=4,J$95=6),OR(J$96=2,J$96=4,J$96=6)),$Y$43,0) -> 12 | K102: =$U$43-IF(K$99,$X$43,0)+IF(AND(OR(K$95=2,K$95=4,K$95=6),OR(K$96=2,K$96=4,K$96=6)),$Y$43,0) -> 12 | L102: 12 | M102: 12 | N102: 12 | O102: 12 | P102: 12 | Q102: 17 | R102: 19 | S102: 17 | T102: 19 | U102: 17 | V102: 12 | W102: 17 | X102: 17 | Y102: 17 | Z102: 17 | AA102: 17 | AB102: 12 | AC102: 19 | AD102: 17 | AE102: 17 | AF102: 19 | AG102: 17 | AH102: 12 | AI102: 17 | AJ102: 17 | AK102: 17 | AL102: 17 | AM102: 17 | AN102: 12 | AO102: 19 | AP102: 17 | AQ102: 19 | AR102: 17 | AS102: 17 | AT102: 12 | AU102: 17 | AV102: 17 | AW102: 17 | AX102: 17 | AY102: 17
A103: fpAnl | C103: 1 | D103: =C103 -> 1 | E103: 1 | F103: 1 | G103: 1 | H103: 1 | I103: 1 | J103: 0 | K103: =J103 -> 0 | L103: =K103 -> 0 | M103: 0 | N103: 0 | O103: 0 | P103: 0 | Q103: 0 | R103: 0 | S103: 0 | T103: 0 | U103: 0 | V103: 0 | W103: 0 | X103: 0 | Y103: 0 | Z103: 0 | AA103: 0 | AB103: 0 | AC103: 0 | AD103: 0 | AE103: 0 | AF103: 0 | AG103: 0 | AH103: 0 | AI103: 0 | AJ103: 0 | AK103: 0 | AL103: 0 | AM103: 0 | AN103: 0 | AO103: 0 | AP103: 0 | AQ103: 0 | AR103: 0 | AS103: 0 | AT103: 0 | AU103: 0 | AV103: 0 | AW103: 0 | AX103: 0 | AY103: 0
A104: FörUnt | C104: 1 | D104: 1 | E104: 1 | F104: 1 | G104: 1 | H104: 1 | I104: 1 | J104: 1 | K104: 1 | L104: 1 | M104: 1 | N104: 1 | O104: 1 | P104: 1 | Q104: 1 | R104: 1 | S104: 1 | T104: 1 | U104: 1 | V104: 1 | W104: 1 | X104: 1 | Y104: 1 | Z104: 1 | AA104: 1 | AB104: 1 | AC104: 1 | AD104: 1 | AE104: 1 | AF104: 1 | AG104: 1 | AH104: 1 | AI104: 1 | AJ104: 1 | AK104: 1 | AL104: 1 | AM104: 1 | AN104: 1 | AO104: 1 | AP104: 1 | AQ104: 1 | AR104: 1 | AS104: 1 | AT104: 1 | AU104: 1 | AV104: 1 | AW104: 1 | AX104: 1 | AY104: 1
A105: Profil 1
A106: =$A$100:$A$104 -> 11 | C106: =$V$23-IF(C$98="IW",$W$23,0) -> 7 | D106: =$V$23-IF(D$98="IW",$W$23,0) -> 7 | E106: 7 | F106: 7 | G106: 7 | H106: 5 | I106: 7 | J106: =$V$23-IF(AND(OR(J$95=2,J$95=6),OR(J$96=2,J$96=6)),$Y$23,0)-IF(J$95=6,$W$23,0)+IF(J$99,$X$23,0) -> 10 | K106: =$V$23-IF(AND(OR(K$95=2,K$95=6),OR(K$96=2,K$96=6)),$Y$23,0)-IF(K$95=6,$W$23,0)+IF(K$99,$X$23,0) -> 10 | L106: 10 | M106: 10 | N106: 10 | O106: 10 | P106: 10 | Q106: 7 | R106: 7 | S106: 7 | T106: 5 | U106: 7 | V106: 10 | W106: 7 | X106: 7 | Y106: 7 | Z106: 7 | AA106: 7 | AB106: 10 | AC106: 7 | AD106: 7 | AE106: 7 | AF106: 7 | AG106: 7 | AH106: 10 | AI106: 7 | AJ106: 7 | AK106: 7 | AL106: 7 | AM106: 7 | AN106: 8 | AO106: 3 | AP106: 5 | AQ106: 5 | AR106: 5 | AS106: 5 | AT106: 10 | AU106: 7 | AV106: 7 | AW106: 7 | AX106: 7 | AY106: 7
A107: 12 | C107: =$V$33-IF(C$98="IW",$W$33,0) -> 12 | D107: =$V$33-IF(D$98="IW",$W$33,0) -> 12 | E107: 12 | F107: 12 | G107: 12 | H107: 9 | I107: 12 | J107: =$V$33-IF(AND(OR(J$95=2,J$95=4,J$95=6),OR(J$96=2,J$96=4,J$96=6)),$Y$33,0)-IF(J$95=6,$W$33,0)+IF(J$99,$X$33,0) -> 16 | K107: =$V$33-IF(AND(OR(K$95=2,K$95=4,K$95=6),OR(K$96=2,K$96=4,K$96=6)),$Y$33,0)-IF(K$95=6,$W$33,0)+IF(K$99,$X$33,0) -> 16 | L107: 16 | M107: 16 | N107: 16 | O107: 16 | P107: 16 | Q107: 12 | R107: 10 | S107: 12 | T107: 10 | U107: 12 | V107: 16 | W107: 12 | X107: 12 | Y107: 12 | Z107: 12 | AA107: 12 | AB107: 16 | AC107: 10 | AD107: 12 | AE107: 12 | AF107: 10 | AG107: 12 | AH107: 16 | AI107: 12 | AJ107: 12 | AK107: 12 | AL107: 12 | AM107: 12 | AN107: 13 | AO107: 7 | AP107: 9 | AQ107: 7 | AR107: 9 | AS107: 9 | AT107: 16 | AU107: 12 | AV107: 12 | AW107: 12 | AX107: 12 | AY107: 12
A108: 13 | C108: =$V$43-IF(C$98="IW",$W$43,0) -> 10 | D108: =$V$43-IF(D$98="IW",$W$43,0) -> 10 | E108: 10 | F108: 10 | G108: 10 | H108: 7 | I108: 10 | J108: =$V$43-IF(AND(OR(J$95=2,J$95=4,J$95=6),OR(J$96=2,J$96=4,J$96=6)),$Y$43,0)-IF(J$95=6,$W$43,0)+IF(J$99,$X$43,0) -> 15 | K108: =$V$43-IF(AND(OR(K$95=2,K$95=4,K$95=6),OR(K$96=2,K$96=4,K$96=6)),$Y$43,0)-IF(K$95=6,$W$43,0)+IF(K$99,$X$43,0) -> 15 | L108: 15 | M108: 15 | N108: 15 | O108: 15 | P108: 15 | Q108: 10 | R108: 8 | S108: 10 | T108: 8 | U108: 10 | V108: 15 | W108: 10 | X108: 10 | Y108: 10 | Z108: 10 | AA108: 10 | AB108: 15 | AC108: 8 | AD108: 10 | AE108: 10 | AF108: 8 | AG108: 10 | AH108: 15 | AI108: 10 | AJ108: 10 | AK108: 10 | AL108: 10 | AM108: 10 | AN108: 12 | AO108: 5 | AP108: 7 | AQ108: 5 | AR108: 7 | AS108: 7 | AT108: 15 | AU108: 10 | AV108: 10 | AW108: 10 | AX108: 10 | AY108: 10
A109: fpAnl | C109: 0 | D109: =C109 -> 0 | E109: =D109 -> 0 | F109: 0 | G109: 0 | H109: 0 | I109: 0 | J109: 1 | K109: 1 | L109: 1 | M109: 1 | N109: 1 | O109: 1 | P109: 1 | Q109: 1 | R109: 1 | S109: 1 | T109: 1 | U109: =T109 -> 1 | V109: 1 | W109: 1 | X109: 1 | Y109: 1 | Z109: 1 | AA109: 1 | AB109: 1 | AC109: 1 | AD109: 1 | AE109: 1 | AF109: 1 | AG109: 1 | AH109: 1 | AI109: 1 | AJ109: 1 | AK109: =AJ109 -> 1 | AL109: 1 | AM109: 1 | AN109: 1 | AO109: 1 | AP109: 1 | AQ109: 1 | AR109: 1 | AS109: 1 | AT109: 1 | AU109: 1 | AV109: 1 | AW109: 1 | AX109: 1 | AY109: 1
A110: FörUnt | C110: 0 | D110: =C110 -> 0 | E110: 0 | F110: 0 | G110: 0 | H110: 0 | I110: 0 | J110: 0 | K110: 0 | L110: 0 | M110: 0 | N110: 0 | O110: 0 | P110: 0 | Q110: 0 | R110: 0 | S110: 0 | T110: 0 | U110: 0 | V110: 0 | W110: 0 | X110: 0 | Y110: 0 | Z110: 0 | AA110: 0 | AB110: 0 | AC110: 0 | AD110: 0 | AE110: 0 | AF110: 0 | AG110: 0 | AH110: 0 | AI110: 0 | AJ110: 0 | AK110: 0 | AL110: 0 | AM110: 0 | AN110: 0 | AO110: 0 | AP110: 0 | AQ110: 0 | AR110: 0 | AS110: 0 | AT110: 0 | AU110: 0 | AV110: 0 | AW110: 0 | AX110: 0 | AY110: 0
A111: Profil 2
A112: =$A$100:$A$104 -> 11 | C112: 0 | D112: =C112 -> 0 | E112: =D112 -> 0 | F112: 0 | G112: 0 | H112: 0 | I112: 0 | J112: =$V$23-IF(AND(OR(J$95=2,J$95=6),OR(J$96=2,J$96=6)),$Y$23,0)-IF(J$96=6,$W$23,0)+IF(J$99,$X$23,0) -> 10 | K112: =$V$23-IF(AND(OR(K$95=2,K$95=6),OR(K$96=2,K$96=6)),$Y$23,0)-IF(K$96=6,$W$23,0)+IF(K$99,$X$23,0) -> 10 | L112: 10 | M112: 10 | N112: 8 | O112: 10 | P112: 10 | Q112: 7 | R112: 7 | S112: 7 | T112: 3 | U112: 7 | V112: 10 | W112: 7 | X112: 7 | Y112: 7 | Z112: 5 | AA112: 7 | AB112: 10 | AC112: 7 | AD112: 7 | AE112: 7 | AF112: 5 | AG112: 7 | AH112: 10 | AI112: 7 | AJ112: 7 | AK112: 7 | AL112: 5 | AM112: 7 | AN112: 10 | AO112: 5 | AP112: 7 | AQ112: 7 | AR112: 7 | AS112: 7 | AT112: 10 | AU112: 7 | AV112: 7 | AW112: 7 | AX112: 7 | AY112: 5
A113: 12 | C113: 0 | D113: =C113 -> 0 | E113: 0 | F113: 0 | G113: 0 | H113: 0 | I113: 0 | J113: =$V$33-IF(AND(OR(J$95=2,J$95=4,J$95=6),OR(J$96=2,J$96=4,J$96=6)),$Y$33,0)-IF(J$96=6,$W$33,0)+IF(J$99,$X$33,0) -> 16 | K113: =$V$33-IF(AND(OR(K$95=2,K$95=4,K$95=6),OR(K$96=2,K$96=4,K$96=6)),$Y$33,0)-IF(K$96=6,$W$33,0)+IF(K$99,$X$33,0) -> 16 | L113: 16 | M113: 16 | N113: 13 | O113: 16 | P113: 16 | Q113: 12 | R113: 10 | S113: 12 | T113: 7 | U113: 12 | V113: 16 | W113: 12 | X113: 12 | Y113: 12 | Z113: 9 | AA113: 12 | AB113: 16 | AC113: 10 | AD113: 12 | AE113: 12 | AF113: 7 | AG113: 12 | AH113: 16 | AI113: 12 | AJ113: 12 | AK113: 12 | AL113: 9 | AM113: 12 | AN113: 16 | AO113: 10 | AP113: 12 | AQ113: 10 | AR113: 12 | AS113: 12 | AT113: 16 | AU113: 12 | AV113: 12 | AW113: 12 | AX113: 12 | AY113: 9
A114: 13 | C114: 0 | D114: 0 | E114: 0 | F114: 0 | G114: 0 | H114: 0 | I114: 0 | J114: =$V$43-IF(AND(OR(J$95=2,J$95=4,J$95=6),OR(J$96=2,J$96=4,J$96=6)),$Y$43,0)-IF(J$96=6,$W$43,0)+IF(J$99,$X$43,0) -> 15 | K114: =$V$43-IF(AND(OR(K$95=2,K$95=4,K$95=6),OR(K$96=2,K$96=4,K$96=6)),$Y$43,0)-IF(K$96=6,$W$43,0)+IF(K$99,$X$43,0) -> 15 | L114: 15 | M114: 15 | N114: 12 | O114: 15 | P114: 15 | Q114: 10 | R114: 8 | S114: 10 | T114: 5 | U114: 10 | V114: 15 | W114: 10 | X114: 10 | Y114: 10 | Z114: 7 | AA114: 10 | AB114: 15 | AC114: 8 | AD114: 10 | AE114: 10 | AF114: 5 | AG114: 10 | AH114: 15 | AI114: 10 | AJ114: 10 | AK114: 10 | AL114: 7 | AM114: 10 | AN114: 15 | AO114: 8 | AP114: 10 | AQ114: 8 | AR114: 10 | AS114: 10 | AT114: 15 | AU114: 10 | AV114: 10 | AW114: 10 | AX114: 10 | AY114: 7
A115: fpAnl | C115: 0 | D115: =C115 -> 0 | E115: 0 | F115: 0 | G115: 0 | H115: 0 | I115: 0 | J115: 1 | K115: 1 | L115: 1 | M115: 1 | N115: 1 | O115: 1 | P115: 1 | Q115: 1 | R115: 1 | S115: 1 | T115: =S115 -> 1 | U115: 1 | V115: 1 | W115: 1 | X115: 1 | Y115: 1 | Z115: 1 | AA115: 1 | AB115: 1 | AC115: 1 | AD115: 1 | AE115: 1 | AF115: 1 | AG115: 1 | AH115: 1 | AI115: 1 | AJ115: 1 | AK115: 1 | AL115: 1 | AM115: 1 | AN115: 1 | AO115: 1 | AP115: 1 | AQ115: 1 | AR115: 1 | AS115: 1 | AT115: 1 | AU115: 1 | AV115: 1 | AW115: 1 | AX115: 1 | AY115: 1
A116: FörUnt | C116: 0 | D116: =C116 -> 0 | E116: 0 | F116: 0 | G116: 0 | H116: 0 | I116: 0 | J116: 0 | K116: 0 | L116: 0 | M116: 0 | N116: 0 | O116: 0 | P116: 0 | Q116: 0 | R116: 0 | S116: 0 | T116: 0 | U116: 0 | V116: 0 | W116: 0 | X116: 0 | Y116: 0 | Z116: 0 | AA116: 0 | AB116: 0 | AC116: 0 | AD116: 0 | AE116: 0 | AF116: 0 | AG116: 0 | AH116: 0 | AI116: 0 | AJ116: 0 | AK116: 0 | AL116: 0 | AM116: 0 | AN116: 0 | AO116: 0 | AP116: 0 | AQ116: 0 | AR116: 0 | AS116: 0 | AT116: 0 | AU116: 0 | AV116: 0 | AW116: 0 | AX116: 0 | AY116: 0
A117: Summe
A118: =$A$100:$A$104 -> 11 | C118: =SUM(C100,C106,C112) -> 16 | D118: 16 | E118: 16 | F118: 16 | G118: 16 | H118: 14 | I118: 16 | J118: 26 | K118: 26 | L118: 26 | M118: 26 | N118: 24 | O118: 26 | P118: 26 | Q118: 23 | R118: 23 | S118: 23 | T118: 19 | U118: 23 | V118: 26 | W118: 23 | X118: 23 | Y118: 23 | Z118: 21 | AA118: 23 | AB118: 26 | AC118: 23 | AD118: 23 | AE118: 23 | AF118: 21 | AG118: 23 | AH118: 26 | AI118: 23 | AJ118: 23 | AK118: 23 | AL118: 21 | AM118: 23 | AN118: 24 | AO118: 19 | AP118: 21 | AQ118: 21 | AR118: 21 | AS118: 21 | AT118: 26 | AU118: 23 | AV118: 23 | AW118: 23 | AX118: 23 | AY118: 21
A119: 12 | C119: 26 | D119: 26 | E119: 26 | F119: 26 | G119: 26 | H119: 23 | I119: 26 | J119: 42 | K119: 42 | L119: 42 | M119: 42 | N119: 39 | O119: 42 | P119: 42 | Q119: 38 | R119: 36 | S119: 38 | T119: 33 | U119: 38 | V119: 42 | W119: 38 | X119: 38 | Y119: 38 | Z119: 35 | AA119: 38 | AB119: 42 | AC119: 36 | AD119: 38 | AE119: 38 | AF119: 33 | AG119: 38 | AH119: 42 | AI119: 38 | AJ119: 38 | AK119: 38 | AL119: 35 | AM119: 38 | AN119: 39 | AO119: 33 | AP119: 35 | AQ119: 33 | AR119: 35 | AS119: 35 | AT119: 42 | AU119: 38 | AV119: 38 | AW119: 38 | AX119: 38 | AY119: 35
A120: 13 | C120: 27 | D120: 27 | E120: 27 | F120: 27 | G120: 27 | H120: 24 | I120: 27 | J120: 42 | K120: 42 | L120: 42 | M120: 42 | N120: 39 | O120: 42 | P120: 42 | Q120: 37 | R120: 35 | S120: 37 | T120: 32 | U120: 37 | V120: 42 | W120: 37 | X120: 37 | Y120: 37 | Z120: 34 | AA120: 37 | AB120: 42 | AC120: 35 | AD120: 37 | AE120: 37 | AF120: 32 | AG120: 37 | AH120: 42 | AI120: 37 | AJ120: 37 | AK120: 37 | AL120: 34 | AM120: 37 | AN120: 39 | AO120: 32 | AP120: 34 | AQ120: 32 | AR120: 34 | AS120: 34 | AT120: 42 | AU120: 37 | AV120: 37 | AW120: 37 | AX120: 37 | AY120: 34
A121: fpAnl | C121: 1 | D121: 1 | E121: 1 | F121: 1 | G121: 1 | H121: 1 | I121: 1 | J121: 2 | K121: 2 | L121: 2 | M121: 2 | N121: 2 | O121: 2 | P121: 2 | Q121: 2 | R121: 2 | S121: 2 | T121: 2 | U121: 2 | V121: 2 | W121: 2 | X121: 2 | Y121: 2 | Z121: 2 | AA121: 2 | AB121: 2 | AC121: 2 | AD121: 2 | AE121: 2 | AF121: 2 | AG121: 2 | AH121: 2 | AI121: 2 | AJ121: 2 | AK121: 2 | AL121: 2 | AM121: 2 | AN121: 2 | AO121: 2 | AP121: 2 | AQ121: 2 | AR121: 2 | AS121: 2 | AT121: 2 | AU121: 2 | AV121: 2 | AW121: 2 | AX121: 2 | AY121: 2
A122: FörUnt | C122: 1 | D122: 1 | E122: 1 | F122: 1 | G122: 1 | H122: 1 | I122: 1 | J122: 1 | K122: 1 | L122: 1 | M122: 1 | N122: 1 | O122: 1 | P122: 1 | Q122: 1 | R122: 1 | S122: 1 | T122: 1 | U122: 1 | V122: 1 | W122: 1 | X122: 1 | Y122: 1 | Z122: 1 | AA122: 1 | AB122: 1 | AC122: 1 | AD122: 1 | AE122: 1 | AF122: 1 | AG122: 1 | AH122: 1 | AI122: 1 | AJ122: 1 | AK122: 1 | AL122: 1 | AM122: 1 | AN122: 1 | AO122: 1 | AP122: 1 | AQ122: 1 | AR122: 1 | AS122: 1 | AT122: 1 | AU122: 1 | AV122: 1 | AW122: 1 | AX122: 1 | AY122: 1
A124: BOS
A125: gemeinsam | C125: T | D125: W | E125: S | F125: G | G125: A | H125: IW | I125: GP
A126: 12 | C126: =$AL$23 -> 18 | D126: =C126 -> 18 | E126: =D126 -> 18 | F126: 18 | G126: 18 | H126: 18 | I126: 18 | J126: =$AL$23-IF(J$99,$AO$23,0)+IF(AND(OR(J$95=2,J$95=4,J$95=6),OR(J$96=2,J$96=4,J$96=6)),$AP$23,0) -> 13 | K126: =$AL$23-IF(K$99,$AO$23,0)+IF(AND(OR(K$95=2,K$95=4,K$95=6),OR(K$96=2,K$96=4,K$96=6)),$AP$23,0) -> 13 | L126: 13 | M126: 13 | N126: 13 | O126: 13 | P126: 13 | Q126: 18 | R126: 20 | S126: 18 | T126: 20 | U126: 18 | V126: 13 | W126: 18 | X126: 18 | Y126: 18 | Z126: 18 | AA126: 18 | AB126: 13 | AC126: 20 | AD126: 18 | AE126: 18 | AF126: 20 | AG126: 18 | AH126: 13 | AI126: 18 | AJ126: 18 | AK126: 18 | AL126: 18 | AM126: 18 | AN126: 13 | AO126: 20 | AP126: 18 | AQ126: 20 | AR126: 18 | AS126: 18 | AT126: 13 | AU126: 18 | AV126: 18 | AW126: 18 | AX126: 18 | AY126: 18
A127: 12_1 | C127: =C126/2 -> 9 | D127: 9 | E127: 9 | F127: 9 | G127: 9 | H127: 9 | I127: 9 | J127: =J126/2 -> 6.5 | K127: =K126/2 -> 6.5 | L127: 6.5 | M127: 6.5 | N127: 6.5 | O127: 6.5 | P127: 6.5 | Q127: 9 | R127: 10 | S127: 9 | T127: 10 | U127: 9 | V127: 6.5 | W127: 9 | X127: 9 | Y127: 9 | Z127: 9 | AA127: 9 | AB127: 6.5 | AC127: 10 | AD127: 9 | AE127: 9 | AF127: 10 | AG127: 9 | AH127: 6.5 | AI127: 9 | AJ127: 9 | AK127: 9 | AL127: 9 | AM127: 9 | AN127: 6.5 | AO127: 10 | AP127: 9 | AQ127: 10 | AR127: 9 | AS127: 9 | AT127: 6.5 | AU127: 9 | AV127: 9 | AW127: 9 | AX127: 9 | AY127: 9
A128: 12_2 | C128: =C127 -> 9 | D128: 9 | E128: 9 | F128: 9 | G128: 9 | H128: 9 | I128: 9 | J128: =J127 -> 6.5 | K128: =K127 -> 6.5 | L128: 6.5 | M128: 6.5 | N128: 6.5 | O128: 6.5 | P128: 6.5 | Q128: 9 | R128: 10 | S128: 9 | T128: 10 | U128: 9 | V128: 6.5 | W128: 9 | X128: 9 | Y128: 9 | Z128: 9 | AA128: 9 | AB128: 6.5 | AC128: 10 | AD128: 9 | AE128: 9 | AF128: 10 | AG128: 9 | AH128: 6.5 | AI128: 9 | AJ128: 9 | AK128: 9 | AL128: 9 | AM128: 9 | AN128: 6.5 | AO128: 10 | AP128: 9 | AQ128: 10 | AR128: 9 | AS128: 9 | AT128: 6.5 | AU128: 9 | AV128: 9 | AW128: 9 | AX128: 9 | AY128: 9
A129: 13 | C129: =$AL$53 -> 17 | D129: =C129 -> 17 | E129: =D129 -> 17 | F129: 17 | G129: 17 | H129: 17 | I129: 17 | J129: =$AL$53-IF(J$99,$AO$53,0)+IF(AND(OR(J$95=2,J$95=4,J$95=6),OR(J$96=2,J$96=4,J$96=6)),$AP$53,0) -> 12 | K129: =$AL$53-IF(K$99,$AO$53,0)+IF(AND(OR(K$95=2,K$95=4,K$95=6),OR(K$96=2,K$96=4,K$96=6)),$AP$53,0) -> 12 | L129: 12 | M129: 12 | N129: 12 | O129: 12 | P129: 12 | Q129: 17 | R129: 19 | S129: 17 | T129: 19 | U129: 17 | V129: 12 | W129: 17 | X129: 17 | Y129: 17 | Z129: 17 | AA129: 17 | AB129: 12 | AC129: 19 | AD129: 17 | AE129: 17 | AF129: 19 | AG129: 17 | AH129: 12 | AI129: 17 | AJ129: 17 | AK129: 17 | AL129: 17 | AM129: 17 | AN129: 12 | AO129: 19 | AP129: 17 | AQ129: 19 | AR129: 17 | AS129: 17 | AT129: 12 | AU129: 17 | AV129: 17 | AW129: 17 | AX129: 17 | AY129: 17
A130: FörUnt | C130: 2 | D130: =C130 -> 2 | E130: 2 | F130: 2 | G130: 2 | H130: 2 | I130: 2 | J130: 2 | K130: 2 | L130: 2 | M130: 2 | N130: 2 | O130: 2 | P130: 2 | Q130: 2 | R130: 2 | S130: 2 | T130: 2 | U130: =T130 -> 2 | V130: 2 | W130: 2 | X130: 2 | Y130: 2 | Z130: 2 | AA130: 2 | AB130: 2 | AC130: 2 | AD130: 2 | AE130: 2 | AF130: 2 | AG130: 2 | AH130: 2 | AI130: 2 | AJ130: 2 | AK130: 2 | AL130: 2 | AM130: 2 | AN130: 2 | AO130: 2 | AP130: 2 | AQ130: 2 | AR130: 2 | AS130: 2 | AT130: 2 | AU130: 2 | AV130: 2 | AW130: 2 | AX130: 2 | AY130: 2
A131: Profil 1
A132: 12 | C132: =$AM$23-IF(C$98="IW",$AN$23,0) -> 13 | D132: =$AM$23-IF(D$98="IW",$AN$23,0) -> 13 | E132: 13 | F132: 13 | G132: 13 | H132: 10 | I132: 13 | J132: =$AM$23-IF(AND(OR(J$95=2,J$95=4,J$95=6),OR(J$96=2,J$96=4,J$96=6)),$AP$23,0)-IF(J$95=6,$AN$23,0)+IF(J$99,$AO$23,0) -> 18 | K132: =$AM$23-IF(AND(OR(K$95=2,K$95=4,K$95=6),OR(K$96=2,K$96=4,K$96=6)),$AP$23,0)-IF(K$95=6,$AN$23,0)+IF(K$99,$AO$23,0) -> 18 | L132: 18 | M132: 18 | N132: 18 | O132: 18 | P132: 18 | Q132: 13 | R132: 11 | S132: 13 | T132: 11 | U132: 13 | V132: 18 | W132: 13 | X132: 13 | Y132: 13 | Z132: 13 | AA132: 13 | AB132: 18 | AC132: 11 | AD132: 13 | AE132: 13 | AF132: 11 | AG132: 13 | AH132: 18 | AI132: 13 | AJ132: 13 | AK132: 13 | AL132: 13 | AM132: 13 | AN132: 15 | AO132: 8 | AP132: 10 | AQ132: 8 | AR132: 10 | AS132: 10 | AT132: 18 | AU132: 13 | AV132: 13 | AW132: 13 | AX132: 13 | AY132: 13
A133: 12_1 | C133: =C132/2 -> 6.5 | D133: 6.5 | E133: 6.5 | F133: 6.5 | G133: 6.5 | H133: 5 | I133: 6.5 | J133: =J132/2 -> 9 | K133: =K132/2 -> 9 | L133: 9 | M133: 9 | N133: 9 | O133: 9 | P133: 9 | Q133: 6.5 | R133: 5.5 | S133: 6.5 | T133: 5.5 | U133: 6.5 | V133: 9 | W133: 6.5 | X133: 6.5 | Y133: 6.5 | Z133: 6.5 | AA133: 6.5 | AB133: 9 | AC133: 5.5 | AD133: 6.5 | AE133: 6.5 | AF133: 5.5 | AG133: 6.5 | AH133: 9 | AI133: 6.5 | AJ133: 6.5 | AK133: 6.5 | AL133: 6.5 | AM133: 6.5 | AN133: 7.5 | AO133: 4 | AP133: 5 | AQ133: 4 | AR133: 5 | AS133: 5 | AT133: 9 | AU133: 6.5 | AV133: 6.5 | AW133: 6.5 | AX133: 6.5 | AY133: 6.5
A134: 12_2 | C134: =C133 -> 6.5 | D134: 6.5 | E134: 6.5 | F134: 6.5 | G134: 6.5 | H134: 5 | I134: 6.5 | J134: =J133 -> 9 | K134: =K133 -> 9 | L134: 9 | M134: 9 | N134: 9 | O134: 9 | P134: 9 | Q134: 6.5 | R134: 5.5 | S134: 6.5 | T134: 5.5 | U134: 6.5 | V134: 9 | W134: 6.5 | X134: 6.5 | Y134: 6.5 | Z134: 6.5 | AA134: 6.5 | AB134: 9 | AC134: 5.5 | AD134: 6.5 | AE134: 6.5 | AF134: 5.5 | AG134: 6.5 | AH134: 9 | AI134: 6.5 | AJ134: 6.5 | AK134: 6.5 | AL134: 6.5 | AM134: 6.5 | AN134: 7.5 | AO134: 4 | AP134: 5 | AQ134: 4 | AR134: 5 | AS134: 5 | AT134: 9 | AU134: 6.5 | AV134: 6.5 | AW134: 6.5 | AX134: 6.5 | AY134: 6.5
A135: 13 | C135: =$AM$53-IF(C$98="IW",$AN$53,0) -> 10 | D135: =$AM$53-IF(D$98="IW",$AN$53,0) -> 10 | E135: 10 | F135: 10 | G135: 10 | H135: 7 | I135: 10 | J135: =$AM$53-IF(AND(OR(J$95=2,J$95=4,J$95=6),OR(J$96=2,J$96=4,J$96=6)),$AP$53,0)-IF(J$95=6,$AN$53,0)+IF(J$99,$AO$53,0) -> 15 | K135: =$AM$53-IF(AND(OR(K$95=2,K$95=4,K$95=6),OR(K$96=2,K$96=4,K$96=6)),$AP$53,0)-IF(K$95=6,$AN$53,0)+IF(K$99,$AO$53,0) -> 15 | L135: 15 | M135: 15 | N135: 15 | O135: 15 | P135: 15 | Q135: 10 | R135: 8 | S135: 10 | T135: 8 | U135: 10 | V135: 15 | W135: 10 | X135: 10 | Y135: 10 | Z135: 10 | AA135: 10 | AB135: 15 | AC135: 8 | AD135: 10 | AE135: 10 | AF135: 8 | AG135: 10 | AH135: 15 | AI135: 10 | AJ135: 10 | AK135: 10 | AL135: 10 | AM135: 10 | AN135: 12 | AO135: 5 | AP135: 7 | AQ135: 5 | AR135: 7 | AS135: 7 | AT135: 15 | AU135: 10 | AV135: 10 | AW135: 10 | AX135: 10 | AY135: 10
A136: FörUnt | C136: 0 | D136: =C136 -> 0 | E136: =D136 -> 0 | F136: 0 | G136: 0 | H136: 0 | I136: 0 | J136: 0 | K136: 0 | L136: 0 | M136: 0 | N136: 0 | O136: 0 | P136: 0 | Q136: 0 | R136: 0 | S136: 0 | T136: 0 | U136: 0 | V136: 0 | W136: 0 | X136: 0 | Y136: 0 | Z136: 0 | AA136: 0 | AB136: 0 | AC136: 0 | AD136: 0 | AE136: 0 | AF136: 0 | AG136: 0 | AH136: 0 | AI136: 0 | AJ136: 0 | AK136: 0 | AL136: 0 | AM136: 0 | AN136: 0 | AO136: 0 | AP136: 0 | AQ136: 0 | AR136: 0 | AS136: 0 | AT136: 0 | AU136: 0 | AV136: 0 | AW136: 0 | AX136: 0 | AY136: 0
A137: Profil 2
A138: 12 | J138: =$AM$23-IF(AND(OR(J$95=2,J$95=4,J$95=6),OR(J$96=2,J$96=4,J$96=6)),$AP$23,0)-IF(J$96=6,$AN$23,0)+IF(J$99,$AO$23,0) -> 18 | K138: =$AM$23-IF(AND(OR(K$95=2,K$95=4,K$95=6),OR(K$96=2,K$96=4,K$96=6)),$AP$23,0)-IF(K$96=6,$AN$23,0)+IF(K$99,$AO$23,0) -> 18 | L138: 18 | M138: 18 | N138: 15 | O138: 18 | P138: 18 | Q138: 13 | R138: 11 | S138: 13 | T138: 8 | U138: 13 | V138: 18 | W138: 13 | X138: 13 | Y138: 13 | Z138: 10 | AA138: 13 | AB138: 18 | AC138: 11 | AD138: 13 | AE138: 13 | AF138: 8 | AG138: 13 | AH138: 18 | AI138: 13 | AJ138: 13 | AK138: 13 | AL138: 10 | AM138: 13 | AN138: 18 | AO138: 11 | AP138: 13 | AQ138: 11 | AR138: 13 | AS138: 13 | AT138: 18 | AU138: 13 | AV138: 13 | AW138: 13 | AX138: 13 | AY138: 10
A139: 12_1 | C139: =C138/2 -> 0 | D139: 0 | E139: 0 | F139: 0 | G139: 0 | H139: 0 | I139: 0 | J139: =J138/2 -> 9 | K139: =K138/2 -> 9 | L139: 9 | M139: 9 | N139: 7.5 | O139: 9 | P139: 9 | Q139: 6.5 | R139: 5.5 | S139: 6.5 | T139: 4 | U139: 6.5 | V139: 9 | W139: 6.5 | X139: 6.5 | Y139: 6.5 | Z139: 5 | AA139: 6.5 | AB139: 9 | AC139: 5.5 | AD139: 6.5 | AE139: 6.5 | AF139: 4 | AG139: 6.5 | AH139: 9 | AI139: 6.5 | AJ139: 6.5 | AK139: 6.5 | AL139: 5 | AM139: 6.5 | AN139: 9 | AO139: 5.5 | AP139: 6.5 | AQ139: 5.5 | AR139: 6.5 | AS139: 6.5 | AT139: 9 | AU139: 6.5 | AV139: 6.5 | AW139: 6.5 | AX139: 6.5 | AY139: 5
A140: 12_2 | C140: =C139 -> 0 | D140: 0 | E140: 0 | F140: 0 | G140: 0 | H140: 0 | I140: 0 | J140: =J139 -> 9 | K140: =K139 -> 9 | L140: 9 | M140: 9 | N140: 7.5 | O140: 9 | P140: 9 | Q140: 6.5 | R140: 5.5 | S140: 6.5 | T140: 4 | U140: 6.5 | V140: 9 | W140: 6.5 | X140: 6.5 | Y140: 6.5 | Z140: 5 | AA140: 6.5 | AB140: 9 | AC140: 5.5 | AD140: 6.5 | AE140: 6.5 | AF140: 4 | AG140: 6.5 | AH140: 9 | AI140: 6.5 | AJ140: 6.5 | AK140: 6.5 | AL140: 5 | AM140: 6.5 | AN140: 9 | AO140: 5.5 | AP140: 6.5 | AQ140: 5.5 | AR140: 6.5 | AS140: 6.5 | AT140: 9 | AU140: 6.5 | AV140: 6.5 | AW140: 6.5 | AX140: 6.5 | AY140: 5
A141: 13 | C141: 0 | D141: 0 | E141: 0 | F141: 0 | G141: 0 | H141: 0 | I141: 0 | J141: =$AM$53-IF(AND(OR(J$95=2,J$95=4,J$95=6),OR(J$96=2,J$96=4,J$96=6)),$AP$53,0)-IF(J$96=6,$AN$53,0)+IF(J$99,$AO$53,0) -> 15 | K141: =$AM$53-IF(AND(OR(K$95=2,K$95=4,K$95=6),OR(K$96=2,K$96=4,K$96=6)),$AP$53,0)-IF(K$96=6,$AN$53,0)+IF(K$99,$AO$53,0) -> 15 | L141: 15 | M141: 15 | N141: 12 | O141: 15 | P141: 15 | Q141: 10 | R141: 8 | S141: 10 | T141: 5 | U141: 10 | V141: 15 | W141: 10 | X141: 10 | Y141: 10 | Z141: 7 | AA141: 10 | AB141: 15 | AC141: 8 | AD141: 10 | AE141: 10 | AF141: 5 | AG141: 10 | AH141: 15 | AI141: 10 | AJ141: 10 | AK141: 10 | AL141: 7 | AM141: 10 | AN141: 15 | AO141: 8 | AP141: 10 | AQ141: 8 | AR141: 10 | AS141: 10 | AT141: 15 | AU141: 10 | AV141: 10 | AW141: 10 | AX141: 10 | AY141: 7
A142: FörUnt | C142: 0 | D142: =C142 -> 0 | E142: =D142 -> 0 | F142: 0 | G142: 0 | H142: 0 | I142: 0 | J142: 0 | K142: 0 | L142: 0 | M142: 0 | N142: 0 | O142: 0 | P142: 0 | Q142: 0 | R142: 0 | S142: 0 | T142: 0 | U142: 0 | V142: 0 | W142: 0 | X142: 0 | Y142: 0 | Z142: 0 | AA142: 0 | AB142: 0 | AC142: 0 | AD142: 0 | AE142: 0 | AF142: 0 | AG142: 0 | AH142: 0 | AI142: 0 | AJ142: 0 | AK142: 0 | AL142: 0 | AM142: 0 | AN142: 0 | AO142: 0 | AP142: 0 | AQ142: 0 | AR142: 0 | AS142: 0 | AT142: 0 | AU142: 0 | AV142: 0 | AW142: 0 | AX142: 0 | AY142: 0
A143: Summe
A144: 12 | C144: =SUM(C126,C132,C138) -> 31 | D144: 31 | E144: 31 | F144: 31 | G144: 31 | H144: 28 | I144: 31 | J144: 49 | K144: 49 | L144: 49 | M144: 49 | N144: 46 | O144: 49 | P144: 49 | Q144: 44 | R144: 42 | S144: 44 | T144: 39 | U144: 44 | V144: 49 | W144: 44 | X144: 44 | Y144: 44 | Z144: 41 | AA144: 44 | AB144: 49 | AC144: 42 | AD144: 44 | AE144: 44 | AF144: 39 | AG144: 44 | AH144: 49 | AI144: 44 | AJ144: 44 | AK144: 44 | AL144: 41 | AM144: 44 | AN144: 46 | AO144: 39 | AP144: 41 | AQ144: 39 | AR144: 41 | AS144: 41 | AT144: 49 | AU144: 44 | AV144: 44 | AW144: 44 | AX144: 44 | AY144: 41
A145: 12_1 | C145: 15.5 | D145: 15.5 | E145: 15.5 | F145: 15.5 | G145: 15.5 | H145: 14 | I145: 15.5 | J145: 24.5 | K145: 24.5 | L145: 24.5 | M145: 24.5 | N145: 23 | O145: 24.5 | P145: 24.5 | Q145: 22 | R145: 21 | S145: 22 | T145: 19.5 | U145: 22 | V145: 24.5 | W145: 22 | X145: 22 | Y145: 22 | Z145: 20.5 | AA145: 22 | AB145: 24.5 | AC145: 21 | AD145: 22 | AE145: 22 | AF145: 19.5 | AG145: 22 | AH145: 24.5 | AI145: 22 | AJ145: 22 | AK145: 22 | AL145: 20.5 | AM145: 22 | AN145: 23 | AO145: 19.5 | AP145: 20.5 | AQ145: 19.5 | AR145: 20.5 | AS145: 20.5 | AT145: 24.5 | AU145: 22 | AV145: 22 | AW145: 22 | AX145: 22 | AY145: 20.5
A146: 12_2 | C146: 15.5 | D146: 15.5 | E146: 15.5 | F146: 15.5 | G146: 15.5 | H146: 14 | I146: 15.5 | J146: 24.5 | K146: 24.5 | L146: 24.5 | M146: 24.5 | N146: 23 | O146: 24.5 | P146: 24.5 | Q146: 22 | R146: 21 | S146: 22 | T146: 19.5 | U146: 22 | V146: 24.5 | W146: 22 | X146: 22 | Y146: 22 | Z146: 20.5 | AA146: 22 | AB146: 24.5 | AC146: 21 | AD146: 22 | AE146: 22 | AF146: 19.5 | AG146: 22 | AH146: 24.5 | AI146: 22 | AJ146: 22 | AK146: 22 | AL146: 20.5 | AM146: 22 | AN146: 23 | AO146: 19.5 | AP146: 20.5 | AQ146: 19.5 | AR146: 20.5 | AS146: 20.5 | AT146: 24.5 | AU146: 22 | AV146: 22 | AW146: 22 | AX146: 22 | AY146: 20.5
A147: 13 | C147: 27 | D147: 27 | E147: 27 | F147: 27 | G147: 27 | H147: 24 | I147: 27 | J147: 42 | K147: 42 | L147: 42 | M147: 42 | N147: 39 | O147: 42 | P147: 42 | Q147: 37 | R147: 35 | S147: 37 | T147: 32 | U147: 37 | V147: 42 | W147: 37 | X147: 37 | Y147: 37 | Z147: 34 | AA147: 37 | AB147: 42 | AC147: 35 | AD147: 37 | AE147: 37 | AF147: 32 | AG147: 37 | AH147: 42 | AI147: 37 | AJ147: 37 | AK147: 37 | AL147: 34 | AM147: 37 | AN147: 39 | AO147: 32 | AP147: 34 | AQ147: 32 | AR147: 34 | AS147: 34 | AT147: 42 | AU147: 37 | AV147: 37 | AW147: 37 | AX147: 37 | AY147: 34
A148: FörUnt | C148: 2 | D148: 2 | E148: 2 | F148: 2 | G148: 2 | H148: 2 | I148: 2 | J148: 2 | K148: 2 | L148: 2 | M148: 2 | N148: 2 | O148: 2 | P148: 2 | Q148: 2 | R148: 2 | S148: 2 | T148: 2 | U148: 2 | V148: 2 | W148: 2 | X148: 2 | Y148: 2 | Z148: 2 | AA148: 2 | AB148: 2 | AC148: 2 | AD148: 2 | AE148: 2 | AF148: 2 | AG148: 2 | AH148: 2 | AI148: 2 | AJ148: 2 | AK148: 2 | AL148: 2 | AM148: 2 | AN148: 2 | AO148: 2 | AP148: 2 | AQ148: 2 | AR148: 2 | AS148: 2 | AT148: 2 | AU148: 2 | AV148: 2 | AW148: 2 | AX148: 2 | AY148: 2

Sheet Schuldatei (hidden)
A1: Schuljahr 2017/18 | AF1: FOS/BOS Ansbach (0853/0803) und FOS/BOS Triesdorf (0895/0796) in SD als "4er-Bündel" unter FFS=0853 | AO1: ="Test"&CHAR(10)&"Test" -> Test Test
A2: Berufsoberschule | L2: Fachoberschule | W2: vereinigte Liste | AB2: Liste der Planungseinheiten (SD) | AF2: Liste der Planungseinheiten | AJ2: ohne GER in VUÜ | AL2: dafür Trennung IN/EI und Trennung AN/TRI
A3: =COUNTA(A5:A77) -> 61 | L3: =COUNTA(L5:L77) -> 67 | W3: =COUNTA(W5:W277) -> 128 | AB3: =COUNTA(AB5:AB277) -> 69 | AF3: =COUNTA(AF5:AF277) -> 70 | AG3: +1 wg. TRD/ANS | AH3: IN/EI aber zusammen! | AI3: =SUM(AI5:AI113) -> 67 | AJ3: =SUM(AJ5:AJ113) -> 61
A4: Schulnummer | B4: Schule | C4: Strasse | D4: Stadt | E4: Träger_Eder | F4: Schulart12 | G4: Inaktiv | H4: ERR | I4: FFS | J4: SNR* | L4: Schulnummer | M4: Schule | N4: Strasse | O4: Stadt | P4: Träger_Eder | Q4: Schulart12 | R4: Inaktiv | S4: ERR | T4: FFS | U4: SNR* | W4: Schulnummer | X4: FFS | Y4: SNR* | Z4: Schulart | AB4: SNR* | AC4: FOS | AD4: BOS | AE4: Typ | AF4: SNR* | AG4: Kürzel | AI4: FOS | AJ4: BOS | AK4: FOS | AM4: BOS
A5: 0845 | B5: Staatliche Berufsoberschule Augsburg | C5: Alter Postweg 86 a | D5: 86159 Augsburg | E5: 1-staatlich | F5: 51 | G5: 0 | H5: 199708 | I5: 0855 | J5: =IF(I5=" ",A5,I5) -> 0855 | L5: 0851 | M5: Staatl. Fachoberschule Altötting | N5: Neuöttinger Str. 64 c | O5: 84503 Altötting | P5: 1-staatlich | Q5: 52 | R5: 0 | U5: =IF(T5=" ",L5,T5) -> 0851 | W5: 0828 | X5: 0865 | Y5: 0865 | Z5: =IF(COUNTIF($A$5:$A$113,W5)=1,"BOS","FOS") -> BOS | AB5: 0837 | AC5: 0 | AD5: 1 | AE5: =IF(AI5&AJ5="10","FOS",IF(AI5&AJ5="01","BOS","FOBOS")) -> BOS | AF5: 0837 | AG5: N-BOS | AH5: Nürnberg-BOS | AI5: =SUMPRODUCT(($Y$5:$Y$149=$AF5)*($Z$5:$Z$149="FOS")) -> 0 | AJ5: =SUMPRODUCT(($Y$5:$Y$149=$AF5)*($Z$5:$Z$149="BOS")) -> 1 | AK5: =IF(AI5=0,"-",INDEX($L$5:$L$100,MATCH($AF5,$U$5:$U$100,0))) -> - | AL5: =IF(AI5=0,"-",INDEX($M$5:$M$100,MATCH($AF5,$U$5:$U$100,0))) -> - | AM5: =IF(AJ5=0,"-",INDEX($A$5:$A$100,MATCH($AF5,$J$5:$J$100,0))) -> 0837 | AN5: =IF(AJ5=0,"-",INDEX($B$5:$B$100,MATCH($AF5,$J$5:$J$100,0))) -> Staatliche Berufsoberschule Nürnberg | AO5: =IF(AE5="FOS",AL5&" "&VLOOKUP(AK5,$L$4:$O$100,3,FALSE)&" "&VLOOKUP(AK5,$L$4:$O$100,4,FALSE),IF(AE5="BOS",AN5&" "&VLOOKUP(AM5,$A$4:$O$100,3,FALSE)&" "&VLOOKUP(AM5,$A$4:$O$100,4,FALSE),SUBSTITUTE(AL5,"Fachoberschule","Fachoberschule und Berufsoberschule")&" "&VLOOKUP(AK5,$L$4:$O$100,3,FALSE)&" "&VLOOKUP(AK5,$L$4:$O$100,4,FALSE))) -> Staatliche Berufsoberschule Nürnberg Schoppershofstr. 80 90489 Nürnberg
A6: 0846 | B6: Gustav-von-Schlör-Schule Staatliche Berufsoberschule Weiden i.d.OPf. | C6: Campusallee 2 | D6: 92637 Weiden i.d.OPf. | E6: 1-staatlich | F6: 51 | G6: 0 | H6: 199708 | I6: 0896 | J6: =IF(I6=" ",A6,I6) -> 0896 | L6: 0852 | M6: Staatliche Fachoberschule Amberg | N6: Raigeringer Str. 27 a | O6: 92224 Amberg | P6: 1-staatlich | Q6: 52 | R6: 0 | T6: Z312 | U6: =IF(T6=" ",L6,T6) -> Z312 | W6: 0829 | X6: 0867 | Y6: 0867 | Z6: =IF(COUNTIF($A$5:$A$113,W6)=1,"BOS","FOS") -> BOS | AB6: 0851 | AC6: 1 | AD6: 1 | AE6: =IF(AI6&AJ6="10","FOS",IF(AI6&AJ6="01","BOS","FOBOS")) -> FOBOS | AF6: 0851 | AG6: AÖ | AH6: Altötting | AI6: =SUMPRODUCT(($Y$5:$Y$149=$AF6)*($Z$5:$Z$149="FOS")) -> 1 | AJ6: =SUMPRODUCT(($Y$5:$Y$149=$AF6)*($Z$5:$Z$149="BOS")) -> 1 | AK6: =IF(AI6=0,"-",INDEX($L$5:$L$100,MATCH($AF6,$U$5:$U$100,0))) -> 0851 | AL6: =IF(AI6=0,"-",INDEX($M$5:$M$100,MATCH($AF6,$U$5:$U$100,0))) -> Staatl. Fachoberschule Altötting | AM6: =IF(AJ6=0,"-",INDEX($A$5:$A$100,MATCH($AF6,$J$5:$J$100,0))) -> 0839 | AN6: =IF(AJ6=0,"-",INDEX($B$5:$B$100,MATCH($AF6,$J$5:$J$100,0))) -> Staatliche Berufsoberschule Altötting | AO6: =IF(AE6="FOS",AL6&" "&VLOOKUP(AK6,$L$4:$O$100,3,FALSE)&" "&VLOOKUP(AK6,$L$4:$O$100,4,FALSE),IF(AE6="BOS",AN6&" "&VLOOKUP(AM6,$A$4:$O$100,3,FALSE)&" "&VLOOKUP(AM6,$A$4:$O$100,4,FALSE),SUBSTITUTE(AL6,"Fachoberschule","Fachoberschule und Berufsoberschule")&" "&VLOOKUP(AK6,$L$4:$O$100,3,FALSE)&" "&VLOOKUP(AK6,$L$4:$O$100,4,FALSE))) -> Staatl. Fachoberschule und Berufsoberschule Altötting Neuöttinger Str. 64 c 84503 Altötting | AP6: Staatliche Fachoberschule und Berufsoberschule Altötting Neuöttinger Straße 64 c 84503 Altötting
A7: 0847 | B7: Staatliche Berufsoberschule Weilheim i.OB | C7: Kerschensteinerstr. 2 | D7: 82362 Weilheim i.OB | E7: 1-staatlich | F7: 51 | G7: 0 | H7: 199708 | I7: 0897 | J7: 0897 | L7: 0853 | M7: Staatliche Fachoberschule Ansbach | N7: Pfarrstr. 21/23 | O7: 91522 Ansbach | P7: 1-staatlich | Q7: 52 | R7: 0 | U7: =IF(T7=" ",L7,T7)&"A" -> 0853A | W7: 0830 | X7: Z424 | Y7: Z424 | Z7: BOS | AB7: 0853 | AC7: 2 | AD7: 2 | AE7: FOBOS | AF7: 0853A | AG7: AN | AH7: Ansbach | AI7: 1 | AJ7: 1 | AK7: 0853 | AL7: Staatliche Fachoberschule Ansbach | AM7: 0803 | AN7: Staatliche Berufsoberschule Ansbach | AO7: Staatliche Fachoberschule und Berufsoberschule Ansbach Pfarrstr. 21/23 91522 Ansbach | AP7: Staatliche Fachoberschule und Berufsoberschule Ansbach Pfarrstraße 21/23 91522 Ansbach
A8: 0848 | B8: Staatliche Berufsoberschule Weißenburg i.Bay. | C8: Wildbadstr. 19 | D8: 91781 Weißenburg i.Bay. | E8: 1-staatlich | F8: 51 | G8: 0 | H8: 199708 | I8: 6091 | J8: 6091 | L8: 0854 | M8: Staatliche Fachoberschule Aschaffenburg | N8: Ottostraße 1 | O8: 63741 Aschaffenburg | P8: 1-staatlich | Q8: 52 | R8: 0 | U8: 0854 | W8: 0831 | X8: 0901 | Y8: 0901 | Z8: BOS | AB8: 0854 | AC8: 1 | AD8: 1 | AE8: FOBOS | AF8: 0853T | AG8: TRI | AH8: Triesdorf | AI8: 1 | AJ8: 1 | AK8: 0895 | AL8: Staatliche Fachoberschule Triesdorf in Weidenbach | AM8: 0796 | AN8: Staatliche Berufsoberschule Triesdorf in Weidenbach | AO8: Staatliche Fachoberschule und Berufsoberschule Triesdorf in Weidenbach Reitbahn 7 91746 Weidenbach | AP8: Staatliche Fachoberschule und Berufsoberschule Triesdorf Reitbahn 7 91746 Weidenbach
A9: 0849 | B9: Staatliche Berufsoberschule Bayreuth | C9: Körnerstr. 6 | D9: 95448 Bayreuth | E9: 1-staatlich | F9: 51 | G9: 0 | H9: 199708 | I9: 0859 | J9: 0859 | L9: 0855 | M9: Staatliche Fachoberschule Augsburg | N9: Alter Postweg 86 a | O9: 86159 Augsburg | P9: 1-staatlich | Q9: 52 | R9: 0 | U9: 0855 | W9: 0832 | X9: 0882 | Y9: 0882 | Z9: BOS | AB9: 0855 | AC9: 1 | AD9: 1 | AE9: FOBOS | AF9: 0854 | AG9: AB | AH9: Aschaffenburg | AI9: 1 | AJ9: 1 | AK9: 0854 | AL9: Staatliche Fachoberschule Aschaffenburg | AM9: 0804 | AN9: Staatliche Berufsoberschule Aschaffenburg | AO9: Staatliche Fachoberschule und Berufsoberschule Aschaffenburg Ottostraße 1 63741 Aschaffenburg | AP9: Staatliche Fachoberschule und Berufsoberschule Aschaffenburg Ottostraße 1 63741 Aschaffenburg
A10: 0850 | B10: Adalbert-Raps-Schule Staatliche Berufsoberschule Kulmbach | C10: Georg-Hagen-Str. 35 | D10: 95326 Kulmbach | E10: 1-staatlich | F10: 51 | G10: 0 | H10: 199708 | I10: Z416 | J10: Z416 | L10: 0856 | M10: Staatliche Fachoberschule Bad Tölz | N10: Alter Bahnhofplatz 10 | O10: 83646 Bad Tölz | P10: 1-staatlich | Q10: 52 | R10: 0 | U10: 0856 | W10: 0833 | X10: 0883 | Y10: 0883 | Z10: BOS | AB10: 0856 | AC10: 1 | AD10: 1 | AE10: FOBOS | AF10: 0855 | AG10: A | AH10: Augsburg | AI10: 1 | AJ10: 1 | AK10: 0855 | AL10: Staatliche Fachoberschule Augsburg | AM10: 0845 | AN10: Staatliche Berufsoberschule Augsburg | AO10: Staatliche Fachoberschule und Berufsoberschule Augsburg Alter Postweg 86 a 86159 Augsburg | AP10: Staatliche Fachoberschule und Berufsoberschule Augsburg Alter Postweg 86 a 86159 Augsburg
A11: 0781 | B11: Staatl. Berufsoberschule Erding | C11: Siglfinger Str. 50 | D11: 85435 Erding | E11: 1-staatlich | F11: 51 | G11: 0 | H11: 200308 | I11: 0924 | J11: 0924 | L11: 0857 | M11: Staatliche Fachoberschule Bad Neustadt a.d.Saale | N11: Otto-Hahn-Str. 36 | O11: 97616 Bad Neustadt a.d.Saale | P11: 1-staatlich | Q11: 52 | R11: 0 | U11: 0857 | W11: 0834 | X11: 0905 | Y11: 0905 | Z11: BOS | AB11: 0857 | AC11: 1 | AD11: 1 | AE11: FOBOS | AF11: 0856 | AG11: TÖL | AH11: Bad Tölz | AI11: 1 | AJ11: 1 | AK11: 0856 | AL11: Staatliche Fachoberschule Bad Tölz | AM11: 0821 | AN11: Staatliche Berufsoberschule Bad Tölz | AO11: Staatliche Fachoberschule und Berufsoberschule Bad Tölz Alter Bahnhofplatz 10 83646 Bad Tölz | AP11: Staatliche Fachoberschule und Berufsoberschule Bad Tölz Alter Bahnhofplatz 10 83646 Bad Tölz
A12: 0782 | B12: Staatl. Berufsoberschule Fürstenfeldbruck | C12: Münchner Str. 67 | D12: 82256 Fürstenfeldbruck | E12: 1-staatlich | F12: 51 | G12: 0 | H12: 200308 | I12: 0927 | J12: 0927 | L12: 0858 | M12: Staatliche Fachoberschule Bamberg | N12: Ohmstr. 17 | O12: 96050 Bamberg | P12: 1-staatlich | Q12: 52 | R12: 0 | U12: 0858 | W12: 0835 | X12: Z205 | Y12: Z205 | Z12: BOS | AB12: 0858 | AC12: 1 | AD12: 1 | AE12: FOBOS | AF12: 0857 | AG12: NES | AH12: Bad Neustadt | AI12: 1 | AJ12: 1 | AK12: 0857 | AL12: Staatliche Fachoberschule Bad Neustadt a.d.Saale | AM12: 0800 | AN12: Staatliche Berufsoberschule Bad Neustadt a.d.Saale | AO12: Staatliche Fachoberschule und Berufsoberschule Bad Neustadt a.d.Saale Otto-Hahn-Str. 36 97616 Bad Neustadt a.d.Saale | AP12: Staatliche Fachoberschule und Berufsoberschule Bad Neustadt Otto-Hahn-Straße 36 97616 Bad Neustadt
A13: 0783 | B13: Therese-von-Bayern-Schule,staatl. Berufsoberschule f.Wirtschaft u.Verwaltung München | C13: Lindwurmstr. 90 | D13: 80337 München | E13: 1-staatlich | F13: 51 | G13: 0 | H13: 200408 | I13: 1374 | J13: 1374 | L13: 0859 | M13: Staatliche Fachoberschule Bayreuth | N13: Körnerstr. 6 | O13: 95448 Bayreuth | P13: 1-staatlich | Q13: 52 | R13: 0 | U13: 0859 | W13: 0836 | X13: Z126 | Y13: Z126 | Z13: BOS | AB13: 0859 | AC13: 1 | AD13: 1 | AE13: FOBOS | AF13: 0858 | AG13: BA | AH13: Bamberg | AI13: 1 | AJ13: 1 | AK13: 0858 | AL13: Staatliche Fachoberschule Bamberg | AM13: 0808 | AN13: Staatliche Berufsoberschule Bamberg | AO13: Staatliche Fachoberschule und Berufsoberschule Bamberg Ohmstr. 17 96050 Bamberg | AP13: Staatliche Fachoberschule und Berufsoberschule Bamberg Ohmstraße 17 96050 Bamberg
A14: 0784 | B14: Staatl. Berufsoberschule Kelheim | C14: Schützenstr. 30 | D14: 93309 Kelheim | E14: 1-staatlich | F14: 51 | G14: 0 | H14: 200608 | I14: Z173 | J14: Z173 | L14: 0860 | M14: Staatliche Fachoberschule Cham | N14: Dr.-Muggenthaler-Str. 11 | O14: 93413 Cham | P14: 1-staatlich | Q14: 52 | R14: 0 | T14: Z177 | U14: Z177 | W14: 0837 | Y14: 0837 | Z14: BOS | AB14: 0862 | AC14: 1 | AD14: 1 | AE14: FOBOS | AF14: 0859 | AG14: BT | AH14: Bayreuth | AI14: 1 | AJ14: 1 | AK14: 0859 | AL14: Staatliche Fachoberschule Bayreuth | AM14: 0849 | AN14: Staatliche Berufsoberschule Bayreuth | AO14: Staatliche Fachoberschule und Berufsoberschule Bayreuth Körnerstr. 6 95448 Bayreuth | AP14: Staatliche Fachoberschule und Berufsoberschule Bayreuth Körnerstraße 6 95448 Bayreuth
A15: 0785 | B15: Staatl. Berufsoberschule Krumbach | C15: Bahnhofstr. 2 | D15: 86381 Krumbach (Schwaben) | E15: 1-staatlich | F15: 51 | G15: 0 | H15: 200208 | I15: 0873 | J15: 0873 | L15: 0861 | M15: Regiomontanus-Schule Staatliche Fachoberschule Coburg | N15: Plattenäcker 30 | O15: 96450 Coburg | P15: 1-staatlich | Q15: 52 | R15: 0 | T15: 5013 | U15: 5013 | W15: 0838 | X15: Z106 | Y15: Z106 | Z15: BOS | AB15: 0863 | AC15: 1 | AD15: 1 | AE15: FOBOS | AF15: 0862 | AG15: DEG | AH15: Deggendorf | AI15: 1 | AJ15: 1 | AK15: 0862 | AL15: Aloys-Fischer-Schule Staatliche Fachoberschule Deggendorf | AM15: 0824 | AN15: Aloys-Fischer-Schule Staatliche Berufsoberschule Deggendorf | AO15: Aloys-Fischer-Schule Staatliche Fachoberschule und Berufsoberschule Deggendorf Jahnstr. 5 94469 Deggendorf | AP15: Aloys-Fischer-Schule Staatliche Fachoberschule und Berufsoberschule Deggendorf Jahnstraße 5 94469 Deggendorf
A16: 0786 | B16: Staatliche Berufsoberschule Obernburg a.Main | C16: Dekaneistr. 5-9 | D16: 63785 Obernburg a.Main | E16: 1-staatlich | F16: 51 | G16: 0 | H16: 200208 | I16: 7058 | J16: 7058 | L16: 0862 | M16: Aloys-Fischer-Schule Staatliche Fachoberschule Deggendorf | N16: Jahnstr. 5 | O16: 94469 Deggendorf | P16: 1-staatlich | Q16: 52 | R16: 0 | U16: 0862 | W16: 0839 | X16: 0851 | Y16: 0851 | Z16: BOS | AB16: 0864 | AC16: 1 | AD16: 1 | AE16: FOBOS | AF16: 0863 | AG16: DON | AH16: Donauwörth | AI16: 1 | AJ16: 1 | AK16: 0863 | AL16: Hans-Leipelt-Schule Staatliche Fachoberschule Donauwörth | AM16: 0813 | AN16: Hans-Leipelt-Schule Staatliche Berufsoberschule Donauwörth | AO16: Hans-Leipelt-Schule Staatliche Fachoberschule und Berufsoberschule Donauwörth Neudegger Allee 9 86609 Donauwörth | AP16: Hans-Leipelt-Schule Staatliche Fachoberschule und Berufsoberschule Donauwörth Neudegger Allee 9 86609 Donauwörth
A17: 0787 | B17: Staatliche Berufsoberschule Pfarrkirchen | C17: Von-Fraunhofer-Str. 2 | D17: 84347 Pfarrkirchen | E17: 1-staatlich | F17: 51 | G17: 0 | H17: 200208 | I17: 0888 | J17: 0888 | L17: 0863 | M17: Hans-Leipelt-Schule Staatliche Fachoberschule Donauwörth | N17: Neudegger Allee 9 | O17: 86609 Donauwörth | P17: 1-staatlich | Q17: 52 | R17: 0 | U17: 0863 | W17: 0840 | X17: 0890 | Y17: 0890 | Z17: BOS | AB17: 0865 | AC17: 1 | AD17: 1 | AE17: FOBOS | AF17: 0864 | AG17: ER | AH17: Erlangen | AI17: 1 | AJ17: 1 | AK17: 0864 | AL17: Staatliche Fachoberschule Erlangen | AM17: 0827 | AN17: Staatliche Berufsoberschule Erlangen | AO17: Staatliche Fachoberschule und Berufsoberschule Erlangen Drausnickstr. 1 c 91052 Erlangen | AP17: Staatliche Fachoberschule und Berufsoberschule Erlangen Drausnickstraße 1c 91052 Erlangen
A18: 0788 | B18: Staatl. Berufsoberschule Landsberg a.Lech | C18: Spitalfeldstr. 11 | D18: 86899 Landsberg am Lech | E18: 1-staatlich | F18: 51 | G18: 0 | H18: 200908 | I18: 1571 | J18: 1571 | L18: 0864 | M18: Staatliche Fachoberschule Erlangen | N18: Drausnickstr. 1 c | O18: 91052 Erlangen | P18: 1-staatlich | Q18: 52 | R18: 0 | U18: 0864 | W18: 0841 | X18: 0871 | Y18: 0871 | Z18: BOS | AB18: 0867 | AC18: 1 | AD18: 1 | AE18: FOBOS | AF18: 0865 | AG18: FS | AH18: Freising | AI18: 1 | AJ18: 1 | AK18: 0865 | AL18: Staatliche Fachoberschule Freising | AM18: 0828 | AN18: Staatliche Berufsoberschule Freising | AO18: Staatliche Fachoberschule und Berufsoberschule Freising Wippenhauser Str. 64 85354 Freising | AP18: Staatliche Fachoberschule und Berufsoberschule Freising Wippenhauser Str. 64 85354 Freising
A19: 0790 | B19: Staatliche Berufsoberschule Ingolstadt | C19: Oberer Graben 4 | D19: 85049 Ingolstadt | E19: 1-staatlich | F19: 51 | G19: 0 | H19: 199708 | I19: 0869 | J19: 0869 | L19: 0865 | M19: Staatliche Fachoberschule Freising | N19: Wippenhauser Str. 64 | O19: 85354 Freising | P19: 1-staatlich | Q19: 52 | R19: 0 | U19: 0865 | W19: 0842 | X19: Z300 | Y19: Z300 | Z19: BOS | AB19: 0869 | AC19: 1 | AD19: 1 | AE19: FOBOS | AF19: 0867 | AG19: FÜ | AH19: Fürth | AI19: 1 | AJ19: 1 | AK19: 0867 | AL19: Max-Grundig-Schule Staatliche Fachoberschule Fürth | AM19: 0829 | AN19: Max-Grundig-Schule Staatliche Berufsoberschule Fürth | AO19: Max-Grundig-Schule Staatliche Fachoberschule und Berufsoberschule Fürth Amalienstr. 1-4 90763 Fürth | AP19: Max-Grundig-Schule Staatliche Fachoberschule und Berufsoberschule Fürth Amalienstraße 2-4 90763 Fürth
A20: 0791 | B20: Staatliche Berufsoberschule Landshut | C20: Luitpoldstr. 26 | D20: 84034 Landshut | E20: 1-staatlich | F20: 51 | G20: 0 | H20: 199708 | I20: 3032 | J20: 3032 | L20: 0867 | M20: Max-Grundig-Schule Staatliche Fachoberschule Fürth | N20: Amalienstr. 1-4 | O20: 90763 Fürth | P20: 1-staatlich | Q20: 52 | R20: 0 | U20: 0867 | W20: 0843 | X20: 0893 | Y20: 0893 | Z20: BOS | AB20: 0870 | AC20: 1 | AD20: 1 | AE20: FOBOS | AF20: 0869 | AG20: IN | AH20: Ingostadt | AI20: 1 | AJ20: 1 | AK20: 0869 | AL20: Staatliche Fachoberschule Ingolstadt | AM20: 0790 | AN20: Staatliche Berufsoberschule Ingolstadt | AO20: Staatliche Fachoberschule und Berufsoberschule Ingolstadt Oberer Graben 4 85049 Ingolstadt | AP20: Staatliche Fachoberschule und Berufsoberschule Ingolstadt Oberer Graben 4 85049 Ingolstadt
A21: 0792 | B21: Staatliche Berufsoberschule für Technik München | C21: Orleansstr. 44 | D21: 81667 München | E21: 1-staatlich | F21: 51 | G21: 0 | H21: 199708 | I21: 0877 | J21: 0877 | L21: 0868 | M21: Staatliche Fachoberschule Hof | N21: Schloßplatz 6 | O21: 95028 Hof | P21: 1-staatlich | Q21: 52 | R21: 0 | T21: Z424 | U21: Z424 | W21: 0844 | X21: 0894 | Y21: 0894 | Z21: BOS | AB21: 0871 | AC21: 1 | AD21: 1 | AE21: FOBOS | AF21: 0870 | AG21: KF | AH21: Kaufbeuren | AI21: 1 | AJ21: 1 | AK21: 0870 | AL21: Staatliche Fachoberschule Kaufbeuren | AM21: 0820 | AN21: Staatliche Berufsoberschule Kaufbeuren | AO21: Staatliche Fachoberschule und Berufsoberschule Kaufbeuren Josef-Fischer-Str. 5 87600 Kaufbeuren | AP21: Staatliche Fachoberschule und Berufsoberschule Kaufbeuren Josef-Fischer-Straße 5 87600 Kaufbeuren
A22: 0794 | B22: Staatliche Berufsoberschule Passau | C22: Heiliggeistgasse 10 | D22: 94032 Passau | E22: 1-staatlich | F22: 51 | G22: 0 | H22: 199708 | I22: 0887 | J22: 0887 | L22: 0869 | M22: Staatliche Fachoberschule Ingolstadt | N22: Oberer Graben 4 | O22: 85049 Ingolstadt | P22: 1-staatlich | Q22: 52 | R22: 0 | U22: 0869 | W22: 0845 | X22: 0855 | Y22: 0855 | Z22: BOS | AB22: 0873 | AC22: 1 | AD22: 1 | AE22: FOBOS | AF22: 0871 | AG22: KE | AH22: Kempten | AI22: 1 | AJ22: 1 | AK22: 0871 | AL22: Staatliche Fachoberschule Kempten (Allgäu) | AM22: 0841 | AN22: Staatliche Berufsoberschule Kempten (Allgäu) | AO22: Staatliche Fachoberschule und Berufsoberschule Kempten (Allgäu) Kotterner Str. 41 87435 Kempten (Allgäu) | AP22: Staatliche Fachoberschule und Berufsoberschule Kempten Kotterner Str. 41 87435 Kempten
A23: 0795 | B23: Staatliche Berufsoberschule Regensburg | C23: Fort-Skelly-Str. 31 | D23: 93053 Regensburg | E23: 1-staatlich | F23: 51 | G23: 0 | H23: 199708 | I23: 0889 | J23: =IF(I23=" ",A23,I23) -> 0889 | L23: 0870 | M23: Staatliche Fachoberschule Kaufbeuren | N23: Josef-Fischer-Str. 5 | O23: 87600 Kaufbeuren | P23: 1-staatlich | Q23: 52 | R23: 0 | U23: 0870 | W23: 1133 | X23: Z105 | Y23: Z105 | Z23: BOS | AB23: 0876 | AC23: 1 | AD23: 1 | AE23: FOBOS | AF23: 0873 | AG23: KRU | AH23: Krumbach | AI23: 1 | AJ23: 1 | AK23: 0873 | AL23: Staatliche Fachoberschule Krumbach | AM23: 0785 | AN23: Staatl. Berufsoberschule Krumbach | AO23: Staatliche Fachoberschule und Berufsoberschule Krumbach Bahnhofstr. 2 86381 Krumbach (Schwaben) | AP23: Staatliche Fachoberschule und Berufsoberschule Krumbach Bahnhofstr. 2 86381 Krumbach
A24: 0796 | B24: Staatliche Berufsoberschule Triesdorf in Weidenbach | C24: Reitbahn 7 | D24: 91746 Weidenbach | E24: 1-staatlich | F24: 51 | G24: 0 | H24: 199708 | I24: 0853 | J24: =IF(I24=" ",A24,I24)&"T" -> 0853T | L24: 0871 | M24: Staatliche Fachoberschule Kempten (Allgäu) | N24: Kotterner Str. 41 | O24: 87435 Kempten (Allgäu) | P24: 1-staatlich | Q24: 52 | R24: 0 | U24: 0871 | W24: 1134 | X24: 1172 | Y24: 1172 | Z24: BOS | AB24: 0877 | AC24: 1 | AD24: 1 | AE24: FOBOS | AF24: 0876 | AG24: MM | AH24: Memmingen | AI24: 1 | AJ24: 1 | AK24: 0876 | AL24: Staatl. Fachoberschule Memmingen | AM24: 0797 | AN24: Staatl. Berufsoberschule Memmingen | AO24: Staatl. Fachoberschule und Berufsoberschule Memmingen Claußweg 10 87700 Memmingen | AP24: Staatliche Fachoberschule und Berufsoberschule Memmingen Claußweg 10 87700 Memmingen
A25: 0797 | B25: Staatl. Berufsoberschule Memmingen | C25: Claußweg 10 | D25: 87700 Memmingen | E25: 1-staatlich | F25: 51 | G25: 0 | H25: 199708 | I25: 0876 | J25: 0876 | L25: 0872 | M25: Staatl. Fachoberschule Kitzingen | N25: Thomas-Ehemann-Str. 13 a | O25: 97318 Kitzingen | P25: 1-staatlich | Q25: 52 | R25: 0 | T25: Z604 | U25: Z604 | W25: 1136 | X25: 1173 | Y25: 1173 | Z25: BOS | AB25: 0882 | AC25: 1 | AD25: 1 | AE25: FOBOS | AF25: 0877 | AG25: M-T | AH25: München-T | AI25: 1 | AJ25: 1 | AK25: 0877 | AL25: Staatliche Fachoberschule für Technik München | AM25: 0792 | AN25: Staatliche Berufsoberschule für Technik München | AO25: Staatliche Fachoberschule und Berufsoberschule für Technik München Orleansstr. 44 81667 München | AP25: Staatliche Fachoberschule und Berufsoberschule München Ausbildungsrichtung Technik Orleansstr. 44 81667 München
A26: 0798 | B26: Staatliche Berufsoberschule Wasserburg a.Inn | C26: Klosterweg 21 | D26: 83512 Wasserburg a.Inn | E26: 1-staatlich | F26: 51 | G26: 0 | H26: 199808 | I26: 0907 | J26: 0907 | L26: 0873 | M26: Staatliche Fachoberschule Krumbach | N26: Bahnhofstr. 2 | O26: 86381 Krumbach (Schwaben) | P26: 1-staatlich | Q26: 52 | R26: 0 | U26: 0873 | W26: 0851 | Y26: 0851 | Z26: FOS | AB26: 0883 | AC26: 1 | AD26: 1 | AE26: FOBOS | AF26: 0882 | AG26: NM | AH26: Neumarkt | AI26: 1 | AJ26: 1 | AK26: 0882 | AL26: Maximilian-Kolbe-Schule Staatliche Fachoberschule Neumarkt i.d.OPf. | AM26: 0832 | AN26: Maximilian-Kolbe-Schule Staatliche Berufsoberschule Neumarkt i.d.OPf. | AO26: Maximilian-Kolbe-Schule Staatliche Fachoberschule und Berufsoberschule Neumarkt i.d.OPf. Kerschensteinerstr. 7 92318 Neumarkt i.d.OPf. | AP26: Maximilian-Kolbe-Schule Staatliche Fachoberschule und Berufsoberschule Neumarkt Kerschensteiner Str. 7 92318 Neumarkt
A27: 0800 | B27: Staatliche Berufsoberschule Bad Neustadt a.d.Saale | C27: Otto-Hahn-Str. 36 | D27: 97616 Bad Neustadt a.d.Saale | E27: 1-staatlich | F27: 51 | G27: 0 | H27: 199708 | I27: 0857 | J27: 0857 | L27: 0874 | M27: Staatliche Fachoberschule Landshut | N27: Marienplatz 11 | O27: 84028 Landshut | P27: 1-staatlich | Q27: 52 | R27: 0 | T27: Z217 | U27: Z217 | W27: 0852 | X27: Z312 | Y27: Z312 | Z27: FOS | AB27: 0887 | AC27: 1 | AD27: 1 | AE27: FOBOS | AF27: 0883 | AG27: NU | AH27: Neu-Ulm | AI27: 1 | AJ27: 1 | AK27: 0883 | AL27: Staatliche Fachoberschule Neu-Ulm | AM27: 0833 | AN27: Staatliche Berufsoberschule Neu-Ulm | AO27: Staatliche Fachoberschule und Berufsoberschule Neu-Ulm Memminger Str. 48 89231 Neu-Ulm | AP27: Staatliche Fachoberschule und Berufsoberschule Neu-Ulm Memminger Str. 48 89231 Neu-Ulm
A28: 0802 | B28: Staatliche Berufsoberschule Amberg | C28: Raigeringer Str. 27 a | D28: 92224 Amberg | E28: 1-staatlich | F28: 51 | G28: 0 | H28: 199708 | I28: Z312 | J28: =IF(I28=" ",A28,I28) -> Z312 | L28: 0875 | M28: Staatliche Fachoberschule Lindau (Bodensee) | N28: Achstr. 13 | O28: 88131 Lindau (Bodensee) | P28: 1-staatlich | Q28: 52 | R28: 0 | T28: Z795 | U28: Z795 | W28: 0853 | Y28: 0853A | Z28: FOS | AB28: 0888 | AC28: 1 | AD28: 1 | AE28: FOBOS | AF28: 0887 | AG28: PA | AH28: Passau | AI28: 1 | AJ28: 1 | AK28: 0887 | AL28: Staatliche Fachoberschule Passau | AM28: 0794 | AN28: Staatliche Berufsoberschule Passau | AO28: Staatliche Fachoberschule und Berufsoberschule Passau Heiliggeistgasse 10 94032 Passau | AP28: Staatliche Fachoberschule und Berufsoberschule Passau Heiliggeistgasse 10 94032 Passau
A29: 0803 | B29: Staatliche Berufsoberschule Ansbach | C29: Pfarrstr. 21/23 | D29: 91522 Ansbach | E29: 1-staatlich | F29: 51 | G29: 0 | H29: 199708 | I29: 0853 | J29: =IF(I29=" ",A29,I29)&"A" -> 0853A | L29: 0876 | M29: Staatl. Fachoberschule Memmingen | N29: Claußweg 10 | O29: 87700 Memmingen | P29: 1-staatlich | Q29: 52 | R29: 0 | U29: 0876 | W29: 0854 | Y29: 0854 | Z29: FOS | AB29: 0889 | AC29: 1 | AD29: 1 | AE29: FOBOS | AF29: 0888 | AG29: PAN | AH29: Pfarrkirchen | AI29: 1 | AJ29: 1 | AK29: 0888 | AL29: Staatliche Fachoberschule Pfarrkirchen | AM29: 0787 | AN29: Staatliche Berufsoberschule Pfarrkirchen | AO29: Staatliche Fachoberschule und Berufsoberschule Pfarrkirchen Von-Fraunhofer-Str. 2 84347 Pfarrkirchen
A30: 0804 | B30: Staatliche Berufsoberschule Aschaffenburg | C30: Ottostraße 1 | D30: 63741 Aschaffenburg | E30: 1-staatlich | F30: 51 | G30: 0 | H30: 199708 | I30: 0854 | J30: 0854 | L30: 0877 | M30: Staatliche Fachoberschule für Technik München | N30: Orleansstr. 44 | O30: 81667 München | P30: 1-staatlich | Q30: 52 | R30: 0 | S30: 197008 | U30: 0877 | W30: 0855 | Y30: 0855 | Z30: FOS | AB30: 0890 | AC30: 1 | AD30: 1 | AE30: FOBOS | AF30: 0889 | AG30: R | AH30: Regensburg | AI30: 1 | AJ30: 1 | AK30: 0889 | AL30: Staatliche Fachoberschule Regensburg | AM30: 0795 | AN30: Staatliche Berufsoberschule Regensburg | AO30: Staatliche Fachoberschule und Berufsoberschule Regensburg Fort-Skelly-Str. 31 93053 Regensburg
A31: 0807 | B31: Staatliche Berufsoberschule Lindau (Bodensee) | C31: Achstr. 13 | D31: 88131 Lindau (Bodensee) | E31: 1-staatlich | F31: 51 | G31: 0 | H31: 201008 | I31: Z795 | J31: Z795 | L31: 0882 | M31: Maximilian-Kolbe-Schule Staatliche Fachoberschule Neumarkt i.d.OPf. | N31: Kerschensteinerstr. 7 | O31: 92318 Neumarkt i.d.OPf. | P31: 1-staatlich | Q31: 52 | R31: 0 | U31: 0882 | W31: 0856 | Y31: 0856 | Z31: FOS | AB31: 0893 | AC31: 1 | AD31: 1 | AE31: FOBOS | AF31: 0890 | AG31: RO | AH31: Rosenheim | AI31: 1 | AJ31: 1 | AK31: 0890 | AL31: Staatl. Fachoberschule Rosenheim | AM31: 0840 | AN31: Staatliche Berufsoberschule Rosenheim | AO31: Staatl. Fachoberschule und Berufsoberschule Rosenheim Westerndorfer Str. 45 83024 Rosenheim
A32: 0808 | B32: Staatliche Berufsoberschule Bamberg | C32: Ohmstr. 17 | D32: 96050 Bamberg | E32: 1-staatlich | F32: 51 | G32: 0 | H32: 199708 | I32: 0858 | J32: 0858 | L32: 0883 | M32: Staatliche Fachoberschule Neu-Ulm | N32: Memminger Str. 48 | O32: 89231 Neu-Ulm | P32: 1-staatlich | Q32: 52 | R32: 0 | U32: 0883 | W32: 0857 | Y32: 0857 | Z32: FOS | AB32: 0894 | AC32: 1 | AD32: 1 | AE32: FOBOS | AF32: 0893 | AG32: SW | AH32: Schweinfurt | AI32: 1 | AJ32: 1 | AK32: 0893 | AL32: Friedrich-Fischer-Schule Staatliche Fachoberschule Schweinfurt | AM32: 0843 | AN32: Friedrich-Fischer-Schule Staatl.Berufsoberschule Schweinfurt | AO32: Friedrich-Fischer-Schule Staatliche Fachoberschule und Berufsoberschule Schweinfurt Goethestr. 5 97421 Schweinfurt
A33: 0813 | B33: Hans-Leipelt-Schule Staatliche Berufsoberschule Donauwörth | C33: Neudegger Allee 9 | D33: 86609 Donauwörth | E33: 1-staatlich | F33: 51 | G33: 0 | H33: 199708 | I33: 0863 | J33: 0863 | L33: 0886 | M33: Staatliche Fachoberschule Obernburg a.Main | N33: Dekaneistr. 5-9 | O33: 63785 Obernburg a.Main | P33: 1-staatlich | Q33: 52 | R33: 0 | T33: 7058 | U33: 7058 | W33: 0858 | Y33: 0858 | Z33: FOS | AB33: 0896 | AC33: 1 | AD33: 1 | AE33: FOBOS | AF33: 0894 | AG33: TS | AH33: Traunstein | AI33: 1 | AJ33: 1 | AK33: 0894 | AL33: Staatliche Fachoberschule Traunstein | AM33: 0844 | AN33: Staatliche Berufsoberschule Traunstein | AO33: Staatliche Fachoberschule und Berufsoberschule Traunstein Wasserburger Str. 48 83278 Traunstein
A34: 0814 | B34: Staatliche Berufsoberschule Regen | C34: Obere Bachgasse 23 | D34: 94209 Regen | E34: 1-staatlich | F34: 51 | G34: 0 | H34: 201108 | I34: 3039 | J34: 3039 | L34: 0887 | M34: Staatliche Fachoberschule Passau | N34: Heiliggeistgasse 10 | O34: 94032 Passau | P34: 1-staatlich | Q34: 52 | R34: 0 | U34: 0887 | W34: 0859 | Y34: 0859 | Z34: FOS | AB34: 0897 | AC34: 1 | AD34: 1 | AE34: FOBOS | AF34: 0896 | AG34: WEN | AH34: Weiden | AI34: 1 | AJ34: 1 | AK34: 0896 | AL34: Gustav-von-Schlör-Schule Staatliche Fachoberschule Weiden i.d.OPf. | AM34: 0846 | AN34: Gustav-von-Schlör-Schule Staatliche Berufsoberschule Weiden i.d.OPf. | AO34: Gustav-von-Schlör-Schule Staatliche Fachoberschule und Berufsoberschule Weiden i.d.OPf. Campusallee 2 92637 Weiden i.d.OPf.
A35: 0815 | B35: Staatl. Berufsoberschule Marktredwitz | C35: Schulstr. 12 | D35: 95615 Marktredwitz | E35: 1-staatlich | F35: 51 | G35: 0 | H35: 201108 | I35: Z423 | J35: Z423 | L35: 0888 | M35: Staatliche Fachoberschule Pfarrkirchen | N35: Von-Fraunhofer-Str. 2 | O35: 84347 Pfarrkirchen | P35: 1-staatlich | Q35: 52 | R35: 0 | U35: 0888 | W35: 0860 | X35: Z177 | Y35: Z177 | Z35: FOS | AB35: 0901 | AC35: 1 | AD35: 1 | AE35: FOBOS | AF35: 0897 | AG35: WM | AH35: Weilheim | AI35: 1 | AJ35: 1 | AK35: 0897 | AL35: Staatliche Fachoberschule Weilheim i.OB | AM35: 0847 | AN35: Staatliche Berufsoberschule Weilheim i.OB | AO35: Staatliche Fachoberschule und Berufsoberschule Weilheim i.OB Kerschensteinerstr. 2 82362 Weilheim i.OB
A36: 0816 | B36: Staatl. Berufsoberschule Friedberg | C36: Aichacher Str. 18 | D36: 86316 Friedberg | E36: 1-staatlich | F36: 51 | G36: 0 | H36: 201108 | I36: 0919 | J36: 0919 | L36: 0889 | M36: Staatliche Fachoberschule Regensburg | N36: Fort-Skelly-Str. 31 | O36: 93053 Regensburg | P36: 1-staatlich | Q36: 52 | R36: 0 | U36: 0889 | W36: 0861 | X36: 5013 | Y36: 5013 | Z36: FOS | AB36: 0903 | AC36: 1 | AD36: 0 | AE36: FOBOS | AF36: 0901 | AG36: MAR | AH36: Marktheidenfeld | AI36: 1 | AJ36: 1 | AK36: 0901 | AL36: Staatliche Fachoberschule Marktheidenfeld | AM36: 0831 | AN36: Staatliche Berufsoberschule Marktheidenfeld | AO36: Staatliche Fachoberschule und Berufsoberschule Marktheidenfeld Friedenstr. 44 97828 Marktheidenfeld
A37: 0818 | B37: Staatl. Berufsoberschule Waldkirchen | C37: Freyunger Str. 8 | D37: 94065 Waldkirchen | E37: 1-staatlich | F37: 51 | G37: 0 | H37: 201108 | I37: Z204 | J37: Z204 | L37: 0890 | M37: Staatl. Fachoberschule Rosenheim | N37: Westerndorfer Str. 45 | O37: 83024 Rosenheim | P37: 1-staatlich | Q37: 52 | R37: 0 | U37: 0890 | W37: 0862 | Y37: 0862 | Z37: FOS | AB37: 0905 | AC37: 1 | AD37: 1 | AE37: FOS | AF37: 0903 | AG37: N-FOS | AH37: Nürnberg-FOS | AI37: 1 | AJ37: 0 | AK37: 0903 | AL37: Lothar-von-Faber-Schule Staatliche Fachoberschule Nürnberg | AM37: - | AN37: - | AO37: Lothar-von-Faber-Schule Staatliche Fachoberschule Nürnberg Schafhofstr. 25 90411 Nürnberg
A38: 0819 | B38: Staatl. Berufsoberschule Neusäß | C38: Landrat-Dr.-Frey-Str. 12 | D38: 86356 Neusäß | E38: 1-staatlich | F38: 51 | G38: 0 | H38: 201108 | I38: Z713 | J38: Z713 | L38: 0891 | M38: Staatliche Fachoberschule Schönbrunn in Landshut | N38: Am Lurzenhof 5 | O38: 84036 Landshut | P38: 1-staatlich | Q38: 52 | R38: 0 | T38: Z205 | U38: Z205 | W38: 0863 | Y38: 0863 | Z38: FOS | AB38: 0907 | AC38: 1 | AD38: 1 | AE38: FOBOS | AF38: 0905 | AG38: SR | AH38: Straubing | AI38: 1 | AJ38: 1 | AK38: 0905 | AL38: Staatl. Fachoberschule Straubing | AM38: 0834 | AN38: Staatliche Berufsoberschule Straubing | AO38: Staatl. Fachoberschule und Berufsoberschule Straubing Stadtgraben 38 94315 Straubing
A39: 0820 | B39: Staatliche Berufsoberschule Kaufbeuren | C39: Josef-Fischer-Str. 5 | D39: 87600 Kaufbeuren | E39: 1-staatlich | F39: 51 | G39: 0 | H39: 199708 | I39: 0870 | J39: 0870 | L39: 0892 | M39: Staatliche Fachoberschule Schwandorf | N39: Glätzlstr. 29 | O39: 92421 Schwandorf | P39: 1-staatlich | Q39: 52 | R39: 0 | T39: Z300 | U39: Z300 | W39: 0864 | Y39: 0864 | Z39: FOS | AB39: 0919 | AC39: 1 | AD39: 1 | AE39: FOBOS | AF39: 0907 | AG39: WS | AH39: Wasserburg | AI39: 1 | AJ39: 1 | AK39: 0907 | AL39: Staatliche Fachoberschule Wasserburg a.Inn | AM39: 0798 | AN39: Staatliche Berufsoberschule Wasserburg a.Inn | AO39: Staatliche Fachoberschule und Berufsoberschule Wasserburg a.Inn Klosterweg 21 83512 Wasserburg a.Inn
A40: 0821 | B40: Staatliche Berufsoberschule Bad Tölz | C40: Alter Bahnhofplatz 10 | D40: 83646 Bad Tölz | E40: 1-staatlich | F40: 51 | G40: 0 | H40: 199708 | I40: 0856 | J40: 0856 | L40: 0893 | M40: Friedrich-Fischer-Schule Staatliche Fachoberschule Schweinfurt | N40: Goethestr. 5 | O40: 97421 Schweinfurt | P40: 1-staatlich | Q40: 52 | R40: 0 | U40: 0893 | W40: 0865 | Y40: 0865 | Z40: FOS | AB40: 0924 | AC40: 1 | AD40: 1 | AE40: FOBOS | AF40: 0919 | AG40: FRI | AH40: Friedberg | AI40: 1 | AJ40: 1 | AK40: 0919 | AL40: Staatl. Fachoberschule Friedberg | AM40: 0816 | AN40: Staatl. Berufsoberschule Friedberg | AO40: Staatl. Fachoberschule und Berufsoberschule Friedberg Aichacher Str. 18 86316 Friedberg
A41: 0822 | B41: Staatliche Berufsoberschule Cham | C41: Dr.-Muggenthaler-Str. 11 | D41: 93413 Cham | E41: 1-staatlich | F41: 51 | G41: 0 | H41: 199708 | I41: Z177 | J41: Z177 | L41: 0894 | M41: Staatliche Fachoberschule Traunstein | N41: Wasserburger Str. 48 | O41: 83278 Traunstein | P41: 1-staatlich | Q41: 52 | R41: 0 | U41: 0894 | W41: 0867 | Y41: 0867 | Z41: FOS | AB41: 0927 | AC41: 1 | AD41: 1 | AE41: FOBOS | AF41: 0924 | AG41: ED | AH41: Erding | AI41: 1 | AJ41: 1 | AK41: 0924 | AL41: Staatl. Fachoberschule Erding | AM41: 0781 | AN41: Staatl. Berufsoberschule Erding | AO41: Staatl. Fachoberschule und Berufsoberschule Erding Siglfinger Str. 50 85435 Erding
A42: 0823 | B42: Regiomontanus-Schule Staatliche Berufsoberschule Coburg | C42: Plattenäcker 30 | D42: 96450 Coburg | E42: 1-staatlich | F42: 51 | G42: 0 | H42: 199708 | I42: 5013 | J42: 5013 | L42: 0895 | M42: Staatliche Fachoberschule Triesdorf in Weidenbach | N42: Reitbahn 7 | O42: 91746 Weidenbach | P42: 1-staatlich | Q42: 52 | R42: 0 | T42: 0853 | U42: =IF(T42=" ",L42,T42)&"T" -> 0853T | W42: 0868 | X42: Z424 | Y42: Z424 | Z42: FOS | AB42: 1170 | AC42: 1 | AD42: 0 | AE42: FOBOS | AF42: 0927 | AG42: FFB | AH42: Fürstenfeldbruck | AI42: 1 | AJ42: 1 | AK42: 0927 | AL42: Staatl. Fachoberschule Fürstenfeldbruck | AM42: 0782 | AN42: Staatl. Berufsoberschule Fürstenfeldbruck | AO42: Staatl. Fachoberschule und Berufsoberschule Fürstenfeldbruck Münchner Str. 67 82256 Fürstenfeldbruck
A43: 0824 | B43: Aloys-Fischer-Schule Staatliche Berufsoberschule Deggendorf | C43: Jahnstr. 5 | D43: 94469 Deggendorf | E43: 1-staatlich | F43: 51 | G43: 0 | H43: 199708 | I43: 0862 | J43: 0862 | L43: 0896 | M43: Gustav-von-Schlör-Schule Staatliche Fachoberschule Weiden i.d.OPf. | N43: Campusallee 2 | O43: 92637 Weiden i.d.OPf. | P43: 1-staatlich | Q43: 52 | R43: 0 | U43: 0896 | W43: 0869 | Y43: 0869 | Z43: FOS | AB43: 1172 | AC43: 1 | AD43: 1 | AE43: FOS | AF43: 1170 | AG43: HOL | AH43: Holzkirchen | AI43: 1 | AJ43: 0 | AK43: 1170 | AL43: Staatliche Fachoberschule Holzkirchen | AM43: - | AN43: - | AO43: Staatliche Fachoberschule Holzkirchen Jörg-Hube-Str. 2 83607 Holzkirchen
A44: 0826 | B44: Staatl. Berufsoberschule Kitzingen | C44: Thomas-Ehemann-Str. 13 a | D44: 97318 Kitzingen | E44: 1-staatlich | F44: 51 | G44: 0 | H44: 199908 | I44: Z604 | J44: Z604 | L44: 0897 | M44: Staatliche Fachoberschule Weilheim i.OB | N44: Kerschensteinerstr. 2 | O44: 82362 Weilheim i.OB | P44: 1-staatlich | Q44: 52 | R44: 0 | U44: 0897 | W44: 0870 | Y44: 0870 | Z44: FOS | AB44: 1173 | AC44: 1 | AD44: 1 | AE44: FOBOS | AF44: 1172 | AG44: WÜR | AH44: Würzburg | AI44: 1 | AJ44: 1 | AK44: 1172 | AL44: Staatliche Fachoberschule Würzburg | AM44: 1134 | AN44: Staatliche Berufsoberschule Würzburg | AO44: Staatliche Fachoberschule und Berufsoberschule Würzburg Mozartstr. 9 97074 Würzburg
A45: 0827 | B45: Staatliche Berufsoberschule Erlangen | C45: Drausnickstr. 1 c | D45: 91052 Erlangen | E45: 1-staatlich | F45: 51 | G45: 0 | H45: 199708 | I45: 0864 | J45: 0864 | L45: 0898 | M45: Staatliche Fachoberschule Weißenburg i.Bay. | N45: Wildbadstr. 19 | O45: 91781 Weißenburg i.Bay. | P45: 1-staatlich | Q45: 52 | R45: 0 | T45: 6091 | U45: 6091 | W45: 0871 | Y45: 0871 | Z45: FOS | AB45: 1188 | AC45: 1 | AD45: 0 | AE45: FOBOS | AF45: 1173 | AG45: USH | AH45: Unterschleißheim | AI45: 1 | AJ45: 1 | AK45: 1173 | AL45: Staatliche Fachoberschule Unterschleißheim | AM45: 1136 | AN45: Staatliche Berufsoberschule Unterschleißheim | AO45: Staatliche Fachoberschule und Berufsoberschule Unterschleißheim Südliche Ingolstädter Str. 1 85716 Unterschleißheim
A46: 0828 | B46: Staatliche Berufsoberschule Freising | C46: Wippenhauser Str. 64 | D46: 85354 Freising | E46: 1-staatlich | F46: 51 | G46: 0 | H46: 199708 | I46: 0865 | J46: 0865 | L46: 0900 | M46: Adalbert-Raps-Schule Staatl. Fachoberschule Kulmbach | N46: Georg-Hagen-Str. 35 | O46: 95326 Kulmbach | P46: 1-staatlich | Q46: 52 | R46: 0 | T46: Z416 | U46: Z416 | W46: 0872 | X46: Z604 | Y46: Z604 | Z46: FOS | AB46: 1193 | AC46: 1 | AD46: 0 | AE46: FOS | AF46: 1188 | AG46: N-FOS II | AH46: Nürnberg-FOS II | AI46: 1 | AJ46: 0 | AK46: 1188 | AL46: Staatliche Fachoberschule II Nürnberg | AM46: - | AN46: - | AO46: Staatliche Fachoberschule II Nürnberg Rothenburger Str. 401 90431 Nürnberg
A47: 0829 | B47: Max-Grundig-Schule Staatliche Berufsoberschule Fürth | C47: Amalienstr. 2-4 | D47: 90763 Fürth | E47: 1-staatlich | F47: 51 | G47: 0 | H47: 199708 | I47: 0867 | J47: 0867 | L47: 0901 | M47: Staatliche Fachoberschule Marktheidenfeld | N47: Friedenstr. 44 | O47: 97828 Marktheidenfeld | P47: 1-staatlich | Q47: 52 | R47: 0 | U47: 0901 | W47: 0873 | Y47: 0873 | Z47: FOS | AB47: 1374 | AC47: 1 | AD47: 1 | AE47: FOS | AF47: 1193 | AG47: GER | AH47: Germering | AI47: 1 | AJ47: 0 | AK47: 1193 | AL47: Staatl. Fachoberschule Germering | AM47: - | AN47: - | AO47: Staatl. Fachoberschule Germering Masurenweg 2 82110 Germering
A48: 0830 | B48: Staatliche Berufsoberschule Hof | C48: Schloßplatz 6 | D48: 95028 Hof | E48: 1-staatlich | F48: 51 | G48: 0 | H48: 199708 | I48: Z424 | J48: Z424 | L48: 0903 | M48: Lothar-von-Faber-Schule Staatliche Fachoberschule Nürnberg | N48: Schafhofstr. 25 | O48: 90411 Nürnberg | P48: 1-staatlich | Q48: 52 | R48: 0 | U48: 0903 | W48: 0874 | X48: Z217 | Y48: Z217 | Z48: FOS | AB48: 1571 | AC48: 1 | AD48: 1 | AE48: FOBOS | AF48: 1374 | AG48: M-W | AH48: München-W | AI48: 1 | AJ48: 1 | AK48: 0930 | AL48: Therese-von-Bayern-Schule, Staatl. Fachoberschule für Wirtschaft und Verwaltung München | AM48: 0783 | AN48: Therese-von-Bayern-Schule,staatl. Berufsoberschule f.Wirtschaft u.Verwaltung München | AO48: Therese-von-Bayern-Schule, Staatl. Fachoberschule und Berufsoberschule für Wirtschaft und Verwaltung München Lindwurmstr. 90 80337 München
A49: 0831 | B49: Staatliche Berufsoberschule Marktheidenfeld | C49: Friedenstr. 44 | D49: 97828 Marktheidenfeld | E49: 1-staatlich | F49: 51 | G49: 0 | H49: 199708 | I49: 0901 | J49: 0901 | L49: 0904 | M49: Staatl. Fachoberschule Sonthofen | N49: Albert-Schweitzer-Str. 19 | O49: 87527 Sonthofen | P49: 1-staatlich | Q49: 52 | R49: 0 | T49: Z705 | U49: Z705 | W49: 0875 | X49: Z795 | Y49: Z795 | Z49: FOS | AB49: 1762 | AC49: 1 | AD49: 0 | AE49: FOBOS | AF49: 1571 | AG49: LL | AH49: Landsberg | AI49: 1 | AJ49: 1 | AK49: 0922 | AL49: Staatl. Fachoberschule Landsberg a.Lech | AM49: 0788 | AN49: Staatl. Berufsoberschule Landsberg a.Lech | AO49: Staatl. Fachoberschule und Berufsoberschule Landsberg a.Lech Spitalfeldstr. 11 86899 Landsberg am Lech
A50: 0832 | B50: Maximilian-Kolbe-Schule Staatliche Berufsoberschule Neumarkt i.d.OPf. | C50: Kerschensteinerstr. 7 | D50: 92318 Neumarkt i.d.OPf. | E50: 1-staatlich | F50: 51 | G50: 0 | H50: 199708 | I50: 0882 | J50: 0882 | L50: 0905 | M50: Staatl. Fachoberschule Straubing | N50: Stadtgraben 38 | O50: 94315 Straubing | P50: 1-staatlich | Q50: 52 | R50: 0 | U50: =IF(T50=" ",L50,T50) -> 0905 | W50: 0876 | Y50: 0876 | Z50: FOS | AB50: 3032 | AC50: 0 | AD50: 1 | AE50: FOS | AF50: 1762 | AG50: STA | AH50: Starnberg | AI50: 1 | AJ50: 0 | AK50: 1184 | AL50: Staatl. Fachoberschule Starnberg | AM50: - | AN50: - | AO50: Staatl. Fachoberschule Starnberg Von-der-Tann-Str. 28 82319 Starnberg
A51: 0833 | B51: Staatliche Berufsoberschule Neu-Ulm | C51: Memminger Str. 48 | D51: 89231 Neu-Ulm | E51: 1-staatlich | F51: 51 | G51: 0 | H51: 199708 | I51: 0883 | J51: 0883 | L51: 0907 | M51: Staatliche Fachoberschule Wasserburg a.Inn | N51: Klosterweg 21 | O51: 83512 Wasserburg a.Inn | P51: 1-staatlich | Q51: 52 | R51: 0 | U51: 0907 | W51: 0877 | Y51: 0877 | Z51: FOS | AB51: 3039 | AC51: 1 | AD51: 1 | AE51: BOS | AF51: 3032 | AG51: LABOS | AH51: Landshut-BOS | AI51: 0 | AJ51: 1 | AK51: - | AL51: - | AM51: 0791 | AN51: Staatliche Berufsoberschule Landshut | AO51: Staatliche Berufsoberschule Landshut Luitpoldstr. 26 84034 Landshut
A52: 0834 | B52: Staatliche Berufsoberschule Straubing | C52: Stadtgraben 38 | D52: 94315 Straubing | E52: 1-staatlich | F52: 51 | G52: 0 | H52: 199708 | I52: 0905 | J52: 0905 | L52: 0910 | M52: Staatliche Fachoberschule Regen | N52: Obere Bachgasse 23 | O52: 94209 Regen | P52: 1-staatlich | Q52: 52 | R52: 0 | S52: 197508 | T52: 3039 | U52: 3039 | W52: 0919 | Y52: 0919 | Z52: FOS | AB52: 5013 | AC52: 1 | AD52: 1 | AE52: FOBOS | AF52: 3039 | AG52: REG | AH52: Regen | AI52: 1 | AJ52: 1 | AK52: 0910 | AL52: Staatliche Fachoberschule Regen | AM52: 0814 | AN52: Staatliche Berufsoberschule Regen | AO52: Staatliche Fachoberschule und Berufsoberschule Regen Obere Bachgasse 23 94209 Regen
A53: 0835 | B53: Staatliche Berufsoberschule Schönbrunn in Landshut | C53: Am Lurzenhof 5 | D53: 84036 Landshut | E53: 1-staatlich | F53: 51 | G53: 0 | I53: Z205 | J53: Z205 | L53: 0919 | M53: Staatl. Fachoberschule Friedberg | N53: Aichacher Str. 18 | O53: 86316 Friedberg | P53: 1-staatlich | Q53: 52 | R53: 0 | S53: 200008 | U53: 0919 | W53: 0920 | X53: Z204 | Y53: Z204 | Z53: FOS | AB53: 6091 | AC53: 1 | AD53: 1 | AE53: FOBOS | AF53: 5013 | AG53: CO | AH53: Coburg | AI53: 1 | AJ53: 1 | AK53: 0861 | AL53: Regiomontanus-Schule Staatliche Fachoberschule Coburg | AM53: 0823 | AN53: Regiomontanus-Schule Staatliche Berufsoberschule Coburg | AO53: Regiomontanus-Schule Staatliche Fachoberschule und Berufsoberschule Coburg Plattenäcker 30 96450 Coburg
A54: 0836 | B54: Staatliche Berufsoberschule Miesbach | C54: Frauenschulstr. 1 | D54: 83714 Miesbach | E54: 1-staatlich | F54: 51 | G54: 0 | I54: Z126 | J54: Z126 | L54: 0920 | M54: Staatl. Fachoberschule Waldkirchen | N54: Freyunger Str. 8 | O54: 94065 Waldkirchen | P54: 1-staatlich | Q54: 52 | R54: 0 | S54: 200208 | T54: Z204 | U54: Z204 | W54: 0921 | X54: Z105 | Y54: Z105 | Z54: FOS | AB54: 7058 | AC54: 1 | AD54: 1 | AE54: FOBOS | AF54: 6091 | AG54: WUG | AH54: Weißenburg | AI54: 1 | AJ54: 1 | AK54: 0898 | AL54: Staatliche Fachoberschule Weißenburg i.Bay. | AM54: 0848 | AN54: Staatliche Berufsoberschule Weißenburg i.Bay. | AO54: Staatliche Fachoberschule und Berufsoberschule Weißenburg i.Bay. Wildbadstr. 19 91781 Weißenburg i.Bay.
A55: 0837 | B55: Staatliche Berufsoberschule Nürnberg | C55: Schoppershofstr. 80 | D55: 90489 Nürnberg | E55: 1-staatlich | F55: 51 | G55: 0 | J55: 0837 | L55: 0921 | M55: Staatl. Fachoberschule Neuburg a.d.Donau | N55: Eybstraße 251 | O55: 86633 Neuburg a.d.Donau | P55: 1-staatlich | Q55: 52 | R55: 0 | S55: 200208 | T55: Z105 | U55: Z105 | W55: 0922 | X55: 1571 | Y55: 1571 | Z55: FOS | AB55: Z105 | AC55: 1 | AD55: 1 | AE55: FOBOS | AF55: 7058 | AG55: OBB | AH55: Obernburg | AI55: 1 | AJ55: 1 | AK55: 0886 | AL55: Staatliche Fachoberschule Obernburg a.Main | AM55: 0786 | AN55: Staatliche Berufsoberschule Obernburg a.Main | AO55: Staatliche Fachoberschule und Berufsoberschule Obernburg a.Main Dekaneistr. 5-9 63785 Obernburg a.Main
A56: 0838 | B56: Staatliche Berufsoberschule Scheyern | C56: Schyrenplatz 1 | D56: 85298 Scheyern | E56: 1-staatlich | F56: 51 | G56: 0 | H56: 197608 | I56: Z106 | J56: Z106 | L56: 0922 | M56: Staatl. Fachoberschule Landsberg a.Lech | N56: Spitalfeldstr. 11 | O56: 86899 Landsberg am Lech | P56: 1-staatlich | Q56: 52 | R56: 0 | S56: 200208 | T56: 1571 | U56: 1571 | W56: 0923 | X56: Z403 | Y56: Z403 | Z56: FOS | AB56: Z106 | AC56: 1 | AD56: 1 | AE56: FOBOS | AF56: Z105 | AG56: ND | AH56: Neuburg | AI56: 1 | AJ56: 1 | AK56: 0921 | AL56: Staatl. Fachoberschule Neuburg a.d.Donau | AM56: 1133 | AN56: Staatliche Berufsoberschule Neuburg a.d.Donau | AO56: Staatl. Fachoberschule und Berufsoberschule Neuburg a.d.Donau Eybstraße 251 86633 Neuburg a.d.Donau
A57: 0839 | B57: Staatliche Berufsoberschule Altötting | C57: Neuöttinger Str. 64 c | D57: 84503 Altötting | E57: 1-staatlich | F57: 51 | G57: 0 | H57: 199708 | I57: 0851 | J57: 0851 | L57: 0923 | M57: Staatl. Fachoberschule Forchheim | N57: Fritz-Hoffmann-Str. 3 | O57: 91301 Forchheim | P57: 1-staatlich | Q57: 52 | R57: 0 | S57: 200208 | T57: Z403 | U57: Z403 | W57: 0924 | Y57: 0924 | Z57: FOS | AB57: Z126 | AC57: 0 | AD57: 1 | AE57: FOBOS | AF57: Z106 | AG57: SCHEY | AH57: Scheyern | AI57: 1 | AJ57: 1 | AK57: 0948 | AL57: Staatliche Fachoberschule Scheyern | AM57: 0838 | AN57: Staatliche Berufsoberschule Scheyern | AO57: Staatliche Fachoberschule und Berufsoberschule Scheyern Schyrenplatz 1 85298 Scheyern
A58: 0840 | B58: Staatliche Berufsoberschule Rosenheim | C58: Westerndorfer Str. 45 | D58: 83024 Rosenheim | E58: 1-staatlich | F58: 51 | G58: 0 | H58: 199708 | I58: 0890 | J58: 0890 | L58: 0924 | M58: Staatl. Fachoberschule Erding | N58: Siglfinger Str. 50 | O58: 85435 Erding | P58: 1-staatlich | Q58: 52 | R58: 0 | S58: 200308 | U58: 0924 | W58: 0927 | Y58: 0927 | Z58: FOS | AB58: Z173 | AC58: 1 | AD58: 1 | AE58: BOS | AF58: Z126 | AG58: MB | AH58: Miesbach | AI58: 0 | AJ58: 1 | AK58: - | AL58: - | AM58: 0836 | AN58: Staatliche Berufsoberschule Miesbach | AO58: Staatliche Berufsoberschule Miesbach Frauenschulstr. 1 83714 Miesbach
A59: 0841 | B59: Staatliche Berufsoberschule Kempten (Allgäu) | C59: Kotterner Str. 41 | D59: 87435 Kempten (Allgäu) | E59: 1-staatlich | F59: 51 | G59: 0 | H59: 199708 | I59: 0871 | J59: 0871 | L59: 0927 | M59: Staatl. Fachoberschule Fürstenfeldbruck | N59: Münchner Str. 67 | O59: 82256 Fürstenfeldbruck | P59: 1-staatlich | Q59: 52 | R59: 0 | S59: 200308 | U59: 0927 | W59: 0928 | X59: Z173 | Y59: Z173 | Z59: FOS | AB59: Z177 | AC59: 1 | AD59: 1 | AE59: FOBOS | AF59: Z173 | AG59: KEH | AH59: Kelheim | AI59: 1 | AJ59: 1 | AK59: 0928 | AL59: Staatl. Fachoberschule Kelheim | AM59: 0784 | AN59: Staatl. Berufsoberschule Kelheim | AO59: Staatl. Fachoberschule und Berufsoberschule Kelheim Schützenstr. 30 93309 Kelheim
A60: 0842 | B60: Staatliche Berufsoberschule Schwandorf | C60: Glätzlstr. 29 | D60: 92421 Schwandorf | E60: 1-staatlich | F60: 51 | G60: 0 | H60: 199708 | I60: Z300 | J60: Z300 | L60: 0928 | M60: Staatl. Fachoberschule Kelheim | N60: Schützenstr. 30 | O60: 93309 Kelheim | P60: 1-staatlich | Q60: 52 | R60: 0 | S60: 200308 | T60: Z173 | U60: Z173 | W60: 0882 | Y60: 0882 | Z60: FOS | AB60: Z204 | AC60: 1 | AD60: 1 | AE60: FOBOS | AF60: Z177 | AG60: CHA | AH60: Cham | AI60: 1 | AJ60: 1 | AK60: 0860 | AL60: Staatliche Fachoberschule Cham | AM60: 0822 | AN60: Staatliche Berufsoberschule Cham | AO60: Staatliche Fachoberschule und Berufsoberschule Cham Dr.-Muggenthaler-Str. 11 93413 Cham
A61: 0843 | B61: Friedrich-Fischer-Schule Staatl.Berufsoberschule Schweinfurt | C61: Goethestr. 5 | D61: 97421 Schweinfurt | E61: 1-staatlich | F61: 51 | G61: 0 | H61: 199708 | I61: 0893 | J61: 0893 | L61: 0930 | M61: Therese-von-Bayern-Schule, Staatl. Fachoberschule für Wirtschaft und Verwaltung München | N61: Lindwurmstr. 90 | O61: 80337 München | P61: 1-staatlich | Q61: 52 | R61: 0 | S61: 200408 | T61: 1374 | U61: 1374 | W61: 0883 | Y61: 0883 | Z61: FOS | AB61: Z205 | AC61: 1 | AD61: 1 | AE61: FOBOS | AF61: Z204 | AG61: WDK | AH61: Waldkirchen | AI61: 1 | AJ61: 1 | AK61: 0920 | AL61: Staatl. Fachoberschule Waldkirchen | AM61: 0818 | AN61: Staatl. Berufsoberschule Waldkirchen | AO61: Staatl. Fachoberschule und Berufsoberschule Waldkirchen Freyunger Str. 8 94065 Waldkirchen
A62: 0844 | B62: Staatliche Berufsoberschule Traunstein | C62: Wasserburger Str. 48 | D62: 83278 Traunstein | E62: 1-staatlich | F62: 51 | G62: 0 | H62: 199708 | I62: 0894 | J62: 0894 | L62: 0932 | M62: Staatl. Fachoberschule Neusäß | N62: Landrat-Dr.-Frey-Str. 12 | O62: 86356 Neusäß | P62: 1-staatlich | Q62: 52 | R62: 0 | S62: 200408 | T62: Z713 | U62: Z713 | W62: 0886 | X62: 7058 | Y62: 7058 | Z62: FOS | AB62: Z217 | AC62: 1 | AD62: 0 | AE62: FOBOS | AF62: Z205 | AG62: LASCHÖ | AH62: Landshut-Schönbrunn | AI62: 1 | AJ62: 1 | AK62: 0891 | AL62: Staatliche Fachoberschule Schönbrunn in Landshut | AM62: 0835 | AN62: Staatliche Berufsoberschule Schönbrunn in Landshut | AO62: Staatliche Fachoberschule und Berufsoberschule Schönbrunn in Landshut Am Lurzenhof 5 84036 Landshut
A63: 1133 | B63: Staatliche Berufsoberschule Neuburg a.d.Donau | C63: Eybstraße 251 | D63: 86633 Neuburg a.d.Donau | E63: 1-staatlich | F63: 51 | G63: 0 | H63: 201208 | I63: Z105 | J63: Z105 | L63: 0942 | M63: Staatl. Fachoberschule Marktredwitz | N63: Schulstr. 12 | O63: 95615 Marktredwitz | P63: 1-staatlich | Q63: 52 | R63: 0 | S63: 200808 | T63: Z423 | U63: Z423 | W63: 0887 | Y63: 0887 | Z63: FOS | AB63: Z300 | AC63: 1 | AD63: 1 | AE63: FOS | AF63: Z217 | AG63: LAFOS | AH63: Landshut-FOS | AI63: 1 | AJ63: 0 | AK63: 0874 | AL63: Staatliche Fachoberschule Landshut | AM63: - | AN63: - | AO63: Staatliche Fachoberschule Landshut Marienplatz 11 84028 Landshut
A64: 1134 | B64: Staatliche Berufsoberschule Würzburg | C64: Mozartstr. 9 | D64: 97074 Würzburg | E64: 1-staatlich | F64: 51 | G64: 0 | H64: 201308 | I64: 1172 | J64: 1172 | L64: 0948 | M64: Staatliche Fachoberschule Scheyern | N64: Schyrenplatz 1 | O64: 85298 Scheyern | P64: 1-staatlich | Q64: 52 | R64: 0 | S64: 201208 | T64: Z106 | U64: Z106 | W64: 0888 | Y64: 0888 | Z64: FOS | AB64: Z312 | AC64: 1 | AD64: 1 | AE64: FOBOS | AF64: Z300 | AG64: SAD | AH64: Schwandorf | AI64: 1 | AJ64: 1 | AK64: 0892 | AL64: Staatliche Fachoberschule Schwandorf | AM64: 0842 | AN64: Staatliche Berufsoberschule Schwandorf | AO64: Staatliche Fachoberschule und Berufsoberschule Schwandorf Glätzlstr. 29 92421 Schwandorf
A65: 1136 | B65: Staatliche Berufsoberschule Unterschleißheim | C65: Südliche Ingolstädter Str. 1 | D65: 85716 Unterschleißheim | E65: 1-staatlich | F65: 51 | G65: 0 | H65: 201408 | I65: 1173 | J65: 1173 | L65: 1170 | M65: Staatliche Fachoberschule Holzkirchen | N65: Jörg-Hube-Str. 2 | O65: 83607 Holzkirchen | P65: 1-staatlich | Q65: 52 | R65: 0 | S65: 201208 | U65: 1170 | W65: 0889 | Y65: 0889 | Z65: FOS | AB65: Z403 | AC65: 1 | AD65: 0 | AE65: FOBOS | AF65: Z312 | AG65: AM | AH65: Amberg | AI65: 1 | AJ65: 1 | AK65: 0852 | AL65: Staatliche Fachoberschule Amberg | AM65: 0802 | AN65: Staatliche Berufsoberschule Amberg | AO65: Staatliche Fachoberschule und Berufsoberschule Amberg Raigeringer Str. 27 a 92224 Amberg
L66: 1172 | M66: Staatliche Fachoberschule Würzburg | N66: Mozartstr. 9 | O66: 97074 Würzburg | P66: 1-staatlich | Q66: 52 | R66: 0 | S66: 201308 | U66: 1172 | W66: 0890 | Y66: 0890 | Z66: FOS | AB66: Z416 | AC66: 1 | AD66: 1 | AE66: FOS | AF66: Z403 | AG66: FO | AH66: Forchheim | AI66: 1 | AJ66: 0 | AK66: 0923 | AL66: Staatl. Fachoberschule Forchheim | AM66: - | AN66: - | AO66: Staatl. Fachoberschule Forchheim Fritz-Hoffmann-Str. 3 91301 Forchheim
L67: 1173 | M67: Staatliche Fachoberschule Unterschleißheim | N67: Südliche Ingolstädter Str. 1 | O67: 85716 Unterschleißheim | P67: 1-staatlich | Q67: 52 | R67: 0 | S67: 201308 | U67: 1173 | W67: 0891 | X67: Z205 | Y67: Z205 | Z67: FOS | AB67: Z423 | AC67: 1 | AD67: 1 | AE67: FOBOS | AF67: Z416 | AG67: KU | AH67: Kulmbach | AI67: 1 | AJ67: 1 | AK67: 0900 | AL67: Adalbert-Raps-Schule Staatl. Fachoberschule Kulmbach | AM67: 0850 | AN67: Adalbert-Raps-Schule Staatliche Berufsoberschule Kulmbach | AO67: Adalbert-Raps-Schule Staatl. Fachoberschule und Berufsoberschule Kulmbach Georg-Hagen-Str. 35 95326 Kulmbach
L68: 1175 | M68: Staatliche Fachoberschule Lauf a.d.Pegnitz | N68: Rudolfshofer Str. 30 | O68: 91207 Lauf a.d.Pegnitz | P68: 1-staatlich | Q68: 52 | R68: 0 | S68: 201308 | T68: Z521 | U68: Z521 | W68: 0892 | X68: Z300 | Y68: Z300 | Z68: FOS | AB68: Z424 | AC68: 1 | AD68: 1 | AE68: FOBOS | AF68: Z423 | AG68: MKR | AH68: Marktredwitz | AI68: 1 | AJ68: 1 | AK68: 0942 | AL68: Staatl. Fachoberschule Marktredwitz | AM68: 0815 | AN68: Staatl. Berufsoberschule Marktredwitz | AO68: Staatl. Fachoberschule und Berufsoberschule Marktredwitz Schulstr. 12 95615 Marktredwitz
L69: 1184 | M69: Staatl. Fachoberschule Starnberg | N69: Von-der-Tann-Str. 28 | O69: 82319 Starnberg | P69: 1-staatlich | Q69: 52 | R69: 0 | S69: 201508 | T69: 1762 | U69: 1762 | W69: 0893 | Y69: 0893 | Z69: FOS | AB69: Z521 | AC69: 1 | AD69: 0 | AE69: FOBOS | AF69: Z424 | AG69: HO | AH69: Hof | AI69: 1 | AJ69: 1 | AK69: 0868 | AL69: Staatliche Fachoberschule Hof | AM69: 0830 | AN69: Staatliche Berufsoberschule Hof | AO69: Staatliche Fachoberschule und Berufsoberschule Hof Schloßplatz 6 95028 Hof
L70: 1188 | M70: Staatliche Fachoberschule II Nürnberg | N70: Rothenburger Str. 401 | O70: 90431 Nürnberg | P70: 1-staatlich | Q70: 52 | R70: 0 | S70: 201608 | U70: =IF(T70=" ",L70,T70) -> 1188 | W70: 0894 | Y70: 0894 | Z70: =IF(COUNTIF($A$5:$A$113,W70)=1,"BOS","FOS") -> FOS | AB70: Z604 | AC70: 1 | AD70: 1 | AE70: =IF(AI70&AJ70="10","FOS",IF(AI70&AJ70="01","BOS","FOBOS")) -> FOS | AF70: Z521 | AG70: LAUF | AH70: Lauf | AI70: =SUMPRODUCT(($Y$5:$Y$149=$AF70)*($Z$5:$Z$149="FOS")) -> 1 | AJ70: =SUMPRODUCT(($Y$5:$Y$149=$AF70)*($Z$5:$Z$149="BOS")) -> 0 | AK70: =IF(AI70=0,"-",INDEX($L$5:$L$100,MATCH($AF70,$U$5:$U$100,0))) -> 1175 | AL70: =IF(AI70=0,"-",INDEX($M$5:$M$100,MATCH($AF70,$U$5:$U$100,0))) -> Staatliche Fachoberschule Lauf a.d.Pegnitz | AM70: =IF(AJ70=0,"-",INDEX($A$5:$A$100,MATCH($AF70,$J$5:$J$100,0))) -> - | AN70: =IF(AJ70=0,"-",INDEX($B$5:$B$100,MATCH($AF70,$J$5:$J$100,0))) -> - | AO70: =IF(AE70="FOS",AL70&" "&VLOOKUP(AK70,$L$4:$O$100,3,FALSE)&" "&VLOOKUP(AK70,$L$4:$O$100,4,FALSE),IF(AE70="BOS",AN70&" "&VLOOKUP(AM70,$A$4:$O$100,3,FALSE)&" "&VLOOKUP(AM70,$A$4:$O$100,4,FALSE),SUBSTITUTE(AL70,"Fachoberschule","Fachoberschule und Berufsoberschule")&" "&VLOOKUP(AK70,$L$4:$O$100,3,FALSE)&" "&VLOOKUP(AK70,$L$4:$O$100,4,FALSE))) -> Staatliche Fachoberschule Lauf a.d.Pegnitz Rudolfshofer Str. 30 91207 Lauf a.d.Pegnitz
L71: 1193 | M71: Staatl. Fachoberschule Germering | N71: Masurenweg 2 | O71: 82110 Germering | P71: 1-staatlich | Q71: 52 | R71: 0 | S71: 201708 | U71: 1193 | W71: 0895 | X71: 0853 | Y71: 0853T | Z71: FOS | AB71: Z705 | AC71: 1 | AD71: 0 | AE71: FOBOS | AF71: Z604 | AG71: KT | AH71: Kitzingen | AI71: 1 | AJ71: 1 | AK71: 0872 | AL71: Staatl. Fachoberschule Kitzingen | AM71: 0826 | AN71: Staatl. Berufsoberschule Kitzingen | AO71: Staatl. Fachoberschule und Berufsoberschule Kitzingen Thomas-Ehemann-Str. 13 a 97318 Kitzingen
W72: 0896 | Y72: 0896 | Z72: FOS | AB72: Z713 | AC72: 1 | AD72: 1 | AE72: FOS | AF72: Z705 | AG72: SF | AH72: Sonthofen | AI72: 1 | AJ72: 0 | AK72: 0904 | AL72: Staatl. Fachoberschule Sonthofen | AM72: - | AN72: - | AO72: Staatl. Fachoberschule Sonthofen Albert-Schweitzer-Str. 19 87527 Sonthofen
W73: 0897 | Y73: 0897 | Z73: FOS | AB73: Z795 | AC73: 1 | AD73: 1 | AE73: FOBOS | AF73: Z713 | AG73: Neus | AH73: Neusäß | AI73: 1 | AJ73: 1 | AK73: 0932 | AL73: Staatl. Fachoberschule Neusäß | AM73: 0819 | AN73: Staatl. Berufsoberschule Neusäß | AO73: Staatl. Fachoberschule und Berufsoberschule Neusäß Landrat-Dr.-Frey-Str. 12 86356 Neusäß
W74: 0898 | X74: 6091 | Y74: 6091 | Z74: FOS | AE74: FOBOS | AF74: Z795 | AG74: LI | AH74: Lindau | AI74: 1 | AJ74: 1 | AK74: 0875 | AL74: Staatliche Fachoberschule Lindau (Bodensee) | AM74: 0807 | AN74: Staatliche Berufsoberschule Lindau (Bodensee) | AO74: Staatliche Fachoberschule und Berufsoberschule Lindau (Bodensee) Achstr. 13 88131 Lindau (Bodensee)
W75: 0900 | X75: Z416 | Y75: Z416 | Z75: FOS | AE75: FOBOS | AG75: EI | AH75: Eichstätt | AL75: -
W76: 0901 | Y76: 0901 | Z76: FOS
W77: 0903 | Y77: 0903 | Z77: FOS
W78: 0904 | X78: Z705 | Y78: Z705 | Z78: FOS
W79: 0905 | Y79: 0905 | Z79: FOS
W80: 0907 | Y80: 0907 | Z80: FOS
W81: 0910 | X81: 3039 | Y81: 3039 | Z81: FOS
W82: 0930 | X82: 1374 | Y82: 1374 | Z82: FOS
W83: 0932 | X83: Z713 | Y83: Z713 | Z83: FOS
W84: 0942 | X84: Z423 | Y84: Z423 | Z84: FOS
W85: 0948 | X85: Z106 | Y85: Z106 | Z85: FOS
W86: 1170 | Y86: 1170 | Z86: FOS
W87: 1172 | Y87: 1172 | Z87: FOS
W88: 1173 | Y88: 1173 | Z88: FOS
W89: 1175 | X89: Z521 | Y89: Z521 | Z89: FOS
W90: 1184 | X90: 1762 | Y90: 1762 | Z90: FOS
W91: 1188 | Y91: 1188 | Z91: FOS
W92: 1193 | Y92: 1193 | Z92: FOS
W93: 0846 | X93: 0896 | Y93: 0896 | Z93: BOS
W94: 0847 | X94: 0897 | Y94: 0897 | Z94: BOS
W95: 0848 | X95: 6091 | Y95: 6091 | Z95: BOS
W96: 0849 | X96: 0859 | Y96: 0859 | Z96: BOS
W97: 0850 | X97: Z416 | Y97: Z416 | Z97: BOS
W98: 0781 | X98: 0924 | Y98: 0924 | Z98: BOS
W99: 0782 | X99: 0927 | Y99: 0927 | Z99: BOS
W100: 0783 | X100: 1374 | Y100: 1374 | Z100: BOS
W101: 0784 | X101: Z173 | Y101: Z173 | Z101: BOS
W102: 0785 | X102: 0873 | Y102: 0873 | Z102: BOS
W103: 0786 | X103: 7058 | Y103: 7058 | Z103: BOS
W104: 0787 | X104: 0888 | Y104: 0888 | Z104: BOS
W105: 0788 | X105: 1571 | Y105: 1571 | Z105: BOS
W106: 0790 | X106: 0869 | Y106: 0869 | Z106: BOS
W107: 0791 | X107: 3032 | Y107: 3032 | Z107: BOS
W108: 0792 | X108: 0877 | Y108: 0877 | Z108: BOS
W109: 0794 | X109: 0887 | Y109: 0887 | Z109: BOS
W110: 0795 | X110: 0889 | Y110: 0889 | Z110: BOS
W111: 0796 | X111: 0853 | Y111: 0853T | Z111: BOS
W112: 0797 | X112: 0876 | Y112: 0876 | Z112: BOS
W113: 0798 | X113: 0907 | Y113: 0907 | Z113: BOS
W114: 0800 | X114: 0857 | Y114: 0857 | Z114: BOS
W115: 0802 | X115: Z312 | Y115: Z312 | Z115: BOS
W116: 0803 | X116: 0853 | Y116: 0853A | Z116: BOS
W117: 0804 | X117: 0854 | Y117: 0854 | Z117: BOS
W118: 0807 | X118: Z795 | Y118: Z795 | Z118: BOS
W119: 0808 | X119: 0858 | Y119: 0858 | Z119: BOS
W120: 0813 | X120: 0863 | Y120: 0863 | Z120: BOS
W121: 0814 | X121: 3039 | Y121: 3039 | Z121: BOS
W122: 0815 | X122: Z423 | Y122: Z423 | Z122: BOS
W123: 0816 | X123: 0919 | Y123: 0919 | Z123: BOS
W124: 0818 | X124: Z204 | Y124: Z204 | Z124: BOS
W125: 0819 | X125: Z713 | Y125: Z713 | Z125: BOS
W126: 0820 | X126: 0870 | Y126: 0870 | Z126: BOS
W127: 0821 | X127: 0856 | Y127: 0856 | Z127: BOS
W128: 0822 | X128: Z177 | Y128: Z177 | Z128: BOS
W129: 0823 | X129: 5013 | Y129: 5013 | Z129: BOS
W130: 0824 | X130: 0862 | Y130: 0862 | Z130: BOS
W131: 0826 | X131: Z604 | Y131: Z604 | Z131: BOS
W132: 0827 | X132: 0864 | Y132: 0864 | Z132: BOS

Sheet DBFH (hidden)
A1: Duale Berufsausbildung und Fachhochschulreife | M1: ASD 2016/17
A2: DBFH
A4: Stundentafel | G4: Stundentafel | Q4: =SUM(Q6:Q29) -> 254 | R4: =SUM(R6:R29) -> 268 | S4: =SUM(S6:S29) -> 299 | T4: =SUM(T6:T29) -> 2290
A5: Kaufmänn. | B5: Ab 1 | C5: Ab 2 | D5: Ab 3/1 | E5: Ab 3/2 | G5: Technisch | H5: Ab 1 | I5: Ab 2 | J5: Ab 3/1 | K5: Ab 3/2 | M5: KART | N5: SNR | O5: Schule | P5: BERUFSNR | Q5: 10 | R5: 11 | S5: 12 | T5: Schüler | V5: Richtung | W5: SNR-FOS
A6: W | B6: 18 Blöcke | C6: 18 Blöcke | D6: 7 Blöcke | E6: VZ | G6: T | H6: 18 Blöcke | I6: 18 Blöcke | J6: 7 Blöcke | K6: VZ | M6: 10 | N6: 1415 | O6: Städt. Berufsschule für Bürokommunikation und Industriekaufleute München | P6: 78511 | Q6: 18 | R6: 19 | S6: 22 | T6: =SUM(Q6:S6) -> 59 | U6: =VLOOKUP(P6,#REF!,4,FALSE) ->  | V6: =IF(ISERR(FIND("aufmann",U6)),"T","W") -> T | W6: =VLOOKUP(N6,$N$30:$S$40,6,FALSE) -> 0805
A7: Religion | B7: 2 | C7: 2 | D7: 1 | E7: 0 | G7: Religion | H7: 2 | I7: 2 | J7: 1 | K7: 0 | M7: 10 | N7: 1569 | O7: Staatl. Berufsschule I Ingolstadt | P7: 26708 | S7: 12 | T7: =SUM(Q7:S7) -> 12 | U7: =VLOOKUP(P7,#REF!,4,FALSE) ->  | V7: T | W7: 0869
A8: Geschichte | B8: 0 | C8: 2 | D8: 0 | E8: 2 | G8: Geschichte | H8: 0 | I8: 2 | J8: 0 | K8: 2 | M8: 10 | N8: 1569 | O8: Staatl. Berufsschule I Ingolstadt | P8: 28149 | Q8: 17 | R8: 16 | S8: 14 | T8: 47 | U8: =VLOOKUP(P8,#REF!,4,FALSE) ->  | V8: T | W8: 0869
A9: Sozialkunde | B9: 2 | C9: 2 | D9: 2 | E9: 0 | G9: Sozialkunde | H9: 2 | I9: 2 | J9: 2 | K9: 0 | M9: 10 | N9: 1569 | O9: Staatl. Berufsschule I Ingolstadt | P9: 31612 | S9: 14 | T9: 14 | U9: =VLOOKUP(P9,#REF!,4,FALSE) ->  | V9: T | W9: 0869
A10: Deutsch | B10: 2 | C10: 2 | D10: 3 | E10: 6 | G10: Deutsch | H10: 2 | I10: 2 | J10: 3 | K10: 6 | M10: 10 | N10: 1574 | O10: Städt. Berufsschule für Fertigungstechnik München | P10: 27823 | Q10: 12 | R10: 12 | S10: 12 | T10: 36 | U10: =VLOOKUP(P10,#REF!,4,FALSE) ->  | V10: T | W10: 0877
A11: Englisch | B11: 2 | C11: 2 | D11: 4 | E11: 6 | G11: Englisch | H11: 2 | I11: 2 | J11: 4 | K11: 6 | M11: 10 | N11: 1574 | O11: Städt. Berufsschule für Fertigungstechnik München | P11: 31612 | Q11: 18 | R11: 18 | S11: 21 | T11: 57 | U11: =VLOOKUP(P11,#REF!,4,FALSE) ->  | V11: T | W11: 0877
A12: Mathematik | B12: 2 | C12: 3 | D12: 4 | E12: 6 | G12: Mathematik | H12: 3 | I12: 2 | J12: 3 | K12: 6 | M12: 10 | N12: 1610 | O12: Städt. Berufsschule für Finanz- und Immobilienwirtschaft München | P12: 69101 | Q12: 17 | R12: 19 | S12: 15 | T12: 51 | U12: =VLOOKUP(P12,#REF!,4,FALSE) ->  | V12: =IF(ISERR(FIND("aufmann",U12)),"T","W") -> T | W12: 0914
A13: BWR | B13: 2 | C13: 2 | D13: 6 | E13: 6 | G13: Mathe-Add | H13: 0 | I13: 1 | J13: 1 | K13: 3 | M13: 10 | N13: 1630 | O13: Städt. Berufsschule für Fahrzeugtechnik, Eisenbahn und Fahrbetrieb München | P13: 28149 | Q13: 18 | R13: 22 | S13: 28 | T13: 68 | U13: =VLOOKUP(P13,#REF!,4,FALSE) ->  | V13: =IF(ISERR(FIND("aufmann",U13)),"T","W") -> T | W13: 0877
A14: VWL | B14: 1 | C14: 2 | D14: 3 | E14: 2 | G14: Physik | H14: 2 | I14: 3 | J14: 4 | K14: 6 | M14: 10 | N14: 1737 | O14: Staatl. Berufsschule Altötting | P14: 26704 | Q14: 8 | R14: 6 | S14: 8 | T14: 22 | U14: =VLOOKUP(P14,#REF!,4,FALSE) ->  | V14: T | W14: 0851
A15: NW | B15: 1 | C15: 1 | D15: 1 | E15: 2 | G15: Chemie | H15: 1 | I15: 1 | J15: 2 | K15: 2 | M15: 10 | N15: 1737 | O15: Staatl. Berufsschule Altötting | P15: 31330 | Q15: 8 | R15: 7 | S15: 7 | T15: 22 | U15: =VLOOKUP(P15,#REF!,4,FALSE) ->  | V15: T | W15: 0851
A16: Informatik | B16: 0 | C16: 0 | D16: 3 | E16: 3 | G16: Informatik | H16: 0 | I16: 2 | J16: 0 | K16: 2 | M16: 10 | N16: 1737 | O16: Staatl. Berufsschule Altötting | P16: 31612 | Q16: 12 | R16: 12 | S16: 5 | T16: 29 | U16: =VLOOKUP(P16,#REF!,4,FALSE) ->  | V16: T | W16: 0851
A17: Summe | B17: =SUM(B7:B16) -> 14 | C17: =SUM(C7:C16) -> 18 | D17: =SUM(D7:D16) -> 27 | E17: =SUM(E7:E16) -> 33 | G17: Summe | H17: =SUM(H7:H16) -> 14 | I17: =SUM(I7:I16) -> 19 | J17: =SUM(J7:J16) -> 20 | K17: =SUM(K7:K16) -> 33 | M17: 10 | N17: 1741 | O17: Städt. Berufsschule für Informationstechnik München | P17: 77912 | Q17: 1 | R17: 1 | S17: 6 | T17: 8 | U17: =VLOOKUP(P17,#REF!,4,FALSE) ->  | V17: T | W17: 0914
A18: Fachl. Unt | B18: 24 | C18: 21 | D18: 11 | E18: 0 | G18: Fachl. Unt | H18: 25 | I18: 19 | J18: 18 | K18: 0 | M18: 10 | N18: 1741 | O18: Städt. Berufsschule für Informationstechnik München | P18: 77913 | Q18: 18 | R18: 19 | S18: 18 | T18: 55 | U18: =VLOOKUP(P18,#REF!,4,FALSE) ->  | V18: T | W18: 0914
A19: WU | B19: 1 | C19: 0 | D19: 1 | E19: 1 | G19: WU | H19: 0 | I19: 1 | J19: 1 | K19: 1 | M19: 10 | N19: 3025 | O19: Hans-Glas-Schule Dingolfing Staatl. Berufsschule | P19: 26704 | Q19: 19 | R19: 17 | S19: 16 | T19: 52 | U19: =VLOOKUP(P19,#REF!,4,FALSE) ->  | V19: T | W19: 0874
A20: Gesamt | B20: =SUM(B17:B19) -> 39 | C20: =SUM(C17:C19) -> 39 | D20: =SUM(D17:D19) -> 39 | E20: =SUM(E17:E19) -> 34 | G20: Gesamt | H20: =SUM(H17:H19) -> 39 | I20: =SUM(I17:I19) -> 39 | J20: =SUM(J17:J19) -> 39 | K20: =SUM(K17:K19) -> 34 | M20: 10 | N20: 3025 | O20: Hans-Glas-Schule Dingolfing Staatl. Berufsschule | P20: 28149 | R20: 17 | S20: 17 | T20: 34 | U20: =VLOOKUP(P20,#REF!,4,FALSE) ->  | V20: T | W20: 0874
M21: 10 | N21: 3025 | O21: Hans-Glas-Schule Dingolfing Staatl. Berufsschule | P21: 31334 | Q21: 23 | R21: 23 | S21: 23 | T21: 69 | U21: =VLOOKUP(P21,#REF!,4,FALSE) ->  | V21: T | W21: 0874
A22: FOS-LK | B22: =SUMPRODUCT((B29:B42="x")*(B7:B20)) -> 11 | C22: =SUMPRODUCT((C29:C42="x")*(C7:C20)) -> 14 | D22: 25 | E22: 34 | G22: FOS-LK | H22: =SUMPRODUCT((H29:H42="x")*(H7:H20)) -> 10 | I22: =SUMPRODUCT((I29:I42="x")*(I7:I20)) -> 16 | J22: =SUMPRODUCT((J29:J42="x")*(J7:J20)) -> 18 | K22: 34 | M22: 10 | N22: 4062 | O22: Städt. Berufsschule I für Metall- und Elektrotechnik Regensburg | P22: 27823 | Q22: 18 | R22: 12 | S22: 14 | T22: 44 | U22: =VLOOKUP(P22,#REF!,4,FALSE) ->  | V22: T | W22: 0889
A23: Faktor | B23: =18/36 -> 0.5 | C23: =18/36 -> 0.5 | D23: 0.25 | E23: 0.5 | G23: Faktor | H23: =18/36 -> 0.5 | I23: =18/36 -> 0.5 | J23: 0.25 | K23: 0.5 | M23: 10 | N23: 5017 | O23: Lorenz-Kaim-Schule, Staatl. Berufsschule Kronach | P23: 31612 | Q23: 18 | R23: 17 | S23: 17 | T23: 52 | U23: =VLOOKUP(P23,#REF!,4,FALSE) ->  | V23: T | W23: 0900
A24: LWS | B24: =B23*B22 -> 5.5 | C24: =C23*C22 -> 7 | D24: =D23*D22 -> 6.25 | E24: =E23*E22 -> 17 | G24: LWS | H24: =H23*H22 -> 5 | I24: =I23*I22 -> 8 | J24: =J23*J22 -> 4.5 | K24: =K23*K22 -> 17 | M24: 10 | N24: 6073 | O24: Staatl. Berufsschule Erlangen | P24: 31330 | Q24: 5 | R24: 6 | S24: 4 | T24: 15 | U24: =VLOOKUP(P24,#REF!,4,FALSE) ->  | V24: T | W24: 0864
M25: 10 | N25: 6073 | O25: Staatl. Berufsschule Erlangen | P25: 31338 | Q25: 24 | R25: 25 | S25: 26 | T25: 75 | U25: =VLOOKUP(P25,#REF!,4,FALSE) ->  | V25: T | W25: 0864
A26: Steuerung, ob von FOS LK | V26: T | W26: W
A27: Kaufmänn. | B27: Ab 1 | C27: Ab 2 | D27: Ab 3/1 | E27: Ab 3/2 | G27: Technisch | H27: Ab 1 | I27: Ab 2 | J27: Ab 3/1 | K27: Ab 3/2 | S27: staatlich | T27: =SUMPRODUCT(T30:T40,V30:V40) -> 648 | U27: staatlich | V27: =SUMPRODUCT((V30:V40=1)*(W30:W40="T")*(T30:T40)) -> 648 | W27: =SUMPRODUCT((V30:V40=1)*(W30:W40="W")*(T30:T40)) -> 0
A28: W | B28: 18 Blöcke | C28: 18 Blöcke | D28: 7 Blöcke | E28: VZ | G28: T | H28: 18 Blöcke | I28: 18 Blöcke | J28: 7 Blöcke | K28: VZ | M28: Nach Schule | N28: BS | S28: FOS | T28: =SUM(T30:T40) -> 821 | U28: insgesamt | V28: =SUMIF($W$30:$W$40,"T",$T$30:$T$40) -> 821 | W28: =SUMIF($W$30:$W$40,"W",$T$30:$T$40) -> 0
A29: Religion | E29: x | G29: Religion | K29: x | M29: KART | N29: SNR | O29: Schule | P29: 10 | Q29: 11 | R29: 12 | S29: SNR | T29: Schüler
A30: Geschichte | B30: x | C30: x | D30: x | E30: x | G30: Geschichte | H30: x | I30: x | J30: x | K30: x | M30: 10 | N30: 1415 | O30: Städt. Berufsschule für Bürokommunikation und Industriekaufleute München | P30: 18 | Q30: 19 | R30: 22 | S30: 0805 | T30: =SUM(P30:R30) -> 59 | U30: =IF(V30=1,VLOOKUP(S30,Schuldatei!$L$5:$M$71,2,FALSE),"nichtstaatlich") -> nichtstaatlich | V30: =COUNTIF(Schuldatei!$L$5:$M$71,S30) -> 0 | W30: =INDEX($V$6:$V$25,MATCH(S30,$W$6:$W$25,0)) -> T
A31: Sozialkunde | E31: x | G31: Sozialkunde | K31: x | M31: 10 | N31: 1569 | O31: Staatl. Berufsschule I Ingolstadt | P31: 17 | Q31: 16 | R31: 40 | S31: 0869 | T31: =SUM(P31:R31) -> 73 | U31: =IF(V31=1,VLOOKUP(S31,Schuldatei!$L$5:$M$71,2,FALSE),"nichtstaatlich") -> Staatliche Fachoberschule Ingolstadt | V31: =COUNTIF(Schuldatei!$L$5:$M$71,S31) -> 1 | W31: =INDEX($V$6:$V$25,MATCH(S31,$W$6:$W$25,0)) -> T
A32: Deutsch | B32: x | C32: x | D32: x | E32: x | G32: Deutsch | H32: x | I32: x | J32: x | K32: x | M32: 10 | N32: 1574 | O32: Städt. Berufsschule für Fertigungstechnik München | P32: 30 | Q32: 30 | R32: 33 | S32: 0877 | T32: 93 | U32: =IF(V32=1,VLOOKUP(S32,Schuldatei!$L$5:$M$71,2,FALSE),"nichtstaatlich") -> Staatliche Fachoberschule für Technik München | V32: =COUNTIF(Schuldatei!$L$5:$M$71,S32) -> 1 | W32: T
A33: Englisch | B33: x | C33: x | D33: x | E33: x | G33: Englisch | H33: x | I33: x | J33: x | K33: x | M33: 10 | N33: 1610 | O33: Städt. Berufsschule für Finanz- und Immobilienwirtschaft München | P33: 17 | Q33: 19 | R33: 15 | S33: 0914 | T33: 51 | U33: =IF(V33=1,VLOOKUP(S33,Schuldatei!$L$5:$M$71,2,FALSE),"nichtstaatlich") -> nichtstaatlich | V33: =COUNTIF(Schuldatei!$L$5:$M$71,S33) -> 0 | W33: T
A34: Mathematik | B34: x | C34: x | D34: x | E34: x | G34: Mathematik | H34: x | I34: x | J34: x | K34: x | M34: 10 | N34: 1630 | O34: Städt. Berufsschule für Fahrzeugtechnik, Eisenbahn und Fahrbetrieb München | P34: 18 | Q34: 22 | R34: 28 | S34: 0877 | T34: 68 | U34: =IF(V34=1,VLOOKUP(S34,Schuldatei!$L$5:$M$71,2,FALSE),"nichtstaatlich") -> Staatliche Fachoberschule für Technik München | V34: =COUNTIF(Schuldatei!$L$5:$M$71,S34) -> 1 | W34: T
A35: BWR | B35: x | C35: x | D35: x | E35: x | G35: BWR | H35: x | I35: x | J35: x | K35: x | M35: 10 | N35: 1737 | O35: Staatl. Berufsschule Altötting | P35: 28 | Q35: 25 | R35: 20 | S35: 0851 | T35: 73 | U35: =IF(V35=1,VLOOKUP(S35,Schuldatei!$L$5:$M$71,2,FALSE),"nichtstaatlich") -> Staatl. Fachoberschule Altötting | V35: =COUNTIF(Schuldatei!$L$5:$M$71,S35) -> 1 | W35: T
A36: VWL | B36: x | C36: x | D36: x | E36: x | G36: VWL | H36: x | I36: x | J36: x | K36: x | M36: 10 | N36: 1741 | O36: Städt. Berufsschule für Informationstechnik München | P36: 19 | Q36: 20 | R36: 24 | S36: 0914 | T36: 63 | U36: =IF(V36=1,VLOOKUP(S36,Schuldatei!$L$5:$M$71,2,FALSE),"nichtstaatlich") -> nichtstaatlich | V36: =COUNTIF(Schuldatei!$L$5:$M$71,S36) -> 0 | W36: T
A37: NW | B37: x | C37: x | D37: x | E37: x | G37: NW | H37: x | I37: x | J37: x | K37: x | M37: 10 | N37: 3025 | O37: Hans-Glas-Schule Dingolfing Staatl. Berufsschule | P37: 42 | Q37: 57 | R37: 56 | S37: 0874 | T37: 155 | U37: =IF(V37=1,VLOOKUP(S37,Schuldatei!$L$5:$M$71,2,FALSE),"nichtstaatlich") -> Staatliche Fachoberschule Landshut | V37: =COUNTIF(Schuldatei!$L$5:$M$71,S37) -> 1 | W37: T
A38: Informatik | B38: x | C38: x | D38: x | E38: x | G38: Informatik | H38: x | I38: x | J38: x | K38: x | M38: 10 | N38: 4062 | O38: Städt. Berufsschule I für Metall- und Elektrotechnik Regensburg | P38: 18 | Q38: 12 | R38: 14 | S38: 0889 | T38: 44 | U38: =IF(V38=1,VLOOKUP(S38,Schuldatei!$L$5:$M$71,2,FALSE),"nichtstaatlich") -> Staatliche Fachoberschule Regensburg | V38: =COUNTIF(Schuldatei!$L$5:$M$71,S38) -> 1 | W38: T
A39: Summe | B39: =SUM(B29:B38) -> 0 | C39: =SUM(C29:C38) -> 0 | D39: =SUM(D29:D38) -> 0 | E39: =SUM(E29:E38) -> 0 | G39: Summe | H39: =SUM(H29:H38) -> 0 | I39: =SUM(I29:I38) -> 0 | J39: =SUM(J29:J38) -> 0 | K39: =SUM(K29:K38) -> 0 | M39: 10 | N39: 5017 | O39: Lorenz-Kaim-Schule, Staatl. Berufsschule Kronach | P39: 18 | Q39: 17 | R39: 17 | S39: 0900 | T39: 52 | U39: =IF(V39=1,VLOOKUP(S39,Schuldatei!$L$5:$M$71,2,FALSE),"nichtstaatlich") -> Adalbert-Raps-Schule Staatl. Fachoberschule Kulmbach | V39: =COUNTIF(Schuldatei!$L$5:$M$71,S39) -> 1 | W39: T
A40: Fachl. Unt | G40: Fachl. Unt | M40: 10 | N40: 6073 | O40: Staatl. Berufsschule Erlangen | P40: 29 | Q40: 31 | R40: 30 | S40: 0864 | T40: 90 | U40: =IF(V40=1,VLOOKUP(S40,Schuldatei!$L$5:$M$71,2,FALSE),"nichtstaatlich") -> Staatliche Fachoberschule Erlangen | V40: =COUNTIF(Schuldatei!$L$5:$M$71,S40) -> 1 | W40: T
A41: WU | B41: x | C41: x | D41: x | E41: x | G41: WU | H41: x | I41: x | J41: x | K41: x
A42: Gesamt | B42: =SUM(B39:B41) -> 0 | C42: =SUM(C39:C41) -> 0 | D42: =SUM(D39:D41) -> 0 | E42: =SUM(E39:E41) -> 0 | G42: Gesamt | H42: =SUM(H39:H41) -> 0 | I42: =SUM(I39:I41) -> 0 | J42: =SUM(J39:J41) -> 0 | K42: =SUM(K39:K41) -> 0
